Workbook

Sheet Title
A1: =+ModelName -> CP ACS Model
A2: =MID(CELL("Filename",D1),FIND("]",CELL("Filename",D1))+1,255) -> Title
B12: =+ModelName -> CP ACS Model | P12: Information Classification: | Q12: =+InfoClassification -> Public
B13: =+A49 -> Model Developer | E13: Regulation
B14: Structural Version | E14: =+_LU_Version -> 1
B16: Refer to the | C16: Guide | D16: below for further details
B18: Refer to HelpText for an initial model overview
B19: (Under Add-Ins Toolbar - go to Model Menu/Help/Overview)
A37: Model Guide | C37: (Refer Below)
A38: =+ModelName -> CP ACS Model
A39: ="Version " & _LU_Version -> Version 1
A41: Overview
A42: Organisation name | D42: CitiPower Australia Ltd
A43: Workbook name | D43: CP ACS Model
A44: CP ID | L44: ID as provided by the Project Office, for models in the Quality Register.
A45: Workbook purpose | D45: Provides a bottom up build of the ACS charges
A46: Information Classification | D46: Public | L46: Note the confidentiality of this document.
A47: File name | D47: =MID(CELL("filename"),SEARCH("[",CELL("filename"))+1, SEARCH("]",CELL("filename"))-SEARCH("[",CELL("filename"))-1) -> CitiPower - MOD 1.1 - ACS Model - April 2015 (MARKED AS INTERNAL USE ONLY - NOT TO BE PUBLISHED).xlsm
A48: File Location | D48: =MID(CELL("filename"),1, SEARCH("[",CELL("filename"))-1) -> S:\AER\Vic EDPR - 2016-20\Web publishing - Renamed\CitiPower\Models\
A49: Model Developer | D49: Regulation | L49: Input name of the Developer of the model - as the reference for assistance for model questions and changes.
A50: Model User | D50: CitiPower Australia Ltd | L50: Input name of the end user of the model - as the reference for assistance concerning the data and outputs.
A51: Data Version | D51: 1 | L51: Input description of the data in this version of the model.
A52: Structural Version | D52: 1 | L52: Input Structural Version of this model (as distinct from the data version).
A53: Description | L53: Input key changes made
A54: Risk Assessment | D54: High

Sheet Formats
A1: =+ModelName -> CP ACS Model | H1: Menu
A2: =MID(CELL("Filename",D1),FIND("]",CELL("Filename",D1))+1,255) -> Formats
A3: Menu
E5: Cell Format | F5: Purpose | J5: Example
E7: Blue font 10pt, orange shading | F7: Historical input | J7: Input
E9: Blue font 10pt, yellow shading | F9: Forecast input | J9: Input
E11: Blue font 10 pt, no shading | F11: Text / numbers input from a linked core model | J11: Input
E13: Black font 10 pt, no shading | F13: Formula or cell reference | J13: 100
E15: Green font 10 pt, no shading | F15: Change in formula or cell reference across row | J15: 100
E17: Red font 9 pt, no shading | F17: Check formula | J17: 100
E19: Purple font 10 pt, bold, underlined | F19: Link to another sheet | J19: Menu
E21: Grey shading | F21: Zero value
E25: Tab Colour | F25: Purpose | J25: Example
E27: Light Yellow | F27: Input sheet | J27: Inputs
E29: Mustard | F29: Import sheet from a linked core model | J29: Imports
E31: CPe-Blue | F31: Export Sheet | J31: Export
E33: Blue | F33: Output / Export Sheet | J33: Outputs
E35: Grey | F35: Calculation or cell reference sheet | J35: Calculations
E37: Clear | F37: Title, Menu & Formats Sheet | J37: Formats
E39: Red | F39: Checks Sheet | J39: Checks

Sheet Menu
A1: =+ModelName -> CP ACS Model
A2: =MID(CELL("Filename",D1),FIND("]",CELL("Filename",D1))+1,255) -> Menu
B6: Title | D6: ='CP Sp Read BH'!A1 -> CP Special Meter Reading BH | F6: ='CP Tk 2 hr'!A1 -> CP Service Truck Visit - BH additional 2 hours
B8: =Formats!A2 -> Formats | D8: ='CP Man Read BH '!A1 -> CP Manual Meter Reading BH | F8: ='CP Serv Tk AH'!A1 -> CP Service Truck Visit - AH
B10: =Check!A2 -> Check | D10: ='CP Access to Mtr Data'!A1 -> CP Customer Access to Meter Data | F10: ='CP Wsd Tk BH'!A1 -> CP Wasted Truck Visit - BH
B12: =Inputs!A2 -> Inputs | D12: ='CP Reconn BH'!A1 -> CP Reconnections BH | F12: ='CP Wsd Tk AH'!A1 -> CP Wasted Truck Visit - AH
B14: ='CP Reset RIN 3.2'!A2 -> CP Reset RIN 3.2 | D14: ='CP Reconn AH'!A1 -> CP Reconnections AH | F14: ='CP Res Feeder'!A1 -> CP Reserve Feeder Charges
B16: ='CP Reset RIN 4.2'!A2 -> CP Reset RIN 4.2 | D16: =LEFT('CP Disc DNP BH'!A1,17) -> CP Disconnection | F16: ='CP NC 1Ph (R) BH'!A1 -> CP New Connections Single Phase AH
B18: ='CP Reset RIN 4.3'!A2 -> CP Reset RIN 4.3 | D18: ='CP Mtr Test 1ph BH'!A1 -> CP Meter Accuracy Test - Single Phase BH | F18: ='CP NC 1Ph (R) AH'!A1 -> CP New Connections Single Phase AH
B20: ='CP Restet 4.4'!A2 -> CP Restet 4.4 | D20: ='CP Mtr Test 1ph AH'!A1 -> CP Meter Accuracy Test - Single Phase AH | F20: ='CP NC Multi Ph DC (R) BH'!A1 -> CP New Connections Multi Phase DC BH
B22: ='ACS 12.4'!A2 -> ACS 12.4 | D22: =LEFT('CP MTest 1ph BH'!A1,41) -> CP Meter Accuracy Test - Single Phase Add | F22: ='CP NC 3Ph DC (R) AH'!A1 -> CP New Connections Multi Phase DC AH
B24: ='ACS 12.5'!A2 -> ACS 12.5 | D24: ='CP Mtr Test 3ph BH'!A1 -> CP Meter Accuracy Test - Multi Phase BH | F24: ='CP NC 3Ph CT (R) BH'!A1 -> CP Multi Phase CT BH
B26: ='ACS vol'!A2 -> ACS vol | D26: ='CP Mtr Test 3ph AH'!A1 -> CP Meter Accuracy Test - Multi Phase AH | F26: ='CP NC 3Ph CT (R) AH'!A1 -> CP Multi Phase CT AH
B28: =Volumes!A2 -> Volumes | D28: =LEFT('CP Mtr Test ext mtr 3ph BH'!A1,40) -> CP Meter Accuracy Test - Multi Phase - A | F28: =LEFT('CP NC 1Ph (NR) BH'!A1,45)&")" -> CP New Connections Single Phase BH (Not respo)
B30: ='2011-20 Revenue'!A2 -> 2011-20 Revenue | D30: ='CP Mtr Test CT ph BH'!A1 -> CP Meter Accuracy Test - CT BH | F30: =LEFT('CP NC 1Ph (NR) AH'!A1,45)&")" -> CP New Connections Single Phase AH (Not respo)
B32: ='ACS 12.1'!A2 -> ACS 12.1 | D32: ='CP Mtr Test CT ph AH'!A1 -> CP Meter Accuracy Test - CT AH | F32: =LEFT('CP NC 3Ph DC (NR) BH'!A1,47)&")" -> CP New Connections Multi Phase DC BH (Not respo)
B34: ='2015-20 rate summary'!A2 -> 2015-20 rate summary | D34: ='CP Mtr Invest ph BH'!A1 -> CP Meter Investigation - BH | F34: =LEFT('CP NC 3Ph DC (NR) AH'!A1,47)&")" -> CP New Connections Multi Phase DC AH (Not respo)
B36: ='2011-15 rates summary'!A2 -> 2011-15 rates summary | D36: ='CP Mtr Invest ph AH'!A1 -> CP Service Truck Visit - BH | F36: ='CP NC 3Ph CT (NR) BH'!A1 -> CP Multi Phase CT BH (Not responsible for metering)
B38: ='2011-15 % split'!A2 -> 2011-15 % split | D38: ='CP Serv Tk BH'!A1 -> CP Service Truck Visit - BH | F38: ='CP NC 3Ph CT (NR) AH'!A1 -> CP Multi Phase CT AH (Not responsible for metering)
D40: ='CP Tk half hr'!A1 -> CP Service Truck Visit - BH additional half hour | F40: ='CP Rem Mtr Config'!A1 -> CP Remote Meter Reconfiguration
D42: ='CP Tk 1 hr'!A1 -> CP Service Truck Visit - BH additional 1 hour | F42: ='CP Rem De-en'!A1 -> CP Remote Meter Disconnection
D44: ='CP Tk 1 & half hr'!A1 -> CP Service Truck Visit - BH additional 1 and a half hour | F44: ='CP Rem Re-en'!A1 -> CP Remote Re-energisation

Sheet Check
A1: =+ModelName -> CP ACS Model
A2: =MID(CELL("Filename",D1),FIND("]",CELL("Filename",D1))+1,255) -> Check | D2: =IF(OR(SUM(D6:D20)<1,SUM(D6:D20)>-1),"OK","ERROR") -> OK
A3: Menu
B5: Sheet Name | D5: Check
B8: ='CP Reset RIN 3.2'!A2 -> CP Reset RIN 3.2 | D8: ='CP Reset RIN 3.2'!T6 -> 0
B9: ='CP Reset RIN 4.2'!A2 -> CP Reset RIN 4.2 | D9: ='CP Reset RIN 4.2'!AB5 -> -5.820766091e-11
B10: ='CP Reset RIN 4.3'!A2 -> CP Reset RIN 4.3
B11: ='CP Restet 4.4'!A2 -> CP Restet 4.4
B12: ='ACS 12.4'!A2 -> ACS 12.4 | D12: ='ACS 12.4'!M6 -> 0
B13: ='ACS 12.5'!A2 -> ACS 12.5 | D13: ='ACS 12.5'!M6 -> 0
B14: ='ACS vol'!A2 -> ACS vol | D14: ='ACS vol'!M6 -> 0
B15: =Volumes!A2 -> Volumes
B16: ='2011-20 Revenue'!A2 -> 2011-20 Revenue | D16: ='2011-20 Revenue'!BU6 -> 0
B17: ='ACS 12.1'!A2 -> ACS 12.1 | D17: ='ACS 12.1'!BP4 -> 3.296918294e-12
B18: ='2015-20 rate summary'!A2 -> 2015-20 rate summary | D18: ='2015-20 rate summary'!K6 -> 0
B19: ='2011-15 rates summary'!A2 -> 2011-15 rates summary
B20: ='ACS 12.1'!A2 -> ACS 12.1 | D20: =ROUND('ACS 12.1'!BP4,0) -> 0
B21: ='2011-15 % split'!A2 -> 2011-15 % split | D21: ='2011-15 % split'!AH6 -> 0

Sheet Inputs
A1: =+ModelName -> CP ACS Model
A2: =MID(CELL("Filename",D1),FIND("]",CELL("Filename",D1))+1,255) -> Inputs | J2: =Check!D2 -> OK
A3: Menu
B7: FINANCIAL INPUTS | G7: Current regulatory control period | M7: Forthcoming regulatory control period
G8: 2010 | H8: 2011 | I8: 2012 | J8: 2013 | K8: 2014 | L8: 2015 | M8: 2016 | N8: 2017 | O8: 2018 | P8: 2019 | Q8: 2020
G9: Approved | M9: Proposed
C10: CPI
D11: Sept Index old (9-month lagged) | G11: 168.6 | H11: 173.3 | I11: 179.4 | J11: 182.9951904 | K11: 186.9498998 | L11: 193.7346069 | M11: 198.7717066 | N11: 203.939771 | O11: 209.2422051 | P11: 214.6825024 | Q11: 220.2642474 | S11: Control model
D12: Sept Index new (9-month lagged) | G12: 0 | H12: 0 | I12: 99.8 | J12: 101.8 | K12: 104 | L12: 107.7743242 | M12: 0 | N12: 0 | O12: 0 | P12: 0 | Q12: 0 | S12: Control model
D13: CPI | G13: 0.01261261261 | H13: 0.02787663108 | I13: 0.03519907675 | J13: 0.02004008016 | K13: 0.02161100196 | L13: 0.03629157899 | M13: 0.026 | N13: 0.026 | O13: 0.026 | P13: 0.026 | Q13: 0.026 | S13: Control model
D14: Conversion factor to $2015 | G14: 1.149078332 | H14: 1.117914639 | I14: 1.079903048 | J14: 1.058686878 | K14: 1.036291579 | L14: 1 | M14: 0.9746588694 | N14: 0.9499599117 | O14: 0.9258868535 | P14: 0.9024238338 | Q14: 0.8795553936 | S14: Control model
D15: Conversion factor to $2006 to $2010 | G15: 1.156875834
D16: AER 2015 rate (until July) | L16: =106.4/104-1 -> 0.02307692308
C18: Real cost escalation
D19: Labour Escalation | L19: 0.02164431082 | M19: 0.01873364327 | N19: 0.01684373406 | O19: 0.01684373406 | P19: 0.01684373406 | Q19: 0.01684373406 | S19: Control model
D20: Materials Escalation | L20: 0 | M20: 0 | N20: 0 | O20: 0 | P20: 0 | Q20: 0 | S20: Control model
D21: Contracts Escalation | L21: 0.0122406015 | M21: 0.009649122807 | N21: 0.02153996101 | O21: 0.01734892788 | P21: 0.0171539961 | Q21: 0.01744639376 | S21: Control model
B25: MARGIN & OVERHEADS | M25: Forthcoming regulatory control period
M26: 2016-20
D27: Direct Overhead | M27: 0.09 | S27: 2014 overhead rate calculated from category RIN data
D28: Indirect Overhead | M28: 0.121 | S28: 2014 overhead rate calculated from category RIN data
D29: Margin | M29: 0.07 | S29: KPMG report
D30: Total Labour Overhead & Margin | M30: =(1+M27)*(1+M28)/1*(1+M29)/1-1 -> 0.3074223 | S30: Calculated
B34: X FACTOR | G34: Current regulatory control period
G35: 2010 | H35: 2011 | I35: 2012 | J35: 2013 | K35: 2014 | L35: 2015
D36: Fee based connection services | I36: -0.3738 | J36: -0.2719 | K36: -0.0029 | L36: -0.0022 | S36: X Factor excalation per the Final Decision 2011-15
D37: Other Fee based Services | I37: -0.0054 | J37: -0.0179 | K37: -0.0331 | L37: -0.0181 | S37: X Factor excalation per the Final Decision 2011-15
D38: Quoted services | I38: -0.0302 | J38: -0.0222 | K38: -0.0067 | L38: -0.014 | S38: X Factor excalation per the Final Decision 2011-15
B42: CURRENT LABOUR RATES | G42: Current regulatory control period | M42: Forthcoming regulatory control period
G43: 2010 | H43: 2011 | I43: 2012 | J43: 2013 | K43: 2014 | L43: 2015 | M43: 2016 | N43: 2017 | O43: 2018 | P43: 2019 | Q43: 2020
G44: Real $2010 (ex GST) | L44: Real $2015 (ex GST)
C45: Back Office Labour Rate
D46: Back Office - Exclusive of Ohs | H46: 41.67 | I46: =ROUNDDOWN(H46*(1-I$38),2) -> 42.92 | J46: 43.87 | K46: 44.16 | L46: =ROUNDDOWN(K46*(1-L$38)*$G$14,2) -> 51.45 | S46: Cost build up Model for ACS - AER final decision 2011-15
D47: Back Office - Inclusive of Ohs | H47: 47.84 | I47: 49.28 | J47: 50.37 | K47: 50.7 | L47: ='2011-15 rates summary'!P72 -> 58.32 | S47: Cost build up Model for ACS - AER final decision 2011-15
C49: Field labour rate exclusive of margin & overheads
D50: General Lineworker BH | H50: 101.0964558 | I50: =H50*(1-I$38) -> 104.1495688 | J50: =I50*(1-J$38) -> 106.4616892 | K50: 107.1749826 | L50: =K50*(1-L$38)*$G$14 -> 124.8765845 | S50: Cost build up Model for ACS - AER final decision 2011-15
D51: Design / Survey BH | H51: 96.16153088 | I51: 99.06560911 | J51: 101.2648656 | K51: 101.9433402 | L51: =K51*(1-L$38)*$G$14 -> 118.7808558 | S51: Cost build up Model for ACS - AER final decision 2011-15
D52: General Lineworker AH | H52: 112.0002073 | I52: 115.3826136 | J52: 117.9441076 | K52: 118.7343331 | L52: =K52*(1-L$38)*$G$14 -> 138.3451402 | S52: Cost build up Model for ACS - AER final decision 2011-15
D53: Design / Survey AH | H53: 113.251315 | I53: 116.6715048 | J53: 119.2616122 | K53: 120.060665 | L53: =K53*(1-L$38)*$G$14 -> 139.8905362 | S53: Cost build up Model for ACS - AER final decision 2011-15
C55: Field Labour rate inclusive of margin & overhead
D56: General Lineworker BH | H56: 116.36 | I56: =ROUNDDOWN(H56*(1-I$38),2) -> 119.87 | J56: 122.53 | K56: 123.35 | L56: ='2011-15 rates summary'!P68 -> 141.87 | S56: Cost build up Model for ACS - AER final decision 2011-15
D57: Design / Survey BH | H57: 110.68 | I57: 114.02 | J57: 116.55 | K57: 117.33 | L57: ='2011-15 rates summary'!P70 -> 134.95 | S57: Cost build up Model for ACS - AER final decision 2011-15
D58: General Lineworker AH | H58: 128.91 | I58: 132.8 | J58: 135.74 | K58: 136.64 | L58: ='2011-15 rates summary'!P69 -> 157.18 | S58: Cost build up Model for ACS - AER final decision 2011-15
D59: Design / Survey AH | H59: 130.35 | I59: 134.28 | J59: 137.26 | K59: 138.17 | L59: ='2011-15 rates summary'!P71 -> 158.94 | S59: Cost build up Model for ACS - AER final decision 2011-15
D61: PC Line workers, two person crew - BH | H61: 112.785 | I61: =H61*(1-I$38) -> 116.191107 | J61: 118.7705496 | K61: 119.5663123 | L61: =K61*(1-L$38)*$G$14 -> 139.3145335 | S61: Cost build up Model for ACS - AER final decision 2011-15
D62: PC Line workers, two person crew - AH | H62: 125.3357407 | I62: 129.1208801 | J62: 131.9873636 | K62: 132.871679 | L62: =K62*(1-L$38)*$G$14 -> 154.8174869 | S62: Cost build up Model for ACS - AER final decision 2011-15
E64: 2006
E65: $nom
C66: CitiPower not exclusively responsible for metering | E66: 50 | G66: =E66*G15 -> 57.84379172 | H66: =G66*(1+H13) -> 59.45628176 | I66: =H66*(1-I$38) -> 61.25186147 | J66: =I66*(1-J$38) -> 62.6116528 | K66: =J66*(1-K$38) -> 63.03115087 | L66: =K66*(1-L$38)*$G$14 -> 73.44171795 | S66: (refer to EDPR 2006-10 Final Decision Vol 1 s14.2.4)
B69: FORTHCOMING LABOUR RATES
G70: AH rate | H70: % | I70: 2014 rate | J70: 2014 rate
G71: as % of | H71: hours | I71: from Cat | J71: from Cat
G72: BH rate | H72: worked | I72: RIN | J72: RIN
C73: 2014 Categort RIN | I73: Nom $2014 | J73: Nom $2014
D74: Skilled Electrical Worker BH | G74: 1 | H74: 0.8026315789 | I74: 121.2715977 | J74: =I74/(H74+G75*H75) -> 117.2367293 | S74: AH rate as % of BH for PNS
D75: Skilled Electrical Worker AH | G75: 1.174376521 | H75: 0.1973684211 | J75: =J74*G75 -> 137.6800623 | S75: % hours worked by PNS
D76: Support staff (Category RIN) | G76: 1 | H76: 1 | I76: 65.47940459 | J76: =G76*H76*I76 -> 65.47940459 | S76: 2014 Cat RIN Rate: Rates as reported in 2014 Category RIN
G78: Current regulatory control period | M78: Forthcoming regulatory control period
G79: 2010 | H79: 2011 | I79: 2012 | J79: 2013 | K79: 2014 | L79: 2015 | M79: 2016 | N79: 2017 | O79: 2018 | P79: 2019 | Q79: 2020
C80: Exclusive of margin & overheads | G80: Real $2010 (ex GST) | L80: Real $2015 (ex GST)
D81: Skilled Electrical Worker BH | L81: =J74*(1+L13) -> 121.4914353 | M81: =L81*(1+M$19) -> 123.7674125 | N81: =M81*(1+N$19) -> 125.8521179 | O81: 127.9719375 | P81: 130.1274628 | Q81: 132.3192952
D82: Skilled Electrical Worker AH | L82: =J75*(1+L13) -> 142.6766892 | M82: 145.3495434 | N82: 147.7977724 | O82: =N82*(1+O$19) -> 150.2872388 | P82: 152.8186371 | Q82: 155.3926736
D83: Support staff | L83: =J76*(1+L13)*(1+L$19) -> 69.32444664 | M83: 70.62314609 | N83: 71.81270358 | O83: 73.02229767 | P83: 74.25226583 | Q83: 75.50295125
B87: MATERIAL RATES | G87: Current regulatory control period | M87: Forthcoming regulatory control period
G88: 2010 | H88: 2011 | I88: 2012 | J88: 2013 | K88: 2014 | L88: 2015 | M88: 2016 | N88: 2017 | O88: 2018 | P88: 2019 | Q88: 2020
G89: Real $2010 (ex GST) | L89: Real $2015 (ex GST)
C90: Exclusive of margin & overheads
D91: Single Phase | H91: 90.13552419 | I91: 90.49606628 | J91: 89.77209775 | K91: 88.33574419 | L91: 99.57610053 | M91: =L91*(1+M$20) -> 99.57610053 | N91: =M91*(1+N$20) -> 99.57610053 | O91: =N91*(1+O$20) -> 99.57610053 | P91: =O91*(1+P$20) -> 99.57610053 | Q91: =P91*(1+Q$20) -> 99.57610053
D92: Multi DC | H92: 154.789006 | I92: 155.408162 | J92: 154.1648967 | K92: 151.6982583 | L92: 171.0012313 | M92: =L92*(1+M$20) -> 171.0012313 | N92: 171.0012313 | O92: 171.0012313 | P92: 171.0012313 | Q92: 171.0012313
D93: Multi CT | H93: 281.9844914 | I93: 283.1124294 | J93: 280.84753 | K93: 276.3539695 | L93: 311.5188636 | M93: 311.5188636 | N93: 311.5188636 | O93: 311.5188636 | P93: 311.5188636 | Q93: 311.5188636
B97: CONTRACT RATES | G97: Current regulatory control period | M97: Forthcoming regulatory control period
G98: 2010 | H98: 2011 | I98: 2012 | J98: 2013 | K98: 2014 | L98: 2015 | M98: 2016 | N98: 2017 | O98: 2018 | P98: 2019 | Q98: 2020
G99: Real $2010 (ex GST) | L99: Real $2015 (ex GST)
C100: Contract rates 2014/2015
D101: Reconnections BH | H101: 7.97 | I101: 11.955 | J101: 15.94 | K101: 15.94 | L101: 18.31630862 | M101: =L101*(1+M$21) -> 18.49304493 | N101: 18.8913844 | O101: 19.21912966 | P101: 19.54881454 | Q101: 19.88987085 | S101: $14.89 as per current contract.
D102: Reconnections AH | H102: 48.9864 | I102: 73.4796 | J102: 97.9728 | K102: 97.9728 | L102: 112.5784217 | M102: 113.6647047 | N102: 116.113038 | O102: 118.1274747 | P102: 120.1538329 | Q102: 122.250084 | S102: $24.15 as per current contract.
D103: Reconnections (Same day) BH | H103: 11.15 | I103: 16.725 | J103: 22.3 | K103: 22.3 | L103: 25.62444681 | M103: 25.87170025 | N103: 26.42897566 | O103: 26.88749006 | P103: 27.34871796 | Q103: 27.82585446 | S103: $14.89 as per current contract.
D104: Disconnection (incl Re-en after de-en for non-payment) BH | H104: 8.14 | I104: 12.21 | J104: 16.28 | K104: 16.28 | L104: 18.70699525 | M104: 18.88750135 | N104: 19.29433739 | O104: 19.62907346 | P104: 19.96579051 | Q104: 20.31412155 | S104: $17.65 as per current contract.
D105: Special Meter Reading BH | H105: 7.97 | I105: 11.955 | J105: 15.94 | K105: 15.94 | L105: 18.31630862 | M105: 18.49304493 | N105: 18.8913844 | O105: 19.21912966 | P105: 19.54881454 | Q105: 19.88987085 | S105: $14.89 as per current contract.
B109: CURRENT QUOTED SERVICE REVENUE
G110: Current regulatory control period | M110: Forthcoming regulatory control period
G111: 2010 | H111: 2011 | I111: 2012 | J111: 2013 | K111: 2014 | L111: 2015 | M111: 2016 | N111: 2017 | O111: 2018 | P111: 2019 | Q111: 2020
G112: Nominal $ (ex GST) | L112: Real $2015 (ex GST)
C113: Expenditure/Revenue
D114: Recoverable Works - Asset Damage | H114: 315952 | I114: 520456 | J114: 702528 | K114: 1483957 | L114: =K114*$K$14*(1+L$19) -> 1571097.027 | M114: =L114*(1+M$19) -> 1600529.398 | N114: 1627488.289 | O114: 1654901.269 | P114: =O114*(1+P$19) -> 1682775.986 | Q114: 1711120.217
D115: After hours truck by appointment | H115: 79037 | I115: 28670 | J115: 58782 | K115: 46180 | L115: 48891.75407 | M115: 49807.67475 | N115: 50646.62198 | O115: 51499.70021 | P115: 52367.14746 | Q115: 53249.20577
D116: Supply abolishment | H116: 886427 | I116: 578064 | J116: 613388 | K116: 756930 | L116: 801377.9863
D117: Audit Design & Construction Charge | H117: - | I117: - | J117: 89683 | K117: 26406 | L117: 27956.59718 | M117: 28480.3261 | N117: 28960.04114 | O117: 29447.83637 | P117: 29943.8479 | Q117: 30448.21411
D118: Specification & Design Enquiry Charge | H118: 115955 | I118: 225593 | J118: 1289694 | K118: 1221786 | L118: 1293530.98 | M118: 1317763.527 | N118: 1339959.586 | O118: 1362529.509 | P118: 1385479.594 | Q118: 1408816.243
D119: High Load Escorts | H119: - | I119: 24989 | J119: 31699 | L119: 0 | M119: =L119*(1+M$19) -> 0 | N119: 0 | O119: 0 | P119: 0 | Q119: 0
D120: Low Voltage Mains | H120: 593166 | I120: 777687 | J120: 961798 | K120: 1143296 | L120: 1210431.937 | M120: 1233107.737 | N120: 1253877.876 | O120: 1274997.862 | P120: 1296473.586 | Q120: 1318311.043
D121: Batons/ Shutdown / Electrical Inspect/ Meter Test & Revovery | H121: - | I121: - | J121: - | L121: 0 | M121: 0 | N121: 0 | O121: 0 | P121: 0 | Q121: 0
C123: Volumes
D124: Recoverable Works - Asset Damage | H124: 157 | I124: 89 | J124: 68 | K124: 65 | L124: =K124 -> 65 | M124: 65 | N124: 65 | O124: 65 | P124: 65 | Q124: 65
D125: After hours truck by appointment | H125: 416 | I125: 222 | J125: 211 | K125: 220 | L125: 220 | M125: 220 | N125: 220 | O125: 220 | P125: 220 | Q125: 220
D126: Supply abolishment | H126: 2258 | I126: 1547 | J126: 1636 | K126: 1930 | L126: 1930
D127: Audit Design & Construction Charge | H127: - | I127: - | J127: 5 | K127: 8 | L127: 8 | M127: 8 | N127: 8 | O127: 8 | P127: 8 | Q127: 8
D128: Specification & Design Enquiry Charge | H128: 6 | I128: 25 | J128: 73 | K128: 73 | L128: 73 | M128: 73 | N128: 73 | O128: 73 | P128: 73 | Q128: 73
D129: High Load Escorts | H129: - | I129: 2 | J129: 8 | L129: 0 | M129: 0 | N129: 0 | O129: 0 | P129: 0 | Q129: 0
D130: Low Voltage Mains | H130: 586 | I130: 645 | J130: 708 | K130: 741 | L130: 741 | M130: 741 | N130: 741 | O130: 741 | P130: 741 | Q130: 741
D131: Batons/ Shutdown / Electrical Inspect/ Meter Test & Revovery | H131: - | I131: - | J131: - | K131: - | L131: - | M131: - | N131: - | O131: - | P131: - | Q131: -
B135: CUSTOMER ESCALATION | G135: Current regulatory control period | M135: Forthcoming regulatory control period
G136: 2010 | H136: 2011 | I136: 2012 | J136: 2013 | K136: 2014 | L136: 2015 | M136: 2016 | N136: 2017 | O136: 2018 | P136: 2019 | Q136: 2020
D137: All ACS charges excluding Disconnections | H137: 0.01374919273 | I137: 0.01336855061 | J137: 0.01284381878 | K137: 0.01487566051 | L137: 0.0225793043 | M137: 0.0225793043 | N137: 0.0139793043 | O137: 0.0139793043 | P137: 0.0139793043 | Q137: 0.0139793043 | S137: Metering Volumes Model
D138: Disconnections | K138: =SUM(Volumes!AD20:AD27)/SUM(Volumes!W20:W27)-1 -> -0.2777987905 | L138: -0.2004636487 | M138: -0.1568971923 | N138: -0.1493965306 | O138: -0.05819276816 | P138: -0.05819276816 | Q138: -0.05819276816 | S138: Metering Volumes Model
B142: RESERVE FEEDER | G142: Current regulatory control period | M142: Forthcoming regulatory control period
G143: 2010 | H143: 2011 | I143: 2012 | J143: 2013 | K143: 2014 | L143: 2015 | M143: 2016 | N143: 2017 | O143: 2018 | P143: 2019 | Q143: 2020
D144: Subtransmission | J144: ='CP Res Feeder'!$E$7 -> 0 | K144: =J144*(1-K$37) -> 0 | L144: 0 | M144: =L144*(1+M$19) -> 0 | N144: 0 | O144: 0 | P144: 0 | Q144: 0
D145: High Voltage | J145: ='CP Res Feeder'!$E$9 -> 5.246979825 | K145: 5.420654857 | L145: 5.51876871 | M145: 5.622155354 | N145: 5.716853444 | O145: 5.813146603 | P145: 5.911061698 | Q145: 6.010626049
D146: Low Voltage | J146: ='CP Res Feeder'!$E11 -> 12.29103331 | K146: 12.69786652 | L146: 12.9276979 | M146: 13.16988078 | N146: 13.39171075 | O146: 13.61727716 | P146: 13.84664296 | Q146: 14.07987213
G151: Current regulatory control period | M151: Forthcoming regulatory control period
B152: MANUAL READ VOLUMES | G152: 2010 | H152: 2011 | I152: 2012 | J152: 2013 | K152: 2014 | L152: 2015 | M152: 2016 | N152: 2017 | O152: 2018 | P152: 2019 | Q152: 2020
D153: No of manual reads | L153: 6183 | M153: 8243 | N153: 8243 | O153: 8243 | P153: 8243 | Q153: 8243
D154: No of requests for access to meter data | M154: 191 | N154: 476 | O154: 1190 | P154: 2976 | Q154: 7441
B158: METER TYPE ALLOCATIONS
C160: 2014 Category RIN Analysis | K160: 2014
D161: Meter testing | E161: Meter Type 4 | K161: 0.9645055243
D162: Meter testing | E162: Meter Type 5 | K162: 0.001773382571
D163: Meter testing | E163: Meter Type 6 | K163: 0.03372109312
D164: Meter investigation | E164: Meter Type 4 | K164: 0.9645055243
D165: Meter investigation | E165: Meter Type 5 | K165: 0.001773382571
D166: Meter investigation | E166: Meter Type 6 | K166: 0.03372109312
D167: Scheduled meter reading | E167: Meter Type 5 | K167: 0.1623795886
D168: Scheduled meter reading | E168: Meter Type 6 | K168: 0.8376204114
D169: Special meter reading | E169: Meter Type 4 | K169: 0.9645055243
D170: Special meter reading | E170: Meter Type 5 | K170: 0.001773382571
D171: Special meter reading | E171: Meter Type 6 | K171: 0.03372109312

Sheet CP Reset RIN 3.2
A1: =Title!A38 -> CP ACS Model
A2: =MID(CELL("Filename",D1),FIND("]",CELL("Filename",D1))+1,255) -> CP Reset RIN 3.2 | J2: =Check!D2 -> OK
A3: Menu
C6: Instructions | T6: =SUM(T7:T62) -> 0
C7: Forecasts for opex in table 3.2.1 are to be for the opex categories that the DNSP has reported in their response to their annual reporting RIN.
E11: Standard control services | L11: Alternative control services
E12: Forecast ($0's, real December 2015) | L12: Forecast ($0's, real December 2015)
E13: 2015 | F13: 2016 | G13: 2017 | H13: 2018 | I13: 2019 | J13: 2020 | L13: 2015 | M13: 2016 | N13: 2017 | O13: 2018 | P13: 2019 | Q13: 2020
C15: TABLE 3.2.1 - OPEX CATEGORIES
C16: Table 3.2.1.1 Current opex categories and cost allocations
A17: ED_OPX3211_00001 | B17: DOPEX0101 | C17: Network Operating costs
A18: ED_OPX3211_00002 | B18: DOPEX0102 | C18: Meter data services
A19: ED_OPX3211_00003 | B19: DOPEX0103 | C19: Billing & Revenue Collection
A20: ED_OPX3211_00004 | B20: DOPEX0104 | C20: Advertising/ Marketing
A21: ED_OPX3211_00005 | B21: DOPEX0105 | C21: Customer Service
A22: ED_OPX3211_00006 | B22: DOPEX0106 | C22: Energy Planning
A23: ED_OPX3211_00007 | B23: DOPEX0107 | C23: Regulatory
A24: ED_OPX3211_00008 | B24: DOPEX0108 | C24: Regulatory Reset
A25: ED_OPX3211_00009 | B25: DOPEX0109 | C25: IT
A26: ED_OPX3211_00010 | B26: DOPEX0110 | C26: Licence Fee
A27: ED_OPX3211_00011 | B27: DOPEX0111 | C27: GSL payments
A28: ED_OPX3211_00012 | B28: DOPEX0112 | C28: Non-network alternatives costs
A29: ED_OPX3211_00013 | B29: DOPEX0113 | C29: Debt raising costs
A30: ED_OPX3211_00014 | B30: DOPEX0114 | C30: Other
A31: ED_OPX3211_00015 | B31: DOPEX0115 | C31: AMI
A32: ED_OPX3211_00016 | B32: DOPEX0116 | C32: Public Lighting
A33: ED_OPX3211_00017 | B33: DOPEX0117 | C33: Alternative control -other | L33: =SUM('ACS 12.5'!G66,'ACS 12.5'!G82)-L42 -> 8326160.789 | M33: =SUM('ACS 12.5'!H66,'ACS 12.5'!H82)-M42 -> 9208032.866 | N33: =SUM('ACS 12.5'!I66,'ACS 12.5'!I82)-N42 -> 9258810.644 | O33: =SUM('ACS 12.5'!J66,'ACS 12.5'!J82)-O42 -> 9360412.953 | P33: =SUM('ACS 12.5'!K66,'ACS 12.5'!K82)-P42 -> 9546085.324 | Q33: =SUM('ACS 12.5'!L66,'ACS 12.5'!L82)-Q42 -> 9895141.067
A34: ED_OPX3211_00018 | B34: DOPEX0118 | C34: MAINTENANCE
A35: ED_OPX3211_00019 | B35: DOPEX0119 | C35: Routine
A36: ED_OPX3211_00020 | B36: DOPEX0120 | C36: Condition based
A37: ED_OPX3211_00021 | B37: DOPEX0121 | C37: Emergency
A38: ED_OPX3211_00022 | B38: DOPEX0122 | C38: SCADA/Network Control
A39: ED_OPX3211_00023 | B39: DOPEX0123 | C39: Other - Standard Control Services (a)
A40: ED_OPX3211_00024 | B40: DOPEX0124 | C40: AMI
A41: ED_OPX3211_00025 | B41: DOPEX0125 | C41: Public Lighting
A42: ED_OPX3211_00026 | B42: DOPEX0126 | C42: Alternative control -other | L42: =(SUM('ACS 12.5'!G9:G18)+'ACS 12.5'!G31+'ACS 12.5'!G33)+('ACS 12.5'!G76+'ACS 12.5'!G75+'ACS 12.5'!G79+'ACS 12.5'!G80) -> 3120192.129 | M42: =(SUM('ACS 12.5'!H9:H18)+'ACS 12.5'!H31+'ACS 12.5'!H33)+('ACS 12.5'!H76+'ACS 12.5'!H75+'ACS 12.5'!H79+'ACS 12.5'!H80) -> 2601086.75 | N42: =(SUM('ACS 12.5'!I9:I18)+'ACS 12.5'!I31+'ACS 12.5'!I33)+('ACS 12.5'!I76+'ACS 12.5'!I75+'ACS 12.5'!I79+'ACS 12.5'!I80) -> 2675163.482 | O42: =(SUM('ACS 12.5'!J9:J18)+'ACS 12.5'!J31+'ACS 12.5'!J33)+('ACS 12.5'!J76+'ACS 12.5'!J75+'ACS 12.5'!J79+'ACS 12.5'!J80) -> 2751692.58 | P42: =(SUM('ACS 12.5'!K9:K18)+'ACS 12.5'!K31+'ACS 12.5'!K33)+('ACS 12.5'!K76+'ACS 12.5'!K75+'ACS 12.5'!K79+'ACS 12.5'!K80) -> 2830763.3 | Q42: =(SUM('ACS 12.5'!L9:L18)+'ACS 12.5'!L31+'ACS 12.5'!L33)+('ACS 12.5'!L76+'ACS 12.5'!L75+'ACS 12.5'!L79+'ACS 12.5'!L80) -> 2912468.309
A43: ED_OPX3211_00027 | B43: DOPEX0127 | C43: Negotiated services
A44: ED_OPX3211_00028 | B44: DOPEX0128 | C44: Unregulated services
A45: ED_OPX3211_00029 | B45: DOPEX0129
A46: ED_OPX3211_00030 | B46: DOPEX0130
A47: ED_OPX3211_00031 | B47: DOPEX0131
A48: ED_OPX3211_00032 | B48: DOPEX0132
A49: ED_OPX3211_00033 | B49: DOPEX0133
A50: ED_OPX3211_00034 | B50: DOPEX0134
A51: ED_OPX3211_99999 | B51: DOPEX01 | C51: Total opex | E51: =SUM(E17:E50) -> 0 | F51: 0 | G51: 0 | H51: 0 | I51: 0 | J51: 0 | L51: =SUM(L17:L50) -> 11446352.92 | M51: 11809119.62 | N51: 11933974.13 | O51: 12112105.53 | P51: 12376848.62 | Q51: 12807609.38 | T51: =SUM(L51:Q51)-SUM('ACS 12.5'!G66:L66,'ACS 12.5'!G82:L82) -> 0
C54: TABLE 3.2.2 - OPEX CONSISTENCY
C55: Table 3.2.2.1 Opex consistency - current cost allocation approach
A56: ED_OPX3221_00001 | B56: DOPEX0201 | C56: Opex for network services
A57: ED_OPX3221_00002 | B57: DOPEX0202 | C57: Opex for metering
A58: ED_OPX3221_00003 | B58: DOPEX0203 | C58: Opex for connection services | L58: =SUM('ACS 12.5'!G77:G78,'ACS 12.5'!G40:G57) -> 4719491.591 | M58: =SUM('ACS 12.5'!H77:H78,'ACS 12.5'!H40:H57) -> 4786985.078 | N58: =SUM('ACS 12.5'!I77:I78,'ACS 12.5'!I40:I57) -> 4931091.577 | O58: =SUM('ACS 12.5'!J77:J78,'ACS 12.5'!J40:J57) -> 5080062.887 | P58: =SUM('ACS 12.5'!K77:K78,'ACS 12.5'!K40:K57) -> 5234075.962 | Q58: =SUM('ACS 12.5'!L77:L78,'ACS 12.5'!L40:L57) -> 5393314.472
A59: ED_OPX3221_00004 | B59: DOPEX0204 | C59: Opex for public lighting
A60: ED_OPX3221_00005 | B60: DOPEX0205 | C60: Opex for amounts payable for easement levy or similar direct charges on DNSP
A61: ED_OPX3221_00006 | B61: DOPEX0207 | C61: Opex for transmission connection point planning
C62: Total opex | E62: =SUM(E56:E61) -> 0 | F62: 0 | G62: 0 | H62: 0 | I62: 0 | J62: 0 | L62: =SUM(L56:L61) -> 4719491.591 | M62: 4786985.078 | N62: 4931091.577 | O62: 5080062.887 | P62: 5234075.962 | Q62: 5393314.472
C65: TABLE 3.2.4 - OPEX FOR HIGH VOLTAGE CUSTOMERS | F65: End user costs (not standard control services)
A66: ED_OPX324_00001 | B66: DOPEX0401 | C66: Opex for high voltage customers

Sheet CP Reset RIN 4.2
A1: PAL Metering expenditure templates - iter1v1.xls
A2: =MID(CELL("Filename",D1),FIND("]",CELL("Filename",D1))+1,255) -> CP Reset RIN 4.2 | J2: =Check!D2 -> OK
A3: Menu
AB5: =SUM(AB7:AB47) -> -5.820766091e-11
C7: TABLE 4.2.1 - METERING DESCRIPTOR METRIC | M7: TABLE 4.2.2 - COST METRICS
C8: <<<GROUP-ROW>>>
A10: NB: Codes in hidden column L | E10: VOLUMES (0's) | O10: EXPENDITURE ($0's, real December 2015) | U10: VOLUMES (0's)
C11: ASSET CATEGORY | D11: ASSET SUBCATEGORY | E11: 2015 | F11: 2016 | G11: 2017 | H11: 2018 | I11: 2019 | J11: 2020 | M11: SERVICE SUBCATEGORY | N11: METER TYPE | O11: 2015 | P11: 2016 | Q11: 2017 | R11: 2018 | S11: 2019 | T11: 2020 | U11: 2015 | V11: 2016 | W11: 2017 | X11: 2018 | Y11: 2019 | Z11: 2020
A12: ED_MET421_00001 | C12: Meter Type 4 | D12: Single phase meter population | L12: ED_MET422_00001 | M12: Meter purchase | N12: Meter Type 4
A13: ED_MET421_00002 | D13: Multi phase meter population | L13: ED_MET422_00002 | N13: Meter Type 5
A14: ED_MET421_00003 | D14: Current transformer connected meter population | L14: ED_MET422_00003 | N14: Meter Type 6
A15: ED_MET421_00004 | D15: Direct connect meter population | L15: ED_MET422_00004 | M15: Meter testing | N15: Meter Type 4 | O15: =Inputs!$K161*SUM('ACS 12.5'!G$11:G$18) -> 29058.77969 | P15: =Inputs!$K161*SUM('ACS 12.5'!H$11:H$18) -> 35122.66124 | Q15: =Inputs!$K161*SUM('ACS 12.5'!I$11:I$18) -> 36520.6611 | R15: =Inputs!$K161*SUM('ACS 12.5'!J$11:J$18) -> 37974.30606 | S15: =Inputs!$K161*SUM('ACS 12.5'!K$11:K$18) -> 39485.81096 | T15: =Inputs!$K161*SUM('ACS 12.5'!L$11:L$18) -> 41057.47884 | U15: =Inputs!$K161*SUM('ACS vol'!G$11:G$18) -> 71.42915149 | V15: =Inputs!$K161*SUM('ACS vol'!H$11:H$18) -> 73.04197204 | W15: =Inputs!$K161*SUM('ACS vol'!I$11:I$18) -> 74.69120895 | X15: =Inputs!$K161*SUM('ACS vol'!J$11:J$18) -> 76.37768449 | Y15: =Inputs!$K161*SUM('ACS vol'!K$11:K$18) -> 78.10223947 | Z15: =Inputs!$K161*SUM('ACS vol'!L$11:L$18) -> 79.8657337
A16: ED_MET421_00005 | C16: Meter Type 5 | D16: Single phase meter population | L16: ED_MET422_00005 | N16: Meter Type 5 | O16: =Inputs!$K162*SUM('ACS 12.5'!G$11:G$18) -> 53.42875922 | P16: =Inputs!$K162*SUM('ACS 12.5'!H$11:H$18) -> 64.57808038 | Q16: =Inputs!$K162*SUM('ACS 12.5'!I$11:I$18) -> 67.14850484 | R16: =Inputs!$K162*SUM('ACS 12.5'!J$11:J$18) -> 69.82124083 | S16: =Inputs!$K162*SUM('ACS 12.5'!K$11:K$18) -> 72.60036069 | T16: =Inputs!$K162*SUM('ACS 12.5'!L$11:L$18) -> 75.49009885 | U16: =Inputs!$K162*SUM('ACS vol'!G$11:G$18) -> 0.1313328012 | V16: =Inputs!$K162*SUM('ACS vol'!H$11:H$18) -> 0.1342982045 | W16: =Inputs!$K162*SUM('ACS vol'!I$11:I$18) -> 0.1373305645 | X16: =Inputs!$K162*SUM('ACS vol'!J$11:J$18) -> 0.1404313931 | Y16: =Inputs!$K162*SUM('ACS vol'!K$11:K$18) -> 0.1436022363 | Z16: =Inputs!$K162*SUM('ACS vol'!L$11:L$18) -> 0.1468446749
A17: ED_MET421_00006 | D17: Multi phase meter population | L17: ED_MET422_00006 | N17: Meter Type 6 | O17: =Inputs!$K163*SUM('ACS 12.5'!G$11:G$18) -> 1015.954591 | P17: =Inputs!$K163*SUM('ACS 12.5'!H$11:H$18) -> 1227.960339 | Q17: =Inputs!$K163*SUM('ACS 12.5'!I$11:I$18) -> 1276.837284 | R17: =Inputs!$K163*SUM('ACS 12.5'!J$11:J$18) -> 1327.659695 | S17: =Inputs!$K163*SUM('ACS 12.5'!K$11:K$18) -> 1380.50501 | T17: =Inputs!$K163*SUM('ACS 12.5'!L$11:L$18) -> 1435.453745 | U17: =Inputs!$K163*SUM('ACS vol'!G$11:G$18) -> 2.49730977 | V17: =Inputs!$K163*SUM('ACS vol'!H$11:H$18) -> 2.553697287 | W17: =Inputs!$K163*SUM('ACS vol'!I$11:I$18) -> 2.611357995 | X17: =Inputs!$K163*SUM('ACS vol'!J$11:J$18) -> 2.670320642 | Y17: =Inputs!$K163*SUM('ACS vol'!K$11:K$18) -> 2.730614624 | Z17: =Inputs!$K163*SUM('ACS vol'!L$11:L$18) -> 2.792270003
A18: ED_MET421_00007 | D18: Current transformer connected meter population | L18: ED_MET422_00007 | M18: Meter investigation | N18: Meter Type 4 | O18: =Inputs!$K164*SUM('ACS 12.5'!G$9:G$10) -> 22074.44092 | P18: =Inputs!$K164*SUM('ACS 12.5'!H$9:H$10) -> 27112.87082 | Q18: =Inputs!$K164*SUM('ACS 12.5'!I$9:I$10) -> 28192.05413 | R18: =Inputs!$K164*SUM('ACS 12.5'!J$9:J$10) -> 29314.19256 | S18: =Inputs!$K164*SUM('ACS 12.5'!K$9:K$10) -> 30480.99586 | T18: =Inputs!$K164*SUM('ACS 12.5'!L$9:L$10) -> 31694.24186 | U18: =Inputs!$K164*SUM('ACS vol'!G$9:G$10) -> 75.99559651 | V18: =Inputs!$K164*SUM('ACS vol'!H$9:H$10) -> 77.71152421 | W18: =Inputs!$K164*SUM('ACS vol'!I$9:I$10) -> 79.46619637 | X18: =Inputs!$K164*SUM('ACS vol'!J$9:J$10) -> 81.26048779 | Y18: =Inputs!$K164*SUM('ACS vol'!K$9:K$10) -> 83.09529308 | Z18: =Inputs!$K164*SUM('ACS vol'!L$9:L$10) -> 84.97152698
A19: ED_MET421_00008 | D19: Direct connect meter population | L19: ED_MET422_00008 | N19: Meter Type 5 | O19: =Inputs!$K165*SUM('ACS 12.5'!G$9:G$10) -> 40.58704466 | P19: =Inputs!$K165*SUM('ACS 12.5'!H$9:H$10) -> 49.850925 | Q19: =Inputs!$K165*SUM('ACS 12.5'!I$9:I$10) -> 51.83515922 | R19: =Inputs!$K165*SUM('ACS 12.5'!J$9:J$10) -> 53.89837263 | S19: =Inputs!$K165*SUM('ACS 12.5'!K$9:K$10) -> 56.04370886 | T19: =Inputs!$K165*SUM('ACS 12.5'!L$9:L$10) -> 58.27443668 | U19: =Inputs!$K165*SUM('ACS vol'!G$9:G$10) -> 0.1397288693 | V19: =Inputs!$K165*SUM('ACS vol'!H$9:H$10) -> 0.1428838499 | W19: =Inputs!$K165*SUM('ACS vol'!I$9:I$10) -> 0.1461100679 | X19: =Inputs!$K165*SUM('ACS vol'!J$9:J$10) -> 0.1494091315 | Y19: =Inputs!$K165*SUM('ACS vol'!K$9:K$10) -> 0.1527826858 | Z19: =Inputs!$K165*SUM('ACS vol'!L$9:L$10) -> 0.1562324125
A20: ED_MET421_00009 | C20: Meter Type 6 | D20: Single phase meter population | L20: ED_MET422_00009 | N20: Meter Type 6 | O20: =Inputs!$K166*SUM('ACS 12.5'!G$9:G$10) -> 771.7677701 | P20: =Inputs!$K166*SUM('ACS 12.5'!H$9:H$10) -> 947.9216226 | Q20: =Inputs!$K166*SUM('ACS 12.5'!I$9:I$10) -> 985.6520865 | R20: =Inputs!$K166*SUM('ACS 12.5'!J$9:J$10) -> 1024.884349 | S20: =Inputs!$K166*SUM('ACS 12.5'!K$9:K$10) -> 1065.678188 | T20: =Inputs!$K166*SUM('ACS 12.5'!L$9:L$10) -> 1108.095759 | U20: =Inputs!$K166*SUM('ACS vol'!G$9:G$10) -> 2.656962062 | V20: =Inputs!$K166*SUM('ACS vol'!H$9:H$10) -> 2.716954417 | W20: =Inputs!$K166*SUM('ACS vol'!I$9:I$10) -> 2.778301357 | X20: =Inputs!$K166*SUM('ACS vol'!J$9:J$10) -> 2.841033469 | Y20: =Inputs!$K166*SUM('ACS vol'!K$9:K$10) -> 2.905182028 | Z20: =Inputs!$K166*SUM('ACS vol'!L$9:L$10) -> 2.970779018
A21: ED_MET421_00010 | D21: Multi phase meter population | L21: ED_MET422_00010 | M21: Scheduled meter reading | N21: Meter Type 4
A22: ED_MET421_00011 | D22: Current transformer connected meter population | L22: ED_MET422_00011 | N22: Meter Type 5 | O22: =Inputs!$K167*'ACS 12.5'!G$28 -> 19437.30441 | P22: =Inputs!$K167*'ACS 12.5'!H$28 -> 37586.86696 | Q22: =Inputs!$K167*'ACS 12.5'!I$28 -> 38371.95144 | R22: =Inputs!$K167*'ACS 12.5'!J$28 -> 39034.97984 | S22: =Inputs!$K167*'ACS 12.5'!K$28 -> 39702.90972 | T22: =Inputs!$K167*'ACS 12.5'!L$28 -> 40392.27196 | U22: =Inputs!$K167*'ACS vol'!G$28 -> 2007.985993 | V22: =Inputs!$K167*'ACS vol'!H$28 -> 5353.979797 | W22: =Inputs!$K167*'ACS vol'!I$28 -> 5353.979797 | X22: =Inputs!$K167*'ACS vol'!J$28 -> 5353.979797 | Y22: =Inputs!$K167*'ACS vol'!K$28 -> 5353.979797 | Z22: =Inputs!$K167*'ACS vol'!L$28 -> 5353.979797
A23: ED_MET421_00012 | D23: Direct connect meter population | L23: ED_MET422_00012 | N23: Meter Type 6 | O23: =Inputs!$K168*'ACS 12.5'!G$28 -> 100265.5756 | P23: =Inputs!$K168*'ACS 12.5'!H$28 -> 193888.4513 | Q23: =Inputs!$K168*'ACS 12.5'!I$28 -> 197938.2385 | R23: =Inputs!$K168*'ACS 12.5'!J$28 -> 201358.4105 | S23: =Inputs!$K168*'ACS 12.5'!K$28 -> 204803.8664 | T23: =Inputs!$K168*'ACS 12.5'!L$28 -> 208359.8791 | U23: =Inputs!$K168*'ACS vol'!G$28 -> 10358.01401 | V23: =Inputs!$K168*'ACS vol'!H$28 -> 27618.0202 | W23: =Inputs!$K168*'ACS vol'!I$28 -> 27618.0202 | X23: =Inputs!$K168*'ACS vol'!J$28 -> 27618.0202 | Y23: =Inputs!$K168*'ACS vol'!K$28 -> 27618.0202 | Z23: =Inputs!$K168*'ACS vol'!L$28 -> 27618.0202
L24: ED_MET422_00013 | M24: Special meter reading | N24: Meter Type 4 | O24: =Inputs!$K169*SUM('ACS 12.5'!G$26:G$27) -> 14132.88782 | P24: =Inputs!$K169*SUM('ACS 12.5'!H$26:H$27) -> 17283.25287 | Q24: =Inputs!$K169*SUM('ACS 12.5'!I$26:I$27) -> 14875.91812 | R24: =Inputs!$K169*SUM('ACS 12.5'!J$26:J$27) -> 12758.64014 | S24: =Inputs!$K169*SUM('ACS 12.5'!K$26:K$27) -> 10940.90635 | T24: =Inputs!$K169*SUM('ACS 12.5'!L$26:L$27) -> 9384.470678 | U24: =Inputs!$K169*SUM('ACS vol'!G$26:G$27) -> 730.0045359 | V24: =Inputs!$K169*SUM('ACS vol'!H$26:H$27) -> 615.4688739 | W24: =Inputs!$K169*SUM('ACS vol'!I$26:I$27) -> 518.9035356 | X24: =Inputs!$K169*SUM('ACS vol'!J$26:J$27) -> 437.4890278 | Y24: =Inputs!$K169*SUM('ACS vol'!K$26:K$27) -> 368.8482276 | Z24: =Inputs!$K169*SUM('ACS vol'!L$26:L$27) -> 310.9769763
L25: ED_MET422_00014 | N25: Meter Type 5 | O25: =Inputs!$K170*SUM('ACS 12.5'!G$26:G$27) -> 25.98535342 | P25: =Inputs!$K170*SUM('ACS 12.5'!H$26:H$27) -> 31.77775414 | Q25: =Inputs!$K170*SUM('ACS 12.5'!I$26:I$27) -> 27.35152185 | R25: =Inputs!$K170*SUM('ACS 12.5'!J$26:J$27) -> 23.45860078 | S25: =Inputs!$K170*SUM('ACS 12.5'!K$26:K$27) -> 20.11643493 | T25: =Inputs!$K170*SUM('ACS 12.5'!L$26:L$27) -> 17.25470339 | U25: =Inputs!$K170*SUM('ACS vol'!G$26:G$27) -> 1.342218669 | V25: =Inputs!$K170*SUM('ACS vol'!H$26:H$27) -> 1.131628328 | W25: =Inputs!$K170*SUM('ACS vol'!I$26:I$27) -> 0.9540790205 | X25: =Inputs!$K170*SUM('ACS vol'!J$26:J$27) -> 0.804386701 | Y25: =Inputs!$K170*SUM('ACS vol'!K$26:K$27) -> 0.6781806861 | Z25: =Inputs!$K170*SUM('ACS vol'!L$26:L$27) -> 0.5717760405
L26: ED_MET422_00015 | N26: Meter Type 6 | O26: =Inputs!$K171*SUM('ACS 12.5'!G$26:G$27) -> 494.1147708 | P26: =Inputs!$K171*SUM('ACS 12.5'!H$26:H$27) -> 604.2580005 | Q26: =Inputs!$K171*SUM('ACS 12.5'!I$26:I$27) -> 520.0926356 | R26: =Inputs!$K171*SUM('ACS 12.5'!J$26:J$27) -> 446.0682508 | S26: =Inputs!$K171*SUM('ACS 12.5'!K$26:K$27) -> 382.5165459 | T26: =Inputs!$K171*SUM('ACS 12.5'!L$26:L$27) -> 328.1003598 | U26: =Inputs!$K171*SUM('ACS vol'!G$26:G$27) -> 25.52245717 | V26: =Inputs!$K171*SUM('ACS vol'!H$26:H$27) -> 21.5180553 | W26: =Inputs!$K171*SUM('ACS vol'!I$26:I$27) -> 18.14193284 | X26: =Inputs!$K171*SUM('ACS vol'!J$26:J$27) -> 15.29551451 | Y26: =Inputs!$K171*SUM('ACS vol'!K$26:K$27) -> 12.89569123 | Z26: =Inputs!$K171*SUM('ACS vol'!L$26:L$27) -> 10.87239348
L27: ED_MET422_00016 | M27: New meter installation | N27: Meter Type 4 | O27: =SUM('ACS 12.5'!G44:G57) -> 3117419.281 | P27: =SUM('ACS 12.5'!H44:H57) -> 3440741.225 | Q27: =SUM('ACS 12.5'!I44:I57) -> 3562171.95 | R27: =SUM('ACS 12.5'!J44:J57) -> 3688085.542 | S27: =SUM('ACS 12.5'!K44:K57) -> 3818652.521 | T27: =SUM('ACS 12.5'!L44:L57) -> 3954050.014 | U27: =SUM('ACS vol'!G44:G57) -> 5412.551235 | V27: =SUM('ACS vol'!H44:H57) -> 5534.762877 | W27: =SUM('ACS vol'!I44:I57) -> 5659.733972 | X27: =SUM('ACS vol'!J44:J57) -> 5787.526828 | Y27: =SUM('ACS vol'!K44:K57) -> 5918.205157 | Z27: =SUM('ACS vol'!L44:L57) -> 6051.834112
L28: ED_MET422_00017 | N28: Meter Type 5
L29: ED_MET422_00018 | N29: Meter Type 6
L30: ED_MET422_00019 | M30: Meter replacement | N30: Meter Type 4
L31: ED_MET422_00020 | N31: Meter Type 5
L32: ED_MET422_00021 | N32: Meter Type 6
L33: ED_MET422_00022 | M33: Meter maintenance | N33: Meter Type 4
L34: ED_MET422_00023 | N34: Meter Type 5
L35: ED_MET422_00024 | N35: Meter Type 6
L36: ED_MET422_00025 | M36: Remote meter reading | N36: Meter Type 4
L37: ED_MET422_00026 | M37: Remote meter re-configuration | N37: Meter Type 4 | O37: ='ACS 12.5'!G62 -> 34135.89079 | P37: ='ACS 12.5'!H62 -> 60825.58972 | Q37: ='ACS 12.5'!I62 -> 63246.65246 | R37: ='ACS 12.5'!J62 -> 65764.08162 | S37: ='ACS 12.5'!K62 -> 68381.71291 | T37: ='ACS 12.5'!L62 -> 71103.53472 | U37: ='ACS vol'!G62 -> 1104.35725 | V37: ='ACS vol'!H62 -> 1129.292869 | W37: ='ACS vol'!I62 -> 1154.791516 | X37: ='ACS vol'!J62 -> 1180.865905 | Y37: ='ACS vol'!K62 -> 1207.529036 | Z37: ='ACS vol'!L62 -> 1234.794201
L38: ED_MET422_00027 | M38: Other metering | N38: Meter Type 4 | O38: ='ACS 12.5'!G29 -> 0 | P38: ='ACS 12.5'!H29 -> 8817.923367 | Q38: ='ACS 12.5'!I29 -> 22345.70816 | R38: ='ACS 12.5'!J29 -> 56805.23332 | S38: ='ACS 12.5'!K29 -> 144453.6534 | T38: ='ACS 12.5'!L29 -> 367266.338
L39: ED_MET422_00028 | N39: Meter Type 5
L40: ED_MET422_00029 | N40: Meter Type 6
L41: ED_MET422_00030 | N41: Meter Type 7
L42: ED_MET422_00031 | M42: IT infrastructure capex | N42: Meter Type 4
L43: ED_MET422_00032 | M43: IT infrastructure opex | N43: Meter Type 4
L44: ED_MET422_00033 | M44: Communications infrastructure capex | N44: Meter Type 4
L45: ED_MET422_00034 | M45: Communications infrastructure opex | N45: Meter Type 4
O47: =SUM(O12:O45)+SUM('CP Reset RIN 4.3'!E11:E23)-'2011-20 Revenue'!AK67 -> 0 | P47: =SUM(P12:P45)+SUM('CP Reset RIN 4.3'!F11:F23)-'2011-20 Revenue'!AR67 -> 0 | Q47: =SUM(Q12:Q45)+SUM('CP Reset RIN 4.3'!G11:G23)-'2011-20 Revenue'!AY67 -> 0 | R47: =SUM(R12:R45)+SUM('CP Reset RIN 4.3'!H11:H23)-'2011-20 Revenue'!BF67 -> 0 | S47: =SUM(S12:S45)+SUM('CP Reset RIN 4.3'!I11:I23)-'2011-20 Revenue'!BM67 -> 0 | T47: =SUM(T12:T45)+SUM('CP Reset RIN 4.3'!J11:J23)-'2011-20 Revenue'!BT67 -> 0 | U47: =SUM(U12:U45)+SUM('CP Reset RIN 4.3'!K11:K23)-SUM('ACS vol'!G9:G65)+'ACS vol'!G29 -> 2.910383046e-11 | V47: =SUM(V12:V45)+SUM('CP Reset RIN 4.3'!L11:L23)-SUM('ACS vol'!H9:H65)+'ACS vol'!H29 -> 0 | W47: =SUM(W12:W45)+SUM('CP Reset RIN 4.3'!M11:M23)-SUM('ACS vol'!I9:I65)+'ACS vol'!I29 -> -2.910383046e-11 | X47: =SUM(X12:X45)+SUM('CP Reset RIN 4.3'!N11:N23)-SUM('ACS vol'!J9:J65)+'ACS vol'!J29 -> -2.910383046e-11 | Y47: =SUM(Y12:Y45)+SUM('CP Reset RIN 4.3'!O11:O23)-SUM('ACS vol'!K9:K65)+'ACS vol'!K29 -> 0 | Z47: =SUM(Z12:Z45)+SUM('CP Reset RIN 4.3'!P11:P23)-SUM('ACS vol'!L9:L65)+'ACS vol'!L29 -> -2.910383046e-11 | AB47: =SUM(O47:Z47) -> -5.820766091e-11

Sheet CP Reset RIN 4.3
A1: =+ModelName -> CP ACS Model
A2: =MID(CELL("Filename",D1),FIND("]",CELL("Filename",D1))+1,255) -> CP Reset RIN 4.3 | J2: =Check!D2 -> OK
A3: Menu
C6: TABLE 4.3.1 - COST METRICS FOR FEE-BASED SERVICES
C9: SERVICE | D9: SERVICE SUBCATEGORY | E9: EXPENDITURE ($0's, real December 2015) | K9: VOLUMES (0's)
E10: 2015 | F10: 2016 | G10: 2017 | H10: 2018 | I10: 2019 | J10: 2020 | K10: 2015 | L10: 2016 | M10: 2017 | N10: 2018 | O10: 2019 | P10: 2020
A11: ED_FEE431_00001 | C11: Common Fee-Based Services | D11: Energisation
A12: ED_FEE431_00002 | C12: Common Fee-Based Services | D12: De-energisation | E12: =SUM('ACS 12.5'!G20:G22) -> 699725.0923 | F12: =SUM('ACS 12.5'!H20:H22) -> 813433.9855 | G12: =SUM('ACS 12.5'!I20:I22) -> 699659.0663 | H12: =SUM('ACS 12.5'!J20:J22) -> 600033.3846 | I12: =SUM('ACS 12.5'!K20:K22) -> 514523.1088 | J12: =SUM('ACS 12.5'!L20:L22) -> 441289.5239 | K12: =SUM('ACS vol'!G20:G22) -> 17422.7453 | L12: =SUM('ACS vol'!H20:H22) -> 14689.16548 | M12: =SUM('ACS vol'!I20:I22) -> 12384.47666 | N12: =SUM('ACS vol'!J20:J22) -> 10441.38704 | O12: =SUM('ACS vol'!K20:K22) -> 8803.162732 | P12: =SUM('ACS vol'!L20:L22) -> 7421.971216
A13: ED_FEE431_00003 | C13: Common Fee-Based Services | D13: Re-energisation | E13: =SUM('ACS 12.5'!G23:G25) -> 440969.6836 | F13: =SUM('ACS 12.5'!H23:H25) -> 511927.8584 | G13: =SUM('ACS 12.5'!I23:I25) -> 440313.9093 | H13: =SUM('ACS 12.5'!J23:J25) -> 377615.8552 | I13: =SUM('ACS 12.5'!K23:K25) -> 323801.6047 | J13: =SUM('ACS 12.5'!L23:L25) -> 277713.1084 | K13: =SUM('ACS vol'!G23:G25) -> 27184.61168 | L13: =SUM('ACS vol'!H23:H25) -> 22919.42243 | M13: =SUM('ACS vol'!I23:I25) -> 19323.4294 | N13: =SUM('ACS vol'!J23:J25) -> 16291.63758 | O13: =SUM('ACS vol'!K23:K25) -> 13735.52539 | P13: =SUM('ACS vol'!L23:L25) -> 11580.46002
A14: ED_FEE431_00004 | C14: Miscellaneous Fee-Based Services | D14: PV INSTALLATION | E14: =SUM('ACS 12.5'!G40:G41) -> 280584.733 | K14: =SUM('ACS vol'!G40:G41) -> 1058.205519
A15: ED_FEE431_00005 | C15: Miscellaneous Fee-Based Services | D15: REMOTE DE - ENERGISATION | E15: ='ACS 12.5'!G64 -> 191351.586 | F15: ='ACS 12.5'!H64 -> 340962.9218 | G15: ='ACS 12.5'!I64 -> 354534.3911 | H15: ='ACS 12.5'!J64 -> 368646.0504 | I15: ='ACS 12.5'!K64 -> 383319.4012 | J15: ='ACS 12.5'!L64 -> 398576.8006 | K15: ='ACS vol'!G64 -> 32828.76319 | L15: ='ACS vol'!H64 -> 33570.01382 | M15: ='ACS vol'!I64 -> 34328.00138 | N15: ='ACS vol'!J64 -> 35103.10377 | O15: ='ACS vol'!K64 -> 35895.70743 | P15: ='ACS vol'!L64 -> 36706.20753
A16: ED_FEE431_00006 | C16: Miscellaneous Fee-Based Services | D16: REMOTE RE - ENERGISATION | E16: ='ACS 12.5'!G63 -> 133224.9247 | F16: ='ACS 12.5'!H63 -> 237388.9892 | G16: ='ACS 12.5'!I63 -> 246837.8682 | H16: ='ACS 12.5'!J63 -> 256662.8443 | I16: ='ACS 12.5'!K63 -> 266878.8874 | J16: ='ACS 12.5'!L63 -> 277501.5633 | K16: ='ACS vol'!G63 -> 22856.40583 | L16: ='ACS vol'!H63 -> 23372.48757 | M16: ='ACS vol'!I63 -> 23900.22208 | N16: ='ACS vol'!J63 -> 24439.87247 | O16: ='ACS vol'!K63 -> 24991.70778 | P16: ='ACS vol'!L63 -> 25556.00316
A17: ED_FEE431_00007 | C17: Miscellaneous Fee-Based Services | D17: WASTED TRUCK VISITS | E17: =SUM('ACS 12.5'!G33:G34) -> 29982.18875 | F17: =SUM('ACS 12.5'!H33:H34) -> 37201.68451 | G17: =SUM('ACS 12.5'!I33:I34) -> 38682.43649 | H17: =SUM('ACS 12.5'!J33:J34) -> 40222.12736 | I17: =SUM('ACS 12.5'!K33:K34) -> 41823.1031 | J17: =SUM('ACS 12.5'!L33:L34) -> 43487.80305 | K17: =SUM('ACS vol'!G33:G34) -> 108.0047701 | L17: =SUM('ACS vol'!H33:H34) -> 110.4434426 | M17: =SUM('ACS vol'!I33:I34) -> 112.9371787 | N17: =SUM('ACS vol'!J33:J34) -> 115.4872216 | O17: =SUM('ACS vol'!K33:K34) -> 118.0948428 | P17: =SUM('ACS vol'!L33:L34) -> 120.7613422
A18: ED_FEE431_00008 | C18: Miscellaneous Fee-Based Services | D18: SERVICE TRUCK VISITS | E18: =SUM('ACS 12.5'!G31:G32) -> 1169865.715 | F18: =SUM('ACS 12.5'!H31:H32) -> 1480415.49 | G18: =SUM('ACS 12.5'!I31:I32) -> 1539340.998 | H18: =SUM('ACS 12.5'!J31:J32) -> 1600611.939 | I18: =SUM('ACS 12.5'!K31:K32) -> 1664321.669 | J18: =SUM('ACS 12.5'!L31:L32) -> 1730567.261 | K18: =SUM('ACS vol'!G31:G32) -> 2637.776939 | L18: =SUM('ACS vol'!H31:H32) -> 2697.336107 | M18: =SUM('ACS vol'!I31:I32) -> 2758.24008 | N18: =SUM('ACS vol'!J31:J32) -> 2820.519222 | O18: =SUM('ACS vol'!K31:K32) -> 2884.204584 | P18: =SUM('ACS vol'!L31:L32) -> 2949.327917
A19: ED_FEE431_00009 | C19: Miscellaneous Fee-Based Services | D19: RESERVE FEEDER | E19: =SUM('ACS 12.5'!G36:G38) -> 208436.7153 | F19: =SUM('ACS 12.5'!H36:H38) -> 333794.8356 | G19: =SUM('ACS 12.5'!I36:I38) -> 347080.991 | H19: =SUM('ACS 12.5'!J36:J38) -> 360895.98 | I19: =SUM('ACS 12.5'!K36:K38) -> 375260.8519 | J19: =SUM('ACS 12.5'!L36:L38) -> 390197.494 | K19: =SUM('ACS vol'!G36:G38) -> 58060.36638 | L19: =SUM('ACS vol'!H36:H38) -> 59371.32906 | M19: =SUM('ACS vol'!I36:I38) -> 60711.89237 | N19: =SUM('ACS vol'!J36:J38) -> 62082.72466 | O19: =SUM('ACS vol'!K36:K38) -> 63484.50939 | P19: =SUM('ACS vol'!L36:L38) -> 64917.94545
A20: ED_FEE431_00015 | C20: Miscellaneous Fee-Based Services
A21: ED_FEE431_00016 | C21: Miscellaneous Fee-Based Services
A22: ED_FEE431_00017 | C22: Miscellaneous Fee-Based Services
A23: ED_FEE431_00471 | C23: Miscellaneous Fee-Based Services

Sheet CP Restet 4.4
A1: =+ModelName -> CP ACS Model
A2: =MID(CELL("Filename",D1),FIND("]",CELL("Filename",D1))+1,255) -> CP Restet 4.4 | J2: =Check!D2 -> OK
A3: Menu
C6: TABLE 4.4.1 - COST METRICS FOR QUOTED SERVICES
C10: SERVICE | D10: SERVICE SUBCATEGORY | E10: EXPENDITURE ($0's, real December 2015) | K10: VOLUMES (0's)
E11: 2015 | F11: 2016 | G11: 2017 | H11: 2018 | I11: 2019 | J11: 2020 | K11: 2015 | L11: 2016 | M11: 2017 | N11: 2018 | O11: 2019 | P11: 2020
A12: ED_QUO441_00001
A13: ED_QUO441_00002 | C13: Recoverable Works - Asset Damage | E13: ='ACS 12.5'!G74 -> 1571097.027 | F13: ='ACS 12.5'!H74 -> 1600529.398 | G13: ='ACS 12.5'!I74 -> 1627488.289 | H13: ='ACS 12.5'!J74 -> 1654901.269 | I13: ='ACS 12.5'!K74 -> 1682775.986 | J13: ='ACS 12.5'!L74 -> 1711120.217 | K13: ='ACS vol'!G74 -> 65 | L13: ='ACS vol'!H74 -> 65 | M13: ='ACS vol'!I74 -> 65 | N13: ='ACS vol'!J74 -> 65 | O13: ='ACS vol'!K74 -> 65 | P13: ='ACS vol'!L74 -> 65
A14: ED_QUO441_00003 | C14: After hours truck by appointment | E14: ='ACS 12.5'!G75 -> 48891.75407 | F14: ='ACS 12.5'!H75 -> 49807.67475 | G14: ='ACS 12.5'!I75 -> 50646.62198 | H14: ='ACS 12.5'!J75 -> 51499.70021 | I14: ='ACS 12.5'!K75 -> 52367.14746 | J14: ='ACS 12.5'!L75 -> 53249.20577 | K14: ='ACS vol'!G75 -> 220 | L14: ='ACS vol'!H75 -> 220 | M14: ='ACS vol'!I75 -> 220 | N14: ='ACS vol'!J75 -> 220 | O14: ='ACS vol'!K75 -> 220 | P14: ='ACS vol'!L75 -> 220
A15: ED_QUO441_00004 | C15: Supply abolishment | E15: ='ACS 12.5'!G76 -> 801377.9863 | K15: ='ACS vol'!G76 -> 1930
A16: ED_QUO441_00005 | C16: Audit Design & Construction Charge | E16: ='ACS 12.5'!G77 -> 27956.59718 | F16: ='ACS 12.5'!H77 -> 28480.3261 | G16: ='ACS 12.5'!I77 -> 28960.04114 | H16: ='ACS 12.5'!J77 -> 29447.83637 | I16: ='ACS 12.5'!K77 -> 29943.8479 | J16: ='ACS 12.5'!L77 -> 30448.21411 | K16: ='ACS vol'!G77 -> 8 | L16: ='ACS vol'!H77 -> 8 | M16: ='ACS vol'!I77 -> 8 | N16: ='ACS vol'!J77 -> 8 | O16: ='ACS vol'!K77 -> 8 | P16: ='ACS vol'!L77 -> 8
A17: ED_QUO441_00006 | C17: Specification & Design Enquiry Charge | E17: ='ACS 12.5'!G78 -> 1293530.98 | F17: ='ACS 12.5'!H78 -> 1317763.527 | G17: ='ACS 12.5'!I78 -> 1339959.586 | H17: ='ACS 12.5'!J78 -> 1362529.509 | I17: ='ACS 12.5'!K78 -> 1385479.594 | J17: ='ACS 12.5'!L78 -> 1408816.243 | K17: ='ACS vol'!G78 -> 73 | L17: ='ACS vol'!H78 -> 73 | M17: ='ACS vol'!I78 -> 73 | N17: ='ACS vol'!J78 -> 73 | O17: ='ACS vol'!K78 -> 73 | P17: ='ACS vol'!L78 -> 73
A18: ED_QUO441_00007 | C18: High Load Escorts | E18: ='ACS 12.5'!G79 -> 0 | F18: ='ACS 12.5'!H79 -> 0 | G18: ='ACS 12.5'!I79 -> 0 | H18: ='ACS 12.5'!J79 -> 0 | I18: ='ACS 12.5'!K79 -> 0 | J18: ='ACS 12.5'!L79 -> 0 | K18: ='ACS vol'!G79 -> 0 | L18: ='ACS vol'!H79 -> 0 | M18: ='ACS vol'!I79 -> 0 | N18: ='ACS vol'!J79 -> 0 | O18: ='ACS vol'!K79 -> 0 | P18: ='ACS vol'!L79 -> 0
A19: ED_QUO441_00008 | C19: Low Voltage Mains | E19: ='ACS 12.5'!G80 -> 1210431.937 | F19: ='ACS 12.5'!H80 -> 1233107.737 | G19: ='ACS 12.5'!I80 -> 1253877.876 | H19: ='ACS 12.5'!J80 -> 1274997.862 | I19: ='ACS 12.5'!K80 -> 1296473.586 | J19: ='ACS 12.5'!L80 -> 1318311.043 | K19: ='ACS vol'!G80 -> 741 | L19: ='ACS vol'!H80 -> 741 | M19: ='ACS vol'!I80 -> 741 | N19: ='ACS vol'!J80 -> 741 | O19: ='ACS vol'!K80 -> 741 | P19: ='ACS vol'!L80 -> 741
A20: ED_QUO441_00009 | C20: Batons/ Shutdown / Electrical Inspect/ Meter Test & Revovery | E20: ='ACS 12.5'!G81 -> 0 | F20: ='ACS 12.5'!H81 -> 0 | G20: ='ACS 12.5'!I81 -> 0 | H20: ='ACS 12.5'!J81 -> 0 | I20: ='ACS 12.5'!K81 -> 0 | J20: ='ACS 12.5'!L81 -> 0 | K20: ='ACS vol'!G81 -> 0 | L20: ='ACS vol'!H81 -> 0 | M20: ='ACS vol'!I81 -> 0 | N20: ='ACS vol'!J81 -> 0 | O20: ='ACS vol'!K81 -> 0 | P20: ='ACS vol'!L81 -> 0
A21: ED_QUO441_00010 | C21: Quoted Services
A22: ED_QUO441_00011 | C22: Quoted Services
A23: ED_QUO441_00012 | C23: Quoted Services
A24: ED_QUO441_00013 | C24: Quoted Services
A25: ED_QUO441_00014 | C25: Quoted Services
A26: ED_QUO441_00015 | C26: Quoted Services
A27: ED_QUO441_00016 | C27: Quoted Services
A28: ED_QUO441_00017 | C28: Quoted Services
A29: ED_QUO441_00018 | C29: Quoted Services
A30: ED_QUO441_00019 | C30: Quoted Services
A31: ED_QUO441_00020 | C31: Quoted Services
A32: ED_QUO441_00021 | C32: Quoted Services
A33: ED_QUO441_00022 | C33: Quoted Services
A34: ED_QUO441_00023 | C34: Quoted Services
A35: ED_QUO441_00024 | C35: Quoted Services
A36: ED_QUO441_00025 | C36: Quoted Services
A37: ED_QUO441_00026 | C37: Quoted Services
A38: ED_QUO441_00027 | C38: Quoted Services
A39: ED_QUO441_00028 | C39: Quoted Services
A40: ED_QUO441_00029 | C40: Quoted Services
A41: ED_QUO441_00030 | C41: Quoted Services
A42: ED_QUO441_00031 | C42: Quoted Services
A43: ED_QUO441_00032 | C43: Quoted Services
A44: ED_QUO441_00033 | C44: Quoted Services
A45: ED_QUO441_00034 | C45: Quoted Services
A46: ED_QUO441_00035 | C46: Quoted Services
A47: ED_QUO441_00036 | C47: Quoted Services
A48: ED_QUO441_00037 | C48: Quoted Services
A49: ED_QUO441_00038 | C49: Quoted Services
A50: ED_QUO441_00039 | C50: Quoted Services
A51: ED_QUO441_00040 | C51: Quoted Services
A52: ED_QUO441_00041 | C52: Quoted Services
A53: ED_QUO441_00042 | C53: Quoted Services
A54: ED_QUO441_00043 | C54: Quoted Services
A55: ED_QUO441_00044 | C55: Quoted Services
A56: ED_QUO441_00045 | C56: Quoted Services
A57: ED_QUO441_00046 | C57: Quoted Services
A58: ED_QUO441_00047 | C58: Quoted Services
A59: ED_QUO441_00048 | C59: Quoted Services
A60: ED_QUO441_00049 | C60: Quoted Services
A61: ED_QUO441_00050 | C61: Quoted Services
A62: ED_QUO441_00051 | C62: Quoted Services
A63: ED_QUO441_00052 | C63: Quoted Services
A64: ED_QUO441_00053 | C64: Quoted Services
A65: ED_QUO441_00054 | C65: Quoted Services
A66: ED_QUO441_00055 | C66: Quoted Services
A67: ED_QUO441_00056 | C67: Quoted Services
A68: ED_QUO441_00057 | C68: Quoted Services
A69: ED_QUO441_00058 | C69: Quoted Services
A70: ED_QUO441_00059 | C70: Quoted Services
A71: ED_QUO441_00060 | C71: Quoted Services
A72: ED_QUO441_00061 | C72: Quoted Services
A73: ED_QUO441_00062 | C73: Quoted Services
A74: ED_QUO441_00063 | C74: Quoted Services
A75: ED_QUO441_00064 | C75: Quoted Services
A76: ED_QUO441_00065 | C76: Quoted Services
A77: ED_QUO441_00066 | C77: Quoted Services
A78: ED_QUO441_00067 | C78: Quoted Services
A79: ED_QUO441_00068 | C79: Quoted Services
A80: ED_QUO441_00069 | C80: Quoted Services
A81: ED_QUO441_00070 | C81: Quoted Services
A82: ED_QUO441_00071 | C82: Quoted Services
A83: ED_QUO441_00072 | C83: Quoted Services
A84: ED_QUO441_00073 | C84: Quoted Services
A85: ED_QUO441_00074 | C85: Quoted Services
A86: ED_QUO441_00075 | C86: Quoted Services
A87: ED_QUO441_00076 | C87: Quoted Services
A88: ED_QUO441_00077 | C88: Quoted Services
A89: ED_QUO441_00078 | C89: Quoted Services
A90: ED_QUO441_00079 | C90: Quoted Services
A91: ED_QUO441_00080 | C91: Quoted Services
A92: ED_QUO441_00081 | C92: Quoted Services
A93: ED_QUO441_00082 | C93: Quoted Services
A94: ED_QUO441_00083 | C94: Quoted Services
A95: ED_QUO441_00084 | C95: Quoted Services
A96: ED_QUO441_00085 | C96: Quoted Services
A97: ED_QUO441_00086 | C97: Quoted Services
A98: ED_QUO441_00087 | C98: Quoted Services
A99: ED_QUO441_00088 | C99: Quoted Services
A100: ED_QUO441_00089 | C100: Quoted Services
A101: ED_QUO441_00090 | C101: Quoted Services
A102: ED_QUO441_00091 | C102: Quoted Services
A103: ED_QUO441_00092 | C103: Quoted Services
A104: ED_QUO441_00093 | C104: Quoted Services
A105: ED_QUO441_00094 | C105: Quoted Services
A106: ED_QUO441_00095 | C106: Quoted Services
A107: ED_QUO441_00096 | C107: Quoted Services
A108: ED_QUO441_00097 | C108: Quoted Services
A109: ED_QUO441_00098 | C109: Quoted Services
A110: ED_QUO441_00099 | C110: Quoted Services
A111: ED_QUO441_00100 | C111: Quoted Services
A112: ED_QUO441_00101 | C112: Quoted Services
A113: ED_QUO441_00102 | C113: Quoted Services
A114: ED_QUO441_00103 | C114: Quoted Services
A115: ED_QUO441_00104 | C115: Quoted Services
A116: ED_QUO441_00105 | C116: Quoted Services
A117: ED_QUO441_00106 | C117: Quoted Services
A118: ED_QUO441_00107 | C118: Quoted Services
A119: ED_QUO441_00108 | C119: Quoted Services
A120: ED_QUO441_00109 | C120: Quoted Services
A121: ED_QUO441_00110 | C121: Quoted Services
A122: ED_QUO441_00111 | C122: Quoted Services
A123: ED_QUO441_00112 | C123: Quoted Services
A124: ED_QUO441_00113 | C124: Quoted Services
A125: ED_QUO441_00114 | C125: Quoted Services
A126: ED_QUO441_00115 | C126: Quoted Services
A127: ED_QUO441_00116 | C127: Quoted Services
A128: ED_QUO441_00117 | C128: Quoted Services
A129: ED_QUO441_00118 | C129: Quoted Services
A130: ED_QUO441_00119 | C130: Quoted Services
A131: ED_QUO441_00120 | C131: Quoted Services
A132: ED_QUO441_00121 | C132: Quoted Services
A133: ED_QUO441_00122 | C133: Quoted Services
A134: ED_QUO441_00123 | C134: Quoted Services
A135: ED_QUO441_00124 | C135: Quoted Services
A136: ED_QUO441_00125 | C136: Quoted Services
A137: ED_QUO441_00126 | C137: Quoted Services
A138: ED_QUO441_00127 | C138: Quoted Services
A139: ED_QUO441_00128 | C139: Quoted Services
A140: ED_QUO441_00129 | C140: Quoted Services
A141: ED_QUO441_00130 | C141: Quoted Services
A142: ED_QUO441_00131 | C142: Quoted Services
A143: ED_QUO441_00132 | C143: Quoted Services
A144: ED_QUO441_00133 | C144: Quoted Services
A145: ED_QUO441_00134 | C145: Quoted Services
A146: ED_QUO441_00135 | C146: Quoted Services
A147: ED_QUO441_00136 | C147: Quoted Services
A148: ED_QUO441_00137 | C148: Quoted Services
A149: ED_QUO441_00138 | C149: Quoted Services
A150: ED_QUO441_00139 | C150: Quoted Services
A151: ED_QUO441_00140 | C151: Quoted Services
A152: ED_QUO441_00141 | C152: Quoted Services
A153: ED_QUO441_00142 | C153: Quoted Services
A154: ED_QUO441_00143 | C154: Quoted Services
A155: ED_QUO441_00144 | C155: Quoted Services
A156: ED_QUO441_00145 | C156: Quoted Services
A157: ED_QUO441_00146 | C157: Quoted Services
A158: ED_QUO441_00147 | C158: Quoted Services
A159: ED_QUO441_00148 | C159: Quoted Services
A160: ED_QUO441_00149 | C160: Quoted Services
A161: ED_QUO441_00150 | C161: Quoted Services
A162: ED_QUO441_00151 | C162: Quoted Services
A163: ED_QUO441_00152 | C163: Quoted Services
A164: ED_QUO441_00153 | C164: Quoted Services
A165: ED_QUO441_00154 | C165: Quoted Services
A166: ED_QUO441_00155 | C166: Quoted Services
A167: ED_QUO441_00156 | C167: Quoted Services
A168: ED_QUO441_00157 | C168: Quoted Services
A169: ED_QUO441_00158 | C169: Quoted Services
A170: ED_QUO441_00159 | C170: Quoted Services
A171: ED_QUO441_00160 | C171: Quoted Services
A172: ED_QUO441_00161 | C172: Quoted Services
A173: ED_QUO441_00162 | C173: Quoted Services
A174: ED_QUO441_00163 | C174: Quoted Services
A175: ED_QUO441_00164 | C175: Quoted Services
A176: ED_QUO441_00165 | C176: Quoted Services
A177: ED_QUO441_00166 | C177: Quoted Services
A178: ED_QUO441_00167 | C178: Quoted Services
A179: ED_QUO441_00168 | C179: Quoted Services
A180: ED_QUO441_00169 | C180: Quoted Services
A181: ED_QUO441_00170 | C181: Quoted Services
A182: ED_QUO441_00171 | C182: Quoted Services
A183: ED_QUO441_00172 | C183: Quoted Services
A184: ED_QUO441_00173 | C184: Quoted Services
A185: ED_QUO441_00174 | C185: Quoted Services
A186: ED_QUO441_00175 | C186: Quoted Services
A187: ED_QUO441_00176 | C187: Quoted Services
A188: ED_QUO441_00177 | C188: Quoted Services
A189: ED_QUO441_00178 | C189: Quoted Services
A190: ED_QUO441_00179 | C190: Quoted Services
A191: ED_QUO441_00180 | C191: Quoted Services
A192: ED_QUO441_00181 | C192: Quoted Services
A193: ED_QUO441_00182 | C193: Quoted Services
A194: ED_QUO441_00183 | C194: Quoted Services
A195: ED_QUO441_00184 | C195: Quoted Services
A196: ED_QUO441_00185 | C196: Quoted Services
A197: ED_QUO441_00186 | C197: Quoted Services
A198: ED_QUO441_00187 | C198: Quoted Services
A199: ED_QUO441_00188 | C199: Quoted Services
A200: ED_QUO441_00189 | C200: Quoted Services
A201: ED_QUO441_00190 | C201: Quoted Services
A202: ED_QUO441_00191 | C202: Quoted Services
A203: ED_QUO441_00192 | C203: Quoted Services
A204: ED_QUO441_00193 | C204: Quoted Services
A205: ED_QUO441_00194 | C205: Quoted Services
... 269 more rows

Sheet ACS 12.1
A1: =+ModelName -> CP ACS Model
A2: =MID(CELL("Filename",D1),FIND("]",CELL("Filename",D1))+1,255) -> ACS 12.1 | J2: =Check!D2 -> OK
A3: Menu
BP4: =SUM(BP9:BP66) -> 3.296918294e-12
BP5: Check
B6: CitiPower Alternative Control services - Fee Based Services | C6: 2011 | I6: 2012 | O6: 2013 | U6: 2014 | AA6: 2015 | AG6: 2016 | AN6: 2017 | AU6: 2018 | BB6: 2019 | BI6: 2020
C7: $2011 | I7: $2012 | O7: $2013 | U7: $2014 | AA7: $2015 | AG7: Real $2015 (ex GST)
C8: Labour | D8: Material | E8: Contract | F8: Direct Overhead | G8: Indirect Overhead | H8: Total | I8: Labour | J8: Material | K8: Contract | L8: Direct Overhead | M8: Indirect Overhead | N8: Total | O8: Labour | P8: Material | Q8: Contract | R8: Direct Overhead | S8: Indirect Overhead | T8: Total | U8: Labour | V8: Material | W8: Contract | X8: Direct Overhead | Y8: Indirect Overhead | Z8: Total | AA8: Labour | AB8: Material | AC8: Contract | AD8: Direct Overhead | AE8: Indirect Overhead | AF8: Total | AG8: Labour | AH8: Material | AI8: Contract | AJ8: Direct Overhead | AK8: Indirect Overhead | AL8: Margin | AM8: Total | AN8: Labour | AO8: Material | AP8: Contract | AQ8: Direct Overhead | AR8: Indirect Overhead | AS8: Margin | AT8: Total | AU8: Labour | AV8: Material | AW8: Contract | AX8: Direct Overhead | AY8: Indirect Overhead | AZ8: Margin | BA8: Total | BB8: Labour | BC8: Material | BD8: Contract | BE8: Direct Overhead | BF8: Indirect Overhead | BG8: Margin | BH8: Total | BI8: Labour | BJ8: Material | BK8: Contract | BL8: Direct Overhead | BM8: Indirect Overhead | BN8: Margin | BO8: Total
B9: Meter Investigation Test (BH) | C9: =$H9*'2011-15 % split'!C9 -> 244.53 | D9: =$H9*'2011-15 % split'!D9 -> 0 | E9: =$H9*'2011-15 % split'!E9 -> 0 | F9: =$H9*'2011-15 % split'!F9 -> 0 | G9: =$H9*'2011-15 % split'!G9 -> 0 | H9: ='2011-15 rates summary'!D9 -> 244.53 | I9: =$N9*'2011-15 % split'!I9 -> 254.5 | J9: =$N9*'2011-15 % split'!J9 -> 0 | K9: =$N9*'2011-15 % split'!K9 -> 0 | L9: =$N9*'2011-15 % split'!L9 -> 0 | M9: =$N9*'2011-15 % split'!M9 -> 0 | N9: ='2011-15 rates summary'!G9 -> 254.5 | O9: =$T9*'2011-15 % split'!O9 -> 264.24 | P9: =$T9*'2011-15 % split'!P9 -> 0 | Q9: =$T9*'2011-15 % split'!Q9 -> 0 | R9: =$T9*'2011-15 % split'!R9 -> 0 | S9: =$T9*'2011-15 % split'!S9 -> 0 | T9: ='2011-15 rates summary'!J9 -> 264.24 | U9: =$Z9*'2011-15 % split'!U9 -> 278.88 | V9: =$Z9*'2011-15 % split'!V9 -> 0 | W9: =$Z9*'2011-15 % split'!W9 -> 0 | X9: =$Z9*'2011-15 % split'!X9 -> 0 | Y9: =$Z9*'2011-15 % split'!Y9 -> 0 | Z9: ='2011-15 rates summary'!M9 -> 278.88 | AA9: =$AF9*'2011-15 % split'!AA9 -> 290.47 | AB9: =$AF9*'2011-15 % split'!AB9 -> 0 | AC9: =$AF9*'2011-15 % split'!AC9 -> 0 | AD9: =$AF9*'2011-15 % split'!AD9 -> 0 | AE9: =$AF9*'2011-15 % split'!AE9 -> 0 | AF9: ='2011-15 rates summary'!P9 -> 290.47 | AG9: ='CP Mtr Invest ph BH'!$O63 -> 266.8542903 | AH9: ='CP Mtr Invest ph BH'!$O64 -> 0 | AI9: ='CP Mtr Invest ph BH'!$O65 -> 0 | AJ9: ='CP Mtr Invest ph BH'!O67 -> 24.01688613 | AK9: ='CP Mtr Invest ph BH'!O66 -> 35.19541235 | AL9: ='CP Mtr Invest ph BH'!O68 -> 22.82466121 | AM9: =SUM(AG9:AL9) -> 348.89125 | AN9: ='CP Mtr Invest ph BH'!P63 -> 271.349113 | AO9: ='CP Mtr Invest ph BH'!$Q64 -> 0 | AP9: ='CP Mtr Invest ph BH'!$Q65 -> 0 | AQ9: ='CP Mtr Invest ph BH'!P67 -> 24.42142017 | AR9: ='CP Mtr Invest ph BH'!P66 -> 35.78823451 | AS9: ='CP Mtr Invest ph BH'!P68 -> 23.20911374 | AT9: =SUM(AN9:AS9) -> 354.7678814 | AU9: ='CP Mtr Invest ph BH'!Q63 -> 275.9196453 | AV9: ='CP Mtr Invest ph BH'!$Q64 -> 0 | AW9: ='CP Mtr Invest ph BH'!$Q65 -> 0 | AX9: ='CP Mtr Invest ph BH'!Q67 -> 24.83276808 | AY9: ='CP Mtr Invest ph BH'!Q66 -> 36.39104202 | AZ9: ='CP Mtr Invest ph BH'!Q68 -> 23.60004188 | BA9: =SUM(AU9:AZ9) -> 360.7434973 | BB9: ='CP Mtr Invest ph BH'!R63 -> 280.5671624 | BC9: ='CP Mtr Invest ph BH'!$R64 -> 0 | BD9: ='CP Mtr Invest ph BH'!$R65 -> 0 | BE9: ='CP Mtr Invest ph BH'!R67 -> 25.25104462 | BF9: ='CP Mtr Invest ph BH'!R66 -> 37.00400305 | BG9: ='CP Mtr Invest ph BH'!R68 -> 23.99755471 | BH9: =SUM(BB9:BG9) -> 366.8197648 | BI9: ='CP Mtr Invest ph BH'!S63 -> 285.2929611 | BJ9: ='CP Mtr Invest ph BH'!$S64 -> 0 | BK9: ='CP Mtr Invest ph BH'!$S65 -> 0 | BL9: ='CP Mtr Invest ph BH'!S67 -> 25.6763665 | BM9: ='CP Mtr Invest ph BH'!S66 -> 37.62728864 | BN9: ='CP Mtr Invest ph BH'!S68 -> 24.40176313 | BO9: =SUM(BI9:BN9) -> 372.9983793 | BP9: =SUM(AM9,AT9,BA9,BH9,BO9)-SUM('CP Mtr Invest ph BH'!O70:S70) -> 0
B10: Meter Investigation Test (AH) | C10: =$H10*'2011-15 % split'!C10 -> 267.2 | D10: =$H10*'2011-15 % split'!D10 -> 0 | E10: =$H10*'2011-15 % split'!E10 -> 0 | F10: =$H10*'2011-15 % split'!F10 -> 0 | G10: =$H10*'2011-15 % split'!G10 -> 0 | H10: ='2011-15 rates summary'!D10 -> 267.2 | I10: =$N10*'2011-15 % split'!I10 -> 278.09 | J10: =$N10*'2011-15 % split'!J10 -> 0 | K10: =$N10*'2011-15 % split'!K10 -> 0 | L10: =$N10*'2011-15 % split'!L10 -> 0 | M10: =$N10*'2011-15 % split'!M10 -> 0 | N10: ='2011-15 rates summary'!G10 -> 278.09 | O10: =$T10*'2011-15 % split'!O10 -> 288.74 | P10: =$T10*'2011-15 % split'!P10 -> 0 | Q10: =$T10*'2011-15 % split'!Q10 -> 0 | R10: =$T10*'2011-15 % split'!R10 -> 0 | S10: =$T10*'2011-15 % split'!S10 -> 0 | T10: ='2011-15 rates summary'!J10 -> 288.74 | U10: =$Z10*'2011-15 % split'!U10 -> 304.74 | V10: =$Z10*'2011-15 % split'!V10 -> 0 | W10: =$Z10*'2011-15 % split'!W10 -> 0 | X10: =$Z10*'2011-15 % split'!X10 -> 0 | Y10: =$Z10*'2011-15 % split'!Y10 -> 0 | Z10: ='2011-15 rates summary'!M10 -> 304.74 | AA10: =$AF10*'2011-15 % split'!AA10 -> 317.41 | AB10: =$AF10*'2011-15 % split'!AB10 -> 0 | AC10: =$AF10*'2011-15 % split'!AC10 -> 0 | AD10: =$AF10*'2011-15 % split'!AD10 -> 0 | AE10: =$AF10*'2011-15 % split'!AE10 -> 0 | AF10: ='2011-15 rates summary'!P10 -> 317.41 | AG10: ='CP Mtr Invest ph AH'!$O63 -> 304.7669002 | AH10: ='CP Mtr Invest ph AH'!$O64 -> 0 | AI10: ='CP Mtr Invest ph AH'!$O65 -> 0 | AJ10: ='CP Mtr Invest ph AH'!O67 -> 27.42902101 | AK10: ='CP Mtr Invest ph AH'!O66 -> 40.19570646 | AL10: ='CP Mtr Invest ph AH'!O68 -> 26.06741393 | AM10: =SUM(AG10:AL10) -> 398.4590416 | AN10: ='CP Mtr Invest ph AH'!P63 -> 309.9003128 | AO10: ='CP Mtr Invest ph AH'!$Q64 -> 0 | AP10: ='CP Mtr Invest ph AH'!$Q65 -> 0 | AQ10: ='CP Mtr Invest ph AH'!P67 -> 27.89102815 | AR10: ='CP Mtr Invest ph AH'!P66 -> 40.87275225 | AS10: ='CP Mtr Invest ph AH'!P68 -> 26.50648652 | AT10: =SUM(AN10:AS10) -> 405.1705797 | AU10: ='CP Mtr Invest ph AH'!Q63 -> 315.1201912 | AV10: ='CP Mtr Invest ph AH'!$Q64 -> 0 | AW10: ='CP Mtr Invest ph AH'!$Q65 -> 0 | AX10: ='CP Mtr Invest ph AH'!Q67 -> 28.36081721 | AY10: ='CP Mtr Invest ph AH'!Q66 -> 41.56120202 | AZ10: ='CP Mtr Invest ph AH'!Q68 -> 26.95295473 | BA10: =SUM(AU10:AZ10) -> 411.9951652 | BB10: ='CP Mtr Invest ph AH'!R63 -> 320.4279919 | BC10: ='CP Mtr Invest ph AH'!$R64 -> 0 | BD10: ='CP Mtr Invest ph AH'!$R65 -> 0 | BE10: ='CP Mtr Invest ph AH'!R67 -> 28.83851927 | BF10: ='CP Mtr Invest ph AH'!R66 -> 42.26124785 | BG10: ='CP Mtr Invest ph AH'!R68 -> 27.40694313 | BH10: =SUM(BB10:BG10) -> 418.9347022 | BI10: ='CP Mtr Invest ph AH'!S63 -> 325.8251958 | BJ10: ='CP Mtr Invest ph AH'!$S64 -> 0 | BK10: ='CP Mtr Invest ph AH'!$S65 -> 0 | BL10: ='CP Mtr Invest ph AH'!S67 -> 29.32426762 | BM10: ='CP Mtr Invest ph AH'!S66 -> 42.97308507 | BN10: ='CP Mtr Invest ph AH'!S68 -> 27.86857839 | BO10: =SUM(BI10:BN10) -> 425.9911269 | BP10: =SUM(AM10,AT10,BA10,BH10,BO10)-SUM('CP Mtr Invest ph AH'!O70:S70) -> 0
B11: Meter Accuracy Test - single phase (BH) | C11: =$H11*'2011-15 % split'!C11 -> 316.69 | D11: =$H11*'2011-15 % split'!D11 -> 0 | E11: =$H11*'2011-15 % split'!E11 -> 0 | F11: =$H11*'2011-15 % split'!F11 -> 0 | G11: =$H11*'2011-15 % split'!G11 -> 0 | H11: ='2011-15 rates summary'!D11 -> 316.69 | I11: =$N11*'2011-15 % split'!I11 -> 329.6 | J11: =$N11*'2011-15 % split'!J11 -> 0 | K11: =$N11*'2011-15 % split'!K11 -> 0 | L11: =$N11*'2011-15 % split'!L11 -> 0 | M11: =$N11*'2011-15 % split'!M11 -> 0 | N11: ='2011-15 rates summary'!G11 -> 329.6 | O11: =$T11*'2011-15 % split'!O11 -> 342.22 | P11: =$T11*'2011-15 % split'!P11 -> 0 | Q11: =$T11*'2011-15 % split'!Q11 -> 0 | R11: =$T11*'2011-15 % split'!R11 -> 0 | S11: =$T11*'2011-15 % split'!S11 -> 0 | T11: ='2011-15 rates summary'!J11 -> 342.22 | U11: =$Z11*'2011-15 % split'!U11 -> 361.18 | V11: =$Z11*'2011-15 % split'!V11 -> 0 | W11: =$Z11*'2011-15 % split'!W11 -> 0 | X11: =$Z11*'2011-15 % split'!X11 -> 0 | Y11: =$Z11*'2011-15 % split'!Y11 -> 0 | Z11: ='2011-15 rates summary'!M11 -> 361.18 | AA11: =$AF11*'2011-15 % split'!AA11 -> 376.2 | AB11: =$AF11*'2011-15 % split'!AB11 -> 0 | AC11: =$AF11*'2011-15 % split'!AC11 -> 0 | AD11: =$AF11*'2011-15 % split'!AD11 -> 0 | AE11: =$AF11*'2011-15 % split'!AE11 -> 0 | AF11: ='2011-15 rates summary'!P11 -> 376.2 | AG11: ='CP Mtr Test 1ph BH'!$O68 -> 341.5272959 | AH11: ='CP Mtr Test 1ph BH'!$O69 -> 0 | AI11: ='CP Mtr Test 1ph BH'!$O70 -> 0 | AJ11: ='CP Mtr Test 1ph BH'!O72 -> 30.73745663 | AK11: ='CP Mtr Test 1ph BH'!O71 -> 45.04403505 | AL11: ='CP Mtr Test 1ph BH'!O73 -> 29.21161513 | AM11: 446.5204027 | AN11: ='CP Mtr Test 1ph BH'!P68 -> 347.2798908 | AO11: ='CP Mtr Test 1ph BH'!$Q69 -> 0 | AP11: ='CP Mtr Test 1ph BH'!$Q70 -> 0 | AQ11: ='CP Mtr Test 1ph BH'!P72 -> 31.25519017 | AR11: ='CP Mtr Test 1ph BH'!P71 -> 45.8027448 | AS11: ='CP Mtr Test 1ph BH'!P73 -> 29.7036478 | AT11: 454.0414736 | AU11: ='CP Mtr Test 1ph BH'!Q68 -> 353.1293809 | AV11: ='CP Mtr Test 1ph BH'!$Q69 -> 0 | AW11: ='CP Mtr Test 1ph BH'!$Q70 -> 0 | AX11: ='CP Mtr Test 1ph BH'!Q72 -> 31.78164428 | AY11: ='CP Mtr Test 1ph BH'!Q71 -> 46.57423405 | AZ11: ='CP Mtr Test 1ph BH'!Q73 -> 30.20396815 | BA11: 461.6892274 | BB11: ='CP Mtr Test 1ph BH'!R68 -> 359.0773983 | BC11: ='CP Mtr Test 1ph BH'!$R69 -> 0 | BD11: ='CP Mtr Test 1ph BH'!$R70 -> 0 | BE11: ='CP Mtr Test 1ph BH'!R72 -> 32.31696585 | BF11: ='CP Mtr Test 1ph BH'!R71 -> 47.35871806 | BG11: ='CP Mtr Test 1ph BH'!R73 -> 30.71271575 | BH11: 469.465798 | BI11: ='CP Mtr Test 1ph BH'!S68 -> 365.1256025 | BJ11: ='CP Mtr Test 1ph BH'!$S69 -> 0 | BK11: ='CP Mtr Test 1ph BH'!$S70 -> 0 | BL11: ='CP Mtr Test 1ph BH'!S72 -> 32.86130423 | BM11: ='CP Mtr Test 1ph BH'!S71 -> 48.15641571 | BN11: ='CP Mtr Test 1ph BH'!S73 -> 31.23003257 | BO11: 477.373355 | BP11: =SUM(AM11,AT11,BA11,BH11,BO11)-SUM('CP Mtr Test 1ph BH'!O75:S75) -> 0 | BS11: Note: only difference between 2010 and 2011 is the escalators applied to PC's back office rate. For the Impaq rates (line workers) we've assumed 2010=2011 rates ($2010).
B12: Meter Accuracy Test - single phase (AH) | C12: =$H12*'2011-15 % split'!C12 -> 347.13 | D12: =$H12*'2011-15 % split'!D12 -> 0 | E12: =$H12*'2011-15 % split'!E12 -> 0 | F12: =$H12*'2011-15 % split'!F12 -> 0 | G12: =$H12*'2011-15 % split'!G12 -> 0 | H12: ='2011-15 rates summary'!D12 -> 347.13 | I12: =$N12*'2011-15 % split'!I12 -> 361.28 | J12: =$N12*'2011-15 % split'!J12 -> 0 | K12: =$N12*'2011-15 % split'!K12 -> 0 | L12: =$N12*'2011-15 % split'!L12 -> 0 | M12: =$N12*'2011-15 % split'!M12 -> 0 | N12: ='2011-15 rates summary'!G12 -> 361.28 | O12: =$T12*'2011-15 % split'!O12 -> 375.11 | P12: =$T12*'2011-15 % split'!P12 -> 0 | Q12: =$T12*'2011-15 % split'!Q12 -> 0 | R12: =$T12*'2011-15 % split'!R12 -> 0 | S12: =$T12*'2011-15 % split'!S12 -> 0 | T12: ='2011-15 rates summary'!J12 -> 375.11 | U12: =$Z12*'2011-15 % split'!U12 -> 395.9 | V12: =$Z12*'2011-15 % split'!V12 -> 0 | W12: =$Z12*'2011-15 % split'!W12 -> 0 | X12: =$Z12*'2011-15 % split'!X12 -> 0 | Y12: =$Z12*'2011-15 % split'!Y12 -> 0 | Z12: ='2011-15 rates summary'!M12 -> 395.9 | AA12: =$AF12*'2011-15 % split'!AA12 -> 412.36 | AB12: =$AF12*'2011-15 % split'!AB12 -> 0 | AC12: =$AF12*'2011-15 % split'!AC12 -> 0 | AD12: =$AF12*'2011-15 % split'!AD12 -> 0 | AE12: =$AF12*'2011-15 % split'!AE12 -> 0 | AF12: ='2011-15 rates summary'!P12 -> 412.36 | AG12: ='CP Mtr Test 1ph AH'!$O68 -> 392.4611247 | AH12: ='CP Mtr Test 1ph AH'!$O69 -> 0 | AI12: ='CP Mtr Test 1ph AH'!$O70 -> 0 | AJ12: ='CP Mtr Test 1ph AH'!O72 -> 35.32150122 | AK12: ='CP Mtr Test 1ph AH'!O71 -> 51.76169773 | AL12: ='CP Mtr Test 1ph AH'!O73 -> 33.56810265 | AM12: 513.1124263 | AN12: ='CP Mtr Test 1ph AH'!P68 -> 399.0716355 | AO12: ='CP Mtr Test 1ph AH'!$Q69 -> 0 | AP12: ='CP Mtr Test 1ph AH'!$Q70 -> 0 | AQ12: ='CP Mtr Test 1ph AH'!P72 -> 35.91644719 | AR12: ='CP Mtr Test 1ph AH'!P71 -> 52.633558 | AS12: ='CP Mtr Test 1ph AH'!P73 -> 34.13351485 | AT12: 521.7551555 | AU12: ='CP Mtr Test 1ph AH'!Q68 -> 405.793492 | AV12: ='CP Mtr Test 1ph AH'!$Q69 -> 0 | AW12: ='CP Mtr Test 1ph AH'!$Q70 -> 0 | AX12: ='CP Mtr Test 1ph AH'!Q72 -> 36.52141428 | AY12: ='CP Mtr Test 1ph AH'!Q71 -> 53.52010366 | AZ12: ='CP Mtr Test 1ph AH'!Q73 -> 34.70845069 | BA12: 530.5434606 | BB12: ='CP Mtr Test 1ph AH'!R68 -> 412.6285696 | BC12: ='CP Mtr Test 1ph AH'!$R69 -> 0 | BD12: ='CP Mtr Test 1ph AH'!$R70 -> 0 | BE12: ='CP Mtr Test 1ph AH'!R72 -> 37.13657127 | BF12: ='CP Mtr Test 1ph AH'!R71 -> 54.42158205 | BG12: ='CP Mtr Test 1ph AH'!R73 -> 35.29307061 | BH12: 539.4797936 | BI12: ='CP Mtr Test 1ph AH'!S68 -> 419.5787755 | BJ12: ='CP Mtr Test 1ph AH'!$S69 -> 0 | BK12: ='CP Mtr Test 1ph AH'!$S70 -> 0 | BL12: ='CP Mtr Test 1ph AH'!S72 -> 37.7620898 | BM12: ='CP Mtr Test 1ph AH'!S71 -> 55.3382447 | BN12: ='CP Mtr Test 1ph AH'!S73 -> 35.8875377 | BO12: 548.5666477 | BP12: =SUM(AM12,AT12,BA12,BH12,BO12)-SUM('CP Mtr Test 1ph AH'!O75:S75) -> 0 | BS12: As the 2010 rates and prices are arbitrary (the prices will never actually apply, only 2011 prices are relevant). Impaq's advice provides labour rates in $2010 for implemenation in 2011.
B13: Meter Accuracy Test - Single phase additional meter (BH) | C13: =$H13*'2011-15 % split'!C13 -> 141.4 | D13: =$H13*'2011-15 % split'!D13 -> 0 | E13: =$H13*'2011-15 % split'!E13 -> 0 | F13: =$H13*'2011-15 % split'!F13 -> 0 | G13: =$H13*'2011-15 % split'!G13 -> 0 | H13: ='2011-15 rates summary'!D13 -> 141.4 | I13: =$N13*'2011-15 % split'!I13 -> 147.16 | J13: =$N13*'2011-15 % split'!J13 -> 0 | K13: =$N13*'2011-15 % split'!K13 -> 0 | L13: =$N13*'2011-15 % split'!L13 -> 0 | M13: =$N13*'2011-15 % split'!M13 -> 0 | N13: ='2011-15 rates summary'!G13 -> 147.16 | O13: =$T13*'2011-15 % split'!O13 -> 152.79 | P13: =$T13*'2011-15 % split'!P13 -> 0 | Q13: =$T13*'2011-15 % split'!Q13 -> 0 | R13: =$T13*'2011-15 % split'!R13 -> 0 | S13: =$T13*'2011-15 % split'!S13 -> 0 | T13: ='2011-15 rates summary'!J13 -> 152.79 | U13: =$Z13*'2011-15 % split'!U13 -> 161.25 | V13: =$Z13*'2011-15 % split'!V13 -> 0 | W13: =$Z13*'2011-15 % split'!W13 -> 0 | X13: =$Z13*'2011-15 % split'!X13 -> 0 | Y13: =$Z13*'2011-15 % split'!Y13 -> 0 | Z13: ='2011-15 rates summary'!M13 -> 161.25 | AA13: =$AF13*'2011-15 % split'!AA13 -> 167.95 | AB13: =$AF13*'2011-15 % split'!AB13 -> 0 | AC13: =$AF13*'2011-15 % split'!AC13 -> 0 | AD13: =$AF13*'2011-15 % split'!AD13 -> 0 | AE13: =$AF13*'2011-15 % split'!AE13 -> 0 | AF13: ='2011-15 rates summary'!P13 -> 167.95 | AG13: ='CP MTest 1ph BH'!$O68 -> 150.268783 | AH13: ='CP MTest 1ph BH'!$O69 -> 0 | AI13: ='CP MTest 1ph BH'!$O70 -> 0 | AJ13: ='CP MTest 1ph BH'!O$72 -> 13.52419047 | AK13: ='CP MTest 1ph BH'!O$71 -> 19.81894979 | AL13: ='CP MTest 1ph BH'!O$73 -> 12.85283463 | AM13: 196.4647579 | AN13: ='CP MTest 1ph BH'!P$68 -> 152.7998704 | AO13: ='CP MTest 1ph BH'!$Q69 -> 0 | AP13: ='CP MTest 1ph BH'!$Q70 -> 0 | AQ13: ='CP MTest 1ph BH'!P$72 -> 13.75198834 | AR13: ='CP MTest 1ph BH'!P$71 -> 20.15277491 | AS13: ='CP MTest 1ph BH'!P$73 -> 13.06932436 | AT13: 199.773958 | AU13: ='CP MTest 1ph BH'!Q$68 -> 155.3735908 | AV13: ='CP MTest 1ph BH'!$Q69 -> 0 | AW13: ='CP MTest 1ph BH'!$Q70 -> 0 | AX13: ='CP MTest 1ph BH'!Q$72 -> 13.98362317 | AY13: ='CP MTest 1ph BH'!Q$71 -> 20.49222289 | AZ13: ='CP MTest 1ph BH'!Q$73 -> 13.28946058 | BA13: 203.1388975 | BB13: ='CP MTest 1ph BH'!R$68 -> 157.9906623 | BC13: ='CP MTest 1ph BH'!$R69 -> 0 | BD13: ='CP MTest 1ph BH'!$R70 -> 0 | BE13: ='CP MTest 1ph BH'!R$72 -> 14.2191596 | BF13: ='CP MTest 1ph BH'!R$71 -> 20.83738844 | BG13: ='CP MTest 1ph BH'!R$73 -> 13.51330472 | BH13: 206.560515 | BI13: ='CP MTest 1ph BH'!S$68 -> 160.651815 | BJ13: ='CP MTest 1ph BH'!$S69 -> 0 | BK13: ='CP MTest 1ph BH'!$S70 -> 0 | BL13: ='CP MTest 1ph BH'!S$72 -> 14.45866335 | BM13: ='CP MTest 1ph BH'!S$71 -> 21.18836787 | BN13: ='CP MTest 1ph BH'!S$73 -> 13.74091923 | BO13: 210.0397654 | BP13: =SUM(AM13,AT13,BA13,BH13,BO13)-SUM('CP MTest 1ph BH'!O75:S75) -> 0
B14: Meter Accuracy Test - multi phase (BH) | C14: =$H14*'2011-15 % split'!C14 -> 414.37 | D14: =$H14*'2011-15 % split'!D14 -> 0 | E14: =$H14*'2011-15 % split'!E14 -> 0 | F14: =$H14*'2011-15 % split'!F14 -> 0 | G14: =$H14*'2011-15 % split'!G14 -> 0 | H14: ='2011-15 rates summary'!D14 -> 414.37 | I14: =$N14*'2011-15 % split'!I14 -> 431.27 | J14: =$N14*'2011-15 % split'!J14 -> 0 | K14: =$N14*'2011-15 % split'!K14 -> 0 | L14: =$N14*'2011-15 % split'!L14 -> 0 | M14: =$N14*'2011-15 % split'!M14 -> 0 | N14: ='2011-15 rates summary'!G14 -> 431.27 | O14: =$T14*'2011-15 % split'!O14 -> 447.78 | P14: =$T14*'2011-15 % split'!P14 -> 0 | Q14: =$T14*'2011-15 % split'!Q14 -> 0 | R14: =$T14*'2011-15 % split'!R14 -> 0 | S14: =$T14*'2011-15 % split'!S14 -> 0 | T14: ='2011-15 rates summary'!J14 -> 447.78 | U14: =$Z14*'2011-15 % split'!U14 -> 472.59 | V14: =$Z14*'2011-15 % split'!V14 -> 0 | W14: =$Z14*'2011-15 % split'!W14 -> 0 | X14: =$Z14*'2011-15 % split'!X14 -> 0 | Y14: =$Z14*'2011-15 % split'!Y14 -> 0 | Z14: ='2011-15 rates summary'!M14 -> 472.59 | AA14: =$AF14*'2011-15 % split'!AA14 -> 492.24 | AB14: =$AF14*'2011-15 % split'!AB14 -> 0 | AC14: =$AF14*'2011-15 % split'!AC14 -> 0 | AD14: =$AF14*'2011-15 % split'!AD14 -> 0 | AE14: =$AF14*'2011-15 % split'!AE14 -> 0 | AF14: ='2011-15 rates summary'!P14 -> 492.24 | AG14: ='CP Mtr Test 3ph BH'!$O68 -> 442.6040161 | AH14: ='CP Mtr Test 3ph BH'!$O69 -> 0 | AI14: ='CP Mtr Test 3ph BH'!$O70 -> 0 | AJ14: ='CP Mtr Test 3ph BH'!O72 -> 39.83436145 | AK14: ='CP Mtr Test 3ph BH'!O71 -> 58.37504368 | AL14: ='CP Mtr Test 3ph BH'!O73 -> 37.85693949 | AM14: 578.6703607 | AN14: ='CP Mtr Test 3ph BH'!P68 -> 450.0591204 | AO14: ='CP Mtr Test 3ph BH'!$Q69 -> 0 | AP14: ='CP Mtr Test 3ph BH'!$Q70 -> 0 | AQ14: ='CP Mtr Test 3ph BH'!P72 -> 40.50532084 | AR14: ='CP Mtr Test 3ph BH'!P71 -> 59.35829739 | AS14: ='CP Mtr Test 3ph BH'!P73 -> 38.49459171 | AT14: 588.4173304 | AU14: ='CP Mtr Test 3ph BH'!Q68 -> 457.6397966 | AV14: ='CP Mtr Test 3ph BH'!$Q69 -> 0 | AW14: ='CP Mtr Test 3ph BH'!$Q70 -> 0 | AX14: ='CP Mtr Test 3ph BH'!Q72 -> 41.18758169 | AY14: ='CP Mtr Test 3ph BH'!Q71 -> 60.35811277 | AZ14: ='CP Mtr Test 3ph BH'!Q73 -> 39.14298437 | BA14: 598.3284754 | BB14: ='CP Mtr Test 3ph BH'!R68 -> 465.3481596 | BC14: ='CP Mtr Test 3ph BH'!$R69 -> 0 | BD14: ='CP Mtr Test 3ph BH'!$R70 -> 0 | BE14: ='CP Mtr Test 3ph BH'!R72 -> 41.88133436 | BF14: ='CP Mtr Test 3ph BH'!R71 -> 61.37476877 | BG14: ='CP Mtr Test 3ph BH'!R73 -> 39.80229839 | BH14: 608.4065611 | BI14: ='CP Mtr Test 3ph BH'!S68 -> 473.1863602 | BJ14: ='CP Mtr Test 3ph BH'!$S69 -> 0 | BK14: ='CP Mtr Test 3ph BH'!$S70 -> 0 | BL14: ='CP Mtr Test 3ph BH'!S72 -> 42.58677242 | BM14: ='CP Mtr Test 3ph BH'!S71 -> 62.40854905 | BN14: ='CP Mtr Test 3ph BH'!S73 -> 40.47271772 | BO14: 618.6543994 | BP14: =SUM(AM14,AT14,BA14,BH14,BO14)-SUM('CP Mtr Test 3ph BH'!O75:S75) -> 0
B15: Meter Accuracy Test - multi phase (AH) | C15: =$H15*'2011-15 % split'!C15 -> 455.35 | D15: =$H15*'2011-15 % split'!D15 -> 0 | E15: =$H15*'2011-15 % split'!E15 -> 0 | F15: =$H15*'2011-15 % split'!F15 -> 0 | G15: =$H15*'2011-15 % split'!G15 -> 0 | H15: ='2011-15 rates summary'!D15 -> 455.35 | I15: =$N15*'2011-15 % split'!I15 -> 473.92 | J15: =$N15*'2011-15 % split'!J15 -> 0 | K15: =$N15*'2011-15 % split'!K15 -> 0 | L15: =$N15*'2011-15 % split'!L15 -> 0 | M15: =$N15*'2011-15 % split'!M15 -> 0 | N15: ='2011-15 rates summary'!G15 -> 473.92 | O15: =$T15*'2011-15 % split'!O15 -> 492.07 | P15: =$T15*'2011-15 % split'!P15 -> 0 | Q15: =$T15*'2011-15 % split'!Q15 -> 0 | R15: =$T15*'2011-15 % split'!R15 -> 0 | S15: =$T15*'2011-15 % split'!S15 -> 0 | T15: ='2011-15 rates summary'!J15 -> 492.07 | U15: =$Z15*'2011-15 % split'!U15 -> 519.34 | V15: =$Z15*'2011-15 % split'!V15 -> 0 | W15: =$Z15*'2011-15 % split'!W15 -> 0 | X15: =$Z15*'2011-15 % split'!X15 -> 0 | Y15: =$Z15*'2011-15 % split'!Y15 -> 0 | Z15: ='2011-15 rates summary'!M15 -> 519.34 | AA15: =$AF15*'2011-15 % split'!AA15 -> 540.94 | AB15: =$AF15*'2011-15 % split'!AB15 -> 0 | AC15: =$AF15*'2011-15 % split'!AC15 -> 0 | AD15: =$AF15*'2011-15 % split'!AD15 -> 0 | AE15: =$AF15*'2011-15 % split'!AE15 -> 0 | AF15: ='2011-15 rates summary'!P15 -> 540.94 | AG15: ='CP Mtr Test 3ph AH'!$O68 -> 511.1632518 | AH15: ='CP Mtr Test 3ph AH'!$O69 -> 0 | AI15: ='CP Mtr Test 3ph AH'!$O70 -> 0 | AJ15: ='CP Mtr Test 3ph AH'!O72 -> 46.00469266 | AK15: ='CP Mtr Test 3ph AH'!O71 -> 67.41732128 | AL15: ='CP Mtr Test 3ph AH'!O73 -> 43.7209686 | AM15: 668.3062343 | AN15: ='CP Mtr Test 3ph AH'!P68 -> 519.7731496 | AO15: ='CP Mtr Test 3ph AH'!$Q69 -> 0 | AP15: ='CP Mtr Test 3ph AH'!$Q70 -> 0 | AQ15: ='CP Mtr Test 3ph AH'!P72 -> 46.77958347 | AR15: ='CP Mtr Test 3ph AH'!P71 -> 68.55288071 | AS15: ='CP Mtr Test 3ph AH'!P73 -> 44.45739297 | AT15: 679.5630068 | AU15: ='CP Mtr Test 3ph AH'!Q68 -> 528.5280703 | AV15: ='CP Mtr Test 3ph AH'!$Q69 -> 0 | AW15: ='CP Mtr Test 3ph AH'!$Q70 -> 0 | AX15: ='CP Mtr Test 3ph AH'!Q72 -> 47.56752633 | AY15: ='CP Mtr Test 3ph AH'!Q71 -> 69.7075672 | AZ15: ='CP Mtr Test 3ph AH'!Q73 -> 45.20622147 | BA15: 691.0093853 | BB15: ='CP Mtr Test 3ph AH'!R68 -> 537.4304566 | BC15: ='CP Mtr Test 3ph AH'!$R69 -> 0 | BD15: ='CP Mtr Test 3ph AH'!$R70 -> 0 | BE15: ='CP Mtr Test 3ph AH'!R72 -> 48.36874109 | BF15: ='CP Mtr Test 3ph AH'!R71 -> 70.88170292 | BG15: ='CP Mtr Test 3ph AH'!R73 -> 45.96766304 | BH15: 702.6485637 | BI15: ='CP Mtr Test 3ph AH'!S68 -> 546.4827923 | BJ15: ='CP Mtr Test 3ph AH'!$S69 -> 0 | BK15: ='CP Mtr Test 3ph AH'!$S70 -> 0 | BL15: ='CP Mtr Test 3ph AH'!S72 -> 49.18345131 | BM15: ='CP Mtr Test 3ph AH'!S71 -> 72.07561548 | BN15: ='CP Mtr Test 3ph AH'!S73 -> 46.74193014 | BO15: 714.4837892 | BP15: =SUM(AM15,AT15,BA15,BH15,BO15)-SUM('CP Mtr Test 3ph AH'!O75:S75) -> 0
B16: Meter Accuracy Test - Multi phase additional meter (BH) | C16: =$H16*'2011-15 % split'!C16 -> 243.49 | D16: =$H16*'2011-15 % split'!D16 -> 0 | E16: =$H16*'2011-15 % split'!E16 -> 0 | F16: =$H16*'2011-15 % split'!F16 -> 0 | G16: =$H16*'2011-15 % split'!G16 -> 0 | H16: ='2011-15 rates summary'!D16 -> 243.49 | I16: =$N16*'2011-15 % split'!I16 -> 253.42 | J16: =$N16*'2011-15 % split'!J16 -> 0 | K16: =$N16*'2011-15 % split'!K16 -> 0 | L16: =$N16*'2011-15 % split'!L16 -> 0 | M16: =$N16*'2011-15 % split'!M16 -> 0 | N16: ='2011-15 rates summary'!G16 -> 253.42 | O16: =$T16*'2011-15 % split'!O16 -> 263.12 | P16: =$T16*'2011-15 % split'!P16 -> 0 | Q16: =$T16*'2011-15 % split'!Q16 -> 0 | R16: =$T16*'2011-15 % split'!R16 -> 0 | S16: =$T16*'2011-15 % split'!S16 -> 0 | T16: ='2011-15 rates summary'!J16 -> 263.12 | U16: =$Z16*'2011-15 % split'!U16 -> 277.7 | V16: =$Z16*'2011-15 % split'!V16 -> 0 | W16: =$Z16*'2011-15 % split'!W16 -> 0 | X16: =$Z16*'2011-15 % split'!X16 -> 0 | Y16: =$Z16*'2011-15 % split'!Y16 -> 0 | Z16: ='2011-15 rates summary'!M16 -> 277.7 | AA16: =$AF16*'2011-15 % split'!AA16 -> 289.25 | AB16: =$AF16*'2011-15 % split'!AB16 -> 0 | AC16: =$AF16*'2011-15 % split'!AC16 -> 0 | AD16: =$AF16*'2011-15 % split'!AD16 -> 0 | AE16: =$AF16*'2011-15 % split'!AE16 -> 0 | AF16: ='2011-15 rates summary'!P16 -> 289.25 | AG16: ='CP Mtr Test ext mtr 3ph BH'!$O68 -> 255.9195163 | AH16: ='CP Mtr Test ext mtr 3ph BH'!$O69 -> 0 | AI16: ='CP Mtr Test ext mtr 3ph BH'!$O$70 -> 0 | AJ16: ='CP Mtr Test ext mtr 3ph BH'!O$72 -> 23.03275647 | AK16: ='CP Mtr Test ext mtr 3ph BH'!O$71 -> 33.75322501 | AL16: ='CP Mtr Test ext mtr 3ph BH'!O$73 -> 21.88938485 | AM16: 334.5948826 | AN16: ='CP Mtr Test ext mtr 3ph BH'!P$68 -> 260.2301566 | AO16: ='CP Mtr Test ext mtr 3ph BH'!$Q69 -> 0 | AP16: ='CP Mtr Test ext mtr 3ph BH'!$Q$70 -> 0 | AQ16: ='CP Mtr Test ext mtr 3ph BH'!P$72 -> 23.42071409 | AR16: ='CP Mtr Test ext mtr 3ph BH'!P$71 -> 34.32175535 | AS16: ='CP Mtr Test ext mtr 3ph BH'!P$73 -> 22.25808382 | AT16: 340.2307099 | AU16: ='CP Mtr Test ext mtr 3ph BH'!Q$68 -> 264.6134041 | AV16: ='CP Mtr Test ext mtr 3ph BH'!$Q69 -> 0 | AW16: ='CP Mtr Test ext mtr 3ph BH'!$Q$70 -> 0 | AX16: ='CP Mtr Test ext mtr 3ph BH'!Q$72 -> 23.81520637 | AY16: ='CP Mtr Test ext mtr 3ph BH'!Q$71 -> 34.89986187 | AZ16: ='CP Mtr Test ext mtr 3ph BH'!Q$73 -> 22.63299307 | BA16: 345.9614655 | BB16: ='CP Mtr Test ext mtr 3ph BH'!R$68 -> 269.070482 | BC16: ='CP Mtr Test ext mtr 3ph BH'!$R69 -> 0 | BD16: ='CP Mtr Test ext mtr 3ph BH'!$R$70 -> 0 | BE16: ='CP Mtr Test ext mtr 3ph BH'!R$72 -> 24.21634338 | BF16: ='CP Mtr Test ext mtr 3ph BH'!R$71 -> 35.48770586 | BG16: ='CP Mtr Test ext mtr 3ph BH'!R$73 -> 23.01421718 | BH16: 351.7887484 | BI16: ='CP Mtr Test ext mtr 3ph BH'!S$68 -> 273.6026336 | BJ16: ='CP Mtr Test ext mtr 3ph BH'!$S69 -> 0 | BK16: ='CP Mtr Test ext mtr 3ph BH'!$S$70 -> 0 | BL16: ='CP Mtr Test ext mtr 3ph BH'!S$72 -> 24.62423702 | BM16: ='CP Mtr Test ext mtr 3ph BH'!S$71 -> 36.08545134 | BN16: ='CP Mtr Test ext mtr 3ph BH'!S$73 -> 23.40186254 | BO16: 357.7141845 | BP16: =SUM(AM16,AT16,BA16,BH16,BO16)-SUM('CP Mtr Test ext mtr 3ph BH'!O75:S75) -> 0
B17: Meter Accuracy Test - CT (BH) | C17: =$H17*'2011-15 % split'!C17 -> 404.8 | D17: =$H17*'2011-15 % split'!D17 -> 0 | E17: =$H17*'2011-15 % split'!E17 -> 0 | F17: =$H17*'2011-15 % split'!F17 -> 0 | G17: =$H17*'2011-15 % split'!G17 -> 0 | H17: ='2011-15 rates summary'!D17 -> 404.8 | I17: =$N17*'2011-15 % split'!I17 -> 421.31 | J17: =$N17*'2011-15 % split'!J17 -> 0 | K17: =$N17*'2011-15 % split'!K17 -> 0 | L17: =$N17*'2011-15 % split'!L17 -> 0 | M17: =$N17*'2011-15 % split'!M17 -> 0 | N17: ='2011-15 rates summary'!G17 -> 421.31 | O17: =$T17*'2011-15 % split'!O17 -> 437.44 | P17: =$T17*'2011-15 % split'!P17 -> 0 | Q17: =$T17*'2011-15 % split'!Q17 -> 0 | R17: =$T17*'2011-15 % split'!R17 -> 0 | S17: =$T17*'2011-15 % split'!S17 -> 0 | T17: ='2011-15 rates summary'!J17 -> 437.44 | U17: =$Z17*'2011-15 % split'!U17 -> 461.68 | V17: =$Z17*'2011-15 % split'!V17 -> 0 | W17: =$Z17*'2011-15 % split'!W17 -> 0 | X17: =$Z17*'2011-15 % split'!X17 -> 0 | Y17: =$Z17*'2011-15 % split'!Y17 -> 0 | Z17: ='2011-15 rates summary'!M17 -> 461.68 | AA17: =$AF17*'2011-15 % split'!AA17 -> 480.88 | AB17: =$AF17*'2011-15 % split'!AB17 -> 0 | AC17: =$AF17*'2011-15 % split'!AC17 -> 0 | AD17: =$AF17*'2011-15 % split'!AD17 -> 0 | AE17: =$AF17*'2011-15 % split'!AE17 -> 0 | AF17: ='2011-15 rates summary'!P17 -> 480.88 | AG17: ='CP Mtr Test CT ph BH'!$O68 -> 432.7026231 | AH17: ='CP Mtr Test CT ph BH'!$O69 -> 0 | AI17: ='CP Mtr Test CT ph BH'!$O70 -> 0 | AJ17: ='CP Mtr Test CT ph BH'!O72 -> 38.94323608 | AK17: ='CP Mtr Test CT ph BH'!O71 -> 57.06914896 | AL17: ='CP Mtr Test CT ph BH'!O73 -> 37.01005057 | AM17: 565.7250587 | AN17: ='CP Mtr Test CT ph BH'!P68 -> 439.990951 | AO17: ='CP Mtr Test CT ph BH'!$Q69 -> 0 | AP17: ='CP Mtr Test CT ph BH'!$Q70 -> 0 | AQ17: ='CP Mtr Test CT ph BH'!P72 -> 39.59918559 | AR17: ='CP Mtr Test CT ph BH'!P71 -> 58.03040653 | AS17: ='CP Mtr Test CT ph BH'!P73 -> 37.63343802 | AT17: 575.2539811 | AU17: ='CP Mtr Test CT ph BH'!Q68 -> 447.4020416 | AV17: ='CP Mtr Test CT ph BH'!$Q69 -> 0 | AW17: ='CP Mtr Test CT ph BH'!$Q70 -> 0 | AX17: ='CP Mtr Test CT ph BH'!Q72 -> 40.26618374 | AY17: ='CP Mtr Test CT ph BH'!Q71 -> 59.00785526 | AZ17: ='CP Mtr Test CT ph BH'!Q73 -> 38.26732564 | BA17: 584.9434062 | BB17: ='CP Mtr Test CT ph BH'!R68 -> 454.9379626 | BC17: ='CP Mtr Test CT ph BH'!$R69 -> 0 | BD17: ='CP Mtr Test CT ph BH'!$R70 -> 0 | BE17: ='CP Mtr Test CT ph BH'!R72 -> 40.94441663 | BF17: ='CP Mtr Test CT ph BH'!R71 -> 60.00176788 | BG17: ='CP Mtr Test CT ph BH'!R73 -> 38.9118903 | BH17: 594.7960374 | BI17: ='CP Mtr Test CT ph BH'!S68 -> 462.6008166 | BJ17: ='CP Mtr Test CT ph BH'!$S69 -> 0 | BK17: ='CP Mtr Test CT ph BH'!$S70 -> 0 | BL17: ='CP Mtr Test CT ph BH'!S72 -> 41.6340735 | BM17: ='CP Mtr Test CT ph BH'!S71 -> 61.0124217 | BN17: ='CP Mtr Test CT ph BH'!S73 -> 39.56731183 | BO17: 604.8146237 | BP17: =SUM(AM17,AT17,BA17,BH17,BO17)-SUM('CP Mtr Test CT ph BH'!O75:S75) -> 0
B18: Meter Accuracy Test - CT (AH) | C18: =$H18*'2011-15 % split'!C18 -> 444.75 | D18: =$H18*'2011-15 % split'!D18 -> 0 | E18: =$H18*'2011-15 % split'!E18 -> 0 | F18: =$H18*'2011-15 % split'!F18 -> 0 | G18: =$H18*'2011-15 % split'!G18 -> 0 | H18: ='2011-15 rates summary'!D18 -> 444.75 | I18: =$N18*'2011-15 % split'!I18 -> 462.89 | J18: =$N18*'2011-15 % split'!J18 -> 0 | K18: =$N18*'2011-15 % split'!K18 -> 0 | L18: =$N18*'2011-15 % split'!L18 -> 0 | M18: =$N18*'2011-15 % split'!M18 -> 0 | N18: ='2011-15 rates summary'!G18 -> 462.89 | O18: =$T18*'2011-15 % split'!O18 -> 480.61 | P18: =$T18*'2011-15 % split'!P18 -> 0 | Q18: =$T18*'2011-15 % split'!Q18 -> 0 | R18: =$T18*'2011-15 % split'!R18 -> 0 | S18: =$T18*'2011-15 % split'!S18 -> 0 | T18: ='2011-15 rates summary'!J18 -> 480.61 | U18: =$Z18*'2011-15 % split'!U18 -> 507.24 | V18: =$Z18*'2011-15 % split'!V18 -> 0 | W18: =$Z18*'2011-15 % split'!W18 -> 0 | X18: =$Z18*'2011-15 % split'!X18 -> 0 | Y18: =$Z18*'2011-15 % split'!Y18 -> 0 | Z18: ='2011-15 rates summary'!M18 -> 507.24 | AA18: =$AF18*'2011-15 % split'!AA18 -> 528.33 | AB18: =$AF18*'2011-15 % split'!AB18 -> 0 | AC18: =$AF18*'2011-15 % split'!AC18 -> 0 | AD18: =$AF18*'2011-15 % split'!AD18 -> 0 | AE18: =$AF18*'2011-15 % split'!AE18 -> 0 | AF18: ='2011-15 rates summary'!P18 -> 528.33 | AG18: ='CP Mtr Test CT ph AH'!$O68 -> 499.5352883 | AH18: ='CP Mtr Test CT ph AH'!$O69 -> 0 | AI18: ='CP Mtr Test CT ph AH'!$O70 -> 0 | AJ18: ='CP Mtr Test CT ph AH'!O72 -> 44.95817595 | AK18: ='CP Mtr Test CT ph AH'!O71 -> 65.88370917 | AL18: ='CP Mtr Test CT ph AH'!O73 -> 42.72640214 | AM18: 653.1035756 | AN18: ='CP Mtr Test CT ph AH'!P68 -> 507.9493278 | AO18: ='CP Mtr Test CT ph AH'!$Q69 -> 0 | AP18: ='CP Mtr Test CT ph AH'!$Q70 -> 0 | AQ18: ='CP Mtr Test CT ph AH'!P72 -> 45.71543951 | AR18: ='CP Mtr Test CT ph AH'!P71 -> 66.99343685 | AS18: ='CP Mtr Test CT ph AH'!P73 -> 43.44607429 | AT18: 664.1042785 | AU18: ='CP Mtr Test CT ph AH'!Q68 -> 516.5050912 | AV18: ='CP Mtr Test CT ph AH'!$Q69 -> 0 | AW18: ='CP Mtr Test CT ph AH'!$Q70 -> 0 | AX18: ='CP Mtr Test CT ph AH'!Q72 -> 46.48545821 | AY18: ='CP Mtr Test CT ph AH'!Q71 -> 68.12185648 | AZ18: ='CP Mtr Test CT ph AH'!Q73 -> 44.17786842 | BA18: 675.2902744 | BB18: ='CP Mtr Test CT ph AH'!R68 -> 525.2049656 | BC18: ='CP Mtr Test CT ph AH'!$R69 -> 0 | BD18: ='CP Mtr Test CT ph AH'!$R70 -> 0 | BE18: ='CP Mtr Test CT ph AH'!R72 -> 47.26844691 | BF18: ='CP Mtr Test CT ph AH'!R71 -> 69.26928292 | BG18: ='CP Mtr Test CT ph AH'!R73 -> 44.92198868 | BH18: 686.6646841 | BI18: ='CP Mtr Test CT ph AH'!S68 -> 534.0513784 | BJ18: ='CP Mtr Test CT ph AH'!$S69 -> 0 | BK18: ='CP Mtr Test CT ph AH'!$S70 -> 0 | BL18: ='CP Mtr Test CT ph AH'!S72 -> 48.06462406 | BM18: ='CP Mtr Test CT ph AH'!S71 -> 70.4360363 | BN18: ='CP Mtr Test CT ph AH'!S73 -> 45.67864271 | BO18: 698.2306815 | BP18: =SUM(AM18,AT18,BA18,BH18,BO18)-SUM('CP Mtr Test CT ph AH'!O75:S75) -> 0
B20: Disconnection (BH only) | C20: =$H20*'2011-15 % split'!C20 -> 4.709062644 | D20: =$H20*'2011-15 % split'!D20 -> 0 | E20: =$H20*'2011-15 % split'!E20 -> 8.360937356 | F20: =$H20*'2011-15 % split'!F20 -> 0 | G20: =$H20*'2011-15 % split'!G20 -> 0 | H20: ='2011-15 rates summary'!D23 -> 13.07 | I20: =$N20*'2011-15 % split'!I20 -> 5.108774377 | J20: =$N20*'2011-15 % split'!J20 -> 0 | K20: =$N20*'2011-15 % split'!K20 -> 13.47122562 | L20: =$N20*'2011-15 % split'!L20 -> 0 | M20: =$N20*'2011-15 % split'!M20 -> 0 | N20: ='2011-15 rates summary'!G23 -> 18.58 | O20: =$T20*'2011-15 % split'!O20 -> 5.373262646 | P20: =$T20*'2011-15 % split'!P20 -> 0 | Q20: =$T20*'2011-15 % split'!Q20 -> 18.72673735 | R20: =$T20*'2011-15 % split'!R20 -> 0 | S20: =$T20*'2011-15 % split'!S20 -> 0 | T20: ='2011-15 rates summary'!J23 -> 24.1 | U20: =$Z20*'2011-15 % split'!U20 -> 5.587432825 | V20: =$Z20*'2011-15 % split'!V20 -> 0 | W20: =$Z20*'2011-15 % split'!W20 -> 19.10256718 | X20: =$Z20*'2011-15 % split'!X20 -> 0 | Y20: =$Z20*'2011-15 % split'!Y20 -> 0 | Z20: ='2011-15 rates summary'!M23 -> 24.69 | AA20: =$AF20*'2011-15 % split'!AA20 -> 5.792228298 | AB20: =$AF20*'2011-15 % split'!AB20 -> 0 | AC20: =$AF20*'2011-15 % split'!AC20 -> 19.5177717 | AD20: =$AF20*'2011-15 % split'!AD20 -> 0 | AE20: =$AF20*'2011-15 % split'!AE20 -> 0 | AF20: ='2011-15 rates summary'!P23 -> 25.31 | AG20: ='CP Disc DNP BH'!O36 -> 7.76854607 | AH20: ='CP Disc DNP BH'!O37 -> 0 | AI20: ='CP Disc DNP BH'!O38 -> 18.88750135 | AJ20: ='CP Disc DNP BH'!O40 -> 2.399044268 | AK20: ='CP Disc DNP BH'!O39 -> 3.515666094 | AL20: ='CP Disc DNP BH'!O41 -> 2.279953045 | AM20: =SUM(AG20:AL20) -> 34.85071082 | AN20: ='CP Disc DNP BH'!P36 -> 7.899397394 | AO20: ='CP Disc DNP BH'!P37 -> 0 | AP20: ='CP Disc DNP BH'!P38 -> 19.29433739 | AQ20: ='CP Disc DNP BH'!P40 -> 2.447436131 | AR20: ='CP Disc DNP BH'!P39 -> 3.586581681 | AS20: ='CP Disc DNP BH'!P41 -> 2.325942682 | AT20: =SUM(AN20:AS20) -> 35.55369528 | AU20: ='CP Disc DNP BH'!Q36 -> 8.032452743 | AV20: ='CP Disc DNP BH'!Q37 -> 0 | AW20: ='CP Disc DNP BH'!Q38 -> 19.62907346 | AX20: ='CP Disc DNP BH'!Q40 -> 2.489537358 | AY20: ='CP Disc DNP BH'!Q39 -> 3.648278691 | AZ20: ='CP Disc DNP BH'!Q41 -> 2.365953957 | BA20: =SUM(AU20:AZ20) -> 36.16529621 | BB20: ='CP Disc DNP BH'!R36 -> 8.167749241 | BC20: ='CP Disc DNP BH'!R37 -> 0 | BD20: ='CP Disc DNP BH'!R38 -> 19.96579051 | BE20: ='CP Disc DNP BH'!R40 -> 2.532018577 | BF20: ='CP Disc DNP BH'!R39 -> 3.710532557 | BG20: ='CP Disc DNP BH'!R41 -> 2.406326362 | BH20: =SUM(BB20:BG20) -> 36.78241724 | BI20: ='CP Disc DNP BH'!S36 -> 8.305324637 | BJ20: ='CP Disc DNP BH'!S37 -> 0 | BK20: ='CP Disc DNP BH'!S38 -> 20.31412155 | BL20: ='CP Disc DNP BH'!S40 -> 2.575750157 | BM20: ='CP Disc DNP BH'!S39 -> 3.774618758 | BN20: ='CP Disc DNP BH'!S41 -> 2.447887057 | BO20: =SUM(BI20:BN20) -> 37.41770216 | BP20: =SUM(AM20,AT20,BA20,BH20,BO20)-SUM('CP Disc DNP BH'!O43:S43) -> 0
B21: Disconnection (no AH service) | C21: =$H21*'2011-15 % split'!C21 -> 0 | D21: =$H21*'2011-15 % split'!D21 -> 0 | E21: =$H21*'2011-15 % split'!E21 -> 0 | F21: =$H21*'2011-15 % split'!F21 -> 0 | G21: =$H21*'2011-15 % split'!G21 -> 0 | H21: ='2011-15 rates summary'!D24 -> 0 | I21: =$N21*'2011-15 % split'!I21 -> 0 | J21: =$N21*'2011-15 % split'!J21 -> 0 | K21: =$N21*'2011-15 % split'!K21 -> 0 | L21: =$N21*'2011-15 % split'!L21 -> 0 | M21: =$N21*'2011-15 % split'!M21 -> 0 | N21: ='2011-15 rates summary'!G24 -> 0 | O21: =$T21*'2011-15 % split'!O21 -> 0 | P21: =$T21*'2011-15 % split'!P21 -> 0 | Q21: =$T21*'2011-15 % split'!Q21 -> 0 | R21: =$T21*'2011-15 % split'!R21 -> 0 | S21: =$T21*'2011-15 % split'!S21 -> 0 | T21: ='2011-15 rates summary'!J24 -> 0 | U21: =$Z21*'2011-15 % split'!U21 -> 0 | V21: =$Z21*'2011-15 % split'!V21 -> 0 | W21: =$Z21*'2011-15 % split'!W21 -> 0 | X21: =$Z21*'2011-15 % split'!X21 -> 0 | Y21: =$Z21*'2011-15 % split'!Y21 -> 0 | Z21: ='2011-15 rates summary'!M24 -> 0 | AA21: =$AF21*'2011-15 % split'!AA21 -> 0 | AB21: =$AF21*'2011-15 % split'!AB21 -> 0 | AC21: =$AF21*'2011-15 % split'!AC21 -> 0 | AD21: =$AF21*'2011-15 % split'!AD21 -> 0 | AE21: =$AF21*'2011-15 % split'!AE21 -> 0 | AF21: ='2011-15 rates summary'!P24 -> 0
B22: Disconnection for non payment (BH only) | C22: =$H22*'2011-15 % split'!C22 -> 4.709062644 | D22: =$H22*'2011-15 % split'!D22 -> 0 | E22: =$H22*'2011-15 % split'!E22 -> 8.360937356 | F22: =$H22*'2011-15 % split'!F22 -> 0 | G22: =$H22*'2011-15 % split'!G22 -> 0 | H22: ='2011-15 rates summary'!D25 -> 13.07 | I22: =$N22*'2011-15 % split'!I22 -> 5.108774377 | J22: =$N22*'2011-15 % split'!J22 -> 0 | K22: =$N22*'2011-15 % split'!K22 -> 13.47122562 | L22: =$N22*'2011-15 % split'!L22 -> 0 | M22: =$N22*'2011-15 % split'!M22 -> 0 | N22: ='2011-15 rates summary'!G25 -> 18.58 | O22: =$T22*'2011-15 % split'!O22 -> 5.373262646 | P22: =$T22*'2011-15 % split'!P22 -> 0 | Q22: =$T22*'2011-15 % split'!Q22 -> 18.72673735 | R22: =$T22*'2011-15 % split'!R22 -> 0 | S22: =$T22*'2011-15 % split'!S22 -> 0 | T22: ='2011-15 rates summary'!J25 -> 24.1 | U22: =$Z22*'2011-15 % split'!U22 -> 5.587432825 | V22: =$Z22*'2011-15 % split'!V22 -> 0 | W22: =$Z22*'2011-15 % split'!W22 -> 19.10256718 | X22: =$Z22*'2011-15 % split'!X22 -> 0 | Y22: =$Z22*'2011-15 % split'!Y22 -> 0 | Z22: ='2011-15 rates summary'!M25 -> 24.69 | AA22: =$AF22*'2011-15 % split'!AA22 -> 5.792228298 | AB22: =$AF22*'2011-15 % split'!AB22 -> 0 | AC22: =$AF22*'2011-15 % split'!AC22 -> 19.5177717 | AD22: =$AF22*'2011-15 % split'!AD22 -> 0 | AE22: =$AF22*'2011-15 % split'!AE22 -> 0 | AF22: ='2011-15 rates summary'!P25 -> 25.31 | AG22: =AG20 -> 7.76854607 | AH22: =AH20 -> 0 | AI22: 18.88750135 | AJ22: 2.399044268 | AK22: 3.515666094 | AL22: 2.279953045 | AM22: 34.85071082 | AN22: =AN20 -> 7.899397394 | AO22: =AO20 -> 0 | AP22: 19.29433739 | AQ22: 2.447436131 | AR22: 3.586581681 | AS22: 2.325942682 | AT22: 35.55369528 | AU22: =AU20 -> 8.032452743 | AV22: =AV20 -> 0 | AW22: 19.62907346 | AX22: 2.489537358 | AY22: 3.648278691 | AZ22: 2.365953957 | BA22: 36.16529621 | BB22: =BB20 -> 8.167749241 | BC22: =BC20 -> 0 | BD22: 19.96579051 | BE22: 2.532018577 | BF22: 3.710532557 | BG22: 2.406326362 | BH22: 36.78241724 | BI22: =BI20 -> 8.305324637 | BJ22: =BJ20 -> 0 | BK22: 20.31412155 | BL22: 2.575750157 | BM22: 3.774618758 | BN22: 2.447887057 | BO22: 37.41770216 | BP22: =BP20 -> 0
B23: Reconnections (incl Customer Transfer) BH | C23: =$H23*'2011-15 % split'!C23 -> 4.71074762 | D23: =$H23*'2011-15 % split'!D23 -> 0 | E23: =$H23*'2011-15 % split'!E23 -> 8.18925238 | F23: =$H23*'2011-15 % split'!F23 -> 0 | G23: =$H23*'2011-15 % split'!G23 -> 0 | H23: ='2011-15 rates summary'!D20 -> 12.9 | I23: =$N23*'2011-15 % split'!I23 -> 5.120316053 | J23: =$N23*'2011-15 % split'!J23 -> 0 | K23: =$N23*'2011-15 % split'!K23 -> 13.21968395 | L23: =$N23*'2011-15 % split'!L23 -> 0 | M23: =$N23*'2011-15 % split'!M23 -> 0 | N23: ='2011-15 rates summary'!G20 -> 18.34 | O23: =$T23*'2011-15 % split'!O23 -> 5.39164249 | P23: =$T23*'2011-15 % split'!P23 -> 0 | Q23: =$T23*'2011-15 % split'!Q23 -> 18.39835751 | R23: =$T23*'2011-15 % split'!R23 -> 0 | S23: =$T23*'2011-15 % split'!S23 -> 0 | T23: ='2011-15 rates summary'!J20 -> 23.79 | U23: =$Z23*'2011-15 % split'!U23 -> 5.605592452 | V23: =$Z23*'2011-15 % split'!V23 -> 0 | W23: =$Z23*'2011-15 % split'!W23 -> 18.76440755 | X23: =$Z23*'2011-15 % split'!X23 -> 0 | Y23: =$Z23*'2011-15 % split'!Y23 -> 0 | Z23: ='2011-15 rates summary'!M20 -> 24.37 | AA23: =$AF23*'2011-15 % split'!AA23 -> 5.810282346 | AB23: =$AF23*'2011-15 % split'!AB23 -> 0 | AC23: =$AF23*'2011-15 % split'!AC23 -> 19.16971765 | AD23: =$AF23*'2011-15 % split'!AD23 -> 0 | AE23: =$AF23*'2011-15 % split'!AE23 -> 0 | AF23: ='2011-15 rates summary'!P20 -> 24.98 | AG23: ='CP Reconn BH'!O$38 -> 7.76854607 | AH23: ='CP Reconn BH'!O$39 -> 0 | AI23: ='CP Reconn BH'!O$40 -> 18.49304493 | AJ23: ='CP Reconn BH'!O$42 -> 2.36354319 | AK23: ='CP Reconn BH'!O$41 -> 3.463641237 | AL23: ='CP Reconn BH'!O$43 -> 2.24621428 | AM23: 34.33498971 | AN23: ='CP Reconn BH'!P$38 -> 7.899397394 | AO23: ='CP Reconn BH'!P$39 -> 0 | AP23: ='CP Reconn BH'!P$40 -> 18.8913844 | AQ23: ='CP Reconn BH'!P$42 -> 2.411170361 | AR23: ='CP Reconn BH'!P$41 -> 3.533436211 | AS23: ='CP Reconn BH'!P$43 -> 2.291477185 | AT23: 35.02686555 | AU23: ='CP Reconn BH'!Q$38 -> 8.032452743 | AV23: ='CP Reconn BH'!Q$39 -> 0 | AW23: ='CP Reconn BH'!Q$40 -> 19.21912966 | AX23: ='CP Reconn BH'!Q$42 -> 2.452642417 | AY23: ='CP Reconn BH'!Q$41 -> 3.594211204 | AZ23: ='CP Reconn BH'!Q$43 -> 2.330890522 | BA23: 35.62932655 | BB23: ='CP Reconn BH'!R$38 -> 8.167749241 | BC23: ='CP Reconn BH'!R$39 -> 0 | BD23: ='CP Reconn BH'!R$40 -> 19.54881454 | BE23: ='CP Reconn BH'!R$42 -> 2.49449074 | BF23: ='CP Reconn BH'!R$41 -> 3.655537597 | BG23: ='CP Reconn BH'!R$43 -> 2.370661448 | BH23: 36.23725356 | BI23: ='CP Reconn BH'!S$38 -> 8.305324637 | BJ23: ='CP Reconn BH'!S$39 -> 0 | BK23: ='CP Reconn BH'!S$40 -> 19.88987085 | BL23: ='CP Reconn BH'!S$42 -> 2.537567594 | BM23: ='CP Reconn BH'!S$41 -> 3.718664333 | BN23: ='CP Reconn BH'!S$43 -> 2.411599919 | BO23: 36.86302734 | BP23: =SUM(AM23,AT23,BA23,BH23,BO23)-SUM('CP Reconn BH'!O45:S45) -> 0
B24: Reconnections (same day) BH | C24: =$H24*'2011-15 % split'!C24 -> 4.711481622 | D24: =$H24*'2011-15 % split'!D24 -> 0 | E24: =$H24*'2011-15 % split'!E24 -> 11.45851838 | F24: =$H24*'2011-15 % split'!F24 -> 0 | G24: =$H24*'2011-15 % split'!G24 -> 0 | H24: ='2011-15 rates summary'!D21 -> 16.17 | I24: =$N24*'2011-15 % split'!I24 -> 4.984884159 | J24: =$N24*'2011-15 % split'!J24 -> 0 | K24: =$N24*'2011-15 % split'!K24 -> 18.00511584 | L24: =$N24*'2011-15 % split'!L24 -> 0 | M24: =$N24*'2011-15 % split'!M24 -> 0 | N24: ='2011-15 rates summary'!G21 -> 22.99 | O24: =$T24*'2011-15 % split'!O24 -> 5.164608351 | P24: =$T24*'2011-15 % split'!P24 -> 0 | Q24: =$T24*'2011-15 % split'!Q24 -> 24.65539165 | R24: =$T24*'2011-15 % split'!R24 -> 0 | S24: =$T24*'2011-15 % split'!S24 -> 0 | T24: ='2011-15 rates summary'!J21 -> 29.82 | U24: =$Z24*'2011-15 % split'!U24 -> 5.375623459 | V24: =$Z24*'2011-15 % split'!V24 -> 0 | W24: =$Z24*'2011-15 % split'!W24 -> 25.17437654 | X24: =$Z24*'2011-15 % split'!X24 -> 0 | Y24: =$Z24*'2011-15 % split'!Y24 -> 0 | Z24: ='2011-15 rates summary'!M21 -> 30.55 | AA24: =$AF24*'2011-15 % split'!AA24 -> 5.577247906 | AB24: =$AF24*'2011-15 % split'!AB24 -> 0 | AC24: =$AF24*'2011-15 % split'!AC24 -> 25.74275209 | AD24: =$AF24*'2011-15 % split'!AD24 -> 0 | AE24: =$AF24*'2011-15 % split'!AE24 -> 0 | AF24: ='2011-15 rates summary'!P21 -> 31.32 | AG24: ='CP Reconn Sday BH'!O35 -> 7.76854607 | AH24: ='CP Reconn Sday BH'!O36 -> 0 | AI24: ='CP Reconn Sday BH'!O37 -> 25.87170025 | AJ24: ='CP Reconn Sday BH'!O39 -> 3.027622169 | AK24: ='CP Reconn Sday BH'!O38 -> 4.436812087 | AL24: ='CP Reconn Sday BH'!O40 -> 2.87732764 | AM24: 43.98200821 | AN24: ='CP Reconn Sday BH'!P35 -> 7.899397394 | AO24: ='CP Reconn Sday BH'!P36 -> 0 | AP24: ='CP Reconn Sday BH'!P37 -> 26.42897566 | AQ24: ='CP Reconn Sday BH'!P39 -> 3.089553575 | AR24: ='CP Reconn Sday BH'!P38 -> 4.527569123 | AS24: ='CP Reconn Sday BH'!P40 -> 2.936184703 | AT24: 44.88168046 | AU24: ='CP Reconn Sday BH'!Q35 -> 8.032452743 | AV24: ='CP Reconn Sday BH'!Q36 -> 0 | AW24: ='CP Reconn Sday BH'!Q37 -> 26.88749006 | AX24: ='CP Reconn Sday BH'!Q39 -> 3.142794852 | AY24: ='CP Reconn Sday BH'!Q38 -> 4.605591256 | AZ24: ='CP Reconn Sday BH'!Q40 -> 2.986783023 | BA24: 45.65511193 | BB24: ='CP Reconn Sday BH'!R35 -> 8.167749241 | BC24: ='CP Reconn Sday BH'!R36 -> 0 | BD24: ='CP Reconn Sday BH'!R37 -> 27.34871796 | BE24: ='CP Reconn Sday BH'!R39 -> 3.196482048 | BF24: ='CP Reconn Sday BH'!R38 -> 4.684266859 | BG24: ='CP Reconn Sday BH'!R40 -> 3.037805127 | BH24: 46.43502123 | BI24: ='CP Reconn Sday BH'!S35 -> 8.305324637 | BJ24: ='CP Reconn Sday BH'!S36 -> 0 | BK24: ='CP Reconn Sday BH'!S37 -> 27.82585446 | BL24: ='CP Reconn Sday BH'!S39 -> 3.251806119 | BM24: ='CP Reconn Sday BH'!S38 -> 4.765341211 | BN24: ='CP Reconn Sday BH'!S40 -> 3.09038285 | BO24: 47.23870927 | BP24: =SUM(AM24,AT24,BA24,BH24,BO24)-SUM('CP Reconn Sday BH'!O42:S42) -> 0
B25: Reconnections (incl Customer Transfer) AH | C25: =$H25*'2011-15 % split'!C25 -> 4.712052787 | D25: =$H25*'2011-15 % split'!D25 -> 0 | E25: =$H25*'2011-15 % split'!E25 -> 50.34794721 | F25: =$H25*'2011-15 % split'!F25 -> 0 | G25: =$H25*'2011-15 % split'!G25 -> 0 | H25: ='2011-15 rates summary'!D22 -> 55.06 | I25: =$N25*'2011-15 % split'!I25 -> 4.641731339 | J25: =$N25*'2011-15 % split'!J25 -> 0 | K25: =$N25*'2011-15 % split'!K25 -> 73.65826866 | L25: =$N25*'2011-15 % split'!L25 -> 0 | M25: =$N25*'2011-15 % split'!M25 -> 0 | N25: ='2011-15 rates summary'!G22 -> 78.3 | O25: =$T25*'2011-15 % split'!O25 -> 4.622797877 | P25: =$T25*'2011-15 % split'!P25 -> 0 | Q25: =$T25*'2011-15 % split'!Q25 -> 96.95720212 | R25: =$T25*'2011-15 % split'!R25 -> 0 | S25: =$T25*'2011-15 % split'!S25 -> 0 | T25: ='2011-15 rates summary'!J22 -> 101.58 | U25: =$Z25*'2011-15 % split'!U25 -> 4.823737016 | V25: =$Z25*'2011-15 % split'!V25 -> 0 | W25: =$Z25*'2011-15 % split'!W25 -> 99.24626298 | X25: =$Z25*'2011-15 % split'!X25 -> 0 | Y25: =$Z25*'2011-15 % split'!Y25 -> 0 | Z25: ='2011-15 rates summary'!M22 -> 104.07 | AA25: =$AF25*'2011-15 % split'!AA25 -> 5.0144528 | AB25: =$AF25*'2011-15 % split'!AB25 -> 0 | AC25: =$AF25*'2011-15 % split'!AC25 -> 101.6855472 | AD25: =$AF25*'2011-15 % split'!AD25 -> 0 | AE25: =$AF25*'2011-15 % split'!AE25 -> 0 | AF25: ='2011-15 rates summary'!P22 -> 106.7 | AG25: ='CP Reconn AH'!O$36 -> 7.76854607 | AH25: ='CP Reconn AH'!O$37 -> 0 | AI25: ='CP Reconn AH'!O$38 -> 113.6647047 | AJ25: ='CP Reconn AH'!O$40 -> 10.92899257 | AK25: ='CP Reconn AH'!O$39 -> 16.01583144 | AL25: ='CP Reconn AH'!O$41 -> 10.38646523 | AM25: 158.76454 | AN25: ='CP Reconn AH'!P$36 -> 7.899397394 | AO25: ='CP Reconn AH'!P$37 -> 0 | AP25: ='CP Reconn AH'!P$38 -> 116.113038 | AQ25: ='CP Reconn AH'!P$40 -> 11.16111918 | AR25: ='CP Reconn AH'!P$39 -> 16.3560001 | AS25: ='CP Reconn AH'!P$41 -> 10.60706883 | AT25: 162.1366235 | AU25: ='CP Reconn AH'!Q$36 -> 8.032452743 | AV25: ='CP Reconn AH'!Q$37 -> 0 | AW25: ='CP Reconn AH'!Q$38 -> 118.1274747 | AX25: ='CP Reconn AH'!Q$40 -> 11.35439347 | AY25: ='CP Reconn AH'!Q$39 -> 16.63923283 | AZ25: ='CP Reconn AH'!Q$41 -> 10.79074876 | BA25: 164.9443025 | BB25: ='CP Reconn AH'!R$36 -> 8.167749241 | BC25: ='CP Reconn AH'!R$37 -> 0 | BD25: ='CP Reconn AH'!R$38 -> 120.1538329 | BE25: ='CP Reconn AH'!R$40 -> 11.5489424 | BF25: ='CP Reconn AH'!R$39 -> 16.92433347 | BG25: ='CP Reconn AH'!R$41 -> 10.97564006 | BH25: 167.7704981 | BI25: ='CP Reconn AH'!S$36 -> 8.305324637 | BJ25: ='CP Reconn AH'!S$37 -> 0 | BK25: ='CP Reconn AH'!S$38 -> 122.250084 | BL25: ='CP Reconn AH'!S$40 -> 11.74998678 | BM25: ='CP Reconn AH'!S$39 -> 17.21895285 | BN25: ='CP Reconn AH'!S$41 -> 11.16670438 | BO25: 170.6910527 | BP25: =SUM(AM25,AT25,BA25,BH25,BO25)-SUM('CP Reconn AH'!O43:S43) -> 0
B26: Special reading BH | C26: =$H26*'2011-15 % split'!C26 -> 1.810404485 | D26: =$H26*'2011-15 % split'!D26 -> 0 | E26: =$H26*'2011-15 % split'!E26 -> 8.189595515 | F26: =$H26*'2011-15 % split'!F26 -> 0 | G26: =$H26*'2011-15 % split'!G26 -> 0 | H26: ='2011-15 rates summary'!D26 -> 10 | I26: =$N26*'2011-15 % split'!I26 -> 1.842384483 | J26: =$N26*'2011-15 % split'!J26 -> 0 | K26: =$N26*'2011-15 % split'!K26 -> 12.37761552 | L26: =$N26*'2011-15 % split'!L26 -> 0 | M26: =$N26*'2011-15 % split'!M26 -> 0 | N26: ='2011-15 rates summary'!G26 -> 14.22 | O26: =$T26*'2011-15 % split'!O26 -> 1.866483987 | P26: =$T26*'2011-15 % split'!P26 -> 0 | Q26: =$T26*'2011-15 % split'!Q26 -> 16.57351601 | R26: =$T26*'2011-15 % split'!R26 -> 0 | S26: =$T26*'2011-15 % split'!S26 -> 0 | T26: ='2011-15 rates summary'!J26 -> 18.44 | U26: =$Z26*'2011-15 % split'!U26 -> 1.945306199 | V26: =$Z26*'2011-15 % split'!V26 -> 0 | W26: =$Z26*'2011-15 % split'!W26 -> 16.9446938 | X26: =$Z26*'2011-15 % split'!X26 -> 0 | Y26: =$Z26*'2011-15 % split'!Y26 -> 0 | Z26: ='2011-15 rates summary'!M26 -> 18.89 | AA26: =$AF26*'2011-15 % split'!AA26 -> 2.019778496 | AB26: =$AF26*'2011-15 % split'!AB26 -> 0 | AC26: =$AF26*'2011-15 % split'!AC26 -> 17.3402215 | AD26: =$AF26*'2011-15 % split'!AD26 -> 0 | AE26: =$AF26*'2011-15 % split'!AE26 -> 0 | AF26: ='2011-15 rates summary'!P26 -> 19.36 | AG26: ='CP Sp Read BH'!O$39 -> 2.985432994 | AH26: ='CP Sp Read BH'!O$40 -> 0 | AI26: ='CP Sp Read BH'!O$41 -> 18.49304493 | AJ26: ='CP Sp Read BH'!O$43 -> 1.933063013 | AK26: ='CP Sp Read BH'!O$42 -> 2.832796454 | AL26: ='CP Sp Read BH'!O$44 -> 1.837103617 | AM26: 28.08144101 | AN26: ='CP Sp Read BH'!P$39 -> 3.035718833 | AO26: ='CP Sp Read BH'!P$40 -> 0 | AP26: ='CP Sp Read BH'!P$41 -> 18.8913844 | AQ26: ='CP Sp Read BH'!P$43 -> 1.973439291 | AR26: ='CP Sp Read BH'!P$42 -> 2.891965645 | AS26: ='CP Sp Read BH'!P$44 -> 1.875475572 | AT26: 28.66798374 | AU26: ='CP Sp Read BH'!Q$39 -> 3.086851674 | AV26: ='CP Sp Read BH'!Q$40 -> 0 | AW26: ='CP Sp Read BH'!Q$41 -> 19.21912966 | AX26: ='CP Sp Read BH'!Q$43 -> 2.00753832 | AY26: ='CP Sp Read BH'!Q$42 -> 2.941935879 | AZ26: ='CP Sp Read BH'!Q$44 -> 1.907881888 | BA26: 29.16333742 | BB26: ='CP Sp Read BH'!R$39 -> 3.138845783 | BC26: ='CP Sp Read BH'!R$40 -> 0 | BD26: ='CP Sp Read BH'!R$41 -> 19.54881454 | BE26: ='CP Sp Read BH'!R$43 -> 2.041889429 | BF26: ='CP Sp Read BH'!R$42 -> 2.99227552 | BG26: ='CP Sp Read BH'!R$44 -> 1.940527769 | BH26: 29.66235304 | BI26: ='CP Sp Read BH'!S$39 -> 3.191715666 | BJ26: ='CP Sp Read BH'!S$40 -> 0 | BK26: ='CP Sp Read BH'!S$41 -> 19.88987085 | BL26: ='CP Sp Read BH'!S$43 -> 2.077342787 | BM26: ='CP Sp Read BH'!S$42 -> 3.044230446 | BN26: ='CP Sp Read BH'!S$44 -> 1.974221183 | BO26: 30.17738094 | BP26: =SUM(AM26,AT26,BA26,BH26,BO26)-SUM('CP Sp Read BH'!O46:S46) -> 0
B27: Special reading AH - no service | C27: =$H27*'2011-15 % split'!C27 -> 0 | D27: =$H27*'2011-15 % split'!D27 -> 0 | E27: =$H27*'2011-15 % split'!E27 -> 0 | F27: =$H27*'2011-15 % split'!F27 -> 0 | G27: =$H27*'2011-15 % split'!G27 -> 0 | H27: ='2011-15 rates summary'!D27 -> 0 | I27: =$N27*'2011-15 % split'!I27 -> 0 | J27: =$N27*'2011-15 % split'!J27 -> 0 | K27: =$N27*'2011-15 % split'!K27 -> 0 | L27: =$N27*'2011-15 % split'!L27 -> 0 | M27: =$N27*'2011-15 % split'!M27 -> 0 | N27: ='2011-15 rates summary'!G27 -> 0 | O27: =$T27*'2011-15 % split'!O27 -> 0 | P27: =$T27*'2011-15 % split'!P27 -> 0 | Q27: =$T27*'2011-15 % split'!Q27 -> 0 | R27: =$T27*'2011-15 % split'!R27 -> 0 | S27: =$T27*'2011-15 % split'!S27 -> 0 | T27: ='2011-15 rates summary'!J27 -> 0 | U27: =$Z27*'2011-15 % split'!U27 -> 0 | V27: =$Z27*'2011-15 % split'!V27 -> 0 | W27: =$Z27*'2011-15 % split'!W27 -> 0 | X27: =$Z27*'2011-15 % split'!X27 -> 0 | Y27: =$Z27*'2011-15 % split'!Y27 -> 0 | Z27: ='2011-15 rates summary'!M27 -> 0 | AA27: =$AF27*'2011-15 % split'!AA27 -> 0 | AB27: =$AF27*'2011-15 % split'!AB27 -> 0 | AC27: =$AF27*'2011-15 % split'!AC27 -> 0 | AD27: =$AF27*'2011-15 % split'!AD27 -> 0 | AE27: =$AF27*'2011-15 % split'!AE27 -> 0 | AF27: ='2011-15 rates summary'!P27 -> 0
B28: Manual meter reading | C28: =$H28*'2011-15 % split'!C28 -> 0 | D28: =$H28*'2011-15 % split'!D28 -> 0 | E28: =$H28*'2011-15 % split'!E28 -> 0 | F28: =$H28*'2011-15 % split'!F28 -> 0 | G28: =$H28*'2011-15 % split'!G28 -> 0 | H28: ='2011-15 rates summary'!D28 -> 0 | I28: =$N28*'2011-15 % split'!I28 -> 0 | J28: =$N28*'2011-15 % split'!J28 -> 0 | K28: =$N28*'2011-15 % split'!K28 -> 0 | L28: =$N28*'2011-15 % split'!L28 -> 0 | M28: =$N28*'2011-15 % split'!M28 -> 0 | N28: ='2011-15 rates summary'!G28 -> 0 | O28: =$T28*'2011-15 % split'!O28 -> 0 | P28: =$T28*'2011-15 % split'!P28 -> 0 | Q28: =$T28*'2011-15 % split'!Q28 -> 0 | R28: =$T28*'2011-15 % split'!R28 -> 0 | S28: =$T28*'2011-15 % split'!S28 -> 0 | T28: ='2011-15 rates summary'!J28 -> 0 | U28: =$Z28*'2011-15 % split'!U28 -> 0 | V28: =$Z28*'2011-15 % split'!V28 -> 0 | W28: =$Z28*'2011-15 % split'!W28 -> 0 | X28: =$Z28*'2011-15 % split'!X28 -> 0 | Y28: =$Z28*'2011-15 % split'!Y28 -> 0 | Z28: ='2011-15 rates summary'!M28 -> 0 | AA28: =$AF28*'2011-15 % split'!AA28 -> 2.019778496 | AB28: =$AF28*'2011-15 % split'!AB28 -> 0 | AC28: =$AF28*'2011-15 % split'!AC28 -> 17.3402215 | AD28: =$AF28*'2011-15 % split'!AD28 -> 0 | AE28: =$AF28*'2011-15 % split'!AE28 -> 0 | AF28: ='2011-15 rates summary'!P28 -> 19.36 | AG28: ='CP Man Read BH '!O$39 -> 2.985432994 | AH28: ='CP Man Read BH '!O$40 -> 0 | AI28: ='CP Man Read BH '!O$41 -> 18.49304493 | AJ28: ='CP Man Read BH '!O$43 -> 1.933063013 | AK28: ='CP Man Read BH '!O$42 -> 2.832796454 | AL28: ='CP Man Read BH '!O$44 -> 1.837103617 | AM28: =SUM(AG28:AL28) -> 28.08144101 | AN28: ='CP Man Read BH '!P$39 -> 3.035718833 | AO28: ='CP Man Read BH '!P$40 -> 0 | AP28: ='CP Man Read BH '!P$41 -> 18.8913844 | AQ28: ='CP Man Read BH '!P$43 -> 1.973439291 | AR28: ='CP Man Read BH '!P$42 -> 2.891965645 | AS28: ='CP Man Read BH '!P$44 -> 1.875475572 | AT28: =SUM(AN28:AS28) -> 28.66798374 | AU28: ='CP Man Read BH '!Q$39 -> 3.086851674 | AV28: ='CP Man Read BH '!Q$40 -> 0 | AW28: ='CP Man Read BH '!Q$41 -> 19.21912966 | AX28: ='CP Man Read BH '!Q$43 -> 2.00753832 | AY28: ='CP Man Read BH '!Q$42 -> 2.941935879 | AZ28: ='CP Man Read BH '!Q$44 -> 1.907881888 | BA28: =SUM(AU28:AZ28) -> 29.16333742 | BB28: ='CP Man Read BH '!R$39 -> 3.138845783 | BC28: ='CP Man Read BH '!R$40 -> 0 | BD28: ='CP Man Read BH '!R$41 -> 19.54881454 | BE28: ='CP Man Read BH '!R$43 -> 2.041889429 | BF28: ='CP Man Read BH '!R$42 -> 2.99227552 | BG28: ='CP Man Read BH '!R$44 -> 1.940527769 | BH28: =SUM(BB28:BG28) -> 29.66235304 | BI28: ='CP Man Read BH '!S$39 -> 3.191715666 | BJ28: ='CP Man Read BH '!S$40 -> 0 | BK28: ='CP Man Read BH '!S$41 -> 19.88987085 | BL28: ='CP Man Read BH '!S$43 -> 2.077342787 | BM28: ='CP Man Read BH '!S$42 -> 3.044230446 | BN28: ='CP Man Read BH '!S$44 -> 1.974221183 | BO28: =SUM(BI28:BN28) -> 30.17738094 | BP28: =SUM(AM28,AT28,BA28,BH28,BO28)-SUM('CP Man Read BH '!O46:S46) -> 0
B29: Access to meter data | C29: =$H29*'2011-15 % split'!C29 -> 0 | D29: =$H29*'2011-15 % split'!D29 -> 0 | E29: =$H29*'2011-15 % split'!E29 -> 0 | F29: =$H29*'2011-15 % split'!F29 -> 0 | G29: =$H29*'2011-15 % split'!G29 -> 0 | H29: ='2011-15 rates summary'!D29 -> 0 | I29: =$N29*'2011-15 % split'!I29 -> 0 | J29: =$N29*'2011-15 % split'!J29 -> 0 | K29: =$N29*'2011-15 % split'!K29 -> 0 | L29: =$N29*'2011-15 % split'!L29 -> 0 | M29: =$N29*'2011-15 % split'!M29 -> 0 | N29: ='2011-15 rates summary'!G29 -> 0 | O29: =$T29*'2011-15 % split'!O29 -> 0 | P29: =$T29*'2011-15 % split'!P29 -> 0 | Q29: =$T29*'2011-15 % split'!Q29 -> 0 | R29: =$T29*'2011-15 % split'!R29 -> 0 | S29: =$T29*'2011-15 % split'!S29 -> 0 | T29: ='2011-15 rates summary'!J29 -> 0 | U29: =$Z29*'2011-15 % split'!U29 -> 0 | V29: =$Z29*'2011-15 % split'!V29 -> 0 | W29: =$Z29*'2011-15 % split'!W29 -> 0 | X29: =$Z29*'2011-15 % split'!X29 -> 0 | Y29: =$Z29*'2011-15 % split'!Y29 -> 0 | Z29: ='2011-15 rates summary'!M29 -> 0 | AA29: =$AF29*'2011-15 % split'!AA29 -> 0 | AB29: =$AF29*'2011-15 % split'!AB29 -> 0 | AC29: =$AF29*'2011-15 % split'!AC29 -> 0 | AD29: =$AF29*'2011-15 % split'!AD29 -> 0 | AE29: =$AF29*'2011-15 % split'!AE29 -> 0 | AF29: ='2011-15 rates summary'!P29 -> 0 | AG29: ='CP Access to Mtr Data'!O$37 -> 35.31157305 | AH29: ='CP Access to Mtr Data'!O$38 -> 0 | AI29: ='CP Access to Mtr Data'!O$39 -> 0 | AJ29: ='CP Access to Mtr Data'!O$41 -> 3.178041574 | AK29: ='CP Access to Mtr Data'!O$40 -> 4.657243369 | AL29: ='CP Access to Mtr Data'!O$42 -> 3.020280059 | AM29: 46.16713805 | AN29: ='CP Access to Mtr Data'!P$37 -> 35.90635179 | AO29: ='CP Access to Mtr Data'!P$38 -> 0 | AP29: ='CP Access to Mtr Data'!P$39 -> 0 | AQ29: ='CP Access to Mtr Data'!P$41 -> 3.231571661 | AR29: ='CP Access to Mtr Data'!P$40 -> 4.735688738 | AS29: ='CP Access to Mtr Data'!P$42 -> 3.071152853 | AT29: 46.94476504 | AU29: ='CP Access to Mtr Data'!Q$37 -> 36.51114883 | AV29: ='CP Access to Mtr Data'!Q$38 -> 0 | AW29: ='CP Access to Mtr Data'!Q$39 -> 0 | AX29: ='CP Access to Mtr Data'!Q$41 -> 3.286003395 | AY29: ='CP Access to Mtr Data'!Q$40 -> 4.81545542 | AZ29: ='CP Access to Mtr Data'!Q$42 -> 3.122882535 | BA29: 47.73549018 | BB29: ='CP Access to Mtr Data'!R$37 -> 37.12613291 | BC29: ='CP Access to Mtr Data'!R$38 -> 0 | BD29: ='CP Access to Mtr Data'!R$39 -> 0 | BE29: ='CP Access to Mtr Data'!R$41 -> 3.341351962 | BF29: ='CP Access to Mtr Data'!R$40 -> 4.89656567 | BG29: ='CP Access to Mtr Data'!R$42 -> 3.175483538 | BH29: 48.53953408 | BI29: ='CP Access to Mtr Data'!S$37 -> 37.75147562 | BJ29: ='CP Access to Mtr Data'!S$38 -> 0 | BK29: ='CP Access to Mtr Data'!S$39 -> 0 | BL29: ='CP Access to Mtr Data'!S$41 -> 3.397632806 | BM29: ='CP Access to Mtr Data'!S$40 -> 4.97904212 | BN29: ='CP Access to Mtr Data'!S$42 -> 3.228970538 | BO29: 49.35712109 | BP29: =SUM(AM29,AT29,BA29,BH29,BO29)-SUM('CP Access to Mtr Data'!O44:S44) -> 0
B31: Service Truck Visit BH | C31: =$H31*'2011-15 % split'!C31 -> 367.82 | D31: =$H31*'2011-15 % split'!D31 -> 0 | E31: =$H31*'2011-15 % split'!E31 -> 0 | F31: =$H31*'2011-15 % split'!F31 -> 0 | G31: =$H31*'2011-15 % split'!G31 -> 0 | H31: ='2011-15 rates summary'!D31 -> 367.82 | I31: =$N31*'2011-15 % split'!I31 -> 382.82 | J31: =$N31*'2011-15 % split'!J31 -> 0 | K31: =$N31*'2011-15 % split'!K31 -> 0 | L31: =$N31*'2011-15 % split'!L31 -> 0 | M31: =$N31*'2011-15 % split'!M31 -> 0 | N31: ='2011-15 rates summary'!G31 -> 382.82 | O31: =$T31*'2011-15 % split'!O31 -> 397.48 | P31: =$T31*'2011-15 % split'!P31 -> 0 | Q31: =$T31*'2011-15 % split'!Q31 -> 0 | R31: =$T31*'2011-15 % split'!R31 -> 0 | S31: =$T31*'2011-15 % split'!S31 -> 0 | T31: ='2011-15 rates summary'!J31 -> 397.48 | U31: =$Z31*'2011-15 % split'!U31 -> 419.51 | V31: =$Z31*'2011-15 % split'!V31 -> 0 | W31: =$Z31*'2011-15 % split'!W31 -> 0 | X31: =$Z31*'2011-15 % split'!X31 -> 0 | Y31: =$Z31*'2011-15 % split'!Y31 -> 0 | Z31: ='2011-15 rates summary'!M31 -> 419.51 | AA31: =$AF31*'2011-15 % split'!AA31 -> 436.95 | AB31: =$AF31*'2011-15 % split'!AB31 -> 0 | AC31: =$AF31*'2011-15 % split'!AC31 -> 0 | AD31: =$AF31*'2011-15 % split'!AD31 -> 0 | AE31: =$AF31*'2011-15 % split'!AE31 -> 0 | AF31: ='2011-15 rates summary'!P31 -> 436.95 | AG31: ='CP Serv Tk BH'!O$62 -> 407.1728524 | AH31: ='CP Serv Tk BH'!O$63 -> 0 | AI31: ='CP Serv Tk BH'!O$64 -> 0 | AJ31: ='CP Serv Tk BH'!O$66 -> 36.64555672 | AK31: ='CP Serv Tk BH'!O$65 -> 53.7020275 | AL31: ='CP Serv Tk BH'!O$67 -> 34.82643056 | AM31: =SUM(AG31:AL31) -> 532.3468672 | AN31: ='CP Serv Tk BH'!P$62 -> 414.0311636 | AO31: ='CP Serv Tk BH'!P$63 -> 0 | AP31: ='CP Serv Tk BH'!P$64 -> 0 | AQ31: ='CP Serv Tk BH'!P$66 -> 37.26280473 | AR31: ='CP Serv Tk BH'!P$65 -> 54.60657017 | AS31: ='CP Serv Tk BH'!P$67 -> 35.4130377 | AT31: =SUM(AN31:AS31) -> 541.3135762 | AU31: ='CP Serv Tk BH'!Q$62 -> 421.0049945 | AV31: ='CP Serv Tk BH'!Q$63 -> 0 | AW31: ='CP Serv Tk BH'!Q$64 -> 0 | AX31: ='CP Serv Tk BH'!Q$66 -> 37.8904495 | AY31: ='CP Serv Tk BH'!Q$65 -> 55.52634872 | AZ31: ='CP Serv Tk BH'!Q$67 -> 36.00952549 | BA31: =SUM(AU31:AZ31) -> 550.4313182 | BB31: ='CP Serv Tk BH'!R$62 -> 428.0962906 | BC31: ='CP Serv Tk BH'!R$63 -> 0 | BD31: ='CP Serv Tk BH'!R$64 -> 0 | BE31: ='CP Serv Tk BH'!R$66 -> 38.52866616 | BF31: ='CP Serv Tk BH'!R$65 -> 56.46161977 | BG31: ='CP Serv Tk BH'!R$67 -> 36.61606036 | BH31: =SUM(BB31:BG31) -> 559.7026369 | BI31: ='CP Serv Tk BH'!S$62 -> 435.3070307 | BJ31: ='CP Serv Tk BH'!S$63 -> 0 | BK31: ='CP Serv Tk BH'!S$64 -> 0 | BL31: ='CP Serv Tk BH'!S$66 -> 39.17763276 | BM31: ='CP Serv Tk BH'!S$65 -> 57.41264428 | BN31: ='CP Serv Tk BH'!S$67 -> 37.23281154 | BO31: =SUM(BI31:BN31) -> 569.1301193 | BP31: =SUM(AM31,AT31,BA31,BH31,BO31)-SUM('CP Serv Tk BH'!O69:S69) -> 0
B32: Service Truck Visit AH | C32: =$H32*'2011-15 % split'!C32 -> 404.37 | D32: =$H32*'2011-15 % split'!D32 -> 0 | E32: =$H32*'2011-15 % split'!E32 -> 0 | F32: =$H32*'2011-15 % split'!F32 -> 0 | G32: =$H32*'2011-15 % split'!G32 -> 0 | H32: ='2011-15 rates summary'!D32 -> 404.37 | I32: =$N32*'2011-15 % split'!I32 -> 420.86 | J32: =$N32*'2011-15 % split'!J32 -> 0 | K32: =$N32*'2011-15 % split'!K32 -> 0 | L32: =$N32*'2011-15 % split'!L32 -> 0 | M32: =$N32*'2011-15 % split'!M32 -> 0 | N32: ='2011-15 rates summary'!G32 -> 420.86 | O32: =$T32*'2011-15 % split'!O32 -> 436.97 | P32: =$T32*'2011-15 % split'!P32 -> 0 | Q32: =$T32*'2011-15 % split'!Q32 -> 0 | R32: =$T32*'2011-15 % split'!R32 -> 0 | S32: =$T32*'2011-15 % split'!S32 -> 0 | T32: ='2011-15 rates summary'!J32 -> 436.97 | U32: =$Z32*'2011-15 % split'!U32 -> 461.18 | V32: =$Z32*'2011-15 % split'!V32 -> 0 | W32: =$Z32*'2011-15 % split'!W32 -> 0 | X32: =$Z32*'2011-15 % split'!X32 -> 0 | Y32: =$Z32*'2011-15 % split'!Y32 -> 0 | Z32: ='2011-15 rates summary'!M32 -> 461.18 | AA32: =$AF32*'2011-15 % split'!AA32 -> 480.36 | AB32: =$AF32*'2011-15 % split'!AB32 -> 0 | AC32: =$AF32*'2011-15 % split'!AC32 -> 0 | AD32: =$AF32*'2011-15 % split'!AD32 -> 0 | AE32: =$AF32*'2011-15 % split'!AE32 -> 0 | AF32: ='2011-15 rates summary'!P32 -> 480.36 | AG32: ='CP Serv Tk AH'!O$62 -> 490.7401423 | AH32: ='CP Serv Tk AH'!O$63 -> 0 | AI32: ='CP Serv Tk AH'!O$64 -> 0 | AJ32: ='CP Serv Tk AH'!O$66 -> 44.16661281 | AK32: ='CP Serv Tk AH'!O$65 -> 64.72371737 | AL32: ='CP Serv Tk AH'!O$67 -> 41.97413308 | AM32: 641.6046056 | AN32: ='CP Serv Tk AH'!P$62 -> 499.0060388 | AO32: ='CP Serv Tk AH'!P$63 -> 0 | AP32: ='CP Serv Tk AH'!P$64 -> 0 | AQ32: ='CP Serv Tk AH'!P$66 -> 44.91054349 | AR32: ='CP Serv Tk AH'!P$65 -> 65.81390646 | AS32: ='CP Serv Tk AH'!P$67 -> 42.68113421 | AT32: 652.4116229 | AU32: ='CP Serv Tk AH'!Q$62 -> 507.4111638 | AV32: ='CP Serv Tk AH'!Q$63 -> 0 | AW32: ='CP Serv Tk AH'!Q$64 -> 0 | AX32: ='CP Serv Tk AH'!Q$66 -> 45.66700474 | AY32: ='CP Serv Tk AH'!Q$65 -> 66.92245839 | AZ32: ='CP Serv Tk AH'!Q$67 -> 43.40004389 | BA32: 663.4006708 | BB32: ='CP Serv Tk AH'!R$62 -> 515.9578625 | BC32: ='CP Serv Tk AH'!R$63 -> 0 | BD32: ='CP Serv Tk AH'!R$64 -> 0 | BE32: ='CP Serv Tk AH'!R$66 -> 46.43620762 | BF32: ='CP Serv Tk AH'!R$65 -> 68.04968249 | BG32: ='CP Serv Tk AH'!R$67 -> 44.13106268 | BH32: 674.5748153 | BI32: ='CP Serv Tk AH'!S$62 -> 524.6485195 | BJ32: ='CP Serv Tk AH'!S$63 -> 0 | BK32: ='CP Serv Tk AH'!S$64 -> 0 | BL32: ='CP Serv Tk AH'!S$66 -> 47.21836676 | BM32: ='CP Serv Tk AH'!S$65 -> 69.19589324 | BN32: ='CP Serv Tk AH'!S$67 -> 44.87439457 | BO32: 685.9371741 | BP32: =SUM(AM32,AT32,BA32,BH32,BO32)-SUM('CP Serv Tk AH'!O69:S69) -> 0
B33: Wasted Truck Visit BH | C33: =$H33*'2011-15 % split'!C33 -> 232.21 | D33: =$H33*'2011-15 % split'!D33 -> 0 | E33: =$H33*'2011-15 % split'!E33 -> 0 | F33: =$H33*'2011-15 % split'!F33 -> 0 | G33: =$H33*'2011-15 % split'!G33 -> 0 | H33: ='2011-15 rates summary'!D33 -> 232.21 | I33: =$N33*'2011-15 % split'!I33 -> 241.68 | J33: =$N33*'2011-15 % split'!J33 -> 0 | K33: =$N33*'2011-15 % split'!K33 -> 0 | L33: =$N33*'2011-15 % split'!L33 -> 0 | M33: =$N33*'2011-15 % split'!M33 -> 0 | N33: ='2011-15 rates summary'!G33 -> 241.68 | O33: =$T33*'2011-15 % split'!O33 -> 250.93 | P33: =$T33*'2011-15 % split'!P33 -> 0 | Q33: =$T33*'2011-15 % split'!Q33 -> 0 | R33: =$T33*'2011-15 % split'!R33 -> 0 | S33: =$T33*'2011-15 % split'!S33 -> 0 | T33: ='2011-15 rates summary'!J33 -> 250.93 | U33: =$Z33*'2011-15 % split'!U33 -> 264.83 | V33: =$Z33*'2011-15 % split'!V33 -> 0 | W33: =$Z33*'2011-15 % split'!W33 -> 0 | X33: =$Z33*'2011-15 % split'!X33 -> 0 | Y33: =$Z33*'2011-15 % split'!Y33 -> 0 | Z33: ='2011-15 rates summary'!M33 -> 264.83 | AA33: =$AF33*'2011-15 % split'!AA33 -> 275.84 | AB33: =$AF33*'2011-15 % split'!AB33 -> 0 | AC33: =$AF33*'2011-15 % split'!AC33 -> 0 | AD33: =$AF33*'2011-15 % split'!AD33 -> 0 | AE33: =$AF33*'2011-15 % split'!AE33 -> 0 | AF33: ='2011-15 rates summary'!P33 -> 275.84 | AG33: ='CP Wsd Tk BH'!O$46 -> 255.1561814 | AH33: ='CP Wsd Tk BH'!O$47 -> 0 | AI33: ='CP Wsd Tk BH'!O$48 -> 0 | AJ33: ='CP Wsd Tk BH'!O$50 -> 22.96405633 | AK33: ='CP Wsd Tk BH'!O$49 -> 33.65254877 | AL33: ='CP Wsd Tk BH'!O$51 -> 21.82409506 | AM33: 333.5968816 | AN33: ='CP Wsd Tk BH'!P$46 -> 259.4539643 | AO33: ='CP Wsd Tk BH'!P$47 -> 0 | AP33: ='CP Wsd Tk BH'!P$48 -> 0 | AQ33: ='CP Wsd Tk BH'!P$50 -> 23.35085679 | AR33: ='CP Wsd Tk BH'!P$49 -> 34.21938335 | AS33: ='CP Wsd Tk BH'!P$51 -> 22.19169431 | AT33: 339.2158987 | AU33: ='CP Wsd Tk BH'!Q$46 -> 263.8241379 | AV33: ='CP Wsd Tk BH'!Q$47 -> 0 | AW33: ='CP Wsd Tk BH'!Q$48 -> 0 | AX33: ='CP Wsd Tk BH'!Q$50 -> 23.74417241 | AY33: ='CP Wsd Tk BH'!Q$49 -> 34.79576554 | AZ33: ='CP Wsd Tk BH'!Q$51 -> 22.56548531 | BA33: 344.9295611 | BB33: ='CP Wsd Tk BH'!R$46 -> 268.2679215 | BC33: ='CP Wsd Tk BH'!R$47 -> 0 | BD33: ='CP Wsd Tk BH'!R$48 -> 0 | BE33: ='CP Wsd Tk BH'!R$50 -> 24.14411293 | BF33: ='CP Wsd Tk BH'!R$49 -> 35.38185616 | BG33: ='CP Wsd Tk BH'!R$51 -> 22.94557234 | BH33: 350.7394629 | BI33: ='CP Wsd Tk BH'!S$46 -> 272.786555 | BJ33: ='CP Wsd Tk BH'!S$47 -> 0 | BK33: ='CP Wsd Tk BH'!S$48 -> 0 | BL33: ='CP Wsd Tk BH'!S$50 -> 24.55078995 | BM33: ='CP Wsd Tk BH'!S$49 -> 35.97781874 | BN33: ='CP Wsd Tk BH'!S$51 -> 23.33206146 | BO33: 356.6472251 | BP33: =SUM(AM33,AT33,BA33,BH33,BO33)-SUM('CP Wsd Tk BH'!O53:S53) -> 0
B34: Wasted Truck Visit AH | C34: =$H34*'2011-15 % split'!C34 -> 255.86 | D34: =$H34*'2011-15 % split'!D34 -> 0 | E34: =$H34*'2011-15 % split'!E34 -> 0 | F34: =$H34*'2011-15 % split'!F34 -> 0 | G34: =$H34*'2011-15 % split'!G34 -> 0 | H34: ='2011-15 rates summary'!D34 -> 255.86 | I34: =$N34*'2011-15 % split'!I34 -> 266.29 | J34: =$N34*'2011-15 % split'!J34 -> 0 | K34: =$N34*'2011-15 % split'!K34 -> 0 | L34: =$N34*'2011-15 % split'!L34 -> 0 | M34: =$N34*'2011-15 % split'!M34 -> 0 | N34: ='2011-15 rates summary'!G34 -> 266.29 | O34: =$T34*'2011-15 % split'!O34 -> 276.48 | P34: =$T34*'2011-15 % split'!P34 -> 0 | Q34: =$T34*'2011-15 % split'!Q34 -> 0 | R34: =$T34*'2011-15 % split'!R34 -> 0 | S34: =$T34*'2011-15 % split'!S34 -> 0 | T34: ='2011-15 rates summary'!J34 -> 276.48 | U34: =$Z34*'2011-15 % split'!U34 -> 291.8 | V34: =$Z34*'2011-15 % split'!V34 -> 0 | W34: =$Z34*'2011-15 % split'!W34 -> 0 | X34: =$Z34*'2011-15 % split'!X34 -> 0 | Y34: =$Z34*'2011-15 % split'!Y34 -> 0 | Z34: ='2011-15 rates summary'!M34 -> 291.8 | AA34: =$AF34*'2011-15 % split'!AA34 -> 303.93 | AB34: =$AF34*'2011-15 % split'!AB34 -> 0 | AC34: =$AF34*'2011-15 % split'!AC34 -> 0 | AD34: =$AF34*'2011-15 % split'!AD34 -> 0 | AE34: =$AF34*'2011-15 % split'!AE34 -> 0 | AF34: ='2011-15 rates summary'!P34 -> 303.93 | AG34: ='CP Wsd Tk AH'!O$46 -> 294.7234213 | AH34: ='CP Wsd Tk AH'!O$47 -> 0 | AI34: ='CP Wsd Tk AH'!O$48 -> 0 | AJ34: ='CP Wsd Tk AH'!O$50 -> 26.52510792 | AK34: ='CP Wsd Tk AH'!O$49 -> 38.87107204 | AL34: ='CP Wsd Tk AH'!O$51 -> 25.20837209 | AM34: 385.3279734 | AN34: ='CP Wsd Tk AH'!P$46 -> 299.6876643 | AO34: ='CP Wsd Tk AH'!P$47 -> 0 | AP34: ='CP Wsd Tk AH'!P$48 -> 0 | AQ34: ='CP Wsd Tk AH'!P$50 -> 26.97188978 | AR34: ='CP Wsd Tk AH'!P$49 -> 39.52580604 | AS34: ='CP Wsd Tk AH'!P$51 -> 25.63297521 | AT34: 391.8183353 | AU34: ='CP Wsd Tk AH'!Q$46 -> 304.7355236 | AV34: ='CP Wsd Tk AH'!Q$47 -> 0 | AW34: ='CP Wsd Tk AH'!Q$48 -> 0 | AX34: ='CP Wsd Tk AH'!Q$50 -> 27.42619712 | AY34: ='CP Wsd Tk AH'!Q$49 -> 40.1915682 | AZ34: ='CP Wsd Tk AH'!Q$51 -> 26.06473022 | BA34: 398.4180191 | BB34: ='CP Wsd Tk AH'!R$46 -> 309.8684077 | BC34: ='CP Wsd Tk AH'!R$47 -> 0 | BD34: ='CP Wsd Tk AH'!R$48 -> 0 | BE34: ='CP Wsd Tk AH'!R$50 -> 27.88815669 | BF34: ='CP Wsd Tk AH'!R$49 -> 40.86854429 | BG34: ='CP Wsd Tk AH'!R$51 -> 26.50375761 | BH34: 405.1288663 | BI34: ='CP Wsd Tk AH'!S$46 -> 315.0877487 | BJ34: ='CP Wsd Tk AH'!S$47 -> 0 | BK34: ='CP Wsd Tk AH'!S$48 -> 0 | BL34: ='CP Wsd Tk AH'!S$50 -> 28.35789739 | BM34: ='CP Wsd Tk AH'!S$49 -> 41.55692318 | BN34: ='CP Wsd Tk AH'!S$51 -> 26.95017985 | BO34: 411.9527492 | BP34: =SUM(AM34,AT34,BA34,BH34,BO34)-SUM('CP Wsd Tk AH'!O53:S53) -> 0
B36: Reserve Feeder - Subtransmission - $ per KVA | C36: =$H36*'2011-15 % split'!C36 -> 1.47 | D36: =$H36*'2011-15 % split'!D36 -> 0 | E36: =$H36*'2011-15 % split'!E36 -> 0 | F36: =$H36*'2011-15 % split'!F36 -> 0 | G36: =$H36*'2011-15 % split'!G36 -> 0 | H36: ='2011-15 rates summary'!D36 -> 1.47 | I36: =$N36*'2011-15 % split'!I36 -> 1.52 | J36: =$N36*'2011-15 % split'!J36 -> 0 | K36: =$N36*'2011-15 % split'!K36 -> 0 | L36: =$N36*'2011-15 % split'!L36 -> 0 | M36: =$N36*'2011-15 % split'!M36 -> 0 | N36: ='2011-15 rates summary'!G36 -> 1.52 | O36: =$T36*'2011-15 % split'!O36 -> 1.57 | P36: =$T36*'2011-15 % split'!P36 -> 0 | Q36: =$T36*'2011-15 % split'!Q36 -> 0 | R36: =$T36*'2011-15 % split'!R36 -> 0 | S36: =$T36*'2011-15 % split'!S36 -> 0 | T36: ='2011-15 rates summary'!J36 -> 1.57 | U36: =$Z36*'2011-15 % split'!U36 -> 1.65 | V36: =$Z36*'2011-15 % split'!V36 -> 0 | W36: =$Z36*'2011-15 % split'!W36 -> 0 | X36: =$Z36*'2011-15 % split'!X36 -> 0 | Y36: =$Z36*'2011-15 % split'!Y36 -> 0 | Z36: ='2011-15 rates summary'!M36 -> 1.65 | AA36: =$AF36*'2011-15 % split'!AA36 -> 1.71 | AB36: =$AF36*'2011-15 % split'!AB36 -> 0 | AC36: =$AF36*'2011-15 % split'!AC36 -> 0 | AD36: =$AF36*'2011-15 % split'!AD36 -> 0 | AE36: =$AF36*'2011-15 % split'!AE36 -> 0 | AF36: ='2011-15 rates summary'!P36 -> 1.71 | AG36: ='CP Res Feeder'!D36 -> 0 | AM36: =SUM(AG36:AL36) -> 0 | AN36: ='CP Res Feeder'!D36 -> 0 | AT36: =SUM(AN36:AS36) -> 0 | AU36: ='CP Res Feeder'!E36 -> 0 | BA36: =SUM(AU36:AZ36) -> 0 | BB36: ='CP Res Feeder'!F36 -> 0 | BH36: =SUM(BB36:BG36) -> 0 | BI36: ='CP Res Feeder'!G36 -> 0 | BO36: =SUM(BI36:BN36) -> 0
B37: Reserve Feeder - High Voltage - $ per KVA | C37: =$H37*'2011-15 % split'!C37 -> 3.03 | D37: =$H37*'2011-15 % split'!D37 -> 0 | E37: =$H37*'2011-15 % split'!E37 -> 0 | F37: =$H37*'2011-15 % split'!F37 -> 0 | G37: =$H37*'2011-15 % split'!G37 -> 0 | H37: ='2011-15 rates summary'!D37 -> 3.03 | I37: =$N37*'2011-15 % split'!I37 -> 3.15 | J37: =$N37*'2011-15 % split'!J37 -> 0 | K37: =$N37*'2011-15 % split'!K37 -> 0 | L37: =$N37*'2011-15 % split'!L37 -> 0 | M37: =$N37*'2011-15 % split'!M37 -> 0 | N37: ='2011-15 rates summary'!G37 -> 3.15 | O37: =$T37*'2011-15 % split'!O37 -> 3.27 | P37: =$T37*'2011-15 % split'!P37 -> 0 | Q37: =$T37*'2011-15 % split'!Q37 -> 0 | R37: =$T37*'2011-15 % split'!R37 -> 0 | S37: =$T37*'2011-15 % split'!S37 -> 0 | T37: ='2011-15 rates summary'!J37 -> 3.27 | U37: =$Z37*'2011-15 % split'!U37 -> 3.45 | V37: =$Z37*'2011-15 % split'!V37 -> 0 | W37: =$Z37*'2011-15 % split'!W37 -> 0 | X37: =$Z37*'2011-15 % split'!X37 -> 0 | Y37: =$Z37*'2011-15 % split'!Y37 -> 0 | Z37: ='2011-15 rates summary'!M37 -> 3.45 | AA37: =$AF37*'2011-15 % split'!AA37 -> 3.59 | AB37: =$AF37*'2011-15 % split'!AB37 -> 0 | AC37: =$AF37*'2011-15 % split'!AC37 -> 0 | AD37: =$AF37*'2011-15 % split'!AD37 -> 0 | AE37: =$AF37*'2011-15 % split'!AE37 -> 0 | AF37: ='2011-15 rates summary'!P37 -> 3.59 | AG37: ='CP Res Feeder'!C37 -> 5.622155354 | AM37: 5.622155354 | AN37: ='CP Res Feeder'!D37 -> 5.716853444 | AT37: 5.716853444 | AU37: ='CP Res Feeder'!E37 -> 5.813146603 | BA37: 5.813146603 | BB37: ='CP Res Feeder'!F37 -> 5.911061698 | BH37: 5.911061698 | BI37: ='CP Res Feeder'!G37 -> 6.010626049 | BO37: 6.010626049
B38: Reserve Feeder - Low Voltage - $ per KVA | C38: =$H38*'2011-15 % split'!C38 -> 7.49 | D38: =$H38*'2011-15 % split'!D38 -> 0 | E38: =$H38*'2011-15 % split'!E38 -> 0 | F38: =$H38*'2011-15 % split'!F38 -> 0 | G38: =$H38*'2011-15 % split'!G38 -> 0 | H38: ='2011-15 rates summary'!D38 -> 7.49 | I38: =$N38*'2011-15 % split'!I38 -> 7.79 | J38: =$N38*'2011-15 % split'!J38 -> 0 | K38: =$N38*'2011-15 % split'!K38 -> 0 | L38: =$N38*'2011-15 % split'!L38 -> 0 | M38: =$N38*'2011-15 % split'!M38 -> 0 | N38: ='2011-15 rates summary'!G38 -> 7.79 | O38: =$T38*'2011-15 % split'!O38 -> 8.08 | P38: =$T38*'2011-15 % split'!P38 -> 0 | Q38: =$T38*'2011-15 % split'!Q38 -> 0 | R38: =$T38*'2011-15 % split'!R38 -> 0 | S38: =$T38*'2011-15 % split'!S38 -> 0 | T38: ='2011-15 rates summary'!J38 -> 8.08 | U38: =$Z38*'2011-15 % split'!U38 -> 8.52 | V38: =$Z38*'2011-15 % split'!V38 -> 0 | W38: =$Z38*'2011-15 % split'!W38 -> 0 | X38: =$Z38*'2011-15 % split'!X38 -> 0 | Y38: =$Z38*'2011-15 % split'!Y38 -> 0 | Z38: ='2011-15 rates summary'!M38 -> 8.52 | AA38: =$AF38*'2011-15 % split'!AA38 -> 8.87 | AB38: =$AF38*'2011-15 % split'!AB38 -> 0 | AC38: =$AF38*'2011-15 % split'!AC38 -> 0 | AD38: =$AF38*'2011-15 % split'!AD38 -> 0 | AE38: =$AF38*'2011-15 % split'!AE38 -> 0 | AF38: ='2011-15 rates summary'!P38 -> 8.87 | AG38: ='CP Res Feeder'!C38 -> 13.16988078 | AM38: 13.16988078 | AN38: ='CP Res Feeder'!D38 -> 13.39171075 | AT38: 13.39171075 | AU38: ='CP Res Feeder'!E38 -> 13.61727716 | BA38: 13.61727716 | BB38: ='CP Res Feeder'!F38 -> 13.84664296 | BH38: 13.84664296 | BI38: ='CP Res Feeder'!G38 -> 14.07987213 | BO38: 14.07987213
B40: Solar PV Conn - Single phase BH (unit cost) | C40: =$H40*'2011-15 % split'!C40 -> 223.5528885 | D40: =$H40*'2011-15 % split'!D40 -> 0 | E40: =$H40*'2011-15 % split'!E40 -> 0 | F40: =$H40*'2011-15 % split'!F40 -> 0 | G40: =$H40*'2011-15 % split'!G40 -> 0 | H40: ='2011-15 rates summary'!D40 -> 223.5528885 | I40: =$N40*'2011-15 % split'!I40 -> 232.6289294 | J40: =$N40*'2011-15 % split'!J40 -> 0 | K40: =$N40*'2011-15 % split'!K40 -> 0 | L40: =$N40*'2011-15 % split'!L40 -> 0 | M40: =$N40*'2011-15 % split'!M40 -> 0 | N40: ='2011-15 rates summary'!G40 -> 232.6289294 | O40: =$T40*'2011-15 % split'!O40 -> 241.4548896 | P40: =$T40*'2011-15 % split'!P40 -> 0 | Q40: =$T40*'2011-15 % split'!Q40 -> 0 | R40: =$T40*'2011-15 % split'!R40 -> 0 | S40: =$T40*'2011-15 % split'!S40 -> 0 | T40: ='2011-15 rates summary'!J40 -> 241.4548896 | U40: =$Z40*'2011-15 % split'!U40 -> 254.6651285 | V40: =$Z40*'2011-15 % split'!V40 -> 0 | W40: =$Z40*'2011-15 % split'!W40 -> 0 | X40: =$Z40*'2011-15 % split'!X40 -> 0 | Y40: =$Z40*'2011-15 % split'!Y40 -> 0 | Z40: ='2011-15 rates summary'!M40 -> 254.6651285 | AA40: =$AF40*'2011-15 % split'!AA40 -> 265.1514549 | AB40: =$AF40*'2011-15 % split'!AB40 -> 0 | AC40: =$AF40*'2011-15 % split'!AC40 -> 0 | AD40: =$AF40*'2011-15 % split'!AD40 -> 0 | AE40: =$AF40*'2011-15 % split'!AE40 -> 0 | AF40: ='2011-15 rates summary'!P40 -> 265.1514549
B41: Solar PV Conn - Single phase AH (unit cost) | C41: =$H41*'2011-15 % split'!C41 -> 239.4644187 | D41: =$H41*'2011-15 % split'!D41 -> 0 | E41: =$H41*'2011-15 % split'!E41 -> 0 | F41: =$H41*'2011-15 % split'!F41 -> 0 | G41: =$H41*'2011-15 % split'!G41 -> 0 | H41: ='2011-15 rates summary'!D41 -> 239.4644187 | I41: =$N41*'2011-15 % split'!I41 -> 249.1864531 | J41: =$N41*'2011-15 % split'!J41 -> 0 | K41: =$N41*'2011-15 % split'!K41 -> 0 | L41: =$N41*'2011-15 % split'!L41 -> 0 | M41: =$N41*'2011-15 % split'!M41 -> 0 | N41: ='2011-15 rates summary'!G41 -> 249.1864531 | O41: =$T41*'2011-15 % split'!O41 -> 258.6406071 | P41: =$T41*'2011-15 % split'!P41 -> 0 | Q41: =$T41*'2011-15 % split'!Q41 -> 0 | R41: =$T41*'2011-15 % split'!R41 -> 0 | S41: =$T41*'2011-15 % split'!S41 -> 0 | T41: ='2011-15 rates summary'!J41 -> 258.6406071 | U41: =$Z41*'2011-15 % split'!U41 -> 272.7910938 | V41: =$Z41*'2011-15 % split'!V41 -> 0 | W41: =$Z41*'2011-15 % split'!W41 -> 0 | X41: =$Z41*'2011-15 % split'!X41 -> 0 | Y41: =$Z41*'2011-15 % split'!Y41 -> 0 | Z41: ='2011-15 rates summary'!M41 -> 272.7910938 | AA41: =$AF41*'2011-15 % split'!AA41 -> 284.0237917 | AB41: =$AF41*'2011-15 % split'!AB41 -> 0 | AC41: =$AF41*'2011-15 % split'!AC41 -> 0 | AD41: =$AF41*'2011-15 % split'!AD41 -> 0 | AE41: =$AF41*'2011-15 % split'!AE41 -> 0 | AF41: ='2011-15 rates summary'!P41 -> 284.0237917
B43: New Connections Responsible for metering | BO43: =SUM(BI43:BN43) -> 0
B44: Single phase BH | C44: =$H44*'2011-15 % split'!C44 -> 247.2370506 | D44: =$H44*'2011-15 % split'!D44 -> 120.3929494 | E44: =$H44*'2011-15 % split'!E44 -> 0 | F44: =$H44*'2011-15 % split'!F44 -> 0 | G44: =$H44*'2011-15 % split'!G44 -> 0 | H44: ='2011-15 rates summary'!D44 -> 367.63 | I44: =$N44*'2011-15 % split'!I44 -> 260.3762424 | J44: =$N44*'2011-15 % split'!J44 -> 122.2437576 | K44: =$N44*'2011-15 % split'!K44 -> 0 | L44: =$N44*'2011-15 % split'!L44 -> 0 | M44: =$N44*'2011-15 % split'!M44 -> 0 | N44: ='2011-15 rates summary'!G44 -> 382.62 | O44: =$T44*'2011-15 % split'!O44 -> 272.9512631 | P44: =$T44*'2011-15 % split'!P44 -> 124.3187369 | Q44: =$T44*'2011-15 % split'!Q44 -> 0 | R44: =$T44*'2011-15 % split'!R44 -> 0 | S44: =$T44*'2011-15 % split'!S44 -> 0 | T44: ='2011-15 rates summary'!J44 -> 397.27 | U44: =$Z44*'2011-15 % split'!U44 -> 291.6236459 | V44: =$Z44*'2011-15 % split'!V44 -> 127.6563541 | W44: =$Z44*'2011-15 % split'!W44 -> 0 | X44: =$Z44*'2011-15 % split'!X44 -> 0 | Y44: =$Z44*'2011-15 % split'!Y44 -> 0 | Z44: ='2011-15 rates summary'!M44 -> 419.28 | AA44: =$AF44*'2011-15 % split'!AA44 -> 307.6156275 | AB44: =$AF44*'2011-15 % split'!AB44 -> 129.0943725 | AC44: =$AF44*'2011-15 % split'!AC44 -> 0 | AD44: =$AF44*'2011-15 % split'!AD44 -> 0 | AE44: =$AF44*'2011-15 % split'!AE44 -> 0 | AF44: ='2011-15 rates summary'!P44 -> 436.71 | AG44: ='CP NC 1Ph (R) BH'!O$57 -> 274.2016837 | AH44: ='CP NC 1Ph (R) BH'!O$58 -> 99.57610053 | AI44: ='CP NC 1Ph (R) BH'!O$59 -> 0 | AJ44: ='CP NC 1Ph (R) BH'!O$61 -> 33.64000058 | AK44: ='CP NC 1Ph (R) BH'!O$60 -> 49.29755196 | AL44: ='CP NC 1Ph (R) BH'!O$62 -> 31.97007357 | AM44: =SUM(AG44:AL44) -> 488.6854103 | AN44: ='CP NC 1Ph (R) BH'!P$57 -> 278.8202639 | AO44: ='CP NC 1Ph (R) BH'!P$58 -> 99.57610053 | AP44: ='CP NC 1Ph (R) BH'!P$59 -> 0 | AQ44: ='CP NC 1Ph (R) BH'!P$61 -> 34.0556728 | AR44: ='CP NC 1Ph (R) BH'!P$60 -> 49.90669651 | AS44: ='CP NC 1Ph (R) BH'!P$62 -> 32.36511136 | AT44: =SUM(AN44:AS44) -> 494.7238451 | AU44: ='CP NC 1Ph (R) BH'!Q$57 -> 283.5166383 | AV44: ='CP NC 1Ph (R) BH'!Q$58 -> 99.57610053 | AW44: ='CP NC 1Ph (R) BH'!Q$59 -> 0 | AX44: ='CP NC 1Ph (R) BH'!Q$61 -> 34.47834649 | AY44: ='CP NC 1Ph (R) BH'!Q$60 -> 50.52610132 | AZ44: ='CP NC 1Ph (R) BH'!Q$62 -> 32.76680306 | BA44: =SUM(AU44:AZ44) -> 500.8639897 | BB44: ='CP NC 1Ph (R) BH'!R$57 -> 288.2921171 | BC44: ='CP NC 1Ph (R) BH'!R$58 -> 99.57610053 | BD44: ='CP NC 1Ph (R) BH'!R$59 -> 0 | BE44: ='CP NC 1Ph (R) BH'!R$61 -> 34.90813959 | BF44: ='CP NC 1Ph (R) BH'!R$60 -> 51.15593923 | BG44: ='CP NC 1Ph (R) BH'!R$62 -> 33.17526075 | BH44: =SUM(BB44:BG44) -> 507.1075572 | BI44: ='CP NC 1Ph (R) BH'!S$57 -> 293.1480329 | BJ44: ='CP NC 1Ph (R) BH'!S$58 -> 99.57610053 | BK44: ='CP NC 1Ph (R) BH'!S$59 -> 0 | BL44: ='CP NC 1Ph (R) BH'!S$61 -> 35.34517201 | BM44: ='CP NC 1Ph (R) BH'!S$60 -> 51.79638596 | BN44: ='CP NC 1Ph (R) BH'!S$62 -> 33.5905984 | BO44: =SUM(BI44:BN44) -> 513.4562898 | BP44: =SUM(AM44,AT44,BA44,BH44,BO44)-SUM('CP NC 1Ph (R) BH'!O64:S64) -> 0
B45: Single phase AH | C45: =$H45*'2011-15 % split'!C45 -> 271.3983283 | D45: =$H45*'2011-15 % split'!D45 -> 120.3916717 | E45: =$H45*'2011-15 % split'!E45 -> 0 | F45: =$H45*'2011-15 % split'!F45 -> 0 | G45: =$H45*'2011-15 % split'!G45 -> 0 | H45: ='2011-15 rates summary'!D45 -> 391.79 | I45: =$N45*'2011-15 % split'!I45 -> 284.8546226 | J45: =$N45*'2011-15 % split'!J45 -> 122.9153774 | K45: =$N45*'2011-15 % split'!K45 -> 0 | L45: =$N45*'2011-15 % split'!L45 -> 0 | M45: =$N45*'2011-15 % split'!M45 -> 0 | N45: ='2011-15 rates summary'!G45 -> 407.77 | O45: =$T45*'2011-15 % split'!O45 -> 298.4625207 | P45: =$T45*'2011-15 % split'!P45 -> 124.9174793 | Q45: =$T45*'2011-15 % split'!Q45 -> 0 | R45: =$T45*'2011-15 % split'!R45 -> 0 | S45: =$T45*'2011-15 % split'!S45 -> 0 | T45: ='2011-15 rates summary'!J45 -> 423.38 | U45: =$Z45*'2011-15 % split'!U45 -> 318.6647415 | V45: =$Z45*'2011-15 % split'!V45 -> 128.1752585 | W45: =$Z45*'2011-15 % split'!W45 -> 0 | X45: =$Z45*'2011-15 % split'!X45 -> 0 | Y45: =$Z45*'2011-15 % split'!Y45 -> 0 | Z45: ='2011-15 rates summary'!M45 -> 446.84 | AA45: =$AF45*'2011-15 % split'!AA45 -> 335.903016 | AB45: =$AF45*'2011-15 % split'!AB45 -> 129.516984 | AC45: =$AF45*'2011-15 % split'!AC45 -> 0 | AD45: =$AF45*'2011-15 % split'!AD45 -> 0 | AE45: =$AF45*'2011-15 % split'!AE45 -> 0 | AF45: ='2011-15 rates summary'!P45 -> 465.42 | AG45: ='CP NC 1Ph (R) AH'!O$57 -> 314.6270083 | AH45: ='CP NC 1Ph (R) AH'!O$58 -> 99.57610053 | AI45: ='CP NC 1Ph (R) AH'!O$59 -> 0 | AJ45: ='CP NC 1Ph (R) AH'!O$61 -> 37.27827979 | AK45: ='CP NC 1Ph (R) AH'!O$60 -> 54.62924802 | AL45: ='CP NC 1Ph (R) AH'!O$62 -> 35.42774456 | AM45: 541.5383812 | AN45: ='CP NC 1Ph (R) AH'!P$57 -> 319.9265019 | AO45: ='CP NC 1Ph (R) AH'!P$58 -> 99.57610053 | AP45: ='CP NC 1Ph (R) AH'!P$59 -> 0 | AQ45: ='CP NC 1Ph (R) AH'!P$61 -> 37.75523422 | AR45: ='CP NC 1Ph (R) AH'!P$60 -> 55.32819824 | AS45: ='CP NC 1Ph (R) AH'!P$62 -> 35.88102245 | AT45: 548.4670574 | AU45: ='CP NC 1Ph (R) AH'!Q$57 -> 325.3152589 | AV45: ='CP NC 1Ph (R) AH'!Q$58 -> 99.57610053 | AW45: ='CP NC 1Ph (R) AH'!Q$59 -> 0 | AX45: ='CP NC 1Ph (R) AH'!Q$61 -> 38.24022235 | AY45: ='CP NC 1Ph (R) AH'!Q$60 -> 56.03892139 | AZ45: ='CP NC 1Ph (R) AH'!Q$62 -> 36.34193522 | BA45: 555.5124383 | BB45: ='CP NC 1Ph (R) AH'!R$57 -> 330.7947826 | BC45: ='CP NC 1Ph (R) AH'!R$58 -> 99.57610053 | BD45: ='CP NC 1Ph (R) AH'!R$59 -> 0 | BE45: ='CP NC 1Ph (R) AH'!R$61 -> 38.73337948 | BF45: ='CP NC 1Ph (R) AH'!R$60 -> 56.76161577 | BG45: ='CP NC 1Ph (R) AH'!R$62 -> 36.81061148 | BH45: 562.6764898 | BI45: ='CP NC 1Ph (R) AH'!S$57 -> 336.3666019 | BJ45: ='CP NC 1Ph (R) AH'!S$58 -> 99.57610053 | BK45: ='CP NC 1Ph (R) AH'!S$59 -> 0 | BL45: ='CP NC 1Ph (R) AH'!S$61 -> 39.23484322 | BM45: ='CP NC 1Ph (R) AH'!S$60 -> 57.49648302 | BN45: ='CP NC 1Ph (R) AH'!S$62 -> 37.28718201 | BO45: 569.9612107 | BP45: =SUM(AM45,AT45,BA45,BH45,BO45)-SUM('CP NC 1Ph (R) AH'!O64:S64) -> 0
B46: Multi phase DC BH | C46: =$H46*'2011-15 % split'!C46 -> 247.2332995 | D46: =$H46*'2011-15 % split'!D46 -> 206.7467005 | E46: =$H46*'2011-15 % split'!E46 -> 0 | F46: =$H46*'2011-15 % split'!F46 -> 0 | G46: =$H46*'2011-15 % split'!G46 -> 0 | H46: ='2011-15 rates summary'!D46 -> 453.98 | I46: =$N46*'2011-15 % split'!I46 -> 261.5862315 | J46: =$N46*'2011-15 % split'!J46 -> 210.9037685 | K46: =$N46*'2011-15 % split'!K46 -> 0 | L46: =$N46*'2011-15 % split'!L46 -> 0 | M46: =$N46*'2011-15 % split'!M46 -> 0 | N46: ='2011-15 rates summary'!G46 -> 472.49 | O46: =$T46*'2011-15 % split'!O46 -> 275.2727026 | P46: =$T46*'2011-15 % split'!P46 -> 215.3072974 | Q46: =$T46*'2011-15 % split'!Q46 -> 0 | R46: =$T46*'2011-15 % split'!R46 -> 0 | S46: =$T46*'2011-15 % split'!S46 -> 0 | T46: ='2011-15 rates summary'!J46 -> 490.58 | U46: =$Z46*'2011-15 % split'!U46 -> 295.575806 | V46: =$Z46*'2011-15 % split'!V46 -> 222.194194 | W46: =$Z46*'2011-15 % split'!W46 -> 0 | X46: =$Z46*'2011-15 % split'!X46 -> 0 | Y46: =$Z46*'2011-15 % split'!Y46 -> 0 | Z46: ='2011-15 rates summary'!M46 -> 517.77 | AA46: =$AF46*'2011-15 % split'!AA46 -> 313.4224284 | AB46: =$AF46*'2011-15 % split'!AB46 -> 225.8775716 | AC46: =$AF46*'2011-15 % split'!AC46 -> 0 | AD46: =$AF46*'2011-15 % split'!AD46 -> 0 | AE46: =$AF46*'2011-15 % split'!AE46 -> 0 | AF46: ='2011-15 rates summary'!P46 -> 539.3 | AG46: ='CP NC Multi Ph DC (R) BH'!O$57 -> 274.2016837 | AH46: ='CP NC Multi Ph DC (R) BH'!O$58 -> 171.0012313 | AI46: ='CP NC Multi Ph DC (R) BH'!O$59 -> 0 | AJ46: ='CP NC Multi Ph DC (R) BH'!O$61 -> 40.06826235 | AK46: ='CP NC Multi Ph DC (R) BH'!O$60 -> 58.71781245 | AL46: ='CP NC Multi Ph DC (R) BH'!O$62 -> 38.07922928 | AM46: 582.068219 | AN46: ='CP NC Multi Ph DC (R) BH'!P$57 -> 278.8202639 | AO46: ='CP NC Multi Ph DC (R) BH'!P$58 -> 171.0012313 | AP46: ='CP NC Multi Ph DC (R) BH'!P$59 -> 0 | AQ46: ='CP NC Multi Ph DC (R) BH'!P$61 -> 40.48393457 | AR46: ='CP NC Multi Ph DC (R) BH'!P$60 -> 59.326957 | AS46: ='CP NC Multi Ph DC (R) BH'!P$62 -> 38.47426707 | AT46: 588.1066538 | AU46: ='CP NC Multi Ph DC (R) BH'!Q$57 -> 283.5166383 | AV46: ='CP NC Multi Ph DC (R) BH'!Q$58 -> 171.0012313 | AW46: ='CP NC Multi Ph DC (R) BH'!Q$59 -> 0 | AX46: ='CP NC Multi Ph DC (R) BH'!Q$61 -> 40.90660826 | AY46: ='CP NC Multi Ph DC (R) BH'!Q$60 -> 59.94636182 | AZ46: ='CP NC Multi Ph DC (R) BH'!Q$62 -> 38.87595878 | BA46: 594.2467984 | BB46: ='CP NC Multi Ph DC (R) BH'!R$57 -> 288.2921171 | BC46: ='CP NC Multi Ph DC (R) BH'!R$58 -> 171.0012313 | BD46: ='CP NC Multi Ph DC (R) BH'!R$59 -> 0 | BE46: ='CP NC Multi Ph DC (R) BH'!R$61 -> 41.33640136 | BF46: ='CP NC Multi Ph DC (R) BH'!R$60 -> 60.57619972 | BG46: ='CP NC Multi Ph DC (R) BH'!R$62 -> 39.28441647 | BH46: 600.490366 | BI46: ='CP NC Multi Ph DC (R) BH'!S$57 -> 293.1480329 | BJ46: ='CP NC Multi Ph DC (R) BH'!S$58 -> 171.0012313 | BK46: ='CP NC Multi Ph DC (R) BH'!S$59 -> 0 | BL46: ='CP NC Multi Ph DC (R) BH'!S$61 -> 41.77343378 | BM46: ='CP NC Multi Ph DC (R) BH'!S$60 -> 61.21664645 | BN46: ='CP NC Multi Ph DC (R) BH'!S$62 -> 39.69975411 | BO46: 606.8390985 | BP46: =SUM(AM46,AT46,BA46,BH46,BO46)-SUM('CP NC Multi Ph DC (R) BH'!O64:S64) -> 0
B47: Multi phase DC AH | C47: =$H47*'2011-15 % split'!C47 -> 271.400615 | D47: =$H47*'2011-15 % split'!D47 -> 206.749385 | E47: =$H47*'2011-15 % split'!E47 -> 0 | F47: =$H47*'2011-15 % split'!F47 -> 0 | G47: =$H47*'2011-15 % split'!G47 -> 0 | H47: ='2011-15 rates summary'!D47 -> 478.15 | I47: =$N47*'2011-15 % split'!I47 -> 285.8389879 | J47: =$N47*'2011-15 % split'!J47 -> 211.8110121 | K47: =$N47*'2011-15 % split'!K47 -> 0 | L47: =$N47*'2011-15 % split'!L47 -> 0 | M47: =$N47*'2011-15 % split'!M47 -> 0 | N47: ='2011-15 rates summary'!G47 -> 497.65 | O47: =$T47*'2011-15 % split'!O47 -> 300.6255489 | P47: =$T47*'2011-15 % split'!P47 -> 216.0744511 | Q47: =$T47*'2011-15 % split'!Q47 -> 0 | R47: =$T47*'2011-15 % split'!R47 -> 0 | S47: =$T47*'2011-15 % split'!S47 -> 0 | T47: ='2011-15 rates summary'!J47 -> 516.7 | U47: =$Z47*'2011-15 % split'!U47 -> 322.5393328 | V47: =$Z47*'2011-15 % split'!V47 -> 222.7906672 | W47: =$Z47*'2011-15 % split'!W47 -> 0 | X47: =$Z47*'2011-15 % split'!X47 -> 0 | Y47: =$Z47*'2011-15 % split'!Y47 -> 0 | Z47: ='2011-15 rates summary'!M47 -> 545.33 | AA47: =$AF47*'2011-15 % split'!AA47 -> 341.7319188 | AB47: =$AF47*'2011-15 % split'!AB47 -> 226.2780812 | AC47: =$AF47*'2011-15 % split'!AC47 -> 0 | AD47: =$AF47*'2011-15 % split'!AD47 -> 0 | AE47: =$AF47*'2011-15 % split'!AE47 -> 0 | AF47: ='2011-15 rates summary'!P47 -> 568.01 | AG47: ='CP NC 3Ph DC (R) AH'!O$57 -> 314.6270083 | AH47: ='CP NC 3Ph DC (R) AH'!O$58 -> 171.0012313 | AI47: ='CP NC 3Ph DC (R) AH'!O$59 -> 0 | AJ47: ='CP NC 3Ph DC (R) AH'!O$61 -> 43.70654156 | AK47: ='CP NC 3Ph DC (R) AH'!O$60 -> 64.04950852 | AL47: ='CP NC 3Ph DC (R) AH'!O$62 -> 41.53690028 | AM47: 634.9211899 | AN47: ='CP NC 3Ph DC (R) AH'!P$57 -> 319.9265019 | AO47: ='CP NC 3Ph DC (R) AH'!P$58 -> 171.0012313 | AP47: ='CP NC 3Ph DC (R) AH'!P$59 -> 0 | AQ47: ='CP NC 3Ph DC (R) AH'!P$61 -> 44.18349599 | AR47: ='CP NC 3Ph DC (R) AH'!P$60 -> 64.74845874 | AS47: ='CP NC 3Ph DC (R) AH'!P$62 -> 41.99017816 | AT47: 641.8498661 | AU47: ='CP NC 3Ph DC (R) AH'!Q$57 -> 325.3152589 | AV47: ='CP NC 3Ph DC (R) AH'!Q$58 -> 171.0012313 | AW47: ='CP NC 3Ph DC (R) AH'!Q$59 -> 0 | AX47: ='CP NC 3Ph DC (R) AH'!Q$61 -> 44.66848411 | AY47: ='CP NC 3Ph DC (R) AH'!Q$60 -> 65.45918189 | AZ47: ='CP NC 3Ph DC (R) AH'!Q$62 -> 42.45109093 | BA47: 648.8952471 | BB47: ='CP NC 3Ph DC (R) AH'!R$57 -> 330.7947826 | BC47: ='CP NC 3Ph DC (R) AH'!R$58 -> 171.0012313 | BD47: ='CP NC 3Ph DC (R) AH'!R$59 -> 0 | BE47: ='CP NC 3Ph DC (R) AH'!R$61 -> 45.16164125 | BF47: ='CP NC 3Ph DC (R) AH'!R$60 -> 66.18187627 | BG47: ='CP NC 3Ph DC (R) AH'!R$62 -> 42.9197672 | BH47: 656.0592986 | BI47: ='CP NC 3Ph DC (R) AH'!S$57 -> 336.3666019 | BJ47: ='CP NC 3Ph DC (R) AH'!S$58 -> 171.0012313 | BK47: ='CP NC 3Ph DC (R) AH'!S$59 -> 0 | BL47: ='CP NC 3Ph DC (R) AH'!S$61 -> 45.66310499 | BM47: ='CP NC 3Ph DC (R) AH'!S$60 -> 66.91674352 | BN47: ='CP NC 3Ph DC (R) AH'!S$62 -> 43.39633772 | BO47: 663.3440194 | BP47: =SUM(AM47,AT47,BA47,BH47,BO47)-SUM('CP NC 3Ph DC (R) AH'!O64:S64) -> 0
B48: Multi phase CT BH | C48: =$H48*'2011-15 % split'!C48 -> 1609.381249 | D48: =$H48*'2011-15 % split'!D48 -> 376.6387505 | E48: =$H48*'2011-15 % split'!E48 -> 0 | F48: =$H48*'2011-15 % split'!F48 -> 0 | G48: =$H48*'2011-15 % split'!G48 -> 0 | H48: ='2011-15 rates summary'!D48 -> 1986.02 | I48: =$N48*'2011-15 % split'!I48 -> 1683.841265 | J48: =$N48*'2011-15 % split'!J48 -> 383.1787348 | K48: =$N48*'2011-15 % split'!K48 -> 0 | L48: =$N48*'2011-15 % split'!L48 -> 0 | M48: =$N48*'2011-15 % split'!M48 -> 0 | N48: ='2011-15 rates summary'!G48 -> 2067.02 | O48: =$T48*'2011-15 % split'!O48 -> 1758.642195 | P48: =$T48*'2011-15 % split'!P48 -> 387.5378052 | Q48: =$T48*'2011-15 % split'!Q48 -> 0 | R48: =$T48*'2011-15 % split'!R48 -> 0 | S48: =$T48*'2011-15 % split'!S48 -> 0 | T48: ='2011-15 rates summary'!J48 -> 2146.18 | U48: =$Z48*'2011-15 % split'!U48 -> 1869.489986 | V48: =$Z48*'2011-15 % split'!V48 -> 395.6400138 | W48: =$Z48*'2011-15 % split'!W48 -> 0 | X48: =$Z48*'2011-15 % split'!X48 -> 0 | Y48: =$Z48*'2011-15 % split'!Y48 -> 0 | Z48: ='2011-15 rates summary'!M48 -> 2265.13 | AA48: =$AF48*'2011-15 % split'!AA48 -> 1961.686484 | AB48: =$AF48*'2011-15 % split'!AB48 -> 397.6535162 | AC48: =$AF48*'2011-15 % split'!AC48 -> 0 | AD48: =$AF48*'2011-15 % split'!AD48 -> 0 | AE48: =$AF48*'2011-15 % split'!AE48 -> 0 | AF48: ='2011-15 rates summary'!P48 -> 2359.34 | AG48: ='CP NC 3Ph CT (R) BH'!O$77 -> 1704.982796 | AH48: ='CP NC 3Ph CT (R) BH'!O$78 -> 171.0012313 | AI48: ='CP NC 3Ph CT (R) BH'!O$79 -> 0 | AJ48: ='CP NC 3Ph CT (R) BH'!O$81 -> 168.8385625 | AK48: ='CP NC 3Ph CT (R) BH'!O$80 -> 247.4235334 | AL48: ='CP NC 3Ph CT (R) BH'!O$82 -> 160.4572286 | AM48: 2452.703352 | AN48: ='CP NC 3Ph CT (R) BH'!P$77 -> 1733.701073 | AO48: ='CP NC 3Ph CT (R) BH'!P$78 -> 171.0012313 | AP48: ='CP NC 3Ph CT (R) BH'!P$79 -> 0 | AQ48: ='CP NC 3Ph CT (R) BH'!P$81 -> 171.4232074 | AR48: ='CP NC 3Ph CT (R) BH'!P$80 -> 251.2111869 | AS48: ='CP NC 3Ph CT (R) BH'!P$82 -> 162.9135689 | AT48: 2490.250267 | AU48: ='CP NC 3Ph CT (R) BH'!Q$77 -> 1762.903073 | AV48: ='CP NC 3Ph CT (R) BH'!Q$78 -> 171.0012313 | AW48: ='CP NC 3Ph CT (R) BH'!Q$79 -> 0 | AX48: ='CP NC 3Ph CT (R) BH'!Q$81 -> 174.0513874 | AY48: ='CP NC 3Ph CT (R) BH'!Q$80 -> 255.0626386 | AZ48: ='CP NC 3Ph CT (R) BH'!Q$82 -> 165.4112831 | BA48: 2528.429613 | BB48: ='CP NC 3Ph CT (R) BH'!R$77 -> 1792.596943 | BC48: ='CP NC 3Ph CT (R) BH'!R$78 -> 171.0012313 | BD48: ='CP NC 3Ph CT (R) BH'!R$79 -> 0 | BE48: ='CP NC 3Ph CT (R) BH'!R$81 -> 176.7238357 | BF48: ='CP NC 3Ph CT (R) BH'!R$80 -> 258.9789632 | BG48: ='CP NC 3Ph CT (R) BH'!R$82 -> 167.9510681 | BH48: 2567.252042 | BI48: ='CP NC 3Ph CT (R) BH'!S$77 -> 1822.790969 | BJ48: ='CP NC 3Ph CT (R) BH'!S$78 -> 171.0012313 | BK48: ='CP NC 3Ph CT (R) BH'!S$79 -> 0 | BL48: ='CP NC 3Ph CT (R) BH'!S$81 -> 179.4412981 | BM48: ='CP NC 3Ph CT (R) BH'!S$80 -> 262.9612533 | BN48: ='CP NC 3Ph CT (R) BH'!S$82 -> 170.5336326 | BO48: 2606.728385 | BP48: =SUM(AM48,AT48,BA48,BH48,BO48)-SUM('CP NC 3Ph CT (R) BH'!O84:S84) -> 0
B49: Multi phase CT AH | C49: =$H49*'2011-15 % split'!C49 -> 1782.680056 | D49: =$H49*'2011-15 % split'!D49 -> 376.6399437 | E49: =$H49*'2011-15 % split'!E49 -> 0 | F49: =$H49*'2011-15 % split'!F49 -> 0 | G49: =$H49*'2011-15 % split'!G49 -> 0 | H49: ='2011-15 rates summary'!D49 -> 2159.32 | I49: =$N49*'2011-15 % split'!I49 -> 1861.522569 | J49: =$N49*'2011-15 % split'!J49 -> 385.8674308 | K49: =$N49*'2011-15 % split'!K49 -> 0 | L49: =$N49*'2011-15 % split'!L49 -> 0 | M49: =$N49*'2011-15 % split'!M49 -> 0 | N49: ='2011-15 rates summary'!G49 -> 2247.39 | O49: =$T49*'2011-15 % split'!O49 -> 1943.382014 | P49: =$T49*'2011-15 % split'!P49 -> 390.0779861 | Q49: =$T49*'2011-15 % split'!Q49 -> 0 | R49: =$T49*'2011-15 % split'!R49 -> 0 | S49: =$T49*'2011-15 % split'!S49 -> 0 | T49: ='2011-15 rates summary'!J49 -> 2333.46 | U49: =$Z49*'2011-15 % split'!U49 -> 2064.773699 | V49: =$Z49*'2011-15 % split'!V49 -> 398.0163008 | W49: =$Z49*'2011-15 % split'!W49 -> 0 | X49: =$Z49*'2011-15 % split'!X49 -> 0 | Y49: =$Z49*'2011-15 % split'!Y49 -> 0 | Z49: ='2011-15 rates summary'!M49 -> 2462.79 | AA49: =$AF49*'2011-15 % split'!AA49 -> 2165.404684 | AB49: =$AF49*'2011-15 % split'!AB49 -> 399.8153164 | AC49: =$AF49*'2011-15 % split'!AC49 -> 0 | AD49: =$AF49*'2011-15 % split'!AD49 -> 0 | AE49: =$AF49*'2011-15 % split'!AE49 -> 0 | AF49: ='2011-15 rates summary'!P49 -> 2565.22 | AG49: ='CP NC 3Ph CT (R) AH'!O$77 -> 1994.902754 | AH49: ='CP NC 3Ph CT (R) AH'!O$78 -> 311.5188636 | AI49: ='CP NC 3Ph CT (R) AH'!O$79 -> 0 | AJ49: ='CP NC 3Ph CT (R) AH'!O$81 -> 207.5779456 | AK49: ='CP NC 3Ph CT (R) AH'!O$80 -> 304.1939471 | AL49: ='CP NC 3Ph CT (R) AH'!O$82 -> 197.2735457 | AM49: 3015.467056 | AN49: ='CP NC 3Ph CT (R) AH'!P$77 -> 2028.504365 | AO49: ='CP NC 3Ph CT (R) AH'!P$78 -> 311.5188636 | AP49: ='CP NC 3Ph CT (R) AH'!P$79 -> 0 | AQ49: ='CP NC 3Ph CT (R) AH'!P$81 -> 210.6020906 | AR49: ='CP NC 3Ph CT (R) AH'!P$80 -> 308.6256637 | AS49: ='CP NC 3Ph CT (R) AH'!P$82 -> 200.1475688 | AT49: 3059.398552 | AU49: ='CP NC 3Ph CT (R) AH'!Q$77 -> 2062.671953 | AV49: ='CP NC 3Ph CT (R) AH'!Q$78 -> 311.5188636 | AW49: ='CP NC 3Ph CT (R) AH'!Q$79 -> 0 | AX49: ='CP NC 3Ph CT (R) AH'!Q$81 -> 213.6771735 | AY49: ='CP NC 3Ph CT (R) AH'!Q$80 -> 313.1320269 | AZ49: ='CP NC 3Ph CT (R) AH'!Q$82 -> 203.0700012 | BA49: 3104.070019 | BB49: ='CP NC 3Ph CT (R) AH'!R$77 -> 2097.415051 | BC49: ='CP NC 3Ph CT (R) AH'!R$78 -> 311.5188636 | BD49: ='CP NC 3Ph CT (R) AH'!R$79 -> 0 | BE49: ='CP NC 3Ph CT (R) AH'!R$81 -> 216.8040523 | BF49: ='CP NC 3Ph CT (R) AH'!R$80 -> 317.714294 | BG49: ='CP NC 3Ph CT (R) AH'!R$82 -> 206.0416583 | BH49: 3149.49392 | BI49: ='CP NC 3Ph CT (R) AH'!S$77 -> 2132.743353 | BJ49: ='CP NC 3Ph CT (R) AH'!S$78 -> 311.5188636 | BK49: ='CP NC 3Ph CT (R) AH'!S$79 -> 0 | BL49: ='CP NC 3Ph CT (R) AH'!S$81 -> 219.9835995 | BM49: ='CP NC 3Ph CT (R) AH'!S$80 -> 322.3737437 | BN49: ='CP NC 3Ph CT (R) AH'!S$82 -> 209.0633692 | BO49: 3195.682928 | BP49: =SUM(AM49,AT49,BA49,BH49,BO49)-SUM('CP NC 3Ph CT (R) AH'!O84:S84) -> 0
B51: New Connections Not Responsible for metering
B52: Single phase BH | C52: =$H52*'2011-15 % split'!C52 -> 187.977613 | D52: =$H52*'2011-15 % split'!D52 -> 120.392387 | E52: =$H52*'2011-15 % split'!E52 -> 0 | F52: =$H52*'2011-15 % split'!F52 -> 0 | G52: =$H52*'2011-15 % split'!G52 -> 0 | H52: ='2011-15 rates summary'!D52 -> 308.37 | I52: =$N52*'2011-15 % split'!I52 -> 198.5343868 | J52: =$N52*'2011-15 % split'!J52 -> 122.4056132 | K52: =$N52*'2011-15 % split'!K52 -> 0 | L52: =$N52*'2011-15 % split'!L52 -> 0 | M52: =$N52*'2011-15 % split'!M52 -> 0 | N52: ='2011-15 rates summary'!G52 -> 320.94 | O52: =$T52*'2011-15 % split'!O52 -> 208.5491174 | P52: =$T52*'2011-15 % split'!P52 -> 124.6808826 | Q52: =$T52*'2011-15 % split'!Q52 -> 0 | R52: =$T52*'2011-15 % split'!R52 -> 0 | S52: =$T52*'2011-15 % split'!S52 -> 0 | T52: ='2011-15 rates summary'!J52 -> 333.23 | U52: =$Z52*'2011-15 % split'!U52 -> 223.6219958 | V52: =$Z52*'2011-15 % split'!V52 -> 128.0680042 | W52: =$Z52*'2011-15 % split'!W52 -> 0 | X52: =$Z52*'2011-15 % split'!X52 -> 0 | Y52: =$Z52*'2011-15 % split'!Y52 -> 0 | Z52: ='2011-15 rates summary'!M52 -> 351.69 | AA52: =$AF52*'2011-15 % split'!AA52 -> 236.4924282 | AB52: =$AF52*'2011-15 % split'!AB52 -> 129.8175718 | AC52: =$AF52*'2011-15 % split'!AC52 -> 0 | AD52: =$AF52*'2011-15 % split'!AD52 -> 0 | AE52: =$AF52*'2011-15 % split'!AE52 -> 0 | AF52: ='2011-15 rates summary'!P52 -> 366.31 | AG52: ='CP NC 1Ph (NR) BH'!O$57 -> 259.8327888 | AH52: ='CP NC 1Ph (NR) BH'!O$58 -> 99.57610053 | AI52: ='CP NC 1Ph (NR) BH'!O$59 -> 0 | AJ52: ='CP NC 1Ph (NR) BH'!O$61 -> 32.34680004 | AK52: ='CP NC 1Ph (NR) BH'!O$60 -> 47.40243842 | AL52: ='CP NC 1Ph (NR) BH'!O$62 -> 30.74106895 | AM52: =SUM(AG52:AL52) -> 469.8991968 | AN52: ='CP NC 1Ph (NR) BH'!P$57 -> 264.2093432 | AO52: ='CP NC 1Ph (NR) BH'!P$58 -> 99.57610053 | AP52: ='CP NC 1Ph (NR) BH'!P$59 -> 0 | AQ52: ='CP NC 1Ph (NR) BH'!P$61 -> 32.74068994 | AR52: ='CP NC 1Ph (NR) BH'!P$60 -> 47.97966218 | AS52: ='CP NC 1Ph (NR) BH'!P$62 -> 31.11540571 | AT52: =SUM(AN52:AS52) -> 475.6212016 | AU52: ='CP NC 1Ph (NR) BH'!Q$57 -> 268.6596152 | AV52: ='CP NC 1Ph (NR) BH'!Q$58 -> 99.57610053 | AW52: ='CP NC 1Ph (NR) BH'!Q$59 -> 0 | AX52: ='CP NC 1Ph (NR) BH'!Q$61 -> 33.14121441 | AY52: ='CP NC 1Ph (NR) BH'!Q$60 -> 48.56660854 | AZ52: ='CP NC 1Ph (NR) BH'!Q$62 -> 31.4960477 | BA52: =SUM(AU52:AZ52) -> 481.4395863 | BB52: ='CP NC 1Ph (NR) BH'!R$57 -> 273.1848463 | BC52: ='CP NC 1Ph (NR) BH'!R$58 -> 99.57610053 | BD52: ='CP NC 1Ph (NR) BH'!R$59 -> 0 | BE52: ='CP NC 1Ph (NR) BH'!R$61 -> 33.54848521 | BF52: ='CP NC 1Ph (NR) BH'!R$60 -> 49.16344127 | BG52: ='CP NC 1Ph (NR) BH'!R$62 -> 31.88310113 | BH52: =SUM(BB52:BG52) -> 487.3559744 | BI52: ='CP NC 1Ph (NR) BH'!S$57 -> 277.7862992 | BJ52: ='CP NC 1Ph (NR) BH'!S$58 -> 99.57610053 | BK52: ='CP NC 1Ph (NR) BH'!S$59 -> 0 | BL52: ='CP NC 1Ph (NR) BH'!S$61 -> 33.96261597 | BM52: ='CP NC 1Ph (NR) BH'!S$60 -> 49.7703269 | BN52: ='CP NC 1Ph (NR) BH'!S$62 -> 32.27667398 | BO52: =SUM(BI52:BN52) -> 493.3720165 | BP52: =SUM(AM52,AT52,BA52,BH52,BO52)-SUM('CP NC 1Ph (NR) BH'!O64:S64) -> 0
B53: Single phase AH | C53: =$H53*'2011-15 % split'!C53 -> 212.1390776 | D53: =$H53*'2011-15 % split'!D53 -> 120.3909224 | E53: =$H53*'2011-15 % split'!E53 -> 0 | F53: =$H53*'2011-15 % split'!F53 -> 0 | G53: =$H53*'2011-15 % split'!G53 -> 0 | H53: ='2011-15 rates summary'!D53 -> 332.53 | I53: =$N53*'2011-15 % split'!I53 -> 222.9021196 | J53: =$N53*'2011-15 % split'!J53 -> 123.1878804 | K53: =$N53*'2011-15 % split'!K53 -> 0 | L53: =$N53*'2011-15 % split'!L53 -> 0 | M53: =$N53*'2011-15 % split'!M53 -> 0 | N53: ='2011-15 rates summary'!G53 -> 346.09 | O53: =$T53*'2011-15 % split'!O53 -> 233.9756188 | P53: =$T53*'2011-15 % split'!P53 -> 125.3643812 | Q53: =$T53*'2011-15 % split'!Q53 -> 0 | R53: =$T53*'2011-15 % split'!R53 -> 0 | S53: =$T53*'2011-15 % split'!S53 -> 0 | T53: ='2011-15 rates summary'!J53 -> 359.34 | U53: =$Z53*'2011-15 % split'!U53 -> 250.5965003 | V53: =$Z53*'2011-15 % split'!V53 -> 128.6534997 | W53: =$Z53*'2011-15 % split'!W53 -> 0 | X53: =$Z53*'2011-15 % split'!X53 -> 0 | Y53: =$Z53*'2011-15 % split'!Y53 -> 0 | Z53: ='2011-15 rates summary'!M53 -> 379.25 | AA53: =$AF53*'2011-15 % split'!AA53 -> 264.7518458 | AB53: =$AF53*'2011-15 % split'!AB53 -> 130.2681542 | AC53: =$AF53*'2011-15 % split'!AC53 -> 0 | AD53: =$AF53*'2011-15 % split'!AD53 -> 0 | AE53: =$AF53*'2011-15 % split'!AE53 -> 0 | AF53: ='2011-15 rates summary'!P53 -> 395.02 | AG53: ='CP NC 1Ph (NR) AH'!O$57 -> 297.7525156 | AH53: ='CP NC 1Ph (NR) AH'!O$58 -> 99.57610053 | AI53: ='CP NC 1Ph (NR) AH'!O$59 -> 0 | AJ53: ='CP NC 1Ph (NR) AH'!O$61 -> 35.75957545 | AK53: ='CP NC 1Ph (NR) AH'!O$60 -> 52.40367118 | AL53: ='CP NC 1Ph (NR) AH'!O$62 -> 33.98443039 | AM53: 519.4762931 | AN53: ='CP NC 1Ph (NR) AH'!P$57 -> 302.7677798 | AO53: ='CP NC 1Ph (NR) AH'!P$58 -> 99.57610053 | AP53: ='CP NC 1Ph (NR) AH'!P$59 -> 0 | AQ53: ='CP NC 1Ph (NR) AH'!P$61 -> 36.21094923 | AR53: ='CP NC 1Ph (NR) AH'!P$60 -> 53.06513437 | AS53: ='CP NC 1Ph (NR) AH'!P$62 -> 34.41339747 | AT53: 526.0333614 | AU53: ='CP NC 1Ph (NR) AH'!Q$57 -> 307.8675197 | AV53: ='CP NC 1Ph (NR) AH'!Q$58 -> 99.57610053 | AW53: ='CP NC 1Ph (NR) AH'!Q$59 -> 0 | AX53: ='CP NC 1Ph (NR) AH'!Q$61 -> 36.66992582 | AY53: ='CP NC 1Ph (NR) AH'!Q$60 -> 53.73773908 | AZ53: ='CP NC 1Ph (NR) AH'!Q$62 -> 34.84958996 | BA53: 532.7008751 | BB53: ='CP NC 1Ph (NR) AH'!R$57 -> 313.0531584 | BC53: ='CP NC 1Ph (NR) AH'!R$58 -> 99.57610053 | BD53: ='CP NC 1Ph (NR) AH'!R$59 -> 0 | BE53: ='CP NC 1Ph (NR) AH'!R$61 -> 37.1366333 | BF53: ='CP NC 1Ph (NR) AH'!R$60 -> 54.42167295 | BG53: ='CP NC 1Ph (NR) AH'!R$62 -> 35.29312956 | BH53: 539.4806947 | BI53: ='CP NC 1Ph (NR) AH'!S$57 -> 318.3261425 | BJ53: ='CP NC 1Ph (NR) AH'!S$58 -> 99.57610053 | BK53: ='CP NC 1Ph (NR) AH'!S$59 -> 0 | BL53: ='CP NC 1Ph (NR) AH'!S$61 -> 37.61120187 | BM53: ='CP NC 1Ph (NR) AH'!S$60 -> 55.11712683 | BN53: ='CP NC 1Ph (NR) AH'!S$62 -> 35.74414002 | BO53: 546.3747118 | BP53: =SUM(AM53,AT53,BA53,BH53,BO53)-SUM('CP NC 1Ph (NR) AH'!O64:S64) -> 0
B54: Multi phase DC BH | C54: =$H54*'2011-15 % split'!C54 -> 187.9792872 | D54: =$H54*'2011-15 % split'!D54 -> 206.7507128 | E54: =$H54*'2011-15 % split'!E54 -> 0 | F54: =$H54*'2011-15 % split'!F54 -> 0 | G54: =$H54*'2011-15 % split'!G54 -> 0 | H54: ='2011-15 rates summary'!D54 -> 394.73 | I54: =$N54*'2011-15 % split'!I54 -> 199.5492766 | J54: =$N54*'2011-15 % split'!J54 -> 211.2807234 | K54: =$N54*'2011-15 % split'!K54 -> 0 | L54: =$N54*'2011-15 % split'!L54 -> 0 | M54: =$N54*'2011-15 % split'!M54 -> 0 | N54: ='2011-15 rates summary'!G54 -> 410.83 | O54: =$T54*'2011-15 % split'!O54 -> 210.4721689 | P54: =$T54*'2011-15 % split'!P54 -> 216.0878311 | Q54: =$T54*'2011-15 % split'!Q54 -> 0 | R54: =$T54*'2011-15 % split'!R54 -> 0 | S54: =$T54*'2011-15 % split'!S54 -> 0 | T54: ='2011-15 rates summary'!J54 -> 426.56 | U54: =$Z54*'2011-15 % split'!U54 -> 226.9735908 | V54: =$Z54*'2011-15 % split'!V54 -> 223.2264092 | W54: =$Z54*'2011-15 % split'!W54 -> 0 | X54: =$Z54*'2011-15 % split'!X54 -> 0 | Y54: =$Z54*'2011-15 % split'!Y54 -> 0 | Z54: ='2011-15 rates summary'!M54 -> 450.2 | AA54: =$AF54*'2011-15 % split'!AA54 -> 241.3789501 | AB54: =$AF54*'2011-15 % split'!AB54 -> 227.5410499 | AC54: =$AF54*'2011-15 % split'!AC54 -> 0 | AD54: =$AF54*'2011-15 % split'!AD54 -> 0 | AE54: =$AF54*'2011-15 % split'!AE54 -> 0 | AF54: ='2011-15 rates summary'!P54 -> 468.92 | AG54: ='CP NC 3Ph DC (NR) BH'!O$57 -> 259.8327888 | AH54: ='CP NC 3Ph DC (NR) BH'!O$58 -> 171.0012313 | AI54: ='CP NC 3Ph DC (NR) BH'!O$59 -> 0 | AJ54: ='CP NC 3Ph DC (NR) BH'!O$61 -> 38.77506181 | AK54: ='CP NC 3Ph DC (NR) BH'!O$60 -> 56.82269892 | AL54: ='CP NC 3Ph DC (NR) BH'!O$62 -> 36.85022466 | AM54: 563.2820055 | AN54: ='CP NC 3Ph DC (NR) BH'!P$57 -> 264.2093432 | AO54: ='CP NC 3Ph DC (NR) BH'!P$58 -> 171.0012313 | AP54: ='CP NC 3Ph DC (NR) BH'!P$59 -> 0 | AQ54: ='CP NC 3Ph DC (NR) BH'!P$61 -> 39.16895171 | AR54: ='CP NC 3Ph DC (NR) BH'!P$60 -> 57.39992267 | AS54: ='CP NC 3Ph DC (NR) BH'!P$62 -> 37.22456142 | AT54: 569.0040103 | AU54: ='CP NC 3Ph DC (NR) BH'!Q$57 -> 268.6596152 | AV54: ='CP NC 3Ph DC (NR) BH'!Q$58 -> 171.0012313 | AW54: ='CP NC 3Ph DC (NR) BH'!Q$59 -> 0 | AX54: ='CP NC 3Ph DC (NR) BH'!Q$61 -> 39.56947618 | AY54: ='CP NC 3Ph DC (NR) BH'!Q$60 -> 57.98686904 | AZ54: ='CP NC 3Ph DC (NR) BH'!Q$62 -> 37.60520342 | BA54: 574.8223951 | BB54: ='CP NC 3Ph DC (NR) BH'!R$57 -> 273.1848463 | BC54: ='CP NC 3Ph DC (NR) BH'!R$58 -> 171.0012313 | BD54: ='CP NC 3Ph DC (NR) BH'!R$59 -> 0 | BE54: ='CP NC 3Ph DC (NR) BH'!R$61 -> 39.97674698 | BF54: ='CP NC 3Ph DC (NR) BH'!R$60 -> 58.58370177 | BG54: ='CP NC 3Ph DC (NR) BH'!R$62 -> 37.99225684 | BH54: 580.7387831 | BI54: ='CP NC 3Ph DC (NR) BH'!S$57 -> 277.7862992 | BJ54: ='CP NC 3Ph DC (NR) BH'!S$58 -> 171.0012313 | BK54: ='CP NC 3Ph DC (NR) BH'!S$59 -> 0 | BL54: ='CP NC 3Ph DC (NR) BH'!S$61 -> 40.39087774 | BM54: ='CP NC 3Ph DC (NR) BH'!S$60 -> 59.19058739 | BN54: ='CP NC 3Ph DC (NR) BH'!S$62 -> 38.38582969 | BO54: 586.7548253 | BP54: =SUM(AM54,AT54,BA54,BH54,BO54)-SUM('CP NC 3Ph DC (NR) BH'!O64:S64) -> 0
B55: Multi phase DC AH | C55: =$H55*'2011-15 % split'!C55 -> 212.14139 | D55: =$H55*'2011-15 % split'!D55 -> 206.74861 | E55: =$H55*'2011-15 % split'!E55 -> 0 | F55: =$H55*'2011-15 % split'!F55 -> 0 | G55: =$H55*'2011-15 % split'!G55 -> 0 | H55: ='2011-15 rates summary'!D55 -> 418.89 | I55: =$N55*'2011-15 % split'!I55 -> 223.6811226 | J55: =$N55*'2011-15 % split'!J55 -> 212.2888774 | K55: =$N55*'2011-15 % split'!K55 -> 0 | L55: =$N55*'2011-15 % split'!L55 -> 0 | M55: =$N55*'2011-15 % split'!M55 -> 0 | N55: ='2011-15 rates summary'!G55 -> 435.97 | O55: =$T55*'2011-15 % split'!O55 -> 235.744848 | P55: =$T55*'2011-15 % split'!P55 -> 216.915152 | Q55: =$T55*'2011-15 % split'!Q55 -> 0 | R55: =$T55*'2011-15 % split'!R55 -> 0 | S55: =$T55*'2011-15 % split'!S55 -> 0 | T55: ='2011-15 rates summary'!J55 -> 452.66 | U55: =$Z55*'2011-15 % split'!U55 -> 253.8956914 | V55: =$Z55*'2011-15 % split'!V55 -> 223.8443086 | W55: =$Z55*'2011-15 % split'!W55 -> 0 | X55: =$Z55*'2011-15 % split'!X55 -> 0 | Y55: =$Z55*'2011-15 % split'!Y55 -> 0 | Z55: ='2011-15 rates summary'!M55 -> 477.74 | AA55: =$AF55*'2011-15 % split'!AA55 -> 269.7111066 | AB55: =$AF55*'2011-15 % split'!AB55 -> 227.8988934 | AC55: =$AF55*'2011-15 % split'!AC55 -> 0 | AD55: =$AF55*'2011-15 % split'!AD55 -> 0 | AE55: =$AF55*'2011-15 % split'!AE55 -> 0 | AF55: ='2011-15 rates summary'!P55 -> 497.61 | AG55: ='CP NC 3Ph DC (NR) AH'!O$57 -> 297.7525156 | AH55: ='CP NC 3Ph DC (NR) AH'!O$58 -> 171.0012313 | AI55: ='CP NC 3Ph DC (NR) AH'!O$59 -> 0 | AJ55: ='CP NC 3Ph DC (NR) AH'!O$61 -> 42.18783722 | AK55: ='CP NC 3Ph DC (NR) AH'!O$60 -> 61.82393167 | AL55: ='CP NC 3Ph DC (NR) AH'!O$62 -> 40.0935861 | AM55: 612.8591019 | AN55: ='CP NC 3Ph DC (NR) AH'!P$57 -> 302.7677798 | AO55: ='CP NC 3Ph DC (NR) AH'!P$58 -> 171.0012313 | AP55: ='CP NC 3Ph DC (NR) AH'!P$59 -> 0 | AQ55: ='CP NC 3Ph DC (NR) AH'!P$61 -> 42.63921099 | AR55: ='CP NC 3Ph DC (NR) AH'!P$60 -> 62.48539487 | AS55: ='CP NC 3Ph DC (NR) AH'!P$62 -> 40.52255318 | AT55: 619.4161701 | AU55: ='CP NC 3Ph DC (NR) AH'!Q$57 -> 307.8675197 | AV55: ='CP NC 3Ph DC (NR) AH'!Q$58 -> 171.0012313 | AW55: ='CP NC 3Ph DC (NR) AH'!Q$59 -> 0 | AX55: ='CP NC 3Ph DC (NR) AH'!Q$61 -> 43.09818759 | AY55: ='CP NC 3Ph DC (NR) AH'!Q$60 -> 63.15799957 | AZ55: ='CP NC 3Ph DC (NR) AH'!Q$62 -> 40.95874567 | BA55: 626.0836838 | BB55: ='CP NC 3Ph DC (NR) AH'!R$57 -> 313.0531584 | BC55: ='CP NC 3Ph DC (NR) AH'!R$58 -> 171.0012313 | BD55: ='CP NC 3Ph DC (NR) AH'!R$59 -> 0 | BE55: ='CP NC 3Ph DC (NR) AH'!R$61 -> 43.56489507 | BF55: ='CP NC 3Ph DC (NR) AH'!R$60 -> 63.84193345 | BG55: ='CP NC 3Ph DC (NR) AH'!R$62 -> 41.40228527 | BH55: 632.8635034 | BI55: ='CP NC 3Ph DC (NR) AH'!S$57 -> 318.3261425 | BJ55: ='CP NC 3Ph DC (NR) AH'!S$58 -> 171.0012313 | BK55: ='CP NC 3Ph DC (NR) AH'!S$59 -> 0 | BL55: ='CP NC 3Ph DC (NR) AH'!S$61 -> 44.03946364 | BM55: ='CP NC 3Ph DC (NR) AH'!S$60 -> 64.53738733 | BN55: ='CP NC 3Ph DC (NR) AH'!S$62 -> 41.85329573 | BO55: 639.7575205 | BP55: =SUM(AM55,AT55,BA55,BH55,BO55)-SUM('CP NC 3Ph DC (NR) AH'!O64:S64) -> 0
B56: Multi phase CT BH | C56: =$H56*'2011-15 % split'!C56 -> 1550.129717 | D56: =$H56*'2011-15 % split'!D56 -> 376.6402827 | E56: =$H56*'2011-15 % split'!E56 -> 0 | F56: =$H56*'2011-15 % split'!F56 -> 0 | G56: =$H56*'2011-15 % split'!G56 -> 0 | H56: ='2011-15 rates summary'!D56 -> 1926.77 | I56: =$N56*'2011-15 % split'!I56 -> 1622.0732 | J56: =$N56*'2011-15 % split'!J56 -> 383.2867997 | K56: =$N56*'2011-15 % split'!K56 -> 0 | L56: =$N56*'2011-15 % split'!L56 -> 0 | M56: =$N56*'2011-15 % split'!M56 -> 0 | N56: ='2011-15 rates summary'!G56 -> 2005.36 | O56: =$T56*'2011-15 % split'!O56 -> 1694.481429 | P56: =$T56*'2011-15 % split'!P56 -> 387.6785714 | Q56: =$T56*'2011-15 % split'!Q56 -> 0 | R56: =$T56*'2011-15 % split'!R56 -> 0 | S56: =$T56*'2011-15 % split'!S56 -> 0 | T56: ='2011-15 rates summary'!J56 -> 2082.16 | U56: =$Z56*'2011-15 % split'!U56 -> 1801.82829 | V56: =$Z56*'2011-15 % split'!V56 -> 395.7317102 | W56: =$Z56*'2011-15 % split'!W56 -> 0 | X56: =$Z56*'2011-15 % split'!X56 -> 0 | Y56: =$Z56*'2011-15 % split'!Y56 -> 0 | Z56: ='2011-15 rates summary'!M56 -> 2197.56 | AA56: =$AF56*'2011-15 % split'!AA56 -> 1891.141988 | AB56: =$AF56*'2011-15 % split'!AB56 -> 397.818012 | AC56: =$AF56*'2011-15 % split'!AC56 -> 0 | AD56: =$AF56*'2011-15 % split'!AD56 -> 0 | AE56: =$AF56*'2011-15 % split'!AE56 -> 0 | AF56: ='2011-15 rates summary'!P56 -> 2288.96 | AG56: ='CP NC 3Ph CT (NR) BH'!O$77 -> 1285.340781 | AH56: ='CP NC 3Ph CT (NR) BH'!O$78 -> 311.5188636 | AI56: ='CP NC 3Ph CT (NR) BH'!O$79 -> 0 | AJ56: ='CP NC 3Ph CT (NR) BH'!O$81 -> 143.717368 | AK56: ='CP NC 3Ph CT (NR) BH'!O$80 -> 210.6098185 | AL56: ='CP NC 3Ph CT (NR) BH'!O$82 -> 136.5830782 | AM56: 2087.769909 | AN56: ='CP NC 3Ph CT (NR) BH'!P$77 -> 1306.990719 | AO56: ='CP NC 3Ph CT (NR) BH'!P$78 -> 311.5188636 | AP56: ='CP NC 3Ph CT (NR) BH'!P$79 -> 0 | AQ56: ='CP NC 3Ph CT (NR) BH'!P$81 -> 145.6658624 | AR56: ='CP NC 3Ph CT (NR) BH'!P$80 -> 213.4652289 | AS56: ='CP NC 3Ph CT (NR) BH'!P$82 -> 138.4348472 | AT56: 2116.075521 | AU56: ='CP NC 3Ph CT (NR) BH'!Q$77 -> 1329.005323 | AV56: ='CP NC 3Ph CT (NR) BH'!Q$78 -> 311.5188636 | AW56: ='CP NC 3Ph CT (NR) BH'!Q$79 -> 0 | AX56: ='CP NC 3Ph CT (NR) BH'!Q$81 -> 147.6471768 | AY56: ='CP NC 3Ph CT (NR) BH'!Q$80 -> 216.368735 | AZ56: ='CP NC 3Ph CT (NR) BH'!Q$82 -> 140.3178069 | BA56: 2144.857906 | BB56: ='CP NC 3Ph CT (NR) BH'!R$77 -> 1351.390735 | BC56: ='CP NC 3Ph CT (NR) BH'!R$78 -> 311.5188636 | BD56: ='CP NC 3Ph CT (NR) BH'!R$79 -> 0 | BE56: ='CP NC 3Ph CT (NR) BH'!R$81 -> 149.6618639 | BF56: ='CP NC 3Ph CT (NR) BH'!R$80 -> 219.321147 | BG56: ='CP NC 3Ph CT (NR) BH'!R$82 -> 142.2324827 | BH56: 2174.125093 | BI56: ='CP NC 3Ph CT (NR) BH'!S$77 -> 1374.153202 | BJ56: ='CP NC 3Ph CT (NR) BH'!S$78 -> 311.5188636 | BK56: ='CP NC 3Ph CT (NR) BH'!S$79 -> 0 | BL56: ='CP NC 3Ph CT (NR) BH'!S$81 -> 151.7104859 | BM56: ='CP NC 3Ph CT (NR) BH'!S$80 -> 222.3232887 | BN56: ='CP NC 3Ph CT (NR) BH'!S$82 -> 144.1794088 | BO56: 2203.885249 | BP56: =SUM(AM56,AT56,BA56,BH56,BO56)-SUM('CP NC 3Ph CT (NR) BH'!O84:S84) -> 0
B57: Multi phase CT AH | C57: =$H57*'2011-15 % split'!C57 -> 1723.428617 | D57: =$H57*'2011-15 % split'!D57 -> 376.641383 | E57: =$H57*'2011-15 % split'!E57 -> 0 | F57: =$H57*'2011-15 % split'!F57 -> 0 | G57: =$H57*'2011-15 % split'!G57 -> 0 | H57: ='2011-15 rates summary'!D57 -> 2100.07 | I57: =$N57*'2011-15 % split'!I57 -> 1799.685592 | J57: =$N57*'2011-15 % split'!J57 -> 386.044408 | K57: =$N57*'2011-15 % split'!K57 -> 0 | L57: =$N57*'2011-15 % split'!L57 -> 0 | M57: =$N57*'2011-15 % split'!M57 -> 0 | N57: ='2011-15 rates summary'!G57 -> 2185.73 | O57: =$T57*'2011-15 % split'!O57 -> 1879.15898 | P57: =$T57*'2011-15 % split'!P57 -> 390.2810198 | Q57: =$T57*'2011-15 % split'!Q57 -> 0 | R57: =$T57*'2011-15 % split'!R57 -> 0 | S57: =$T57*'2011-15 % split'!S57 -> 0 | T57: ='2011-15 rates summary'!J57 -> 2269.44 | U57: =$Z57*'2011-15 % split'!U57 -> 1997.051079 | V57: =$Z57*'2011-15 % split'!V57 -> 398.168921 | W57: =$Z57*'2011-15 % split'!W57 -> 0 | X57: =$Z57*'2011-15 % split'!X57 -> 0 | Y57: =$Z57*'2011-15 % split'!Y57 -> 0 | Z57: ='2011-15 rates summary'!M57 -> 2395.22 | AA57: =$AF57*'2011-15 % split'!AA57 -> 2094.810749 | AB57: =$AF57*'2011-15 % split'!AB57 -> 400.0292508 | AC57: =$AF57*'2011-15 % split'!AC57 -> 0 | AD57: =$AF57*'2011-15 % split'!AD57 -> 0 | AE57: =$AF57*'2011-15 % split'!AE57 -> 0 | AF57: ='2011-15 rates summary'!P57 -> 2494.84 | AG57: ='CP NC 3Ph CT (NR) AH'!O$77 -> 1502.9606 | AH57: ='CP NC 3Ph CT (NR) AH'!O$78 -> 311.5188636 | AI57: ='CP NC 3Ph CT (NR) AH'!O$79 -> 0 | AJ57: ='CP NC 3Ph CT (NR) AH'!O$81 -> 163.3031518 | AK57: ='CP NC 3Ph CT (NR) AH'!O$80 -> 239.3116965 | AL57: ='CP NC 3Ph CT (NR) AH'!O$82 -> 155.1966019 | AM57: 2372.290914 | AN57: ='CP NC 3Ph CT (NR) AH'!P$77 -> 1528.276069 | AO57: ='CP NC 3Ph CT (NR) AH'!P$78 -> 311.5188636 | AP57: ='CP NC 3Ph CT (NR) AH'!P$79 -> 0 | AQ57: ='CP NC 3Ph CT (NR) AH'!P$81 -> 165.5815439 | AR57: ='CP NC 3Ph CT (NR) AH'!P$80 -> 242.6505537 | AS57: ='CP NC 3Ph CT (NR) AH'!P$82 -> 157.3618921 | AT57: 2405.388922 | AU57: ='CP NC 3Ph CT (NR) AH'!Q$77 -> 1554.017945 | AV57: ='CP NC 3Ph CT (NR) AH'!Q$78 -> 311.5188636 | AW57: ='CP NC 3Ph CT (NR) AH'!Q$79 -> 0 | AX57: ='CP NC 3Ph CT (NR) AH'!Q$81 -> 167.8983127 | AY57: ='CP NC 3Ph CT (NR) AH'!Q$80 -> 246.0456496 | AZ57: ='CP NC 3Ph CT (NR) AH'!Q$82 -> 159.5636539 | BA57: 2439.044425 | BB57: ='CP NC 3Ph CT (NR) AH'!R$77 -> 1580.19341 | BC57: ='CP NC 3Ph CT (NR) AH'!R$78 -> 311.5188636 | BD57: ='CP NC 3Ph CT (NR) AH'!R$79 -> 0 | BE57: ='CP NC 3Ph CT (NR) AH'!R$81 -> 170.2541046 | BF57: ='CP NC 3Ph CT (NR) AH'!R$80 -> 249.4979317 | BG57: ='CP NC 3Ph CT (NR) AH'!R$82 -> 161.8025017 | BH57: 2473.266811 | BI57: ='CP NC 3Ph CT (NR) AH'!S$77 -> 1606.809767 | BJ57: ='CP NC 3Ph CT (NR) AH'!S$78 -> 311.5188636 | BK57: ='CP NC 3Ph CT (NR) AH'!S$79 -> 0 | BL57: ='CP NC 3Ph CT (NR) AH'!S$81 -> 172.6495768 | BM57: ='CP NC 3Ph CT (NR) AH'!S$80 -> 253.0083631 | BN57: ='CP NC 3Ph CT (NR) AH'!S$82 -> 164.0790599 | BO57: 2508.065631 | BP57: =SUM(AM57,AT57,BA57,BH57,BO57)-SUM('CP NC 3Ph CT (NR) AH'!O84:S84) -> 0
B59: Re-test of type 5 & 6 metering installations for first tier customers with annual consumption greater than 160MWh BH
B60: Re-test of type 5 & 6 metering installations for first tier customers with annual consumption greater than 160MWh AH
B62: Remote Meter Reconfiguration | C62: =$H62*'2011-15 % split'!C62 -> 28.73 | D62: =$H62*'2011-15 % split'!D62 -> 0 | E62: =$H62*'2011-15 % split'!E62 -> 0 | F62: =$H62*'2011-15 % split'!F62 -> 0 | G62: =$H62*'2011-15 % split'!G62 -> 0 | H62: ='2011-15 rates summary'!D62 -> 28.73 | I62: =$N62*'2011-15 % split'!I62 -> 29.74 | J62: =$N62*'2011-15 % split'!J62 -> 0 | K62: =$N62*'2011-15 % split'!K62 -> 0 | L62: =$N62*'2011-15 % split'!L62 -> 0 | M62: =$N62*'2011-15 % split'!M62 -> 0 | N62: ='2011-15 rates summary'!G62 -> 29.74 | O62: =$T62*'2011-15 % split'!O62 -> 30.91018852 | P62: =$T62*'2011-15 % split'!P62 -> 0 | Q62: =$T62*'2011-15 % split'!Q62 -> 0 | R62: =$T62*'2011-15 % split'!R62 -> 0 | S62: =$T62*'2011-15 % split'!S62 -> 0 | T62: ='2011-15 rates summary'!J62 -> 30.91018852 | U62: =$Z62*'2011-15 % split'!U62 -> 30.91018852 | V62: =$Z62*'2011-15 % split'!V62 -> 0 | W62: =$Z62*'2011-15 % split'!W62 -> 0 | X62: =$Z62*'2011-15 % split'!X62 -> 0 | Y62: =$Z62*'2011-15 % split'!Y62 -> 0 | Z62: ='2011-15 rates summary'!M62 -> 30.91018852 | AA62: =$AF62*'2011-15 % split'!AA62 -> 30.91018852 | AB62: =$AF62*'2011-15 % split'!AB62 -> 0 | AC62: =$AF62*'2011-15 % split'!AC62 -> 0 | AD62: =$AF62*'2011-15 % split'!AD62 -> 0 | AE62: =$AF62*'2011-15 % split'!AE62 -> 0 | AF62: ='2011-15 rates summary'!P62 -> 30.91018852 | AG62: ='CP Rem Mtr Config'!O$38 -> 41.19683522 | AH62: ='CP Rem Mtr Config'!O$39 -> 0 | AI62: ='CP Rem Mtr Config'!O$40 -> 0 | AJ62: ='CP Rem Mtr Config'!O$42 -> 3.70771517 | AK62: ='CP Rem Mtr Config'!O$41 -> 5.433450597 | AL62: ='CP Rem Mtr Config'!O$43 -> 3.523660069 | AM62: =SUM(AG62:AL62) -> 53.86166106 | AN62: ='CP Rem Mtr Config'!P$38 -> 41.89074376 | AO62: ='CP Rem Mtr Config'!P$39 -> 0 | AP62: ='CP Rem Mtr Config'!P$40 -> 0 | AQ62: ='CP Rem Mtr Config'!P$42 -> 3.770166938 | AR62: ='CP Rem Mtr Config'!P$41 -> 5.524970194 | AS62: ='CP Rem Mtr Config'!P$43 -> 3.583011662 | AT62: =SUM(AN62:AS62) -> 54.76889255 | AU62: ='CP Rem Mtr Config'!Q$38 -> 42.5963403 | AV62: ='CP Rem Mtr Config'!Q$39 -> 0 | AW62: ='CP Rem Mtr Config'!Q$40 -> 0 | AX62: ='CP Rem Mtr Config'!Q$42 -> 3.833670627 | AY62: ='CP Rem Mtr Config'!Q$41 -> 5.618031323 | AZ62: ='CP Rem Mtr Config'!Q$43 -> 3.643362958 | BA62: =SUM(AU62:AZ62) -> 55.69140521 | BB62: ='CP Rem Mtr Config'!R$38 -> 43.31382173 | BC62: ='CP Rem Mtr Config'!R$39 -> 0 | BD62: ='CP Rem Mtr Config'!R$40 -> 0 | BE62: ='CP Rem Mtr Config'!R$42 -> 3.898243956 | BF62: ='CP Rem Mtr Config'!R$41 -> 5.712659948 | BG62: ='CP Rem Mtr Config'!R$43 -> 3.704730795 | BH62: =SUM(BB62:BG62) -> 56.62945643 | BI62: ='CP Rem Mtr Config'!S$38 -> 44.04338823 | BJ62: ='CP Rem Mtr Config'!S$39 -> 0 | BK62: ='CP Rem Mtr Config'!S$40 -> 0 | BL62: ='CP Rem Mtr Config'!S$42 -> 3.96390494 | BM62: ='CP Rem Mtr Config'!S$41 -> 5.808882473 | BN62: ='CP Rem Mtr Config'!S$43 -> 3.767132295 | BO62: =SUM(BI62:BN62) -> 57.58330794 | BP62: =SUM(AM62,AT62,BA62,BH62,BO62)-SUM('CP Rem Mtr Config'!O45:S45) -> 0
B63: Remote Reenergisation | C63: =$H63*'2011-15 % split'!C63 -> 5.42 | D63: =$H63*'2011-15 % split'!D63 -> 0 | E63: =$H63*'2011-15 % split'!E63 -> 0 | F63: =$H63*'2011-15 % split'!F63 -> 0 | G63: =$H63*'2011-15 % split'!G63 -> 0 | H63: ='2011-15 rates summary'!D63 -> 5.42 | I63: =$N63*'2011-15 % split'!I63 -> 5.61 | J63: =$N63*'2011-15 % split'!J63 -> 0 | K63: =$N63*'2011-15 % split'!K63 -> 0 | L63: =$N63*'2011-15 % split'!L63 -> 0 | M63: =$N63*'2011-15 % split'!M63 -> 0 | N63: ='2011-15 rates summary'!G63 -> 5.61 | O63: =$T63*'2011-15 % split'!O63 -> 5.828778406 | P63: =$T63*'2011-15 % split'!P63 -> 0 | Q63: =$T63*'2011-15 % split'!Q63 -> 0 | R63: =$T63*'2011-15 % split'!R63 -> 0 | S63: =$T63*'2011-15 % split'!S63 -> 0 | T63: ='2011-15 rates summary'!J63 -> 5.828778406 | U63: =$Z63*'2011-15 % split'!U63 -> 5.828778406 | V63: =$Z63*'2011-15 % split'!V63 -> 0 | W63: =$Z63*'2011-15 % split'!W63 -> 0 | X63: =$Z63*'2011-15 % split'!X63 -> 0 | Y63: =$Z63*'2011-15 % split'!Y63 -> 0 | Z63: ='2011-15 rates summary'!M63 -> 5.828778406 | AA63: =$AF63*'2011-15 % split'!AA63 -> 5.828778406 | AB63: =$AF63*'2011-15 % split'!AB63 -> 0 | AC63: =$AF63*'2011-15 % split'!AC63 -> 0 | AD63: =$AF63*'2011-15 % split'!AD63 -> 0 | AE63: =$AF63*'2011-15 % split'!AE63 -> 0 | AF63: ='2011-15 rates summary'!P63 -> 5.828778406 | AG63: ='CP Rem Re-en'!O$35 -> 7.76854607 | AH63: ='CP Rem Re-en'!O$36 -> 0 | AI63: ='CP Rem Re-en'!O$37 -> 0 | AJ63: ='CP Rem Re-en'!O$39 -> 0.6991691463 | AK63: ='CP Rem Re-en'!O$38 -> 1.024593541 | AL63: ='CP Rem Re-en'!O$40 -> 0.664461613 | AM63: 10.15677037 | AN63: ='CP Rem Re-en'!P$35 -> 7.899397394 | AO63: ='CP Rem Re-en'!P$36 -> 0 | AP63: ='CP Rem Re-en'!P$37 -> 0 | AQ63: ='CP Rem Re-en'!P$39 -> 0.7109457655 | AR63: ='CP Rem Re-en'!P$38 -> 1.041851522 | AS63: ='CP Rem Re-en'!P$40 -> 0.6756536277 | AT63: 10.32784831 | AU63: ='CP Rem Re-en'!Q$35 -> 8.032452743 | AV63: ='CP Rem Re-en'!Q$36 -> 0 | AW63: ='CP Rem Re-en'!Q$37 -> 0 | AX63: ='CP Rem Re-en'!Q$39 -> 0.7229207469 | AY63: ='CP Rem Re-en'!Q$38 -> 1.059400192 | AZ63: ='CP Rem Re-en'!Q$40 -> 0.6870341578 | BA63: 10.50180784 | BB63: ='CP Rem Re-en'!R$35 -> 8.167749241 | BC63: ='CP Rem Re-en'!R$36 -> 0 | BD63: ='CP Rem Re-en'!R$37 -> 0 | BE63: ='CP Rem Re-en'!R$39 -> 0.7350974317 | BF63: ='CP Rem Re-en'!R$38 -> 1.077244447 | BG63: ='CP Rem Re-en'!R$40 -> 0.6986063784 | BH63: 10.6786975 | BI63: ='CP Rem Re-en'!S$35 -> 8.305324637 | BJ63: ='CP Rem Re-en'!S$36 -> 0 | BK63: ='CP Rem Re-en'!S$37 -> 0 | BL63: ='CP Rem Re-en'!S$39 -> 0.7474792173 | BM63: ='CP Rem Re-en'!S$38 -> 1.095389266 | BN63: ='CP Rem Re-en'!S$40 -> 0.7103735185 | BO63: 10.85856664 | BP63: =SUM(AM63,AT63,BA63,BH63,BO63)-SUM('CP Rem Re-en'!O42:S42) -> 0
B64: Remote Deenergisation | C64: =$H64*'2011-15 % split'!C64 -> 5.42 | D64: =$H64*'2011-15 % split'!D64 -> 0 | E64: =$H64*'2011-15 % split'!E64 -> 0 | F64: =$H64*'2011-15 % split'!F64 -> 0 | G64: =$H64*'2011-15 % split'!G64 -> 0 | H64: ='2011-15 rates summary'!D64 -> 5.42 | I64: =$N64*'2011-15 % split'!I64 -> 5.61 | J64: =$N64*'2011-15 % split'!J64 -> 0 | K64: =$N64*'2011-15 % split'!K64 -> 0 | L64: =$N64*'2011-15 % split'!L64 -> 0 | M64: =$N64*'2011-15 % split'!M64 -> 0 | N64: ='2011-15 rates summary'!G64 -> 5.61 | O64: =$T64*'2011-15 % split'!O64 -> 5.828778406 | P64: =$T64*'2011-15 % split'!P64 -> 0 | Q64: =$T64*'2011-15 % split'!Q64 -> 0 | R64: =$T64*'2011-15 % split'!R64 -> 0 | S64: =$T64*'2011-15 % split'!S64 -> 0 | T64: ='2011-15 rates summary'!J64 -> 5.828778406 | U64: =$Z64*'2011-15 % split'!U64 -> 5.828778406 | V64: =$Z64*'2011-15 % split'!V64 -> 0 | W64: =$Z64*'2011-15 % split'!W64 -> 0 | X64: =$Z64*'2011-15 % split'!X64 -> 0 | Y64: =$Z64*'2011-15 % split'!Y64 -> 0 | Z64: ='2011-15 rates summary'!M64 -> 5.828778406 | AA64: =$AF64*'2011-15 % split'!AA64 -> 5.828778406 | AB64: =$AF64*'2011-15 % split'!AB64 -> 0 | AC64: =$AF64*'2011-15 % split'!AC64 -> 0 | AD64: =$AF64*'2011-15 % split'!AD64 -> 0 | AE64: =$AF64*'2011-15 % split'!AE64 -> 0 | AF64: ='2011-15 rates summary'!P64 -> 5.828778406 | AG64: ='CP Rem De-en'!O$35 -> 7.76854607 | AH64: ='CP Rem De-en'!O$36 -> 0 | AI64: ='CP Rem De-en'!O$37 -> 0 | AJ64: ='CP Rem De-en'!O$39 -> 0.6991691463 | AK64: ='CP Rem De-en'!O$38 -> 1.024593541 | AL64: ='CP Rem De-en'!O$40 -> 0.664461613 | AM64: 10.15677037 | AN64: ='CP Rem De-en'!P$35 -> 7.899397394 | AO64: ='CP Rem De-en'!P$36 -> 0 | AP64: ='CP Rem De-en'!P$37 -> 0 | AQ64: ='CP Rem De-en'!P$39 -> 0.7109457655 | AR64: ='CP Rem De-en'!P$38 -> 1.041851522 | AS64: ='CP Rem De-en'!P$40 -> 0.6756536277 | AT64: 10.32784831 | AU64: ='CP Rem De-en'!Q$35 -> 8.032452743 | AV64: ='CP Rem De-en'!Q$36 -> 0 | AW64: ='CP Rem De-en'!Q$37 -> 0 | AX64: ='CP Rem De-en'!Q$39 -> 0.7229207469 | AY64: ='CP Rem De-en'!Q$38 -> 1.059400192 | AZ64: ='CP Rem De-en'!Q$40 -> 0.6870341578 | BA64: 10.50180784 | BB64: ='CP Rem De-en'!R$35 -> 8.167749241 | BC64: ='CP Rem De-en'!R$36 -> 0 | BD64: ='CP Rem De-en'!R$37 -> 0 | BE64: ='CP Rem De-en'!R$39 -> 0.7350974317 | BF64: ='CP Rem De-en'!R$38 -> 1.077244447 | BG64: ='CP Rem De-en'!R$40 -> 0.6986063784 | BH64: 10.6786975 | BI64: ='CP Rem De-en'!S$35 -> 8.305324637 | BJ64: ='CP Rem De-en'!S$36 -> 0 | BK64: ='CP Rem De-en'!S$37 -> 0 | BL64: ='CP Rem De-en'!S$39 -> 0.7474792173 | BM64: ='CP Rem De-en'!S$38 -> 1.095389266 | BN64: ='CP Rem De-en'!S$40 -> 0.7103735185 | BO64: 10.85856664 | BP64: =SUM(AM64,AT64,BA64,BH64,BO64)-SUM('CP Rem De-en'!O42:S42) -> 0
B66: Check | G66: =SUM(C9:G64)-SUM(H9:H64) -> 0 | H66: =SUM(H9:H64)-SUM('2011-15 rates summary'!$D$9:$D$64)+SUM('2011-15 rates summary'!D59:D60) -> 0 | M66: =SUM(I9:M64)-SUM(N9:N64) -> 0 | N66: =SUM(N9:N64)-SUM('2011-15 rates summary'!$G$9:$G$64)+SUM('2011-15 rates summary'!G59:G60) -> 0 | S66: =SUM(O9:S64)-SUM(T9:T64) -> 0 | T66: =SUM(T9:T64)-SUM('2011-15 rates summary'!$J$9:$J$64)+SUM('2011-15 rates summary'!J59:J60) -> 2.273736754e-12 | Y66: =SUM(U9:Y64)-SUM(Z9:Z64) -> 0 | Z66: =SUM(Z9:Z64)-SUM('2011-15 rates summary'!$M$9:$M$64)+SUM('2011-15 rates summary'!M59:M60) -> 0 | AE66: =SUM(AA9:AE64)-SUM(AF9:AF64) -> 0 | AF66: =SUM(AF9:AF64)-SUM('2011-15 rates summary'!$P$9:$P$64)+SUM('2011-15 rates summary'!P59:P60) -> 1.023181539e-12 | AL66: =SUM(AG9:AL64)-SUM(AM9:AM64) -> 0 | AS66: =SUM(AN9:AS64)-SUM(AT9:AT64) -> 0 | AZ66: =SUM(AU9:AZ64)-SUM(BA9:BA64) -> 0 | BG66: =SUM(BB9:BG64)-SUM(BH9:BH64) -> 0 | BN66: =SUM(BI9:BN64)-SUM(BO9:BO64) -> 0 | BP66: =SUM(C66:BO66) -> 3.296918294e-12

Sheet ACS 12.4
A1: =+ModelName -> CP ACS Model
A2: =MID(CELL("Filename",D1),FIND("]",CELL("Filename",D1))+1,255) -> ACS 12.4 | J2: =Check!D2 -> OK
A3: Menu
B4: Charges applicable during each year
B6: Name of Fee Based Service | C6: Current regulatory control period | H6: Forthcoming regulatory control period | M6: =SUM(M9:M65) -> 0
C7: Actual ($ ex GST) | H7: Real $2015 (ex GST)
C8: 2011 | D8: 2012 | E8: 2013 | F8: 2014 | G8: 2015 | H8: 2016 | I8: 2017 | J8: 2018 | K8: 2019 | L8: 2020
B9: Meter Investigation Test (BH) | C9: ='2011-15 rates summary'!D9 -> 244.53 | D9: ='2011-15 rates summary'!G9 -> 254.5 | E9: ='2011-15 rates summary'!J9 -> 264.24 | F9: ='2011-15 rates summary'!M9 -> 278.88 | G9: ='2011-15 rates summary'!P9 -> 290.47 | H9: ='2015-20 rate summary'!E17 -> 565.7250587 | I9: ='2015-20 rate summary'!F17 -> 575.2539811 | J9: ='2015-20 rate summary'!G17 -> 584.9434062 | K9: ='2015-20 rate summary'!H17 -> 594.7960374 | L9: ='2015-20 rate summary'!I17 -> 604.8146237
B10: Meter Investigation Test (AH) | C10: ='2011-15 rates summary'!D10 -> 267.2 | D10: ='2011-15 rates summary'!G10 -> 278.09 | E10: ='2011-15 rates summary'!J10 -> 288.74 | F10: ='2011-15 rates summary'!M10 -> 304.74 | G10: ='2011-15 rates summary'!P10 -> 317.41 | H10: ='2015-20 rate summary'!E18 -> 653.1035756 | I10: ='2015-20 rate summary'!F18 -> 664.1042785 | J10: ='2015-20 rate summary'!G18 -> 675.2902744 | K10: ='2015-20 rate summary'!H18 -> 686.6646841 | L10: ='2015-20 rate summary'!I18 -> 698.2306815
B11: Meter Accuracy Test - single phase (BH) | C11: ='2011-15 rates summary'!D13 -> 141.4 | D11: ='2011-15 rates summary'!G13 -> 147.16 | E11: ='2011-15 rates summary'!J13 -> 152.79 | F11: ='2011-15 rates summary'!M13 -> 161.25 | G11: ='2011-15 rates summary'!P13 -> 167.95 | H11: ='2015-20 rate summary'!E9 -> 348.89125 | I11: ='2015-20 rate summary'!F9 -> 354.7678814 | J11: ='2015-20 rate summary'!G9 -> 360.7434973 | K11: ='2015-20 rate summary'!H9 -> 366.8197648 | L11: ='2015-20 rate summary'!I9 -> 372.9983793
B12: Meter Accuracy Test - single phase (AH) | C12: ='2011-15 rates summary'!D11 -> 316.69 | D12: ='2011-15 rates summary'!G11 -> 329.6 | E12: ='2011-15 rates summary'!J11 -> 342.22 | F12: ='2011-15 rates summary'!M11 -> 361.18 | G12: ='2011-15 rates summary'!P11 -> 376.2 | H12: ='2015-20 rate summary'!E10 -> 398.4590416 | I12: ='2015-20 rate summary'!F10 -> 405.1705797 | J12: ='2015-20 rate summary'!G10 -> 411.9951652 | K12: ='2015-20 rate summary'!H10 -> 418.9347022 | L12: ='2015-20 rate summary'!I10 -> 425.9911269
B13: Meter Accuracy Test - Single phase additional meter (BH) | C13: ='2011-15 rates summary'!D12 -> 347.13 | D13: ='2011-15 rates summary'!G12 -> 361.28 | E13: ='2011-15 rates summary'!J12 -> 375.11 | F13: ='2011-15 rates summary'!M12 -> 395.9 | G13: ='2011-15 rates summary'!P12 -> 412.36 | H13: ='2015-20 rate summary'!E11 -> 446.5204027 | I13: ='2015-20 rate summary'!F11 -> 454.0414736 | J13: ='2015-20 rate summary'!G11 -> 461.6892274 | K13: ='2015-20 rate summary'!H11 -> 469.465798 | L13: ='2015-20 rate summary'!I11 -> 477.373355
B14: Meter Accuracy Test - multi phase (BH) | C14: ='2011-15 rates summary'!D16 -> 243.49 | D14: ='2011-15 rates summary'!G16 -> 253.42 | E14: ='2011-15 rates summary'!J16 -> 263.12 | F14: ='2011-15 rates summary'!M16 -> 277.7 | G14: ='2011-15 rates summary'!P16 -> 289.25 | H14: ='2015-20 rate summary'!E12 -> 513.1124263 | I14: ='2015-20 rate summary'!F12 -> 521.7551555 | J14: ='2015-20 rate summary'!G12 -> 530.5434606 | K14: ='2015-20 rate summary'!H12 -> 539.4797936 | L14: ='2015-20 rate summary'!I12 -> 548.5666477
B15: Meter Accuracy Test - multi phase (AH) | C15: ='2011-15 rates summary'!D14 -> 414.37 | D15: ='2011-15 rates summary'!G14 -> 431.27 | E15: ='2011-15 rates summary'!J14 -> 447.78 | F15: ='2011-15 rates summary'!M14 -> 472.59 | G15: ='2011-15 rates summary'!P14 -> 492.24 | H15: ='2015-20 rate summary'!E13 -> 196.4647579 | I15: ='2015-20 rate summary'!F13 -> 199.773958 | J15: ='2015-20 rate summary'!G13 -> 203.1388975 | K15: ='2015-20 rate summary'!H13 -> 206.560515 | L15: ='2015-20 rate summary'!I13 -> 210.0397654
B16: Meter Accuracy Test - Multi phase additional meter (BH) | C16: ='2011-15 rates summary'!D15 -> 455.35 | D16: ='2011-15 rates summary'!G15 -> 473.92 | E16: ='2011-15 rates summary'!J15 -> 492.07 | F16: ='2011-15 rates summary'!M15 -> 519.34 | G16: ='2011-15 rates summary'!P15 -> 540.94 | H16: ='2015-20 rate summary'!E14 -> 578.6703607 | I16: ='2015-20 rate summary'!F14 -> 588.4173304 | J16: ='2015-20 rate summary'!G14 -> 598.3284754 | K16: ='2015-20 rate summary'!H14 -> 608.4065611 | L16: ='2015-20 rate summary'!I14 -> 618.6543994
B17: Meter Accuracy Test - CT (BH) | C17: ='2011-15 rates summary'!D17 -> 404.8 | D17: ='2011-15 rates summary'!G17 -> 421.31 | E17: ='2011-15 rates summary'!J17 -> 437.44 | F17: ='2011-15 rates summary'!M17 -> 461.68 | G17: ='2011-15 rates summary'!P17 -> 480.88 | H17: ='2015-20 rate summary'!E15 -> 668.3062343 | I17: ='2015-20 rate summary'!F15 -> 679.5630068 | J17: ='2015-20 rate summary'!G15 -> 691.0093853 | K17: ='2015-20 rate summary'!H15 -> 702.6485637 | L17: ='2015-20 rate summary'!I15 -> 714.4837892
B18: Meter Accuracy Test - CT (AH) | C18: ='2011-15 rates summary'!D18 -> 444.75 | D18: ='2011-15 rates summary'!G18 -> 462.89 | E18: ='2011-15 rates summary'!J18 -> 480.61 | F18: ='2011-15 rates summary'!M18 -> 507.24 | G18: ='2011-15 rates summary'!P18 -> 528.33 | H18: ='2015-20 rate summary'!E16 -> 334.5948826 | I18: ='2015-20 rate summary'!F16 -> 340.2307099 | J18: ='2015-20 rate summary'!G16 -> 345.9614655 | K18: ='2015-20 rate summary'!H16 -> 351.7887484 | L18: ='2015-20 rate summary'!I16 -> 357.7141845
B20: Reconnections (incl Customer Transfer) BH | C20: ='2011-15 rates summary'!D20 -> 12.9 | D20: ='2011-15 rates summary'!G20 -> 18.34 | E20: ='2011-15 rates summary'!J20 -> 23.79 | F20: ='2011-15 rates summary'!M20 -> 24.37 | G20: ='2011-15 rates summary'!P20 -> 24.98 | H20: ='2015-20 rate summary'!E20 -> 34.85071082 | I20: ='2015-20 rate summary'!F20 -> 35.55369528 | J20: ='2015-20 rate summary'!G20 -> 36.16529621 | K20: ='2015-20 rate summary'!H20 -> 36.78241724 | L20: ='2015-20 rate summary'!I20 -> 37.41770216
B21: Reconnections (same day) BH | C21: ='2011-15 rates summary'!D21 -> 16.17 | D21: ='2011-15 rates summary'!G21 -> 22.99 | E21: ='2011-15 rates summary'!J21 -> 29.82 | F21: ='2011-15 rates summary'!M21 -> 30.55 | G21: ='2011-15 rates summary'!P21 -> 31.32 | H21: ='2015-20 rate summary'!E21 -> 0 | I21: ='2015-20 rate summary'!F21 -> 0 | J21: ='2015-20 rate summary'!G21 -> 0 | K21: ='2015-20 rate summary'!H21 -> 0 | L21: ='2015-20 rate summary'!I21 -> 0
B22: Reconnections (incl Customer Transfer) AH | C22: ='2011-15 rates summary'!D22 -> 55.06 | D22: ='2011-15 rates summary'!G22 -> 78.3 | E22: ='2011-15 rates summary'!J22 -> 101.58 | F22: ='2011-15 rates summary'!M22 -> 104.07 | G22: ='2011-15 rates summary'!P22 -> 106.7 | H22: ='2015-20 rate summary'!E22 -> 34.85071082 | I22: ='2015-20 rate summary'!F22 -> 35.55369528 | J22: ='2015-20 rate summary'!G22 -> 36.16529621 | K22: ='2015-20 rate summary'!H22 -> 36.78241724 | L22: ='2015-20 rate summary'!I22 -> 37.41770216
B23: Disconnection (BH only) | C23: ='2011-15 rates summary'!D23 -> 13.07 | D23: ='2011-15 rates summary'!G23 -> 18.58 | E23: ='2011-15 rates summary'!J23 -> 24.1 | F23: ='2011-15 rates summary'!M23 -> 24.69 | G23: ='2011-15 rates summary'!P23 -> 25.31 | H23: ='2015-20 rate summary'!E23 -> 34.33498971 | I23: ='2015-20 rate summary'!F23 -> 35.02686555 | J23: ='2015-20 rate summary'!G23 -> 35.62932655 | K23: ='2015-20 rate summary'!H23 -> 36.23725356 | L23: ='2015-20 rate summary'!I23 -> 36.86302734
B24: Disconnection (no AH service) | C24: ='2011-15 rates summary'!D24 -> 0 | D24: ='2011-15 rates summary'!G24 -> 0 | E24: ='2011-15 rates summary'!J24 -> 0 | F24: ='2011-15 rates summary'!M24 -> 0 | G24: ='2011-15 rates summary'!P24 -> 0 | H24: ='2015-20 rate summary'!E24 -> 43.98200821 | I24: ='2015-20 rate summary'!F24 -> 44.88168046 | J24: ='2015-20 rate summary'!G24 -> 45.65511193 | K24: ='2015-20 rate summary'!H24 -> 46.43502123 | L24: ='2015-20 rate summary'!I24 -> 47.23870927
B25: Disconnection for non payment (BH only) | C25: ='2011-15 rates summary'!D25 -> 13.07 | D25: ='2011-15 rates summary'!G25 -> 18.58 | E25: ='2011-15 rates summary'!J25 -> 24.1 | F25: ='2011-15 rates summary'!M25 -> 24.69 | G25: ='2011-15 rates summary'!P25 -> 25.31 | H25: ='2015-20 rate summary'!E25 -> 158.76454 | I25: ='2015-20 rate summary'!F25 -> 162.1366235 | J25: ='2015-20 rate summary'!G25 -> 164.9443025 | K25: ='2015-20 rate summary'!H25 -> 167.7704981 | L25: ='2015-20 rate summary'!I25 -> 170.6910527
B26: Special reading BH | C26: ='2011-15 rates summary'!D26 -> 10 | D26: ='2011-15 rates summary'!G26 -> 14.22 | E26: ='2011-15 rates summary'!J26 -> 18.44 | F26: ='2011-15 rates summary'!M26 -> 18.89 | G26: ='2011-15 rates summary'!P26 -> 19.36 | H26: ='2015-20 rate summary'!E26 -> 28.08144101 | I26: ='2015-20 rate summary'!F26 -> 28.66798374 | J26: ='2015-20 rate summary'!G26 -> 29.16333742 | K26: ='2015-20 rate summary'!H26 -> 29.66235304 | L26: ='2015-20 rate summary'!I26 -> 30.17738094
B27: Special reading AH - no service | C27: ='2011-15 rates summary'!D27 -> 0 | D27: ='2011-15 rates summary'!G27 -> 0 | E27: ='2011-15 rates summary'!J27 -> 0 | F27: ='2011-15 rates summary'!M27 -> 0 | G27: ='2011-15 rates summary'!P27 -> 0 | H27: ='2015-20 rate summary'!E27 -> 0 | I27: ='2015-20 rate summary'!F27 -> 0 | J27: ='2015-20 rate summary'!G27 -> 0 | K27: ='2015-20 rate summary'!H27 -> 0 | L27: ='2015-20 rate summary'!I27 -> 0
B28: Manual meter reading | C28: ='2011-15 rates summary'!D28 -> 0 | D28: ='2011-15 rates summary'!G28 -> 0 | E28: ='2011-15 rates summary'!J28 -> 0 | F28: ='2011-15 rates summary'!M28 -> 0 | G28: ='2011-15 rates summary'!P28 -> 19.36 | H28: ='2015-20 rate summary'!E28 -> 28.08144101 | I28: ='2015-20 rate summary'!F28 -> 28.66798374 | J28: ='2015-20 rate summary'!G28 -> 29.16333742 | K28: ='2015-20 rate summary'!H28 -> 29.66235304 | L28: ='2015-20 rate summary'!I28 -> 30.17738094
B29: Access to meter data | C29: ='2011-15 rates summary'!D29 -> 0 | D29: ='2011-15 rates summary'!G29 -> 0 | E29: ='2011-15 rates summary'!J29 -> 0 | F29: ='2011-15 rates summary'!M29 -> 0 | G29: ='2011-15 rates summary'!P29 -> 0 | H29: ='2015-20 rate summary'!E29 -> 46.16713805 | I29: ='2015-20 rate summary'!F29 -> 46.94476504 | J29: ='2015-20 rate summary'!G29 -> 47.73549018 | K29: ='2015-20 rate summary'!H29 -> 48.53953408 | L29: ='2015-20 rate summary'!I29 -> 49.35712109
B31: Service Truck Visit BH | C31: ='2011-15 rates summary'!D31 -> 367.82 | D31: ='2011-15 rates summary'!G31 -> 382.82 | E31: ='2011-15 rates summary'!J31 -> 397.48 | F31: ='2011-15 rates summary'!M31 -> 419.51 | G31: ='2011-15 rates summary'!P31 -> 436.95 | H31: ='2015-20 rate summary'!E31 -> 532.3468672 | I31: ='2015-20 rate summary'!F31 -> 541.3135762 | J31: ='2015-20 rate summary'!G31 -> 550.4313182 | K31: ='2015-20 rate summary'!H31 -> 559.7026369 | L31: ='2015-20 rate summary'!I31 -> 569.1301193
B32: Service Truck Visit AH | C32: ='2011-15 rates summary'!D32 -> 404.37 | D32: ='2011-15 rates summary'!G32 -> 420.86 | E32: ='2011-15 rates summary'!J32 -> 436.97 | F32: ='2011-15 rates summary'!M32 -> 461.18 | G32: ='2011-15 rates summary'!P32 -> 480.36 | H32: ='2015-20 rate summary'!E32 -> 641.6046056 | I32: ='2015-20 rate summary'!F32 -> 652.4116229 | J32: ='2015-20 rate summary'!G32 -> 663.4006708 | K32: ='2015-20 rate summary'!H32 -> 674.5748153 | L32: ='2015-20 rate summary'!I32 -> 685.9371741
B33: Wasted Truck Visit BH | C33: ='2011-15 rates summary'!D33 -> 232.21 | D33: ='2011-15 rates summary'!G33 -> 241.68 | E33: ='2011-15 rates summary'!J33 -> 250.93 | F33: ='2011-15 rates summary'!M33 -> 264.83 | G33: ='2011-15 rates summary'!P33 -> 275.84 | H33: ='2015-20 rate summary'!E33 -> 333.5968816 | I33: ='2015-20 rate summary'!F33 -> 339.2158987 | J33: ='2015-20 rate summary'!G33 -> 344.9295611 | K33: ='2015-20 rate summary'!H33 -> 350.7394629 | L33: ='2015-20 rate summary'!I33 -> 356.6472251
B34: Wasted Truck Visit AH | C34: ='2011-15 rates summary'!D34 -> 255.86 | D34: ='2011-15 rates summary'!G34 -> 266.29 | E34: ='2011-15 rates summary'!J34 -> 276.48 | F34: ='2011-15 rates summary'!M34 -> 291.8 | G34: ='2011-15 rates summary'!P34 -> 303.93 | H34: ='2015-20 rate summary'!E34 -> 385.3279734 | I34: ='2015-20 rate summary'!F34 -> 391.8183353 | J34: ='2015-20 rate summary'!G34 -> 398.4180191 | K34: ='2015-20 rate summary'!H34 -> 405.1288663 | L34: ='2015-20 rate summary'!I34 -> 411.9527492
H35: ='2015-20 rate summary'!E35 -> 0 | I35: ='2015-20 rate summary'!F35 -> 0 | J35: ='2015-20 rate summary'!G35 -> 0 | K35: ='2015-20 rate summary'!H35 -> 0 | L35: ='2015-20 rate summary'!I35 -> 0
B36: Reserve Feeder - Subtransmission - $ per KVA | C36: ='2011-15 rates summary'!D36 -> 1.47 | D36: ='2011-15 rates summary'!G36 -> 1.52 | E36: ='2011-15 rates summary'!J36 -> 1.57 | F36: ='2011-15 rates summary'!M36 -> 1.65 | G36: ='2011-15 rates summary'!P36 -> 1.71 | H36: ='2015-20 rate summary'!E36 -> 0 | I36: ='2015-20 rate summary'!F36 -> 0 | J36: ='2015-20 rate summary'!G36 -> 0 | K36: ='2015-20 rate summary'!H36 -> 0 | L36: ='2015-20 rate summary'!I36 -> 0
B37: Reserve Feeder - High Voltage - $ per KVA | C37: ='2011-15 rates summary'!D37 -> 3.03 | D37: ='2011-15 rates summary'!G37 -> 3.15 | E37: ='2011-15 rates summary'!J37 -> 3.27 | F37: ='2011-15 rates summary'!M37 -> 3.45 | G37: ='2011-15 rates summary'!P37 -> 3.59 | H37: ='2015-20 rate summary'!E37 -> 5.622155354 | I37: ='2015-20 rate summary'!F37 -> 5.716853444 | J37: ='2015-20 rate summary'!G37 -> 5.813146603 | K37: ='2015-20 rate summary'!H37 -> 5.911061698 | L37: ='2015-20 rate summary'!I37 -> 6.010626049
B38: Reserve Feeder - Voltage - $ per KVA | C38: ='2011-15 rates summary'!D38 -> 7.49 | D38: ='2011-15 rates summary'!G38 -> 7.79 | E38: ='2011-15 rates summary'!J38 -> 8.08 | F38: ='2011-15 rates summary'!M38 -> 8.52 | G38: ='2011-15 rates summary'!P38 -> 8.87 | H38: ='2015-20 rate summary'!E38 -> 13.16988078 | I38: ='2015-20 rate summary'!F38 -> 13.39171075 | J38: ='2015-20 rate summary'!G38 -> 13.61727716 | K38: ='2015-20 rate summary'!H38 -> 13.84664296 | L38: ='2015-20 rate summary'!I38 -> 14.07987213
B40: Solar PV Conn - Single phase BH (unit cost) | C40: ='2011-15 rates summary'!D40 -> 223.5528885 | D40: ='2011-15 rates summary'!G40 -> 232.6289294 | E40: ='2011-15 rates summary'!J40 -> 241.4548896 | F40: ='2011-15 rates summary'!M40 -> 254.6651285 | G40: ='2011-15 rates summary'!P40 -> 265.1514549 | H40: ='2015-20 rate summary'!E40 -> 0 | I40: ='2015-20 rate summary'!F40 -> 0 | J40: ='2015-20 rate summary'!G40 -> 0 | K40: ='2015-20 rate summary'!H40 -> 0 | L40: ='2015-20 rate summary'!I40 -> 0
B41: Solar PV Conn - Single phase AH (unit cost) | C41: ='2011-15 rates summary'!D41 -> 239.4644187 | D41: ='2011-15 rates summary'!G41 -> 249.1864531 | E41: ='2011-15 rates summary'!J41 -> 258.6406071 | F41: ='2011-15 rates summary'!M41 -> 272.7910938 | G41: ='2011-15 rates summary'!P41 -> 284.0237917 | H41: ='2015-20 rate summary'!E41 -> 0 | I41: ='2015-20 rate summary'!F41 -> 0 | J41: ='2015-20 rate summary'!G41 -> 0 | K41: ='2015-20 rate summary'!H41 -> 0 | L41: ='2015-20 rate summary'!I41 -> 0
B43: New Connections Responsible for metering
B44: Single phase BH | C44: ='2011-15 rates summary'!D44 -> 367.63 | D44: ='2011-15 rates summary'!G44 -> 382.62 | E44: ='2011-15 rates summary'!J44 -> 397.27 | F44: ='2011-15 rates summary'!M44 -> 419.28 | G44: ='2011-15 rates summary'!P44 -> 436.71 | H44: ='2015-20 rate summary'!E44 -> 488.6854103 | I44: ='2015-20 rate summary'!F44 -> 494.7238451 | J44: ='2015-20 rate summary'!G44 -> 500.8639897 | K44: ='2015-20 rate summary'!H44 -> 507.1075572 | L44: ='2015-20 rate summary'!I44 -> 513.4562898
B45: Single phase AH | C45: ='2011-15 rates summary'!D45 -> 391.79 | D45: ='2011-15 rates summary'!G45 -> 407.77 | E45: ='2011-15 rates summary'!J45 -> 423.38 | F45: ='2011-15 rates summary'!M45 -> 446.84 | G45: ='2011-15 rates summary'!P45 -> 465.42 | H45: ='2015-20 rate summary'!E45 -> 541.5383812 | I45: ='2015-20 rate summary'!F45 -> 548.4670574 | J45: ='2015-20 rate summary'!G45 -> 555.5124383 | K45: ='2015-20 rate summary'!H45 -> 562.6764898 | L45: ='2015-20 rate summary'!I45 -> 569.9612107
B46: Multi phase DC BH | C46: ='2011-15 rates summary'!D46 -> 453.98 | D46: ='2011-15 rates summary'!G46 -> 472.49 | E46: ='2011-15 rates summary'!J46 -> 490.58 | F46: ='2011-15 rates summary'!M46 -> 517.77 | G46: ='2011-15 rates summary'!P46 -> 539.3 | H46: ='2015-20 rate summary'!E46 -> 582.068219 | I46: ='2015-20 rate summary'!F46 -> 588.1066538 | J46: ='2015-20 rate summary'!G46 -> 594.2467984 | K46: ='2015-20 rate summary'!H46 -> 600.490366 | L46: ='2015-20 rate summary'!I46 -> 606.8390985
B47: Multi phase DC AH | C47: ='2011-15 rates summary'!D47 -> 478.15 | D47: ='2011-15 rates summary'!G47 -> 497.65 | E47: ='2011-15 rates summary'!J47 -> 516.7 | F47: ='2011-15 rates summary'!M47 -> 545.33 | G47: ='2011-15 rates summary'!P47 -> 568.01 | H47: ='2015-20 rate summary'!E47 -> 634.9211899 | I47: ='2015-20 rate summary'!F47 -> 641.8498661 | J47: ='2015-20 rate summary'!G47 -> 648.8952471 | K47: ='2015-20 rate summary'!H47 -> 656.0592986 | L47: ='2015-20 rate summary'!I47 -> 663.3440194
B48: Multi phase CT BH | C48: ='2011-15 rates summary'!D48 -> 1986.02 | D48: ='2011-15 rates summary'!G48 -> 2067.02 | E48: ='2011-15 rates summary'!J48 -> 2146.18 | F48: ='2011-15 rates summary'!M48 -> 2265.13 | G48: ='2011-15 rates summary'!P48 -> 2359.34 | H48: ='2015-20 rate summary'!E48 -> 2452.703352 | I48: ='2015-20 rate summary'!F48 -> 2490.250267 | J48: ='2015-20 rate summary'!G48 -> 2528.429613 | K48: ='2015-20 rate summary'!H48 -> 2567.252042 | L48: ='2015-20 rate summary'!I48 -> 2606.728385
B49: Multi phase CT AH | C49: ='2011-15 rates summary'!D49 -> 2159.32 | D49: ='2011-15 rates summary'!G49 -> 2247.39 | E49: ='2011-15 rates summary'!J49 -> 2333.46 | F49: ='2011-15 rates summary'!M49 -> 2462.79 | G49: ='2011-15 rates summary'!P49 -> 2565.22 | H49: ='2015-20 rate summary'!E49 -> 3015.467056 | I49: ='2015-20 rate summary'!F49 -> 3059.398552 | J49: ='2015-20 rate summary'!G49 -> 3104.070019 | K49: ='2015-20 rate summary'!H49 -> 3149.49392 | L49: ='2015-20 rate summary'!I49 -> 3195.682928
B51: New Connections Not Responsible for metering
B52: Single phase BH | C52: ='2011-15 rates summary'!D52 -> 308.37 | D52: ='2011-15 rates summary'!G52 -> 320.94 | E52: ='2011-15 rates summary'!J52 -> 333.23 | F52: ='2011-15 rates summary'!M52 -> 351.69 | G52: ='2011-15 rates summary'!P52 -> 366.31 | H52: ='2015-20 rate summary'!E52 -> 469.8991968 | I52: ='2015-20 rate summary'!F52 -> 475.6212016 | J52: ='2015-20 rate summary'!G52 -> 481.4395863 | K52: ='2015-20 rate summary'!H52 -> 487.3559744 | L52: ='2015-20 rate summary'!I52 -> 493.3720165
B53: Single phase AH | C53: ='2011-15 rates summary'!D53 -> 332.53 | D53: ='2011-15 rates summary'!G53 -> 346.09 | E53: ='2011-15 rates summary'!J53 -> 359.34 | F53: ='2011-15 rates summary'!M53 -> 379.25 | G53: ='2011-15 rates summary'!P53 -> 395.02 | H53: ='2015-20 rate summary'!E53 -> 519.4762931 | I53: ='2015-20 rate summary'!F53 -> 526.0333614 | J53: ='2015-20 rate summary'!G53 -> 532.7008751 | K53: ='2015-20 rate summary'!H53 -> 539.4806947 | L53: ='2015-20 rate summary'!I53 -> 546.3747118
B54: Multi phase DC BH | C54: ='2011-15 rates summary'!D54 -> 394.73 | D54: ='2011-15 rates summary'!G54 -> 410.83 | E54: ='2011-15 rates summary'!J54 -> 426.56 | F54: ='2011-15 rates summary'!M54 -> 450.2 | G54: ='2011-15 rates summary'!P54 -> 468.92 | H54: ='2015-20 rate summary'!E54 -> 563.2820055 | I54: ='2015-20 rate summary'!F54 -> 569.0040103 | J54: ='2015-20 rate summary'!G54 -> 574.8223951 | K54: ='2015-20 rate summary'!H54 -> 580.7387831 | L54: ='2015-20 rate summary'!I54 -> 586.7548253
B55: Multi phase DC AH | C55: ='2011-15 rates summary'!D55 -> 418.89 | D55: ='2011-15 rates summary'!G55 -> 435.97 | E55: ='2011-15 rates summary'!J55 -> 452.66 | F55: ='2011-15 rates summary'!M55 -> 477.74 | G55: ='2011-15 rates summary'!P55 -> 497.61 | H55: ='2015-20 rate summary'!E55 -> 612.8591019 | I55: ='2015-20 rate summary'!F55 -> 619.4161701 | J55: ='2015-20 rate summary'!G55 -> 626.0836838 | K55: ='2015-20 rate summary'!H55 -> 632.8635034 | L55: ='2015-20 rate summary'!I55 -> 639.7575205
B56: Multi phase CT BH | C56: ='2011-15 rates summary'!D56 -> 1926.77 | D56: ='2011-15 rates summary'!G56 -> 2005.36 | E56: ='2011-15 rates summary'!J56 -> 2082.16 | F56: ='2011-15 rates summary'!M56 -> 2197.56 | G56: ='2011-15 rates summary'!P56 -> 2288.96 | H56: ='2015-20 rate summary'!E56 -> 2087.769909 | I56: ='2015-20 rate summary'!F56 -> 2116.075521 | J56: ='2015-20 rate summary'!G56 -> 2144.857906 | K56: ='2015-20 rate summary'!H56 -> 2174.125093 | L56: ='2015-20 rate summary'!I56 -> 2203.885249
B57: Multi phase CT AH | C57: ='2011-15 rates summary'!D57 -> 2100.07 | D57: ='2011-15 rates summary'!G57 -> 2185.73 | E57: ='2011-15 rates summary'!J57 -> 2269.44 | F57: ='2011-15 rates summary'!M57 -> 2395.22 | G57: ='2011-15 rates summary'!P57 -> 2494.84 | H57: ='2015-20 rate summary'!E57 -> 2372.290914 | I57: ='2015-20 rate summary'!F57 -> 2405.388922 | J57: ='2015-20 rate summary'!G57 -> 2439.044425 | K57: ='2015-20 rate summary'!H57 -> 2473.266811 | L57: ='2015-20 rate summary'!I57 -> 2508.065631
B59: Re-test of type 5 & 6 metering installations for first tier customers with annual consumption greater than 160MWh BH | C59: ='2011-15 rates summary'!D59 -> 311.09 | D59: ='2011-15 rates summary'!G59 -> 323.77 | E59: ='2011-15 rates summary'!J59 -> 336.17 | F59: ='2011-15 rates summary'!M59 -> 354.8 | G59: ='2011-15 rates summary'!P59 -> 369.55
B60: Re-test of type 5 & 6 metering installations for first tier customers with annual consumption greater than 160MWh AH | C60: ='2011-15 rates summary'!D60 -> 343.3 | D60: ='2011-15 rates summary'!G60 -> 357.3 | E60: ='2011-15 rates summary'!J60 -> 370.98 | F60: ='2011-15 rates summary'!M60 -> 391.54 | G60: ='2011-15 rates summary'!P60 -> 407.82
B62: Remote Meter Reconfiguration | C62: ='2011-15 rates summary'!D62 -> 28.73 | D62: ='2011-15 rates summary'!G62 -> 29.74 | E62: ='2011-15 rates summary'!J62 -> 30.91018852 | F62: ='2011-15 rates summary'!M62 -> 30.91018852 | G62: ='2011-15 rates summary'!P62 -> 30.91018852 | H62: ='2015-20 rate summary'!E62 -> 53.86166106 | I62: ='2015-20 rate summary'!F62 -> 54.76889255 | J62: ='2015-20 rate summary'!G62 -> 55.69140521 | K62: ='2015-20 rate summary'!H62 -> 56.62945643 | L62: ='2015-20 rate summary'!I62 -> 57.58330794
B63: Remote Reenergisation | C63: ='2011-15 rates summary'!D63 -> 5.42 | D63: ='2011-15 rates summary'!G63 -> 5.61 | E63: ='2011-15 rates summary'!J63 -> 5.828778406 | F63: ='2011-15 rates summary'!M63 -> 5.828778406 | G63: ='2011-15 rates summary'!P63 -> 5.828778406 | H63: ='2015-20 rate summary'!E63 -> 10.15677037 | I63: ='2015-20 rate summary'!F63 -> 10.32784831 | J63: ='2015-20 rate summary'!G63 -> 10.50180784 | K63: ='2015-20 rate summary'!H63 -> 10.6786975 | L63: ='2015-20 rate summary'!I63 -> 10.85856664
B64: Remote Deenergisation | C64: ='2011-15 rates summary'!D64 -> 5.42 | D64: ='2011-15 rates summary'!G64 -> 5.61 | E64: ='2011-15 rates summary'!J64 -> 5.828778406 | F64: ='2011-15 rates summary'!M64 -> 5.828778406 | G64: ='2011-15 rates summary'!P64 -> 5.828778406 | H64: ='2015-20 rate summary'!E64 -> 10.15677037 | I64: ='2015-20 rate summary'!F64 -> 10.32784831 | J64: ='2015-20 rate summary'!G64 -> 10.50180784 | K64: ='2015-20 rate summary'!H64 -> 10.6786975 | L64: ='2015-20 rate summary'!I64 -> 10.85856664
B67: Check | C67: =SUM(C9:C64)-SUM('2011-15 rates summary'!D9:D64) -> 0 | D67: =SUM(D9:D64)-SUM('2011-15 rates summary'!G9:G64) -> 0 | E67: =SUM(E9:E64)-SUM('2011-15 rates summary'!J9:J64) -> 0 | F67: =SUM(F9:F64)-SUM('2011-15 rates summary'!M9:M64) -> 0 | G67: =SUM(G9:G64)-SUM('2011-15 rates summary'!P9:P64) -> 0 | H67: =SUM(H9:H64)-SUM('2015-20 rate summary'!E9:E64) -> 0 | I67: =SUM(I9:I64)-SUM('2015-20 rate summary'!F9:F64) -> 0 | J67: =SUM(J9:J64)-SUM('2015-20 rate summary'!G9:G64) -> 0 | K67: =SUM(K9:K64)-SUM('2015-20 rate summary'!H9:H64) -> 0 | L67: =SUM(L9:L64)-SUM('2015-20 rate summary'!I9:I64) -> 0 | M67: =SUM(C67:L67) -> 0
B70: Name of Quoted Service | C70: Current regulatory control period | H70: Forthcoming regulatory control period
C71: Actual ($ ex GST) | H71: Real $2015 (ex GST)
C72: 2011 | D72: 2012 | E72: 2013 | F72: 2014 | G72: 2015 | H72: 2016 | I72: 2017 | J72: 2018 | K72: 2019 | L72: 2020
B73: General Lineworker BH | C73: ='2011-15 rates summary'!D68 -> 119.6 | D73: ='2011-15 rates summary'!G68 -> 127.54 | E73: ='2011-15 rates summary'!J68 -> 132.98 | F73: ='2011-15 rates summary'!M68 -> 136.76 | G73: ='2011-15 rates summary'!P68 -> 141.87 | H73: ='ACS 12.6'!H11 -> 0 | I73: ='ACS 12.6'!I11 -> 0 | J73: ='ACS 12.6'!J11 -> 0 | K73: ='ACS 12.6'!K11 -> 0 | L73: ='ACS 12.6'!L11 -> 0
B74: Design / Survey BH | C74: ='2011-15 rates summary'!D69 -> 132.5 | D74: ='2011-15 rates summary'!G69 -> 141.3 | E74: ='2011-15 rates summary'!J69 -> 147.33 | F74: ='2011-15 rates summary'!M69 -> 151.52 | G74: ='2011-15 rates summary'!P69 -> 157.18 | H74: ='ACS 12.6'!H12 -> 0 | I74: ='ACS 12.6'!I12 -> 0 | J74: ='ACS 12.6'!J12 -> 0 | K74: ='ACS 12.6'!K12 -> 0 | L74: ='ACS 12.6'!L12 -> 0
B75: General Lineworker AH | C75: ='2011-15 rates summary'!D70 -> 113.77 | D75: ='2011-15 rates summary'!G70 -> 121.33 | E75: ='2011-15 rates summary'!J70 -> 126.5 | F75: ='2011-15 rates summary'!M70 -> 130.09 | G75: ='2011-15 rates summary'!P70 -> 134.95 | H75: ='ACS 12.6'!H13 -> 0 | I75: ='ACS 12.6'!I13 -> 0 | J75: ='ACS 12.6'!J13 -> 0 | K75: ='ACS 12.6'!K13 -> 0 | L75: ='ACS 12.6'!L13 -> 0
B76: Design / Survey AH | C76: ='2011-15 rates summary'!D71 -> 133.99 | D76: ='2011-15 rates summary'!G71 -> 142.89 | E76: ='2011-15 rates summary'!J71 -> 148.98 | F76: ='2011-15 rates summary'!M71 -> 153.21 | G76: ='2011-15 rates summary'!P71 -> 158.94 | H76: ='ACS 12.6'!H14 -> 0 | I76: ='ACS 12.6'!I14 -> 0 | J76: ='ACS 12.6'!J14 -> 0 | K76: ='ACS 12.6'!K14 -> 0 | L76: ='ACS 12.6'!L14 -> 0
B77: Skilled Electrical Worker BH | H77: ='ACS 12.6'!H15 -> 123.7674125 | I77: ='ACS 12.6'!I15 -> 125.8521179 | J77: ='ACS 12.6'!J15 -> 127.9719375 | K77: ='ACS 12.6'!K15 -> 130.1274628 | L77: ='ACS 12.6'!L15 -> 132.3192952
B78: Skilled Electrical Worker AH | H78: ='ACS 12.6'!H16 -> 145.3495434 | I78: ='ACS 12.6'!I16 -> 147.7977724 | J78: ='ACS 12.6'!J16 -> 150.2872388 | K78: ='ACS 12.6'!K16 -> 152.8186371 | L78: ='ACS 12.6'!L16 -> 155.3926736
B80: Back Office - Exclusive of Ohs | C80: ='2011-15 rates summary'!D72 -> 49.18 | D80: ='2011-15 rates summary'!G72 -> 52.44 | E80: ='2011-15 rates summary'!J72 -> 54.67 | F80: ='2011-15 rates summary'!M72 -> 56.22 | G80: ='2011-15 rates summary'!P72 -> 58.32 | H80: ='ACS 12.6'!H18 -> 0 | I80: ='ACS 12.6'!I18 -> 0 | J80: ='ACS 12.6'!J18 -> 0 | K80: ='ACS 12.6'!K18 -> 0 | L80: ='ACS 12.6'!L18 -> 0
B81: Support staff (Category RIN) | H81: ='ACS 12.6'!H19 -> 70.62314609 | I81: ='ACS 12.6'!I19 -> 71.81270358 | J81: ='ACS 12.6'!J19 -> 73.02229767 | K81: ='ACS 12.6'!K19 -> 74.25226583 | L81: ='ACS 12.6'!L19 -> 75.50295125

Sheet ACS 12.5
A1: =+ModelName -> CP ACS Model
A2: =MID(CELL("Filename",D1),FIND("]",CELL("Filename",D1))+1,255) -> ACS 12.5 | J2: =Check!D2 -> OK
A3: Menu
B4: Total revenue earned by CitiPower
B6: Name of Fee based Service | C6: Current regulatory control period | H6: Forthcoming regulatory control period | M6: =SUM(M9:M82) -> 0
C7: Actual (nominal $ ex GST) | H7: Real $2015 (ex GST)
C8: 2011 | D8: 2012 | E8: 2013 | F8: 2014 | G8: 2015 | H8: 2016 | I8: 2017 | J8: 2018 | K8: 2019 | L8: 2020
B9: Meter Investigation Test (BH) | C9: ='2011-20 Revenue'!$I$9 -> 88030.8 | D9: =OFFSET('2011-20 Revenue'!$I$9,0,D$87) -> 59982.24 | E9: =OFFSET('2011-20 Revenue'!$I$9,0,E$87) -> 29271.12 | F9: =OFFSET('2011-20 Revenue'!$I$9,0,F$87) -> 21488.4 | G9: =OFFSET('2011-20 Revenue'!$I$9,0,G$87) -> 22886.79573 | H9: =OFFSET('2011-20 Revenue'!$I$9,0,H$87) -> 28110.64337 | I9: =OFFSET('2011-20 Revenue'!$I$9,0,I$87) -> 29229.54137 | J9: =OFFSET('2011-20 Revenue'!$I$9,0,J$87) -> 30392.97528 | K9: =OFFSET('2011-20 Revenue'!$I$9,0,K$87) -> 31602.71776 | L9: =OFFSET('2011-20 Revenue'!$I$9,0,L$87) -> 32860.61205
B10: Meter Investigation Test (AH) | C10: ='2011-20 Revenue'!$I$10 -> 0 | D10: =OFFSET('2011-20 Revenue'!$I$10,0,D$87) -> 0 | E10: =OFFSET('2011-20 Revenue'!$I$10,0,E$87) -> 0 | F10: =OFFSET('2011-20 Revenue'!$I$10,0,F$87) -> 0 | G10: =OFFSET('2011-20 Revenue'!$I$10,0,G$87) -> 0 | H10: =OFFSET('2011-20 Revenue'!$I$10,0,H$87) -> 0 | I10: =OFFSET('2011-20 Revenue'!$I$10,0,I$87) -> 0 | J10: =OFFSET('2011-20 Revenue'!$I$10,0,J$87) -> 0 | K10: =OFFSET('2011-20 Revenue'!$I$10,0,K$87) -> 0 | L10: =OFFSET('2011-20 Revenue'!$I$10,0,L$87) -> 0
B11: Meter Accuracy Test - single phase (BH) | C11: ='2011-20 Revenue'!$I$11 -> 65328.37 | D11: =OFFSET('2011-20 Revenue'!$I$11,0,D$87) -> 63154.1 | E11: =OFFSET('2011-20 Revenue'!$I$11,0,E$87) -> 32472.75 | F11: =OFFSET('2011-20 Revenue'!$I$11,0,F$87) -> 17184.96 | G11: =OFFSET('2011-20 Revenue'!$I$11,0,G$87) -> 18303.77304 | H11: =OFFSET('2011-20 Revenue'!$I$11,0,H$87) -> 22215.70693 | I11: =OFFSET('2011-20 Revenue'!$I$11,0,I$87) -> 23099.96666 | J11: =OFFSET('2011-20 Revenue'!$I$11,0,J$87) -> 24019.42291 | K11: =OFFSET('2011-20 Revenue'!$I$11,0,K$87) -> 24975.4766 | L11: =OFFSET('2011-20 Revenue'!$I$11,0,L$87) -> 25969.58444
B12: Meter Accuracy Test - single phase (AH) | C12: ='2011-20 Revenue'!$I$12 -> 0 | D12: =OFFSET('2011-20 Revenue'!$I$12,0,D$87) -> 722.56 | E12: =OFFSET('2011-20 Revenue'!$I$12,0,E$87) -> 0 | F12: =OFFSET('2011-20 Revenue'!$I$12,0,F$87) -> 0 | G12: =OFFSET('2011-20 Revenue'!$I$12,0,G$87) -> 0 | H12: =OFFSET('2011-20 Revenue'!$I$12,0,H$87) -> 0 | I12: =OFFSET('2011-20 Revenue'!$I$12,0,I$87) -> 0 | J12: =OFFSET('2011-20 Revenue'!$I$12,0,J$87) -> 0 | K12: =OFFSET('2011-20 Revenue'!$I$12,0,K$87) -> 0 | L12: =OFFSET('2011-20 Revenue'!$I$12,0,L$87) -> 0
B13: Meter Accuracy Test - Single phase additional meter (BH) | C13: ='2011-20 Revenue'!$I$13 -> 1354.5 | D13: =OFFSET('2011-20 Revenue'!$I$13,0,D$87) -> 147.16 | E13: =OFFSET('2011-20 Revenue'!$I$13,0,E$87) -> 916.74 | F13: =OFFSET('2011-20 Revenue'!$I$13,0,F$87) -> 0 | G13: =OFFSET('2011-20 Revenue'!$I$13,0,G$87) -> 0 | H13: =OFFSET('2011-20 Revenue'!$I$13,0,H$87) -> 0 | I13: =OFFSET('2011-20 Revenue'!$I$13,0,I$87) -> 0 | J13: =OFFSET('2011-20 Revenue'!$I$13,0,J$87) -> 0 | K13: =OFFSET('2011-20 Revenue'!$I$13,0,K$87) -> 0 | L13: =OFFSET('2011-20 Revenue'!$I$13,0,L$87) -> 0
B14: Meter Accuracy Test - multi phase (BH) | C14: ='2011-20 Revenue'!$I$14 -> 30094.82 | D14: =OFFSET('2011-20 Revenue'!$I$14,0,D$87) -> 29416.95 | E14: =OFFSET('2011-20 Revenue'!$I$14,0,E$87) -> 20150.1 | F14: =OFFSET('2011-20 Revenue'!$I$14,0,F$87) -> 7984.41 | G14: =OFFSET('2011-20 Revenue'!$I$14,0,G$87) -> 8504.175286 | H14: =OFFSET('2011-20 Revenue'!$I$14,0,H$87) -> 10223.12188 | I14: =OFFSET('2011-20 Revenue'!$I$14,0,I$87) -> 10630.03646 | J14: =OFFSET('2011-20 Revenue'!$I$14,0,J$87) -> 11053.14761 | K14: =OFFSET('2011-20 Revenue'!$I$14,0,K$87) -> 11493.1 | L14: =OFFSET('2011-20 Revenue'!$I$14,0,L$87) -> 11950.56398
B15: Meter Accuracy Test - multi phase (AH) | C15: ='2011-20 Revenue'!$I$15 -> 0 | D15: =OFFSET('2011-20 Revenue'!$I$15,0,D$87) -> 473.92 | E15: =OFFSET('2011-20 Revenue'!$I$15,0,E$87) -> 0 | F15: =OFFSET('2011-20 Revenue'!$I$15,0,F$87) -> 0 | G15: =OFFSET('2011-20 Revenue'!$I$15,0,G$87) -> 0 | H15: =OFFSET('2011-20 Revenue'!$I$15,0,H$87) -> 0 | I15: =OFFSET('2011-20 Revenue'!$I$15,0,I$87) -> 0 | J15: =OFFSET('2011-20 Revenue'!$I$15,0,J$87) -> 0 | K15: =OFFSET('2011-20 Revenue'!$I$15,0,K$87) -> 0 | L15: =OFFSET('2011-20 Revenue'!$I$15,0,L$87) -> 0
B16: Meter Accuracy Test - Multi phase additional meter (BH) | C16: ='2011-20 Revenue'!$I$16 -> 159.77 | D16: =OFFSET('2011-20 Revenue'!$I$16,0,D$87) -> 1257.17 | E16: =OFFSET('2011-20 Revenue'!$I$16,0,E$87) -> 1052.48 | F16: =OFFSET('2011-20 Revenue'!$I$16,0,F$87) -> 833.1 | G16: =OFFSET('2011-20 Revenue'!$I$16,0,G$87) -> 887.3431913 | H16: =OFFSET('2011-20 Revenue'!$I$16,0,H$87) -> 1049.62592 | I16: =OFFSET('2011-20 Revenue'!$I$16,0,I$87) -> 1091.404557 | J16: =OFFSET('2011-20 Revenue'!$I$16,0,J$87) -> 1134.846123 | K16: =OFFSET('2011-20 Revenue'!$I$16,0,K$87) -> 1180.01681 | L16: =OFFSET('2011-20 Revenue'!$I$16,0,L$87) -> 1226.985442
B17: Meter Accuracy Test - CT (BH) | C17: ='2011-20 Revenue'!$I$17 -> 0 | D17: =OFFSET('2011-20 Revenue'!$I$17,0,D$87) -> 1263.93 | E17: =OFFSET('2011-20 Revenue'!$I$17,0,E$87) -> 437.44 | F17: =OFFSET('2011-20 Revenue'!$I$17,0,F$87) -> 2284.16 | G17: =OFFSET('2011-20 Revenue'!$I$17,0,G$87) -> 2432.87152 | H17: =OFFSET('2011-20 Revenue'!$I$17,0,H$87) -> 2926.74493 | I17: =OFFSET('2011-20 Revenue'!$I$17,0,I$87) -> 3043.239206 | J17: =OFFSET('2011-20 Revenue'!$I$17,0,J$87) -> 3164.370346 | K17: =OFFSET('2011-20 Revenue'!$I$17,0,K$87) -> 3290.322913 | L17: =OFFSET('2011-20 Revenue'!$I$17,0,L$87) -> 3421.288814
B18: Meter Accuracy Test - CT (AH) | C18: ='2011-20 Revenue'!$I$18 -> 0 | D18: =OFFSET('2011-20 Revenue'!$I$18,0,D$87) -> 0 | E18: =OFFSET('2011-20 Revenue'!$I$18,0,E$87) -> 0 | F18: =OFFSET('2011-20 Revenue'!$I$18,0,F$87) -> 0 | G18: =OFFSET('2011-20 Revenue'!$I$18,0,G$87) -> 0 | H18: =OFFSET('2011-20 Revenue'!$I$18,0,H$87) -> 0 | I18: =OFFSET('2011-20 Revenue'!$I$18,0,I$87) -> 0 | J18: =OFFSET('2011-20 Revenue'!$I$18,0,J$87) -> 0 | K18: =OFFSET('2011-20 Revenue'!$I$18,0,K$87) -> 0 | L18: =OFFSET('2011-20 Revenue'!$I$18,0,L$87) -> 0
B20: Reconnections (incl Customer Transfer) BH | C20: ='2011-20 Revenue'!$I$23 -> 967488.2149 | D20: =OFFSET('2011-20 Revenue'!$I$23,0,D$87) -> 1017549.62 | E20: =OFFSET('2011-20 Revenue'!$I$23,0,E$87) -> 916384.8497 | F20: =OFFSET('2011-20 Revenue'!$I$23,0,F$87) -> 729297.7828 | G20: =OFFSET('2011-20 Revenue'!$I$23,0,G$87) -> 597695.5358 | H20: =OFFSET('2011-20 Revenue'!$I$23,0,H$87) -> 692635.9597 | I20: =OFFSET('2011-20 Revenue'!$I$23,0,I$87) -> 595730.6221 | J20: =OFFSET('2011-20 Revenue'!$I$23,0,J$87) -> 510901.0536 | K20: =OFFSET('2011-20 Revenue'!$I$23,0,K$87) -> 438091.6698 | L20: =OFFSET('2011-20 Revenue'!$I$23,0,L$87) -> 375734.6561
B21: Reconnections (same day) BH | C21: ='2011-20 Revenue'!$I$24 -> 46036.13697 | D21: =OFFSET('2011-20 Revenue'!$I$24,0,D$87) -> 209315.33 | E21: =OFFSET('2011-20 Revenue'!$I$24,0,E$87) -> 206202.5663 | F21: =OFFSET('2011-20 Revenue'!$I$24,0,F$87) -> 124473.5989 | G21: =OFFSET('2011-20 Revenue'!$I$24,0,G$87) -> 102029.5565 | H21: =OFFSET('2011-20 Revenue'!$I$24,0,H$87) -> 120798.0258 | I21: =OFFSET('2011-20 Revenue'!$I$24,0,I$87) -> 103928.4443 | J21: =OFFSET('2011-20 Revenue'!$I$24,0,J$87) -> 89132.33098 | K21: =OFFSET('2011-20 Revenue'!$I$24,0,K$87) -> 76431.43903 | L21: =OFFSET('2011-20 Revenue'!$I$24,0,L$87) -> 65554.86785
B22: Reconnections (incl Customer Transfer) AH | C22: ='2011-20 Revenue'!$I$25 -> 355969.0404 | D22: =OFFSET('2011-20 Revenue'!$I$25,0,D$87) -> 0 | E22: =OFFSET('2011-20 Revenue'!$I$25,0,E$87) -> 102.1080984 | F22: =OFFSET('2011-20 Revenue'!$I$25,0,F$87) -> 0 | G22: =OFFSET('2011-20 Revenue'!$I$25,0,G$87) -> 0 | H22: =OFFSET('2011-20 Revenue'!$I$25,0,H$87) -> 0 | I22: =OFFSET('2011-20 Revenue'!$I$25,0,I$87) -> 0 | J22: =OFFSET('2011-20 Revenue'!$I$25,0,J$87) -> 0 | K22: =OFFSET('2011-20 Revenue'!$I$25,0,K$87) -> 0 | L22: =OFFSET('2011-20 Revenue'!$I$25,0,L$87) -> 0
B23: Disconnection (BH only) | C23: ='2011-20 Revenue'!$I$20 -> 557370.838 | D23: =OFFSET('2011-20 Revenue'!$I$20,0,D$87) -> 673392.59 | E23: =OFFSET('2011-20 Revenue'!$I$20,0,E$87) -> 656261.9735 | F23: =OFFSET('2011-20 Revenue'!$I$20,0,F$87) -> 490405.922 | G23: =OFFSET('2011-20 Revenue'!$I$20,0,G$87) -> 401943.4678 | H23: =OFFSET('2011-20 Revenue'!$I$20,0,H$87) -> 466621.78 | I23: =OFFSET('2011-20 Revenue'!$I$20,0,I$87) -> 401345.7302 | J23: =OFFSET('2011-20 Revenue'!$I$20,0,J$87) -> 344196.5106 | K23: =OFFSET('2011-20 Revenue'!$I$20,0,K$87) -> 295144.8699 | L23: =OFFSET('2011-20 Revenue'!$I$20,0,L$87) -> 253135.2472
B24: Disconnection (no AH service) | C24: ='2011-20 Revenue'!$I$21 -> 0 | D24: =OFFSET('2011-20 Revenue'!$I$21,0,D$87) -> 0 | E24: =OFFSET('2011-20 Revenue'!$I$21,0,E$87) -> 0 | F24: =OFFSET('2011-20 Revenue'!$I$21,0,F$87) -> 0 | G24: =OFFSET('2011-20 Revenue'!$I$21,0,G$87) -> 0 | H24: =OFFSET('2011-20 Revenue'!$I$21,0,H$87) -> 0 | I24: =OFFSET('2011-20 Revenue'!$I$21,0,I$87) -> 0 | J24: =OFFSET('2011-20 Revenue'!$I$21,0,J$87) -> 0 | K24: =OFFSET('2011-20 Revenue'!$I$21,0,K$87) -> 0 | L24: =OFFSET('2011-20 Revenue'!$I$21,0,L$87) -> 0
B25: Disconnection for non payment (BH only) | C25: ='2011-20 Revenue'!$I$22 -> 71287.17576 | D25: =OFFSET('2011-20 Revenue'!$I$22,0,D$87) -> 81688.38 | E25: =OFFSET('2011-20 Revenue'!$I$22,0,E$87) -> 65697.58818 | F25: =OFFSET('2011-20 Revenue'!$I$22,0,F$87) -> 47615.37094 | G25: =OFFSET('2011-20 Revenue'!$I$22,0,G$87) -> 39026.21575 | H25: =OFFSET('2011-20 Revenue'!$I$22,0,H$87) -> 45306.07839 | I25: =OFFSET('2011-20 Revenue'!$I$22,0,I$87) -> 38968.17914 | J25: =OFFSET('2011-20 Revenue'!$I$22,0,J$87) -> 33419.34465 | K25: =OFFSET('2011-20 Revenue'!$I$22,0,K$87) -> 28656.73482 | L25: =OFFSET('2011-20 Revenue'!$I$22,0,L$87) -> 24577.86122
B26: Special reading BH | C26: ='2011-20 Revenue'!$I$26 -> 75950.384 | D26: =OFFSET('2011-20 Revenue'!$I$26,0,D$87) -> 111637.04 | E26: =OFFSET('2011-20 Revenue'!$I$26,0,E$87) -> 58460.91352 | F26: =OFFSET('2011-20 Revenue'!$I$26,0,F$87) -> 17881.93793 | G26: =OFFSET('2011-20 Revenue'!$I$26,0,G$87) -> 14652.98794 | H26: =OFFSET('2011-20 Revenue'!$I$26,0,H$87) -> 17919.28863 | I26: =OFFSET('2011-20 Revenue'!$I$26,0,I$87) -> 15423.36228 | J26: =OFFSET('2011-20 Revenue'!$I$26,0,J$87) -> 13228.16699 | K26: =OFFSET('2011-20 Revenue'!$I$26,0,K$87) -> 11343.53933 | L26: =OFFSET('2011-20 Revenue'!$I$26,0,L$87) -> 9729.825741
B27: Special reading AH - no service | C27: ='2011-20 Revenue'!$I$27 -> 0 | D27: =OFFSET('2011-20 Revenue'!$I$27,0,D$87) -> 0 | E27: =OFFSET('2011-20 Revenue'!$I$27,0,E$87) -> 0 | F27: =OFFSET('2011-20 Revenue'!$I$27,0,F$87) -> 0 | G27: =OFFSET('2011-20 Revenue'!$I$27,0,G$87) -> 0 | H27: =OFFSET('2011-20 Revenue'!$I$27,0,H$87) -> 0 | I27: =OFFSET('2011-20 Revenue'!$I$27,0,I$87) -> 0 | J27: =OFFSET('2011-20 Revenue'!$I$27,0,J$87) -> 0 | K27: =OFFSET('2011-20 Revenue'!$I$27,0,K$87) -> 0 | L27: =OFFSET('2011-20 Revenue'!$I$27,0,L$87) -> 0
B28: Manual meter reading | C28: ='2011-20 Revenue'!$I$28 -> 0 | D28: =OFFSET('2011-20 Revenue'!$I$28,0,D$87) -> 0 | E28: =OFFSET('2011-20 Revenue'!$I$28,0,E$87) -> 0 | F28: =OFFSET('2011-20 Revenue'!$I$28,0,F$87) -> 0 | G28: =OFFSET('2011-20 Revenue'!$I$28,0,G$87) -> 119702.88 | H28: =OFFSET('2011-20 Revenue'!$I$28,0,H$87) -> 231475.3182 | I28: =OFFSET('2011-20 Revenue'!$I$28,0,I$87) -> 236310.19 | J28: =OFFSET('2011-20 Revenue'!$I$28,0,J$87) -> 240393.3904 | K28: =OFFSET('2011-20 Revenue'!$I$28,0,K$87) -> 244506.7761 | L28: =OFFSET('2011-20 Revenue'!$I$28,0,L$87) -> 248752.1511
B29: Access to meter data | C29: ='2011-20 Revenue'!$I$29 -> 0 | D29: =OFFSET('2011-20 Revenue'!$I$29,0,D$87) -> 0 | E29: =OFFSET('2011-20 Revenue'!$I$29,0,E$87) -> 0 | F29: =OFFSET('2011-20 Revenue'!$I$29,0,F$87) -> 0 | G29: =OFFSET('2011-20 Revenue'!$I$29,0,G$87) -> 0 | H29: =OFFSET('2011-20 Revenue'!$I$29,0,H$87) -> 8817.923367 | I29: =OFFSET('2011-20 Revenue'!$I$29,0,I$87) -> 22345.70816 | J29: =OFFSET('2011-20 Revenue'!$I$29,0,J$87) -> 56805.23332 | K29: =OFFSET('2011-20 Revenue'!$I$29,0,K$87) -> 144453.6534 | L29: =OFFSET('2011-20 Revenue'!$I$29,0,L$87) -> 367266.338
B31: Service Truck Visit BH | C31: ='2011-20 Revenue'!$I$31 -> 1070041.38 | D31: =OFFSET('2011-20 Revenue'!$I$31,0,D$87) -> 845362.3 | E31: =OFFSET('2011-20 Revenue'!$I$31,0,E$87) -> 914065 | F31: =OFFSET('2011-20 Revenue'!$I$31,0,F$87) -> 918749.09 | G31: =OFFSET('2011-20 Revenue'!$I$31,0,G$87) -> 978550.7335 | H31: =OFFSET('2011-20 Revenue'!$I$31,0,H$87) -> 1219111.154 | I31: =OFFSET('2011-20 Revenue'!$I$31,0,I$87) -> 1267635.872 | J31: =OFFSET('2011-20 Revenue'!$I$31,0,J$87) -> 1318092.036 | K31: =OFFSET('2011-20 Revenue'!$I$31,0,K$87) -> 1370556.526 | L31: =OFFSET('2011-20 Revenue'!$I$31,0,L$87) -> 1425109.278
B32: Service Truck Visit AH | C32: ='2011-20 Revenue'!$I$32 -> 86580.54 | D32: =OFFSET('2011-20 Revenue'!$I$32,0,D$87) -> 94771.18 | E32: =OFFSET('2011-20 Revenue'!$I$32,0,E$87) -> 85538.9 | F32: =OFFSET('2011-20 Revenue'!$I$32,0,F$87) -> 179620.38 | G32: =OFFSET('2011-20 Revenue'!$I$32,0,G$87) -> 191314.9819 | H32: =OFFSET('2011-20 Revenue'!$I$32,0,H$87) -> 261304.3361 | I32: =OFFSET('2011-20 Revenue'!$I$32,0,I$87) -> 271705.1261 | J32: =OFFSET('2011-20 Revenue'!$I$32,0,J$87) -> 282519.9026 | K32: =OFFSET('2011-20 Revenue'!$I$32,0,K$87) -> 293765.1435 | L32: =OFFSET('2011-20 Revenue'!$I$32,0,L$87) -> 305457.9827
B33: Wasted Truck Visit BH | C33: ='2011-20 Revenue'!$I$33 -> 14164.39 | D33: =OFFSET('2011-20 Revenue'!$I$33,0,D$87) -> 71196.14 | E33: =OFFSET('2011-20 Revenue'!$I$33,0,E$87) -> 10653 | F33: =OFFSET('2011-20 Revenue'!$I$33,0,F$87) -> 26218.17 | G33: =OFFSET('2011-20 Revenue'!$I$33,0,G$87) -> 27924.75925 | H33: =OFFSET('2011-20 Revenue'!$I$33,0,H$87) -> 34534.34113 | I33: =OFFSET('2011-20 Revenue'!$I$33,0,I$87) -> 35908.92388 | J33: =OFFSET('2011-20 Revenue'!$I$33,0,J$87) -> 37338.21964 | K33: =OFFSET('2011-20 Revenue'!$I$33,0,K$87) -> 38824.40617 | L33: =OFFSET('2011-20 Revenue'!$I$33,0,L$87) -> 40369.74791
B34: Wasted Truck Visit AH | C34: ='2011-20 Revenue'!$I$34 -> 255.86 | D34: =OFFSET('2011-20 Revenue'!$I$34,0,D$87) -> 0 | E34: =OFFSET('2011-20 Revenue'!$I$34,0,E$87) -> 0 | F34: =OFFSET('2011-20 Revenue'!$I$34,0,F$87) -> 1931.7 | G34: =OFFSET('2011-20 Revenue'!$I$34,0,G$87) -> 2057.429494 | H34: =OFFSET('2011-20 Revenue'!$I$34,0,H$87) -> 2667.343382 | I34: =OFFSET('2011-20 Revenue'!$I$34,0,I$87) -> 2773.512606 | J34: =OFFSET('2011-20 Revenue'!$I$34,0,J$87) -> 2883.907721 | K34: =OFFSET('2011-20 Revenue'!$I$34,0,K$87) -> 2998.696933 | L34: =OFFSET('2011-20 Revenue'!$I$34,0,L$87) -> 3118.055141
B36: Reserve Feeder - Subtransmission - $ per KVA | C36: ='2011-20 Revenue'!$I$36 -> 58611.10657 | D36: =OFFSET('2011-20 Revenue'!$I$36,0,D$87) -> 57545.97742 | E36: =OFFSET('2011-20 Revenue'!$I$36,0,E$87) -> 57731.34143 | F36: =OFFSET('2011-20 Revenue'!$I$36,0,F$87) -> 0 | G36: =OFFSET('2011-20 Revenue'!$I$36,0,G$87) -> 0 | H36: =OFFSET('2011-20 Revenue'!$I$36,0,H$87) -> 0 | I36: =OFFSET('2011-20 Revenue'!$I$36,0,I$87) -> 0 | J36: =OFFSET('2011-20 Revenue'!$I$36,0,J$87) -> 0 | K36: =OFFSET('2011-20 Revenue'!$I$36,0,K$87) -> 0 | L36: =OFFSET('2011-20 Revenue'!$I$36,0,L$87) -> 0
B37: Reserve Feeder - High Voltage - $ per KVA | C37: ='2011-20 Revenue'!$I$37 -> 110679.3615 | D37: =OFFSET('2011-20 Revenue'!$I$37,0,D$87) -> 108668.0052 | E37: =OFFSET('2011-20 Revenue'!$I$37,0,E$87) -> 109018.0408 | F37: =OFFSET('2011-20 Revenue'!$I$37,0,F$87) -> 195885.31 | G37: =OFFSET('2011-20 Revenue'!$I$37,0,G$87) -> 208436.7153 | H37: =OFFSET('2011-20 Revenue'!$I$37,0,H$87) -> 333794.8356 | I37: =OFFSET('2011-20 Revenue'!$I$37,0,I$87) -> 347080.991 | J37: =OFFSET('2011-20 Revenue'!$I$37,0,J$87) -> 360895.98 | K37: =OFFSET('2011-20 Revenue'!$I$37,0,K$87) -> 375260.8519 | L37: =OFFSET('2011-20 Revenue'!$I$37,0,L$87) -> 390197.494
B38: Reserve Feeder - Voltage - $ per KVA | C38: ='2011-20 Revenue'!$I$38 -> 15841.49195 | D38: =OFFSET('2011-20 Revenue'!$I$38,0,D$87) -> 15553.60735 | E38: =OFFSET('2011-20 Revenue'!$I$38,0,E$87) -> 15603.7078 | F38: =OFFSET('2011-20 Revenue'!$I$38,0,F$87) -> 0 | G38: =OFFSET('2011-20 Revenue'!$I$38,0,G$87) -> 0 | H38: =OFFSET('2011-20 Revenue'!$I$38,0,H$87) -> 0 | I38: =OFFSET('2011-20 Revenue'!$I$38,0,I$87) -> 0 | J38: =OFFSET('2011-20 Revenue'!$I$38,0,J$87) -> 0 | K38: =OFFSET('2011-20 Revenue'!$I$38,0,K$87) -> 0 | L38: =OFFSET('2011-20 Revenue'!$I$38,0,L$87) -> 0
B40: Solar PV Conn - Single phase BH (unit cost) | C40: ='2011-20 Revenue'!$I$40 -> 393448 | D40: =OFFSET('2011-20 Revenue'!$I$40,0,D$87) -> 308349.34 | E40: =OFFSET('2011-20 Revenue'!$I$40,0,E$87) -> 197729.91 | F40: =OFFSET('2011-20 Revenue'!$I$40,0,F$87) -> 263537.55 | G40: =OFFSET('2011-20 Revenue'!$I$40,0,G$87) -> 280584.733 | H40: =OFFSET('2011-20 Revenue'!$I$40,0,H$87) -> 0 | I40: =OFFSET('2011-20 Revenue'!$I$40,0,I$87) -> 0 | J40: =OFFSET('2011-20 Revenue'!$I$40,0,J$87) -> 0 | K40: =OFFSET('2011-20 Revenue'!$I$40,0,K$87) -> 0 | L40: =OFFSET('2011-20 Revenue'!$I$40,0,L$87) -> 0
B41: Solar PV Conn - Single phase AH (unit cost) | C41: ='2011-20 Revenue'!$I$41 -> 1436.76 | D41: =OFFSET('2011-20 Revenue'!$I$41,0,D$87) -> 0 | E41: =OFFSET('2011-20 Revenue'!$I$41,0,E$87) -> 0 | F41: =OFFSET('2011-20 Revenue'!$I$41,0,F$87) -> 0 | G41: =OFFSET('2011-20 Revenue'!$I$41,0,G$87) -> 0 | H41: =OFFSET('2011-20 Revenue'!$I$41,0,H$87) -> 0 | I41: =OFFSET('2011-20 Revenue'!$I$41,0,I$87) -> 0 | J41: =OFFSET('2011-20 Revenue'!$I$41,0,J$87) -> 0 | K41: =OFFSET('2011-20 Revenue'!$I$41,0,K$87) -> 0 | L41: =OFFSET('2011-20 Revenue'!$I$41,0,L$87) -> 0
B43: New Connections Responsible for metering
B44: Single phase BH | C44: ='2011-20 Revenue'!$I$44 -> 1678879.37 | D44: =OFFSET('2011-20 Revenue'!$I$44,0,D$87) -> 1980571.52 | E44: =OFFSET('2011-20 Revenue'!$I$44,0,E$87) -> 1787808.06 | F44: =OFFSET('2011-20 Revenue'!$I$44,0,F$87) -> 1557895.86 | G44: =OFFSET('2011-20 Revenue'!$I$44,0,G$87) -> 1659298.086 | H44: =OFFSET('2011-20 Revenue'!$I$44,0,H$87) -> 1898705.672 | I44: =OFFSET('2011-20 Revenue'!$I$44,0,I$87) -> 1965568.197 | J44: =OFFSET('2011-20 Revenue'!$I$44,0,J$87) -> 2034895.357 | K44: =OFFSET('2011-20 Revenue'!$I$44,0,K$87) -> 2106780.81 | L44: =OFFSET('2011-20 Revenue'!$I$44,0,L$87) -> 2181321.843
B45: Single phase AH | C45: ='2011-20 Revenue'!$I$45 -> 2770.15 | D45: =OFFSET('2011-20 Revenue'!$I$45,0,D$87) -> 5301.01 | E45: =OFFSET('2011-20 Revenue'!$I$45,0,E$87) -> 3402.65 | F45: =OFFSET('2011-20 Revenue'!$I$45,0,F$87) -> 11641.3 | G45: =OFFSET('2011-20 Revenue'!$I$45,0,G$87) -> 12399.13758 | H45: =OFFSET('2011-20 Revenue'!$I$45,0,H$87) -> 14752.73965 | I45: =OFFSET('2011-20 Revenue'!$I$45,0,I$87) -> 15278.86109 | J45: =OFFSET('2011-20 Revenue'!$I$45,0,J$87) -> 15824.54462 | K45: =OFFSET('2011-20 Revenue'!$I$45,0,K$87) -> 16390.53774 | L45: =OFFSET('2011-20 Revenue'!$I$45,0,L$87) -> 16977.617
B46: Multi phase DC BH | C46: ='2011-20 Revenue'!$I$46 -> 521627.59 | D46: =OFFSET('2011-20 Revenue'!$I$46,0,D$87) -> 689928.92 | E46: =OFFSET('2011-20 Revenue'!$I$46,0,E$87) -> 716976.43 | F46: =OFFSET('2011-20 Revenue'!$I$46,0,F$87) -> 618411.19 | G46: =OFFSET('2011-20 Revenue'!$I$46,0,G$87) -> 658669.9876 | H46: =OFFSET('2011-20 Revenue'!$I$46,0,H$87) -> 726956.3613 | I46: =OFFSET('2011-20 Revenue'!$I$46,0,I$87) -> 751082.3315 | J46: =OFFSET('2011-20 Revenue'!$I$46,0,J$87) -> 776060.005 | K46: =OFFSET('2011-20 Revenue'!$I$46,0,K$87) -> 801920.8304 | L46: =OFFSET('2011-20 Revenue'!$I$46,0,L$87) -> 828697.4529
B47: Multi phase DC AH | C47: ='2011-20 Revenue'!$I$47 -> 10637.33 | D47: =OFFSET('2011-20 Revenue'!$I$47,0,D$87) -> 5971.8 | E47: =OFFSET('2011-20 Revenue'!$I$47,0,E$87) -> 16553.45 | F47: =OFFSET('2011-20 Revenue'!$I$47,0,F$87) -> 17928.3 | G47: =OFFSET('2011-20 Revenue'!$I$47,0,G$87) -> 19095.57329 | H47: =OFFSET('2011-20 Revenue'!$I$47,0,H$87) -> 21826.97445 | I47: =OFFSET('2011-20 Revenue'!$I$47,0,I$87) -> 22563.38077 | J47: =OFFSET('2011-20 Revenue'!$I$47,0,J$87) -> 23326.10948 | K47: =OFFSET('2011-20 Revenue'!$I$47,0,K$87) -> 24116.14079 | L47: =OFFSET('2011-20 Revenue'!$I$47,0,L$87) -> 24934.49244
B48: Multi phase CT BH | C48: ='2011-20 Revenue'!$I$48 -> 192414.84 | D48: =OFFSET('2011-20 Revenue'!$I$48,0,D$87) -> 263768.56 | E48: =OFFSET('2011-20 Revenue'!$I$48,0,E$87) -> 292918.42 | F48: =OFFSET('2011-20 Revenue'!$I$48,0,F$87) -> 374425.44 | G48: =OFFSET('2011-20 Revenue'!$I$48,0,G$87) -> 398804.2211 | H48: =OFFSET('2011-20 Revenue'!$I$48,0,H$87) -> 423946.6806 | I48: =OFFSET('2011-20 Revenue'!$I$48,0,I$87) -> 440155.577 | J48: =OFFSET('2011-20 Revenue'!$I$48,0,J$87) -> 456994.6129 | K48: =OFFSET('2011-20 Revenue'!$I$48,0,K$87) -> 474488.5308 | L48: =OFFSET('2011-20 Revenue'!$I$48,0,L$87) -> 492663.0501
B49: Multi phase CT AH | C49: ='2011-20 Revenue'!$I$49 -> 15115.24 | D49: =OFFSET('2011-20 Revenue'!$I$49,0,D$87) -> 15731.73 | E49: =OFFSET('2011-20 Revenue'!$I$49,0,E$87) -> 2333.46 | F49: =OFFSET('2011-20 Revenue'!$I$49,0,F$87) -> 22165.11 | G49: =OFFSET('2011-20 Revenue'!$I$49,0,G$87) -> 23608.26795 | H49: =OFFSET('2011-20 Revenue'!$I$49,0,H$87) -> 28378.60842 | I49: =OFFSET('2011-20 Revenue'!$I$49,0,I$87) -> 29442.15285 | J49: =OFFSET('2011-20 Revenue'!$I$49,0,J$87) -> 30546.53925 | K49: =OFFSET('2011-20 Revenue'!$I$49,0,K$87) -> 31693.3596 | L49: =OFFSET('2011-20 Revenue'!$I$49,0,L$87) -> 32884.2685
B51: New Connections Not Responsible for metering
B52: Single phase BH | C52: ='2011-20 Revenue'!$I$52 -> 308.37 | D52: =OFFSET('2011-20 Revenue'!$I$52,0,D$87) -> 1925.64 | E52: =OFFSET('2011-20 Revenue'!$I$52,0,E$87) -> 3986.47 | F52: =OFFSET('2011-20 Revenue'!$I$52,0,F$87) -> 703.38 | G52: =OFFSET('2011-20 Revenue'!$I$52,0,G$87) -> 749.1620499 | H52: =OFFSET('2011-20 Revenue'!$I$52,0,H$87) -> 982.7175141 | I52: =OFFSET('2011-20 Revenue'!$I$52,0,I$87) -> 1017.14343 | J52: =OFFSET('2011-20 Revenue'!$I$52,0,J$87) -> 1052.833726 | K52: =OFFSET('2011-20 Revenue'!$I$52,0,K$87) -> 1089.836339 | L52: =OFFSET('2011-20 Revenue'!$I$52,0,L$87) -> 1128.201057
B53: Single phase AH | C53: ='2011-20 Revenue'!$I$53 -> 0 | D53: =OFFSET('2011-20 Revenue'!$I$53,0,D$87) -> 0 | E53: =OFFSET('2011-20 Revenue'!$I$53,0,E$87) -> 0 | F53: =OFFSET('2011-20 Revenue'!$I$53,0,F$87) -> 0 | G53: =OFFSET('2011-20 Revenue'!$I$53,0,G$87) -> 0 | H53: =OFFSET('2011-20 Revenue'!$I$53,0,H$87) -> 0 | I53: =OFFSET('2011-20 Revenue'!$I$53,0,I$87) -> 0 | J53: =OFFSET('2011-20 Revenue'!$I$53,0,J$87) -> 0 | K53: =OFFSET('2011-20 Revenue'!$I$53,0,K$87) -> 0 | L53: =OFFSET('2011-20 Revenue'!$I$53,0,L$87) -> 0
B54: Multi phase DC BH | C54: ='2011-20 Revenue'!$I$54 -> 394.73 | D54: =OFFSET('2011-20 Revenue'!$I$54,0,D$87) -> 821.66 | E54: =OFFSET('2011-20 Revenue'!$I$54,0,E$87) -> 5971.84 | F54: =OFFSET('2011-20 Revenue'!$I$54,0,F$87) -> 1800.8 | G54: =OFFSET('2011-20 Revenue'!$I$54,0,G$87) -> 1918.031549 | H54: =OFFSET('2011-20 Revenue'!$I$54,0,H$87) -> 2356.02485 | I54: =OFFSET('2011-20 Revenue'!$I$54,0,I$87) -> 2433.695928 | J54: =OFFSET('2011-20 Revenue'!$I$54,0,J$87) -> 2514.094899 | K54: =OFFSET('2011-20 Revenue'!$I$54,0,K$87) -> 2597.322132 | L54: =OFFSET('2011-20 Revenue'!$I$54,0,L$87) -> 2683.481803
B55: Multi phase DC AH | C55: ='2011-20 Revenue'!$I$55 -> 0 | D55: =OFFSET('2011-20 Revenue'!$I$55,0,D$87) -> 0 | E55: =OFFSET('2011-20 Revenue'!$I$55,0,E$87) -> 0 | F55: =OFFSET('2011-20 Revenue'!$I$55,0,F$87) -> 0 | G55: =OFFSET('2011-20 Revenue'!$I$55,0,G$87) -> 0 | H55: =OFFSET('2011-20 Revenue'!$I$55,0,H$87) -> 0 | I55: =OFFSET('2011-20 Revenue'!$I$55,0,I$87) -> 0 | J55: =OFFSET('2011-20 Revenue'!$I$55,0,J$87) -> 0 | K55: =OFFSET('2011-20 Revenue'!$I$55,0,K$87) -> 0 | L55: =OFFSET('2011-20 Revenue'!$I$55,0,L$87) -> 0
B56: Multi phase CT BH | C56: ='2011-20 Revenue'!$I$56 -> 182867.99 | D56: =OFFSET('2011-20 Revenue'!$I$56,0,D$87) -> 233762.63 | E56: =OFFSET('2011-20 Revenue'!$I$56,0,E$87) -> 257575.23 | F56: =OFFSET('2011-20 Revenue'!$I$56,0,F$87) -> 250060.24 | G56: =OFFSET('2011-20 Revenue'!$I$56,0,G$87) -> 266341.6614 | H56: =OFFSET('2011-20 Revenue'!$I$56,0,H$87) -> 248416.5545 | I56: =OFFSET('2011-20 Revenue'!$I$56,0,I$87) -> 257469.6616 | J56: =OFFSET('2011-20 Revenue'!$I$56,0,J$87) -> 266864.2657 | K56: =OFFSET('2011-20 Revenue'!$I$56,0,K$87) -> 276613.534 | L56: =OFFSET('2011-20 Revenue'!$I$56,0,L$87) -> 286731.1481
B57: Multi phase CT AH | C57: ='2011-20 Revenue'!$I$57 -> 20809.78 | D57: =OFFSET('2011-20 Revenue'!$I$57,0,D$87) -> 10928.65 | E57: =OFFSET('2011-20 Revenue'!$I$57,0,E$87) -> 38580.48 | F57: =OFFSET('2011-20 Revenue'!$I$57,0,F$87) -> 71856.6 | G57: =OFFSET('2011-20 Revenue'!$I$57,0,G$87) -> 76535.15255 | H57: =OFFSET('2011-20 Revenue'!$I$57,0,H$87) -> 74418.89172 | I57: =OFFSET('2011-20 Revenue'!$I$57,0,I$87) -> 77160.94858 | J57: =OFFSET('2011-20 Revenue'!$I$57,0,J$87) -> 80007.17959 | K57: =OFFSET('2011-20 Revenue'!$I$57,0,K$87) -> 82961.61905 | L57: =OFFSET('2011-20 Revenue'!$I$57,0,L$87) -> 86028.45929
B59: Re-test of type 5 & 6 metering installations for first tier customers with annual consumption greater than 160MWh BH
B60: Re-test of type 5 & 6 metering installations for first tier customers with annual consumption greater than 160MWh AH
B62: Remote Meter Reconfiguration | C62: ='2011-20 Revenue'!$I$62 -> 0 | D62: =OFFSET('2011-20 Revenue'!$I$62,0,D$87) -> 30415.94 | E62: =OFFSET('2011-20 Revenue'!$I$62,0,E$87) -> 23856.75425 | F62: =OFFSET('2011-20 Revenue'!$I$62,0,F$87) -> 33382.14518 | G62: =OFFSET('2011-20 Revenue'!$I$62,0,G$87) -> 34135.89079 | H62: =OFFSET('2011-20 Revenue'!$I$62,0,H$87) -> 60825.58972 | I62: =OFFSET('2011-20 Revenue'!$I$62,0,I$87) -> 63246.65246 | J62: =OFFSET('2011-20 Revenue'!$I$62,0,J$87) -> 65764.08162 | K62: =OFFSET('2011-20 Revenue'!$I$62,0,K$87) -> 68381.71291 | L62: =OFFSET('2011-20 Revenue'!$I$62,0,L$87) -> 71103.53472
B63: Remote Reenergisation | C63: ='2011-20 Revenue'!$I$63 -> 0 | D63: =OFFSET('2011-20 Revenue'!$I$63,0,D$87) -> 9795.06 | E63: =OFFSET('2011-20 Revenue'!$I$63,0,E$87) -> 80746.61555 | F63: =OFFSET('2011-20 Revenue'!$I$63,0,F$87) -> 130283.2203 | G63: =OFFSET('2011-20 Revenue'!$I$63,0,G$87) -> 133224.9247 | H63: =OFFSET('2011-20 Revenue'!$I$63,0,H$87) -> 237388.9892 | I63: =OFFSET('2011-20 Revenue'!$I$63,0,I$87) -> 246837.8682 | J63: =OFFSET('2011-20 Revenue'!$I$63,0,J$87) -> 256662.8443 | K63: =OFFSET('2011-20 Revenue'!$I$63,0,K$87) -> 266878.8874 | L63: =OFFSET('2011-20 Revenue'!$I$63,0,L$87) -> 277501.5633
B64: Remote Deenergisation | C64: ='2011-20 Revenue'!$I$64 -> 0 | D64: =OFFSET('2011-20 Revenue'!$I$64,0,D$87) -> 27258.99 | E64: =OFFSET('2011-20 Revenue'!$I$64,0,E$87) -> 143778.6609 | F64: =OFFSET('2011-20 Revenue'!$I$64,0,F$87) -> 187126.402 | G64: =OFFSET('2011-20 Revenue'!$I$64,0,G$87) -> 191351.586 | H64: =OFFSET('2011-20 Revenue'!$I$64,0,H$87) -> 340962.9218 | I64: =OFFSET('2011-20 Revenue'!$I$64,0,I$87) -> 354534.3911 | J64: =OFFSET('2011-20 Revenue'!$I$64,0,J$87) -> 368646.0504 | K64: =OFFSET('2011-20 Revenue'!$I$64,0,K$87) -> 383319.4012 | L64: =OFFSET('2011-20 Revenue'!$I$64,0,L$87) -> 398576.8006
B66: Total Fee Based Service Revenue | C66: =SUM(C9:C65) -> 6635954.33 | D66: 7027629.65 | E66: 6752239.05 | F66: 6323071.83 | G66: 6493066.637 | H66: 7579430.953 | I66: 7633041.711 | J66: 7738729.357 | K66: 7929808.463 | L66: 8285664.452
B67: Check | C67: =C66-'2011-20 Revenue'!$I$67 -> 0 | D67: =D66-'2011-20 Revenue'!$P$67 -> 0 | E67: =E66-'2011-20 Revenue'!$W$67 -> 0 | F67: =F66-'2011-20 Revenue'!$AD$67 -> 0 | G67: =G66-'2011-20 Revenue'!$AK$67 -> 0 | H67: =H66-'2011-20 Revenue'!$AR$67 -> 0 | I67: =I66-'2011-20 Revenue'!$AY$67 -> 0 | J67: =J66-'2011-20 Revenue'!$BF$67 -> 0 | K67: =K66-'2011-20 Revenue'!$BM$67 -> 0 | L67: =L66-'2011-20 Revenue'!$BT$67 -> 0 | M67: =SUM(C67:L67) -> 0
B70: Name of Quoted Service | C70: Current regulatory control period | H70: Forthcoming regulatory control period
C71: Actual (nominal $ ex GST) | H71: Real $2015 (ex GST)
C72: 2011 | D72: 2012 | E72: 2013 | F72: 2014 | G72: 2015 | H72: 2016 | I72: 2017 | J72: 2018 | K72: 2019 | L72: 2020
B74: Recoverable Works - Asset Damage | C74: =Inputs!H114 -> 315952 | D74: =Inputs!I114 -> 520456 | E74: =Inputs!J114 -> 702528 | F74: =Inputs!K114 -> 1483957 | G74: =Inputs!L114 -> 1571097.027 | H74: =Inputs!M114 -> 1600529.398 | I74: =Inputs!N114 -> 1627488.289 | J74: =Inputs!O114 -> 1654901.269 | K74: =Inputs!P114 -> 1682775.986 | L74: =Inputs!Q114 -> 1711120.217
B75: After hours truck by appointment | C75: =Inputs!H115 -> 79037 | D75: =Inputs!I115 -> 28670 | E75: =Inputs!J115 -> 58782 | F75: =Inputs!K115 -> 46180 | G75: =Inputs!L115 -> 48891.75407 | H75: =Inputs!M115 -> 49807.67475 | I75: =Inputs!N115 -> 50646.62198 | J75: =Inputs!O115 -> 51499.70021 | K75: =Inputs!P115 -> 52367.14746 | L75: =Inputs!Q115 -> 53249.20577
B76: Supply abolishment | C76: =Inputs!H116 -> 886427 | D76: =Inputs!I116 -> 578064 | E76: =Inputs!J116 -> 613388 | F76: =Inputs!K116 -> 756930 | G76: =Inputs!L116 -> 801377.9863 | H76: =Inputs!M116 -> 0 | I76: =Inputs!N116 -> 0 | J76: =Inputs!O116 -> 0 | K76: =Inputs!P116 -> 0 | L76: =Inputs!Q116 -> 0
B77: Audit Design & Construction Charge | C77: =Inputs!H117 -> - | D77: =Inputs!I117 -> - | E77: =Inputs!J117 -> 89683 | F77: =Inputs!K117 -> 26406 | G77: =Inputs!L117 -> 27956.59718 | H77: =Inputs!M117 -> 28480.3261 | I77: =Inputs!N117 -> 28960.04114 | J77: =Inputs!O117 -> 29447.83637 | K77: =Inputs!P117 -> 29943.8479 | L77: =Inputs!Q117 -> 30448.21411
B78: Specification & Design Enquiry Charge | C78: =Inputs!H118 -> 115955 | D78: =Inputs!I118 -> 225593 | E78: =Inputs!J118 -> 1289694 | F78: =Inputs!K118 -> 1221786 | G78: =Inputs!L118 -> 1293530.98 | H78: =Inputs!M118 -> 1317763.527 | I78: =Inputs!N118 -> 1339959.586 | J78: =Inputs!O118 -> 1362529.509 | K78: =Inputs!P118 -> 1385479.594 | L78: =Inputs!Q118 -> 1408816.243
B79: High Load Escorts | C79: =Inputs!H119 -> - | D79: =Inputs!I119 -> 24989 | E79: =Inputs!J119 -> 31699 | F79: =Inputs!K119 -> 0 | G79: =Inputs!L119 -> 0 | H79: =Inputs!M119 -> 0 | I79: =Inputs!N119 -> 0 | J79: =Inputs!O119 -> 0 | K79: =Inputs!P119 -> 0 | L79: =Inputs!Q119 -> 0
B80: Low Voltage Mains | C80: =Inputs!H120 -> 593166 | D80: =Inputs!I120 -> 777687 | E80: =Inputs!J120 -> 961798 | F80: =Inputs!K120 -> 1143296 | G80: =Inputs!L120 -> 1210431.937 | H80: =Inputs!M120 -> 1233107.737 | I80: =Inputs!N120 -> 1253877.876 | J80: =Inputs!O120 -> 1274997.862 | K80: =Inputs!P120 -> 1296473.586 | L80: =Inputs!Q120 -> 1318311.043
B81: Batons/ Shutdown / Electrical Inspect/ Meter Test & Revovery | C81: =Inputs!H121 -> - | D81: =Inputs!I121 -> - | E81: =Inputs!J121 -> - | F81: =Inputs!K121 -> 0 | G81: =Inputs!L121 -> 0 | H81: =Inputs!M121 -> 0 | I81: =Inputs!N121 -> 0 | J81: =Inputs!O121 -> 0 | K81: =Inputs!P121 -> 0 | L81: =Inputs!Q121 -> 0
B82: Total Quoted Service Revenue | C82: =SUM(C73:C81) -> 1990537 | D82: =SUM(D73:D81) -> 2155459 | E82: 3747572 | F82: 4678555 | G82: 4953286.281 | H82: 4229688.664 | I82: 4300932.415 | J82: 4373376.176 | K82: 4447040.162 | L82: 4521944.923 | M82: =SUM(C82:L82)-SUM(Inputs!G114:Q121) -> 0
B83: Check
B87: Offset ref | D87: =E87-7 -> 7 | E87: 14 | F87: 21 | G87: 28 | H87: 35 | I87: 42 | J87: 49 | K87: =L87-7 -> 56 | L87: 63

Sheet ACS 12.6
A1: =Title!A38 -> CP ACS Model
A2: =MID(CELL("Filename",C1),FIND("]",CELL("Filename",C1))+1,255) -> ACS 12.6
A3: Menu
B4: Labour rates used to calculate the charges
B6: Name of Labour Category | C6: Current regulatory control period | H6: Forthcoming regulatory control period | M6: =SUM(M10:M20) -> 0
C7: Actual | H7: Proposed
C8: Real $2015 (ex GST)
C9: 2011 | D9: 2012 | E9: 2013 | F9: 2014 | G9: 2015 | H9: 2016 | I9: 2017 | J9: 2018 | K9: 2019 | L9: 2020
B11: General Lineworker BH | C11: =Inputs!H50*(1*Inputs!$G$14) -> 116.1677469 | D11: =Inputs!I50*(1*Inputs!$G$14) -> 119.6760129 | E11: =Inputs!J50*(1*Inputs!$G$14) -> 122.3328203 | F11: =Inputs!K50*(1*Inputs!$G$14) -> 123.1524502 | G11: =Inputs!L50 -> 124.8765845 | H11: =Inputs!M50 -> 0 | I11: =Inputs!N50 -> 0 | J11: =Inputs!O50 -> 0 | K11: =Inputs!P50 -> 0 | L11: =Inputs!Q50 -> 0
B12: Design / Survey BH | C12: =Inputs!H51*(1*Inputs!$G$14) -> 110.4971315 | D12: =Inputs!I51*(1*Inputs!$G$14) -> 113.8341449 | E12: =Inputs!J51*(1*Inputs!$G$14) -> 116.3612629 | F12: =Inputs!K51*(1*Inputs!$G$14) -> 117.1408834 | G12: =Inputs!L51 -> 118.7808558 | H12: =Inputs!M51 -> 0 | I12: =Inputs!N51 -> 0 | J12: =Inputs!O51 -> 0 | K12: =Inputs!P51 -> 0 | L12: =Inputs!Q51 -> 0
B13: General Lineworker AH | C13: =Inputs!H52*(1*Inputs!$G$14) -> 128.6970115 | D13: =Inputs!I52*(1*Inputs!$G$14) -> 132.5836612 | E13: =Inputs!J52*(1*Inputs!$G$14) -> 135.5270185 | F13: =Inputs!K52*(1*Inputs!$G$14) -> 136.4350495 | G13: =Inputs!L52 -> 138.3451402 | H13: =Inputs!M52 -> 0 | I13: =Inputs!N52 -> 0 | J13: =Inputs!O52 -> 0 | K13: =Inputs!P52 -> 0 | L13: =Inputs!Q52 -> 0
B14: Design / Survey AH | C14: =Inputs!H53*(1*Inputs!$G$14) -> 130.1346322 | D14: =Inputs!I53*(1*Inputs!$G$14) -> 134.0646981 | E14: =Inputs!J53*(1*Inputs!$G$14) -> 137.0409344 | F14: =Inputs!K53*(1*Inputs!$G$14) -> 137.9591087 | G14: =Inputs!L53 -> 139.8905362 | H14: =Inputs!M53 -> 0 | I14: =Inputs!N53 -> 0 | J14: =Inputs!O53 -> 0 | K14: =Inputs!P53 -> 0 | L14: =Inputs!Q53 -> 0
B15: Skilled Electrical Worker BH | C15: =Inputs!H81 -> 0 | D15: =Inputs!I81 -> 0 | E15: =Inputs!J81 -> 0 | F15: =Inputs!K81 -> 0 | G15: =Inputs!L81 -> 121.4914353 | H15: =Inputs!M81 -> 123.7674125 | I15: =Inputs!N81 -> 125.8521179 | J15: =Inputs!O81 -> 127.9719375 | K15: =Inputs!P81 -> 130.1274628 | L15: =Inputs!Q81 -> 132.3192952
B16: Skilled Electrical Worker AH | C16: =Inputs!H82 -> 0 | D16: =Inputs!I82 -> 0 | E16: =Inputs!J82 -> 0 | F16: =Inputs!K82 -> 0 | G16: =Inputs!L82 -> 142.6766892 | H16: =Inputs!M82 -> 145.3495434 | I16: =Inputs!N82 -> 147.7977724 | J16: =Inputs!O82 -> 150.2872388 | K16: =Inputs!P82 -> 152.8186371 | L16: =Inputs!Q82 -> 155.3926736
B18: Back Office - Exclusive of Ohs | C18: =Inputs!H46*(1*Inputs!$G$14) -> 47.88209411 | D18: =Inputs!I46*(1*Inputs!$G$14) -> 49.31844203 | E18: =Inputs!J46*(1*Inputs!$G$14) -> 50.41006645 | F18: =Inputs!K46*(1*Inputs!$G$14) -> 50.74329916 | G18: =Inputs!L46 -> 51.45 | H18: =Inputs!M46 -> 0 | I18: =Inputs!N46 -> 0 | J18: =Inputs!O46 -> 0 | K18: =Inputs!P46 -> 0 | L18: =Inputs!Q46 -> 0
B19: Support staff (Category RIN) | C19: =Inputs!H83 -> 0 | D19: =Inputs!I83 -> 0 | E19: =Inputs!J83 -> 0 | F19: =Inputs!K83 -> 0 | G19: =Inputs!L83 -> 69.32444664 | H19: =Inputs!M83 -> 70.62314609 | I19: =Inputs!N83 -> 71.81270358 | J19: =Inputs!O83 -> 73.02229767 | K19: =Inputs!P83 -> 74.25226583 | L19: =Inputs!Q83 -> 75.50295125 | M19: =SUM(C19:L19,C15:L16)-SUM(Inputs!G81:Q83) -> 0

Sheet ACS vol
A1: =+ModelName -> CP ACS Model
A2: =MID(CELL("Filename",D1),FIND("]",CELL("Filename",D1))+1,255) -> ACS vol | J2: =Check!D2 -> OK
A3: Menu
B4: Number of customers for each year
B6: Name of Service | C6: Current regulatory control period | H6: Forthcoming regulatory control period | M6: =SUM(M9:M67) -> 0
C7: Actual | H7: Proposed
C8: 2011 | D8: 2012 | E8: 2013 | F8: 2014 | G8: 2015 | H8: 2016 | I8: 2017 | J8: 2018 | K8: 2019 | L8: 2020
B9: Meter Investigation Test (BH) | C9: =Volumes!I9 -> 360 | D9: =OFFSET(Volumes!$I9,0,D$82) -> 235.6866012 | E9: =OFFSET(Volumes!$I9,0,E$82) -> 110.7747502 | F9: =OFFSET(Volumes!$I9,0,F$82) -> 77.0524957 | G9: =OFFSET(Volumes!$I9,0,G$82) -> 78.79228744 | H9: =OFFSET(Volumes!$I9,0,H$82) -> 80.57136248 | I9: =OFFSET(Volumes!$I9,0,I$82) -> 82.39060779 | J9: =OFFSET(Volumes!$I9,0,J$82) -> 84.2509304 | K9: =OFFSET(Volumes!$I9,0,K$82) -> 86.15325779 | L9: =OFFSET(Volumes!$I9,0,L$82) -> 88.09853841
B10: Meter Investigation Test (AH) | C10: =Volumes!I10 -> 0 | D10: =OFFSET(Volumes!$I10,0,D$82) -> 0 | E10: =OFFSET(Volumes!$I10,0,E$82) -> 0 | F10: =OFFSET(Volumes!$I10,0,F$82) -> 0 | G10: =OFFSET(Volumes!$I10,0,G$82) -> 0 | H10: =OFFSET(Volumes!$I10,0,H$82) -> 0 | I10: =OFFSET(Volumes!$I10,0,I$82) -> 0 | J10: =OFFSET(Volumes!$I10,0,J$82) -> 0 | K10: =OFFSET(Volumes!$I10,0,K$82) -> 0 | L10: =OFFSET(Volumes!$I10,0,L$82) -> 0
B11: Meter Accuracy Test - single phase (BH) | C11: =Volumes!I11 -> 206.2849158 | D11: =OFFSET(Volumes!$I11,0,D$82) -> 191.6083131 | E11: =OFFSET(Volumes!$I11,0,E$82) -> 94.888522 | F11: =OFFSET(Volumes!$I11,0,F$82) -> 47.58004319 | G11: =OFFSET(Volumes!$I11,0,G$82) -> 48.65436747 | H11: =OFFSET(Volumes!$I11,0,H$82) -> 49.75294923 | I11: =OFFSET(Volumes!$I11,0,I$82) -> 50.87633621 | J11: =OFFSET(Volumes!$I11,0,J$82) -> 52.02508849 | K11: =OFFSET(Volumes!$I11,0,K$82) -> 53.1997788 | L11: =OFFSET(Volumes!$I11,0,L$82) -> 54.40099279
B12: Meter Accuracy Test - single phase (AH) | C12: =Volumes!I12 -> 0 | D12: =OFFSET(Volumes!$I12,0,D$82) -> 2 | E12: =OFFSET(Volumes!$I12,0,E$82) -> 0 | F12: =OFFSET(Volumes!$I12,0,F$82) -> 0 | G12: =OFFSET(Volumes!$I12,0,G$82) -> 0 | H12: =OFFSET(Volumes!$I12,0,H$82) -> 0 | I12: =OFFSET(Volumes!$I12,0,I$82) -> 0 | J12: =OFFSET(Volumes!$I12,0,J$82) -> 0 | K12: =OFFSET(Volumes!$I12,0,K$82) -> 0 | L12: =OFFSET(Volumes!$I12,0,L$82) -> 0
B13: Meter Accuracy Test - Single phase additional meter (BH) | C13: =Volumes!I13 -> 9.579207921 | D13: =OFFSET(Volumes!$I13,0,D$82) -> 1 | E13: =OFFSET(Volumes!$I13,0,E$82) -> 6 | F13: =OFFSET(Volumes!$I13,0,F$82) -> 0 | G13: =OFFSET(Volumes!$I13,0,G$82) -> 0 | H13: =OFFSET(Volumes!$I13,0,H$82) -> 0 | I13: =OFFSET(Volumes!$I13,0,I$82) -> 0 | J13: =OFFSET(Volumes!$I13,0,J$82) -> 0 | K13: =OFFSET(Volumes!$I13,0,K$82) -> 0 | L13: =OFFSET(Volumes!$I13,0,L$82) -> 0
B14: Meter Accuracy Test - multi phase (BH) | C14: =Volumes!I14 -> 72.62789295 | D14: =OFFSET(Volumes!$I14,0,D$82) -> 68.21005403 | E14: =OFFSET(Volumes!$I14,0,E$82) -> 45 | F14: =OFFSET(Volumes!$I14,0,F$82) -> 16.89500413 | G14: =OFFSET(Volumes!$I14,0,G$82) -> 17.27648157 | H14: =OFFSET(Volumes!$I14,0,H$82) -> 17.6665725 | I14: =OFFSET(Volumes!$I14,0,I$82) -> 18.06547142 | J14: =OFFSET(Volumes!$I14,0,J$82) -> 18.47337719 | K14: =OFFSET(Volumes!$I14,0,K$82) -> 18.8904932 | L14: =OFFSET(Volumes!$I14,0,L$82) -> 19.31702739
B15: Meter Accuracy Test - multi phase (AH) | C15: =Volumes!I15 -> 0 | D15: =OFFSET(Volumes!$I15,0,D$82) -> 1 | E15: =OFFSET(Volumes!$I15,0,E$82) -> 0 | F15: =OFFSET(Volumes!$I15,0,F$82) -> 0 | G15: =OFFSET(Volumes!$I15,0,G$82) -> 0 | H15: =OFFSET(Volumes!$I15,0,H$82) -> 0 | I15: =OFFSET(Volumes!$I15,0,I$82) -> 0 | J15: =OFFSET(Volumes!$I15,0,J$82) -> 0 | K15: =OFFSET(Volumes!$I15,0,K$82) -> 0 | L15: =OFFSET(Volumes!$I15,0,L$82) -> 0
B16: Meter Accuracy Test - Multi phase additional meter (BH) | C16: =Volumes!I16 -> 0.6561665777 | D16: =OFFSET(Volumes!$I16,0,D$82) -> 4.960816037 | E16: =OFFSET(Volumes!$I16,0,E$82) -> 4 | F16: =OFFSET(Volumes!$I16,0,F$82) -> 3 | G16: =OFFSET(Volumes!$I16,0,G$82) -> 3.067737913 | H16: =OFFSET(Volumes!$I16,0,H$82) -> 3.137005301 | I16: =OFFSET(Volumes!$I16,0,I$82) -> 3.207836698 | J16: =OFFSET(Volumes!$I16,0,J$82) -> 3.280267419 | K16: =OFFSET(Volumes!$I16,0,K$82) -> 3.354333575 | L16: =OFFSET(Volumes!$I16,0,L$82) -> 3.430072094
B17: Meter Accuracy Test - CT (BH) | C17: =Volumes!I17 -> 0 | D17: =OFFSET(Volumes!$I17,0,D$82) -> 3 | E17: =OFFSET(Volumes!$I17,0,E$82) -> 1 | F17: =OFFSET(Volumes!$I17,0,F$82) -> 4.947496101 | G17: =OFFSET(Volumes!$I17,0,G$82) -> 5.059207121 | H17: =OFFSET(Volumes!$I17,0,H$82) -> 5.173440498 | I17: =OFFSET(Volumes!$I17,0,I$82) -> 5.290253186 | J17: =OFFSET(Volumes!$I17,0,J$82) -> 5.409703422 | K17: =OFFSET(Volumes!$I17,0,K$82) -> 5.531850762 | L17: =OFFSET(Volumes!$I17,0,L$82) -> 5.656756104
B18: Meter Accuracy Test - CT (AH) | C18: =Volumes!I18 -> 0 | D18: =OFFSET(Volumes!$I18,0,D$82) -> 0 | E18: =OFFSET(Volumes!$I18,0,E$82) -> 0 | F18: =OFFSET(Volumes!$I18,0,F$82) -> 0 | G18: =OFFSET(Volumes!$I18,0,G$82) -> 0 | H18: =OFFSET(Volumes!$I18,0,H$82) -> 0 | I18: =OFFSET(Volumes!$I18,0,I$82) -> 0 | J18: =OFFSET(Volumes!$I18,0,J$82) -> 0 | K18: =OFFSET(Volumes!$I18,0,K$82) -> 0 | L18: =OFFSET(Volumes!$I18,0,L$82) -> 0
B20: Reconnections (incl Customer Transfer) BH | C20: =Volumes!I20 -> 42645.05264 | D20: =OFFSET(Volumes!$I20,0,D$82) -> 36242.87352 | E20: =OFFSET(Volumes!$I20,0,E$82) -> 27230.78728 | F20: =OFFSET(Volumes!$I20,0,F$82) -> 19862.53228 | G20: =OFFSET(Volumes!$I20,0,G$82) -> 15880.81659 | H20: =OFFSET(Volumes!$I20,0,H$82) -> 13389.16105 | I20: =OFFSET(Volumes!$I20,0,I$82) -> 11288.43928 | J20: =OFFSET(Volumes!$I20,0,J$82) -> 9517.314848 | K20: =OFFSET(Volumes!$I20,0,K$82) -> 8024.07487 | L20: =OFFSET(Volumes!$I20,0,L$82) -> 6765.120052
B21: Reconnections (same day) BH | C21: =Volumes!I21 -> 0 | D21: =OFFSET(Volumes!$I21,0,D$82) -> 0 | E21: =OFFSET(Volumes!$I21,0,E$82) -> 0 | F21: =OFFSET(Volumes!$I21,0,F$82) -> 0 | G21: =OFFSET(Volumes!$I21,0,G$82) -> 0 | H21: =OFFSET(Volumes!$I21,0,H$82) -> 0 | I21: =OFFSET(Volumes!$I21,0,I$82) -> 0 | J21: =OFFSET(Volumes!$I21,0,J$82) -> 0 | K21: =OFFSET(Volumes!$I21,0,K$82) -> 0 | L21: =OFFSET(Volumes!$I21,0,L$82) -> 0
B22: Reconnections (incl Customer Transfer) AH | C22: =Volumes!I22 -> 5454.259813 | D22: =OFFSET(Volumes!$I22,0,D$82) -> 4396.575888 | E22: =OFFSET(Volumes!$I22,0,E$82) -> 2726.041003 | F22: =OFFSET(Volumes!$I22,0,F$82) -> 1928.528592 | G22: =OFFSET(Volumes!$I22,0,G$82) -> 1541.928714 | H22: =OFFSET(Volumes!$I22,0,H$82) -> 1300.004428 | I22: =OFFSET(Volumes!$I22,0,I$82) -> 1096.037383 | J22: =OFFSET(Volumes!$I22,0,J$82) -> 924.0721951 | K22: =OFFSET(Volumes!$I22,0,K$82) -> 779.0878622 | L22: =OFFSET(Volumes!$I22,0,L$82) -> 656.8511641
B23: Disconnection (BH only) | C23: =Volumes!I23 -> 74999.08642 | D23: =OFFSET(Volumes!$I23,0,D$82) -> 55482.53108 | E23: =OFFSET(Volumes!$I23,0,E$82) -> 38519.74988 | F23: =OFFSET(Volumes!$I23,0,F$82) -> 29926.04772 | G23: =OFFSET(Volumes!$I23,0,G$82) -> 23926.963 | H23: =OFFSET(Volumes!$I23,0,H$82) -> 20172.88969 | I23: =OFFSET(Volumes!$I23,0,I$82) -> 17007.81993 | J23: =OFFSET(Volumes!$I23,0,J$82) -> 14339.34074 | K23: =OFFSET(Volumes!$I23,0,K$82) -> 12089.53844 | L23: =OFFSET(Volumes!$I23,0,L$82) -> 10192.7238
B24: Disconnection (no AH service) | C24: =Volumes!I24 -> 2847.009089 | D24: =OFFSET(Volumes!$I24,0,D$82) -> 9104.625054 | E24: =OFFSET(Volumes!$I24,0,E$82) -> 6914.908326 | F24: =OFFSET(Volumes!$I24,0,F$82) -> 4074.422221 | G24: =OFFSET(Volumes!$I24,0,G$82) -> 3257.648677 | H24: =OFFSET(Volumes!$I24,0,H$82) -> 2746.532746 | I24: =OFFSET(Volumes!$I24,0,I$82) -> 2315.609469 | J24: =OFFSET(Volumes!$I24,0,J$82) -> 1952.296845 | K24: =OFFSET(Volumes!$I24,0,K$82) -> 1645.986951 | L24: =OFFSET(Volumes!$I24,0,L$82) -> 1387.73622
B25: Disconnection for non payment (BH only) | C25: =Volumes!I25 -> 6465.111522 | D25: =OFFSET(Volumes!$I25,0,D$82) -> 0 | E25: =OFFSET(Volumes!$I25,0,E$82) -> 1.005198842 | F25: =OFFSET(Volumes!$I25,0,F$82) -> 0 | G25: =OFFSET(Volumes!$I25,0,G$82) -> 0 | H25: =OFFSET(Volumes!$I25,0,H$82) -> 0 | I25: =OFFSET(Volumes!$I25,0,I$82) -> 0 | J25: =OFFSET(Volumes!$I25,0,J$82) -> 0 | K25: =OFFSET(Volumes!$I25,0,K$82) -> 0 | L25: =OFFSET(Volumes!$I25,0,L$82) -> 0
B26: Special reading BH | C26: =Volumes!I26 -> 7595.0384 | D26: =OFFSET(Volumes!$I26,0,D$82) -> 7850.706048 | E26: =OFFSET(Volumes!$I26,0,E$82) -> 3170.331536 | F26: =OFFSET(Volumes!$I26,0,F$82) -> 946.6351474 | G26: =OFFSET(Volumes!$I26,0,G$82) -> 756.8692118 | H26: =OFFSET(Volumes!$I26,0,H$82) -> 638.1185575 | I26: =OFFSET(Volumes!$I26,0,I$82) -> 537.9995475 | J26: =OFFSET(Volumes!$I26,0,J$82) -> 453.588929 | K26: =OFFSET(Volumes!$I26,0,K$82) -> 382.4220996 | L26: =OFFSET(Volumes!$I26,0,L$82) -> 322.4211459
B27: Special reading AH - no service | C27: =Volumes!I27 -> 0 | D27: =OFFSET(Volumes!$I27,0,D$82) -> 0 | E27: =OFFSET(Volumes!$I27,0,E$82) -> 0 | F27: =OFFSET(Volumes!$I27,0,F$82) -> 0 | G27: =OFFSET(Volumes!$I27,0,G$82) -> 0 | H27: =OFFSET(Volumes!$I27,0,H$82) -> 0 | I27: =OFFSET(Volumes!$I27,0,I$82) -> 0 | J27: =OFFSET(Volumes!$I27,0,J$82) -> 0 | K27: =OFFSET(Volumes!$I27,0,K$82) -> 0 | L27: =OFFSET(Volumes!$I27,0,L$82) -> 0
B28: Manual meter reading | C28: =Volumes!I28 -> 0 | D28: =OFFSET(Volumes!$I28,0,D$82) -> 0 | E28: =OFFSET(Volumes!$I28,0,E$82) -> 0 | F28: =OFFSET(Volumes!$I28,0,F$82) -> 0 | G28: =OFFSET(Volumes!$I28,0,G$82) -> 12366 | H28: =OFFSET(Volumes!$I28,0,H$82) -> 32972 | I28: =OFFSET(Volumes!$I28,0,I$82) -> 32972 | J28: =OFFSET(Volumes!$I28,0,J$82) -> 32972 | K28: =OFFSET(Volumes!$I28,0,K$82) -> 32972 | L28: =OFFSET(Volumes!$I28,0,L$82) -> 32972
B29: Access to meter data | C29: =Volumes!I29 -> 0 | D29: =OFFSET(Volumes!$I29,0,D$82) -> 0 | E29: =OFFSET(Volumes!$I29,0,E$82) -> 0 | F29: =OFFSET(Volumes!$I29,0,F$82) -> 0 | G29: =OFFSET(Volumes!$I29,0,G$82) -> 0 | H29: =OFFSET(Volumes!$I29,0,H$82) -> 191 | I29: =OFFSET(Volumes!$I29,0,I$82) -> 476 | J29: =OFFSET(Volumes!$I29,0,J$82) -> 1190 | K29: =OFFSET(Volumes!$I29,0,K$82) -> 2976 | L29: =OFFSET(Volumes!$I29,0,L$82) -> 7441
B31: Service Truck Visit BH | C31: =Volumes!I31 -> 2909.144092 | D31: =OFFSET(Volumes!$I31,0,D$82) -> 2208.250091 | E31: =OFFSET(Volumes!$I31,0,E$82) -> 2299.650297 | F31: =OFFSET(Volumes!$I31,0,F$82) -> 2190.052895 | G31: =OFFSET(Volumes!$I31,0,G$82) -> 2239.502766 | H31: =OFFSET(Volumes!$I31,0,H$82) -> 2290.06918 | I31: =OFFSET(Volumes!$I31,0,I$82) -> 2341.777349 | J31: =OFFSET(Volumes!$I31,0,J$82) -> 2394.653052 | K31: =OFFSET(Volumes!$I31,0,K$82) -> 2448.722652 | L31: =OFFSET(Volumes!$I31,0,L$82) -> 2504.013106
B32: Service Truck Visit AH | C32: =Volumes!I32 -> 214.1121745 | D32: =OFFSET(Volumes!$I32,0,D$82) -> 225.1845744 | E32: =OFFSET(Volumes!$I32,0,E$82) -> 195.7546285 | F32: =OFFSET(Volumes!$I32,0,F$82) -> 389.4799861 | G32: =OFFSET(Volumes!$I32,0,G$82) -> 398.2741732 | H32: =OFFSET(Volumes!$I32,0,H$82) -> 407.266927 | I32: =OFFSET(Volumes!$I32,0,I$82) -> 416.4627309 | J32: =OFFSET(Volumes!$I32,0,J$82) -> 425.8661696 | K32: =OFFSET(Volumes!$I32,0,K$82) -> 435.4819314 | L32: =OFFSET(Volumes!$I32,0,L$82) -> 445.3148105
B33: Wasted Truck Visit BH | C33: =Volumes!I33 -> 60.99819129 | D33: =OFFSET(Volumes!$I33,0,D$82) -> 294.5884641 | E33: =OFFSET(Volumes!$I33,0,E$82) -> 42.45407086 | F33: =OFFSET(Volumes!$I33,0,F$82) -> 99 | G33: =OFFSET(Volumes!$I33,0,G$82) -> 101.2353511 | H33: =OFFSET(Volumes!$I33,0,H$82) -> 103.5211749 | I33: =OFFSET(Volumes!$I33,0,I$82) -> 105.858611 | J33: =OFFSET(Volumes!$I33,0,J$82) -> 108.2488248 | K33: =OFFSET(Volumes!$I33,0,K$82) -> 110.693008 | L33: =OFFSET(Volumes!$I33,0,L$82) -> 113.1923791
B34: Wasted Truck Visit AH | C34: =Volumes!I34 -> 1 | D34: =OFFSET(Volumes!$I34,0,D$82) -> 0 | E34: =OFFSET(Volumes!$I34,0,E$82) -> 0 | F34: =OFFSET(Volumes!$I34,0,F$82) -> 6.619945168 | G34: =OFFSET(Volumes!$I34,0,G$82) -> 6.769418924 | H34: =OFFSET(Volumes!$I34,0,H$82) -> 6.922267694 | I34: =OFFSET(Volumes!$I34,0,I$82) -> 7.078567683 | J34: =OFFSET(Volumes!$I34,0,J$82) -> 7.238396817 | K34: =OFFSET(Volumes!$I34,0,K$82) -> 7.401834781 | L34: =OFFSET(Volumes!$I34,0,L$82) -> 7.568963061
B36: Reserve Feeder - Subtransmission - KVA | C36: =Volumes!I36 -> 39871.50107 | D36: =OFFSET(Volumes!$I36,0,D$82) -> 37859.19567 | E36: =OFFSET(Volumes!$I36,0,E$82) -> 36771.55505 | F36: =OFFSET(Volumes!$I36,0,F$82) -> 0 | G36: =OFFSET(Volumes!$I36,0,G$82) -> 0 | H36: =OFFSET(Volumes!$I36,0,H$82) -> 0 | I36: =OFFSET(Volumes!$I36,0,I$82) -> 0 | J36: =OFFSET(Volumes!$I36,0,J$82) -> 0 | K36: =OFFSET(Volumes!$I36,0,K$82) -> 0 | L36: =OFFSET(Volumes!$I36,0,L$82) -> 0
B37: Reserve Feeder - High Voltage - KVA | C37: =Volumes!I37 -> 36527.84207 | D37: =OFFSET(Volumes!$I37,0,D$82) -> 34497.77944 | E37: =OFFSET(Volumes!$I37,0,E$82) -> 33338.85039 | F37: =OFFSET(Volumes!$I37,0,F$82) -> 56778.35072 | G37: =OFFSET(Volumes!$I37,0,G$82) -> 58060.36638 | H37: =OFFSET(Volumes!$I37,0,H$82) -> 59371.32906 | I37: =OFFSET(Volumes!$I37,0,I$82) -> 60711.89237 | J37: =OFFSET(Volumes!$I37,0,J$82) -> 62082.72466 | K37: =OFFSET(Volumes!$I37,0,K$82) -> 63484.50939 | L37: =OFFSET(Volumes!$I37,0,L$82) -> 64917.94545
B38: Reserve Feeder - Voltage - KVA | C38: =Volumes!I38 -> 2115.018952 | D38: =OFFSET(Volumes!$I38,0,D$82) -> 1996.611984 | E38: =OFFSET(Volumes!$I38,0,E$82) -> 1931.151955 | F38: =OFFSET(Volumes!$I38,0,F$82) -> 0 | G38: =OFFSET(Volumes!$I38,0,G$82) -> 0 | H38: =OFFSET(Volumes!$I38,0,H$82) -> 0 | I38: =OFFSET(Volumes!$I38,0,I$82) -> 0 | J38: =OFFSET(Volumes!$I38,0,J$82) -> 0 | K38: =OFFSET(Volumes!$I38,0,K$82) -> 0 | L38: =OFFSET(Volumes!$I38,0,L$82) -> 0
C39: =Volumes!I39 -> 0
B40: Solar PV Conn - Single phase BH | C40: =Volumes!I40 -> 1759.977259 | D40: =OFFSET(Volumes!$I40,0,D$82) -> 1325.498685 | E40: =OFFSET(Volumes!$I40,0,E$82) -> 818.9103577 | F40: =OFFSET(Volumes!$I40,0,F$82) -> 1034.839562 | G40: =OFFSET(Volumes!$I40,0,G$82) -> 1058.205519
B41: Solar PV Conn - Single phase AH | C41: =Volumes!I41 -> 5.999889284 | D41: =OFFSET(Volumes!$I41,0,D$82) -> 0 | E41: =OFFSET(Volumes!$I41,0,E$82) -> 0 | F41: =OFFSET(Volumes!$I41,0,F$82) -> 0 | G41: =OFFSET(Volumes!$I41,0,G$82) -> 0
B43: New Connections Responsible for metering
B44: Single phase BH | C44: =Volumes!I44 -> 4566.763784 | D44: =OFFSET(Volumes!$I44,0,D$82) -> 5176.340808 | E44: =OFFSET(Volumes!$I44,0,E$82) -> 4500.234249 | F44: =OFFSET(Volumes!$I44,0,F$82) -> 3715.645535 | G44: =OFFSET(Volumes!$I44,0,G$82) -> 3799.542226 | H44: =OFFSET(Volumes!$I44,0,H$82) -> 3885.333247 | I44: =OFFSET(Volumes!$I44,0,I$82) -> 3973.061368 | J44: =OFFSET(Volumes!$I44,0,J$82) -> 4062.77033 | K44: =OFFSET(Volumes!$I44,0,K$82) -> 4154.504857 | L44: =OFFSET(Volumes!$I44,0,L$82) -> 4248.310687
B45: Single phase AH | C45: =Volumes!I45 -> 7.07049695 | D45: =OFFSET(Volumes!$I45,0,D$82) -> 13 | E45: =OFFSET(Volumes!$I45,0,E$82) -> 8.036869951 | F45: =OFFSET(Volumes!$I45,0,F$82) -> 26.05250201 | G45: =OFFSET(Volumes!$I45,0,G$82) -> 26.64074938 | H45: =OFFSET(Volumes!$I45,0,H$82) -> 27.24227897 | I45: =OFFSET(Volumes!$I45,0,I$82) -> 27.85739068 | J45: =OFFSET(Volumes!$I45,0,J$82) -> 28.48639118 | K45: =OFFSET(Volumes!$I45,0,K$82) -> 29.12959407 | L45: =OFFSET(Volumes!$I45,0,L$82) -> 29.78732004
B46: Multi phase DC BH | C46: =Volumes!I46 -> 1149.010067 | D46: =OFFSET(Volumes!$I46,0,D$82) -> 1460.19793 | E46: =OFFSET(Volumes!$I46,0,E$82) -> 1461.48728 | F46: =OFFSET(Volumes!$I46,0,F$82) -> 1194.374317 | G46: =OFFSET(Volumes!$I46,0,G$82) -> 1221.342458 | H46: =OFFSET(Volumes!$I46,0,H$82) -> 1248.919521 | I46: =OFFSET(Volumes!$I46,0,I$82) -> 1277.119255 | J46: =OFFSET(Volumes!$I46,0,J$82) -> 1305.955719 | K46: =OFFSET(Volumes!$I46,0,K$82) -> 1335.443291 | L46: =OFFSET(Volumes!$I46,0,L$82) -> 1365.596671
B47: Multi phase DC AH | C47: =Volumes!I47 -> 22.24684722 | D47: =OFFSET(Volumes!$I47,0,D$82) -> 12 | E47: =OFFSET(Volumes!$I47,0,E$82) -> 32.03686859 | F47: =OFFSET(Volumes!$I47,0,F$82) -> 32.8760567 | G47: =OFFSET(Volumes!$I47,0,G$82) -> 33.61837519 | H47: =OFFSET(Volumes!$I47,0,H$82) -> 34.37745471 | I47: =OFFSET(Volumes!$I47,0,I$82) -> 35.15367372 | J47: =OFFSET(Volumes!$I47,0,J$82) -> 35.94741922 | K47: =OFFSET(Volumes!$I47,0,K$82) -> 36.75908694 | L47: =OFFSET(Volumes!$I47,0,L$82) -> 37.58908155
B48: Multi phase CT BH | C48: =Volumes!I48 -> 96.88464366 | D48: =OFFSET(Volumes!$I48,0,D$82) -> 127.6081315 | E48: =OFFSET(Volumes!$I48,0,E$82) -> 136.4836221 | F48: =OFFSET(Volumes!$I48,0,F$82) -> 165.2997576 | G48: =OFFSET(Volumes!$I48,0,G$82) -> 169.0321112 | H48: =OFFSET(Volumes!$I48,0,H$82) -> 172.8487386 | I48: =OFFSET(Volumes!$I48,0,I$82) -> 176.7515429 | J48: =OFFSET(Volumes!$I48,0,J$82) -> 180.7424698 | K48: =OFFSET(Volumes!$I48,0,K$82) -> 184.823509 | L48: =OFFSET(Volumes!$I48,0,L$82) -> 188.9966952
B49: Multi phase CT AH | C49: =Volumes!I49 -> 7 | D49: =OFFSET(Volumes!$I49,0,D$82) -> 7 | E49: =OFFSET(Volumes!$I49,0,E$82) -> 1 | F49: =OFFSET(Volumes!$I49,0,F$82) -> 9 | G49: =OFFSET(Volumes!$I49,0,G$82) -> 9.203213739 | H49: =OFFSET(Volumes!$I49,0,H$82) -> 9.411015902 | I49: =OFFSET(Volumes!$I49,0,I$82) -> 9.623510094 | J49: =OFFSET(Volumes!$I49,0,J$82) -> 9.840802257 | K49: =OFFSET(Volumes!$I49,0,K$82) -> 10.06300073 | L49: =OFFSET(Volumes!$I49,0,L$82) -> 10.29021628
B51: New Connections Not Responsible for metering
B52: Single phase BH | C52: =Volumes!I52 -> 1 | D52: =OFFSET(Volumes!$I52,0,D$82) -> 6 | E52: =OFFSET(Volumes!$I52,0,E$82) -> 11.96311857 | F52: =OFFSET(Volumes!$I52,0,F$82) -> 2 | G52: =OFFSET(Volumes!$I52,0,G$82) -> 2.045158609 | H52: =OFFSET(Volumes!$I52,0,H$82) -> 2.091336867 | I52: =OFFSET(Volumes!$I52,0,I$82) -> 2.138557799 | J52: =OFFSET(Volumes!$I52,0,J$82) -> 2.186844946 | K52: =OFFSET(Volumes!$I52,0,K$82) -> 2.236222383 | L52: =OFFSET(Volumes!$I52,0,L$82) -> 2.286714729
B53: Single phase AH | C53: =Volumes!I53 -> 0 | D53: =OFFSET(Volumes!$I53,0,D$82) -> 0 | E53: =OFFSET(Volumes!$I53,0,E$82) -> 0 | F53: =OFFSET(Volumes!$I53,0,F$82) -> 0 | G53: =OFFSET(Volumes!$I53,0,G$82) -> 0 | H53: =OFFSET(Volumes!$I53,0,H$82) -> 0 | I53: =OFFSET(Volumes!$I53,0,I$82) -> 0 | J53: =OFFSET(Volumes!$I53,0,J$82) -> 0 | K53: =OFFSET(Volumes!$I53,0,K$82) -> 0 | L53: =OFFSET(Volumes!$I53,0,L$82) -> 0
B54: Multi phase DC BH | C54: =Volumes!I54 -> 1 | D54: =OFFSET(Volumes!$I54,0,D$82) -> 2 | E54: =OFFSET(Volumes!$I54,0,E$82) -> 14 | F54: =OFFSET(Volumes!$I54,0,F$82) -> 4 | G54: =OFFSET(Volumes!$I54,0,G$82) -> 4.090317217 | H54: =OFFSET(Volumes!$I54,0,H$82) -> 4.182673734 | I54: =OFFSET(Volumes!$I54,0,I$82) -> 4.277115597 | J54: =OFFSET(Volumes!$I54,0,J$82) -> 4.373689892 | K54: =OFFSET(Volumes!$I54,0,K$82) -> 4.472444767 | L54: =OFFSET(Volumes!$I54,0,L$82) -> 4.573429458
B55: Multi phase DC AH | C55: =Volumes!I55 -> 0 | D55: =OFFSET(Volumes!$I55,0,D$82) -> 0 | E55: =OFFSET(Volumes!$I55,0,E$82) -> 0 | F55: =OFFSET(Volumes!$I55,0,F$82) -> 0 | G55: =OFFSET(Volumes!$I55,0,G$82) -> 0 | H55: =OFFSET(Volumes!$I55,0,H$82) -> 0 | I55: =OFFSET(Volumes!$I55,0,I$82) -> 0 | J55: =OFFSET(Volumes!$I55,0,J$82) -> 0 | K55: =OFFSET(Volumes!$I55,0,K$82) -> 0 | L55: =OFFSET(Volumes!$I55,0,L$82) -> 0
B56: Multi phase CT BH | C56: =Volumes!I56 -> 94.90909138 | D56: =OFFSET(Volumes!$I56,0,D$82) -> 116.5689103 | E56: =OFFSET(Volumes!$I56,0,E$82) -> 123.7057815 | F56: =OFFSET(Volumes!$I56,0,F$82) -> 113.7899489 | G56: =OFFSET(Volumes!$I56,0,G$82) -> 116.3592467 | H56: =OFFSET(Volumes!$I56,0,H$82) -> 118.9865576 | I56: =OFFSET(Volumes!$I56,0,I$82) -> 121.6731913 | J56: =OFFSET(Volumes!$I56,0,J$82) -> 124.4204873 | K56: =OFFSET(Volumes!$I56,0,K$82) -> 127.2298153 | L56: =OFFSET(Volumes!$I56,0,L$82) -> 130.102576
B57: Multi phase CT AH | C57: =Volumes!I57 -> 9.909088745 | D57: =OFFSET(Volumes!$I57,0,D$82) -> 5 | E57: =OFFSET(Volumes!$I57,0,E$82) -> 17 | F57: =OFFSET(Volumes!$I57,0,F$82) -> 30 | G57: =OFFSET(Volumes!$I57,0,G$82) -> 30.67737913 | H57: =OFFSET(Volumes!$I57,0,H$82) -> 31.37005301 | I57: =OFFSET(Volumes!$I57,0,I$82) -> 32.07836698 | J57: =OFFSET(Volumes!$I57,0,J$82) -> 32.80267419 | K57: =OFFSET(Volumes!$I57,0,K$82) -> 33.54333575 | L57: =OFFSET(Volumes!$I57,0,L$82) -> 34.30072094
B59: Re-test of type 5 & 6 metering installations for first tier customers with annual consumption greater than 160MWh BH
B60: Re-test of type 5 & 6 metering installations for first tier customers with annual consumption greater than 160MWh AH
B62: Remote Meter Reconfiguration | C62: =Volumes!I62 -> 0 | D62: =OFFSET(Volumes!$I62,0,D$82) -> 1022.728312 | E62: =OFFSET(Volumes!$I62,0,E$82) -> 771.8087595 | F62: =OFFSET(Volumes!$I62,0,F$82) -> 1079.972229 | G62: =OFFSET(Volumes!$I62,0,G$82) -> 1104.35725 | H62: =OFFSET(Volumes!$I62,0,H$82) -> 1129.292869 | I62: =OFFSET(Volumes!$I62,0,I$82) -> 1154.791516 | J62: =OFFSET(Volumes!$I62,0,J$82) -> 1180.865905 | K62: =OFFSET(Volumes!$I62,0,K$82) -> 1207.529036 | L62: =OFFSET(Volumes!$I62,0,L$82) -> 1234.794201
B63: Remote Reenergisation | C63: =Volumes!I63 -> 0 | D63: =OFFSET(Volumes!$I63,0,D$82) -> 1746 | E63: =OFFSET(Volumes!$I63,0,E$82) -> 13853.09407 | F63: =OFFSET(Volumes!$I63,0,F$82) -> 22351.71955 | G63: =OFFSET(Volumes!$I63,0,G$82) -> 22856.40583 | H63: =OFFSET(Volumes!$I63,0,H$82) -> 23372.48757 | I63: =OFFSET(Volumes!$I63,0,I$82) -> 23900.22208 | J63: =OFFSET(Volumes!$I63,0,J$82) -> 24439.87247 | K63: =OFFSET(Volumes!$I63,0,K$82) -> 24991.70778 | L63: =OFFSET(Volumes!$I63,0,L$82) -> 25556.00316
B64: Remote Deenergisation | C64: =Volumes!I64 -> 0 | D64: =OFFSET(Volumes!$I64,0,D$82) -> 4859 | E64: =OFFSET(Volumes!$I64,0,E$82) -> 24667.03156 | F64: =OFFSET(Volumes!$I64,0,F$82) -> 32103.87992 | G64: =OFFSET(Volumes!$I64,0,G$82) -> 32828.76319 | H64: =OFFSET(Volumes!$I64,0,H$82) -> 33570.01382 | I64: =OFFSET(Volumes!$I64,0,I$82) -> 34328.00138 | J64: =OFFSET(Volumes!$I64,0,J$82) -> 35103.10377 | K64: =OFFSET(Volumes!$I64,0,K$82) -> 35895.70743 | L64: =OFFSET(Volumes!$I64,0,L$82) -> 36706.20753
B67: Check | C67: =SUM(C9:C64)-SUM(Volumes!C9:C65) -> 0 | D67: =SUM(D9:D64)-SUM(Volumes!P9:P65) -> 0 | E67: =SUM(E9:E64)-SUM(Volumes!W9:W65) -> 0 | F67: =SUM(F9:F64)-SUM(Volumes!AD9:AD65) -> 0 | G67: =SUM(G9:G64)-SUM(Volumes!AK9:AK65) -> 0 | H67: =SUM(H9:H64)-SUM(Volumes!AR9:AR65) -> 0 | I67: =SUM(I9:I64)-SUM(Volumes!AY9:AY65) -> 0 | J67: =SUM(J9:J64)-SUM(Volumes!BF9:BF65) -> 0 | K67: =SUM(K9:K64)-SUM(Volumes!BM9:BM65) -> 0 | L67: =SUM(L9:L64)-SUM(Volumes!BT9:BT65) -> 0 | M67: =SUM(C67:L67) -> 0
B70: Name of Quoted Service | C70: Current regulatory control period | H70: Forthcoming regulatory control period
C71: Actual (nominal $ ex GST) | H71: Real $2015 (ex GST)
C72: 2011 | D72: 2012 | E72: 2013 | F72: 2014 | G72: 2015 | H72: 2016 | I72: 2017 | J72: 2018 | K72: 2019 | L72: 2020
B74: Emergency Recoverable Works | C74: =Inputs!H124 -> 157 | D74: =Inputs!I124 -> 89 | E74: =Inputs!J124 -> 68 | F74: =Inputs!K124 -> 65 | G74: =Inputs!L124 -> 65 | H74: =Inputs!M124 -> 65 | I74: =Inputs!N124 -> 65 | J74: =Inputs!O124 -> 65 | K74: =Inputs!P124 -> 65 | L74: =Inputs!Q124 -> 65
B75: After hours truck by appointment | C75: =Inputs!H125 -> 416 | D75: =Inputs!I125 -> 222 | E75: =Inputs!J125 -> 211 | F75: =Inputs!K125 -> 220 | G75: =Inputs!L125 -> 220 | H75: =Inputs!M125 -> 220 | I75: =Inputs!N125 -> 220 | J75: =Inputs!O125 -> 220 | K75: =Inputs!P125 -> 220 | L75: =Inputs!Q125 -> 220
B76: Supply abolishment | C76: =Inputs!H126 -> 2258 | D76: =Inputs!I126 -> 1547 | E76: =Inputs!J126 -> 1636 | F76: =Inputs!K126 -> 1930 | G76: =Inputs!L126 -> 1930 | H76: =Inputs!M126 -> 0 | I76: =Inputs!N126 -> 0 | J76: =Inputs!O126 -> 0 | K76: =Inputs!P126 -> 0 | L76: =Inputs!Q126 -> 0
B77: Audit Design & Construction Charge | C77: =Inputs!H127 -> - | D77: =Inputs!I127 -> - | E77: =Inputs!J127 -> 5 | F77: =Inputs!K127 -> 8 | G77: =Inputs!L127 -> 8 | H77: =Inputs!M127 -> 8 | I77: =Inputs!N127 -> 8 | J77: =Inputs!O127 -> 8 | K77: =Inputs!P127 -> 8 | L77: =Inputs!Q127 -> 8
B78: Specification & Design Enquiry Charge | C78: =Inputs!H128 -> 6 | D78: =Inputs!I128 -> 25 | E78: =Inputs!J128 -> 73 | F78: =Inputs!K128 -> 73 | G78: =Inputs!L128 -> 73 | H78: =Inputs!M128 -> 73 | I78: =Inputs!N128 -> 73 | J78: =Inputs!O128 -> 73 | K78: =Inputs!P128 -> 73 | L78: =Inputs!Q128 -> 73
B79: High Load Escorts | C79: =Inputs!H129 -> - | D79: =Inputs!I129 -> 2 | E79: =Inputs!J129 -> 8 | F79: =Inputs!K129 -> 0 | G79: =Inputs!L129 -> 0 | H79: =Inputs!M129 -> 0 | I79: =Inputs!N129 -> 0 | J79: =Inputs!O129 -> 0 | K79: =Inputs!P129 -> 0 | L79: =Inputs!Q129 -> 0
B80: Low Voltage Mains | C80: =Inputs!H130 -> 586 | D80: =Inputs!I130 -> 645 | E80: =Inputs!J130 -> 708 | F80: =Inputs!K130 -> 741 | G80: =Inputs!L130 -> 741 | H80: =Inputs!M130 -> 741 | I80: =Inputs!N130 -> 741 | J80: =Inputs!O130 -> 741 | K80: =Inputs!P130 -> 741 | L80: =Inputs!Q130 -> 741
B81: Regulated Fee
B82: Offset ref | D82: =E82-7 -> 7 | E82: 14 | F82: 21 | G82: 28 | H82: 35 | I82: 42 | J82: 49 | K82: =L82-7 -> 56 | L82: 63
M84: =SUM(C73:L81)-SUM(Inputs!G124:Q131) -> 0

Sheet Volumes
A1: =+ModelName -> CP ACS Model
A2: =MID(CELL("Filename",D1),FIND("]",CELL("Filename",D1))+1,255) -> Volumes | K2: =Check!D2 -> OK
A3: Menu
C5: Actuals | AE5: Escalated
B6: CitiPower Alternative Control services - Fee Based Services | C6: 2011 | J6: 2012 | Q6: 2013 | X6: 2014 | AE6: 2015 | AL6: 2016 | AS6: 2017 | AZ6: 2018 | BG6: 2019 | BN6: 2020
C8: Labour | D8: Material | E8: Contract | F8: Direct Overhead | G8: Indirect Overhead | H8: Margin | I8: Total | J8: Labour | K8: Material | L8: Contract | M8: Direct Overhead | N8: Indirect Overhead | O8: Margin | P8: Total | Q8: Labour | R8: Material | S8: Contract | T8: Direct Overhead | U8: Indirect Overhead | V8: Margin | W8: Total | X8: Labour | Y8: Material | Z8: Contract | AA8: Direct Overhead | AB8: Indirect Overhead | AC8: Margin | AD8: Total | AE8: Labour | AF8: Material | AG8: Contract | AH8: Direct Overhead | AI8: Indirect Overhead | AJ8: Margin | AK8: Total | AL8: Labour | AM8: Material | AN8: Contract | AO8: Direct Overhead | AP8: Indirect Overhead | AQ8: Margin | AR8: Total | AS8: Labour | AT8: Material | AU8: Contract | AV8: Direct Overhead | AW8: Indirect Overhead | AX8: Margin | AY8: Total | AZ8: Labour | BA8: Material | BB8: Contract | BC8: Direct Overhead | BD8: Indirect Overhead | BE8: Margin | BF8: Total | BG8: Labour | BH8: Material | BI8: Contract | BJ8: Direct Overhead | BK8: Indirect Overhead | BL8: Margin | BM8: Total | BN8: Labour | BO8: Material | BP8: Contract | BQ8: Direct Overhead | BR8: Indirect Overhead | BS8: Margin | BT8: Total
B9: Meter Investigation Test (BH) | C9: =IFERROR('2011-20 Revenue'!C9/'ACS 12.1'!C9,0) -> 360 | D9: =IFERROR('2011-20 Revenue'!D9/'ACS 12.1'!D9,0) -> 0 | E9: =IFERROR('2011-20 Revenue'!E9/'ACS 12.1'!E9,0) -> 0 | F9: =IFERROR('2011-20 Revenue'!F9/'ACS 12.1'!F9,0) -> 0 | G9: =IFERROR('2011-20 Revenue'!G9/'ACS 12.1'!G9,0) -> 0 | I9: =IFERROR('2011-20 Revenue'!I9/'ACS 12.1'!H9,0) -> 360 | J9: =IFERROR('2011-20 Revenue'!J9/'ACS 12.1'!I9,0) -> 235.6866012 | K9: =IFERROR('2011-20 Revenue'!K9/'ACS 12.1'!J9,0) -> 0 | L9: =IFERROR('2011-20 Revenue'!L9/'ACS 12.1'!K9,0) -> 0 | M9: =IFERROR('2011-20 Revenue'!M9/'ACS 12.1'!L9,0) -> 0 | N9: =IFERROR('2011-20 Revenue'!N9/'ACS 12.1'!M9,0) -> 0 | P9: =IFERROR('2011-20 Revenue'!P9/'ACS 12.1'!N9,0) -> 235.6866012 | Q9: =IFERROR('2011-20 Revenue'!Q9/'ACS 12.1'!O9,0) -> 110.7747502 | R9: =IFERROR('2011-20 Revenue'!R9/'ACS 12.1'!P9,0) -> 0 | S9: =IFERROR('2011-20 Revenue'!S9/'ACS 12.1'!Q9,0) -> 0 | T9: =IFERROR('2011-20 Revenue'!T9/'ACS 12.1'!R9,0) -> 0 | U9: =IFERROR('2011-20 Revenue'!U9/'ACS 12.1'!S9,0) -> 0 | W9: =IFERROR('2011-20 Revenue'!W9/'ACS 12.1'!T9,0) -> 110.7747502 | X9: =IFERROR('2011-20 Revenue'!X9/'ACS 12.1'!U9,0) -> 77.0524957 | Y9: =IFERROR('2011-20 Revenue'!Y9/'ACS 12.1'!V9,0) -> 0 | Z9: =IFERROR('2011-20 Revenue'!Z9/'ACS 12.1'!W9,0) -> 0 | AA9: =IFERROR('2011-20 Revenue'!AA9/'ACS 12.1'!X9,0) -> 0 | AB9: =IFERROR('2011-20 Revenue'!AB9/'ACS 12.1'!Y9,0) -> 0 | AD9: =IFERROR('2011-20 Revenue'!AD9/'ACS 12.1'!Z9,0) -> 77.0524957 | AE9: =X9*(1+Inputs!$L$137) -> 78.79228744 | AF9: =Y9*(1+Inputs!$L$137) -> 0 | AG9: =Z9*(1+Inputs!$L$137) -> 0 | AH9: =AA9*(1+Inputs!$L$137) -> 0 | AI9: =AB9*(1+Inputs!$L$137) -> 0 | AK9: =AD9*(1+Inputs!$L$137) -> 78.79228744 | AL9: =IF('ACS 12.1'!AG9<>0,($AK9*(1+Inputs!$M$137)),0) -> 80.57136248 | AM9: =IF('ACS 12.1'!AH9<>0,($AK9*(1+Inputs!$M$137)),0) -> 0 | AN9: =IF('ACS 12.1'!AI9<>0,($AK9*(1+Inputs!$M$137)),0) -> 0 | AO9: =IF('ACS 12.1'!AJ9<>0,($AK9*(1+Inputs!$M$137)),0) -> 80.57136248 | AP9: =IF('ACS 12.1'!AK9<>0,($AK9*(1+Inputs!$M$137)),0) -> 80.57136248 | AQ9: =IF('ACS 12.1'!AL9<>0,($AK9*(1+Inputs!$M$137)),0) -> 80.57136248 | AR9: =AK9*(1+Inputs!$M$137) -> 80.57136248 | AS9: =IF('ACS 12.1'!AN9<>0,($AR9*(1+Inputs!$M$137)),0) -> 82.39060779 | AT9: =IF('ACS 12.1'!AO9<>0,($AR9*(1+Inputs!$M$137)),0) -> 0 | AU9: =IF('ACS 12.1'!AP9<>0,($AR9*(1+Inputs!$M$137)),0) -> 0 | AV9: =IF('ACS 12.1'!AQ9<>0,($AR9*(1+Inputs!$M$137)),0) -> 82.39060779 | AW9: =IF('ACS 12.1'!AR9<>0,($AR9*(1+Inputs!$M$137)),0) -> 82.39060779 | AX9: =IF('ACS 12.1'!AS9<>0,($AR9*(1+Inputs!$M$137)),0) -> 82.39060779 | AY9: =AR9*(1+Inputs!$M$137) -> 82.39060779 | AZ9: =IF('ACS 12.1'!AU9<>0,($AY9*(1+Inputs!$M$137)),0) -> 84.2509304 | BA9: =IF('ACS 12.1'!AV9<>0,($AY9*(1+Inputs!$M$137)),0) -> 0 | BB9: =IF('ACS 12.1'!AW9<>0,($AY9*(1+Inputs!$M$137)),0) -> 0 | BC9: =IF('ACS 12.1'!AX9<>0,($AY9*(1+Inputs!$M$137)),0) -> 84.2509304 | BD9: =IF('ACS 12.1'!AY9<>0,($AY9*(1+Inputs!$M$137)),0) -> 84.2509304 | BE9: =IF('ACS 12.1'!AZ9<>0,($AY9*(1+Inputs!$M$137)),0) -> 84.2509304 | BF9: =AY9*(1+Inputs!$M$137) -> 84.2509304 | BG9: =IF('ACS 12.1'!BB9<>0,($BF9*(1+Inputs!$M$137)),0) -> 86.15325779 | BH9: =IF('ACS 12.1'!BC9<>0,($BF9*(1+Inputs!$M$137)),0) -> 0 | BI9: =IF('ACS 12.1'!BD9<>0,($BF9*(1+Inputs!$M$137)),0) -> 0 | BJ9: =IF('ACS 12.1'!BE9<>0,($BF9*(1+Inputs!$M$137)),0) -> 86.15325779 | BK9: =IF('ACS 12.1'!BF9<>0,($BF9*(1+Inputs!$M$137)),0) -> 86.15325779 | BL9: =IF('ACS 12.1'!BG9<>0,($BF9*(1+Inputs!$M$137)),0) -> 86.15325779 | BM9: =BF9*(1+Inputs!$M$137) -> 86.15325779 | BN9: =IF('ACS 12.1'!BI9<>0,($BM9*(1+Inputs!$M$137)),0) -> 88.09853841 | BO9: =IF('ACS 12.1'!BJ9<>0,($BM9*(1+Inputs!$M$137)),0) -> 0 | BP9: =IF('ACS 12.1'!BK9<>0,($BM9*(1+Inputs!$M$137)),0) -> 0 | BQ9: =IF('ACS 12.1'!BL9<>0,($BM9*(1+Inputs!$M$137)),0) -> 88.09853841 | BR9: =IF('ACS 12.1'!BM9<>0,($BM9*(1+Inputs!$M$137)),0) -> 88.09853841 | BS9: =IF('ACS 12.1'!BN9<>0,($BM9*(1+Inputs!$M$137)),0) -> 88.09853841 | BT9: =BM9*(1+Inputs!$M$137) -> 88.09853841
B10: Meter Investigation Test (AH) | C10: =IFERROR('2011-20 Revenue'!C10/'ACS 12.1'!C10,0) -> 0 | D10: =IFERROR('2011-20 Revenue'!D10/'ACS 12.1'!D10,0) -> 0 | E10: =IFERROR('2011-20 Revenue'!E10/'ACS 12.1'!E10,0) -> 0 | F10: =IFERROR('2011-20 Revenue'!F10/'ACS 12.1'!F10,0) -> 0 | G10: =IFERROR('2011-20 Revenue'!G10/'ACS 12.1'!G10,0) -> 0 | I10: =IFERROR('2011-20 Revenue'!I10/'ACS 12.1'!H10,0) -> 0 | J10: =IFERROR('2011-20 Revenue'!J10/'ACS 12.1'!I10,0) -> 0 | K10: =IFERROR('2011-20 Revenue'!K10/'ACS 12.1'!J10,0) -> 0 | L10: =IFERROR('2011-20 Revenue'!L10/'ACS 12.1'!K10,0) -> 0 | M10: =IFERROR('2011-20 Revenue'!M10/'ACS 12.1'!L10,0) -> 0 | N10: =IFERROR('2011-20 Revenue'!N10/'ACS 12.1'!M10,0) -> 0 | P10: =IFERROR('2011-20 Revenue'!P10/'ACS 12.1'!N10,0) -> 0 | Q10: =IFERROR('2011-20 Revenue'!Q10/'ACS 12.1'!O10,0) -> 0 | R10: =IFERROR('2011-20 Revenue'!R10/'ACS 12.1'!P10,0) -> 0 | S10: =IFERROR('2011-20 Revenue'!S10/'ACS 12.1'!Q10,0) -> 0 | T10: =IFERROR('2011-20 Revenue'!T10/'ACS 12.1'!R10,0) -> 0 | U10: =IFERROR('2011-20 Revenue'!U10/'ACS 12.1'!S10,0) -> 0 | W10: =IFERROR('2011-20 Revenue'!W10/'ACS 12.1'!T10,0) -> 0 | X10: =IFERROR('2011-20 Revenue'!X10/'ACS 12.1'!U10,0) -> 0 | Y10: =IFERROR('2011-20 Revenue'!Y10/'ACS 12.1'!V10,0) -> 0 | Z10: =IFERROR('2011-20 Revenue'!Z10/'ACS 12.1'!W10,0) -> 0 | AA10: =IFERROR('2011-20 Revenue'!AA10/'ACS 12.1'!X10,0) -> 0 | AB10: =IFERROR('2011-20 Revenue'!AB10/'ACS 12.1'!Y10,0) -> 0 | AD10: =IFERROR('2011-20 Revenue'!AD10/'ACS 12.1'!Z10,0) -> 0 | AE10: =X10*(1+Inputs!$L$137) -> 0 | AF10: =Y10*(1+Inputs!$L$137) -> 0 | AG10: =Z10*(1+Inputs!$L$137) -> 0 | AH10: =AA10*(1+Inputs!$L$137) -> 0 | AI10: =AB10*(1+Inputs!$L$137) -> 0 | AK10: =AD10*(1+Inputs!$L$137) -> 0 | AL10: =IF('ACS 12.1'!AG10<>0,($AK10*(1+Inputs!$M$137)),0) -> 0 | AM10: =IF('ACS 12.1'!AH10<>0,($AK10*(1+Inputs!$M$137)),0) -> 0 | AN10: =IF('ACS 12.1'!AI10<>0,($AK10*(1+Inputs!$M$137)),0) -> 0 | AO10: =IF('ACS 12.1'!AJ10<>0,($AK10*(1+Inputs!$M$137)),0) -> 0 | AP10: =IF('ACS 12.1'!AK10<>0,($AK10*(1+Inputs!$M$137)),0) -> 0 | AQ10: =IF('ACS 12.1'!AL10<>0,($AK10*(1+Inputs!$M$137)),0) -> 0 | AR10: =AK10*(1+Inputs!$M$137) -> 0 | AS10: =IF('ACS 12.1'!AN10<>0,($AR10*(1+Inputs!$M$137)),0) -> 0 | AT10: =IF('ACS 12.1'!AO10<>0,($AR10*(1+Inputs!$M$137)),0) -> 0 | AU10: =IF('ACS 12.1'!AP10<>0,($AR10*(1+Inputs!$M$137)),0) -> 0 | AV10: =IF('ACS 12.1'!AQ10<>0,($AR10*(1+Inputs!$M$137)),0) -> 0 | AW10: =IF('ACS 12.1'!AR10<>0,($AR10*(1+Inputs!$M$137)),0) -> 0 | AX10: =IF('ACS 12.1'!AS10<>0,($AR10*(1+Inputs!$M$137)),0) -> 0 | AY10: =AR10*(1+Inputs!$M$137) -> 0 | AZ10: =IF('ACS 12.1'!AU10<>0,($AY10*(1+Inputs!$M$137)),0) -> 0 | BA10: =IF('ACS 12.1'!AV10<>0,($AY10*(1+Inputs!$M$137)),0) -> 0 | BB10: =IF('ACS 12.1'!AW10<>0,($AY10*(1+Inputs!$M$137)),0) -> 0 | BC10: =IF('ACS 12.1'!AX10<>0,($AY10*(1+Inputs!$M$137)),0) -> 0 | BD10: =IF('ACS 12.1'!AY10<>0,($AY10*(1+Inputs!$M$137)),0) -> 0 | BE10: =IF('ACS 12.1'!AZ10<>0,($AY10*(1+Inputs!$M$137)),0) -> 0 | BF10: =AY10*(1+Inputs!$M$137) -> 0 | BG10: =IF('ACS 12.1'!BB10<>0,($BF10*(1+Inputs!$M$137)),0) -> 0 | BH10: =IF('ACS 12.1'!BC10<>0,($BF10*(1+Inputs!$M$137)),0) -> 0 | BI10: =IF('ACS 12.1'!BD10<>0,($BF10*(1+Inputs!$M$137)),0) -> 0 | BJ10: =IF('ACS 12.1'!BE10<>0,($BF10*(1+Inputs!$M$137)),0) -> 0 | BK10: =IF('ACS 12.1'!BF10<>0,($BF10*(1+Inputs!$M$137)),0) -> 0 | BL10: =IF('ACS 12.1'!BG10<>0,($BF10*(1+Inputs!$M$137)),0) -> 0 | BM10: =BF10*(1+Inputs!$M$137) -> 0 | BN10: =IF('ACS 12.1'!BI10<>0,($BM10*(1+Inputs!$M$137)),0) -> 0 | BO10: =IF('ACS 12.1'!BJ10<>0,($BM10*(1+Inputs!$M$137)),0) -> 0 | BP10: =IF('ACS 12.1'!BK10<>0,($BM10*(1+Inputs!$M$137)),0) -> 0 | BQ10: =IF('ACS 12.1'!BL10<>0,($BM10*(1+Inputs!$M$137)),0) -> 0 | BR10: =IF('ACS 12.1'!BM10<>0,($BM10*(1+Inputs!$M$137)),0) -> 0 | BS10: =IF('ACS 12.1'!BN10<>0,($BM10*(1+Inputs!$M$137)),0) -> 0 | BT10: =BM10*(1+Inputs!$M$137) -> 0
B11: Meter Accuracy Test - single phase (BH) | C11: =IFERROR('2011-20 Revenue'!C11/'ACS 12.1'!C11,0) -> 206.2849158 | D11: =IFERROR('2011-20 Revenue'!D11/'ACS 12.1'!D11,0) -> 0 | E11: =IFERROR('2011-20 Revenue'!E11/'ACS 12.1'!E11,0) -> 0 | F11: =IFERROR('2011-20 Revenue'!F11/'ACS 12.1'!F11,0) -> 0 | G11: =IFERROR('2011-20 Revenue'!G11/'ACS 12.1'!G11,0) -> 0 | I11: =IFERROR('2011-20 Revenue'!I11/'ACS 12.1'!H11,0) -> 206.2849158 | J11: =IFERROR('2011-20 Revenue'!J11/'ACS 12.1'!I11,0) -> 191.6083131 | K11: =IFERROR('2011-20 Revenue'!K11/'ACS 12.1'!J11,0) -> 0 | L11: =IFERROR('2011-20 Revenue'!L11/'ACS 12.1'!K11,0) -> 0 | M11: =IFERROR('2011-20 Revenue'!M11/'ACS 12.1'!L11,0) -> 0 | N11: =IFERROR('2011-20 Revenue'!N11/'ACS 12.1'!M11,0) -> 0 | P11: =IFERROR('2011-20 Revenue'!P11/'ACS 12.1'!N11,0) -> 191.6083131 | Q11: =IFERROR('2011-20 Revenue'!Q11/'ACS 12.1'!O11,0) -> 94.888522 | R11: =IFERROR('2011-20 Revenue'!R11/'ACS 12.1'!P11,0) -> 0 | S11: =IFERROR('2011-20 Revenue'!S11/'ACS 12.1'!Q11,0) -> 0 | T11: =IFERROR('2011-20 Revenue'!T11/'ACS 12.1'!R11,0) -> 0 | U11: =IFERROR('2011-20 Revenue'!U11/'ACS 12.1'!S11,0) -> 0 | W11: =IFERROR('2011-20 Revenue'!W11/'ACS 12.1'!T11,0) -> 94.888522 | X11: =IFERROR('2011-20 Revenue'!X11/'ACS 12.1'!U11,0) -> 47.58004319 | Y11: =IFERROR('2011-20 Revenue'!Y11/'ACS 12.1'!V11,0) -> 0 | Z11: =IFERROR('2011-20 Revenue'!Z11/'ACS 12.1'!W11,0) -> 0 | AA11: =IFERROR('2011-20 Revenue'!AA11/'ACS 12.1'!X11,0) -> 0 | AB11: =IFERROR('2011-20 Revenue'!AB11/'ACS 12.1'!Y11,0) -> 0 | AD11: =IFERROR('2011-20 Revenue'!AD11/'ACS 12.1'!Z11,0) -> 47.58004319 | AE11: =X11*(1+Inputs!$L$137) -> 48.65436747 | AF11: =Y11*(1+Inputs!$L$137) -> 0 | AG11: =Z11*(1+Inputs!$L$137) -> 0 | AH11: =AA11*(1+Inputs!$L$137) -> 0 | AI11: =AB11*(1+Inputs!$L$137) -> 0 | AK11: =AD11*(1+Inputs!$L$137) -> 48.65436747 | AL11: =IF('ACS 12.1'!AG11<>0,($AK11*(1+Inputs!$M$137)),0) -> 49.75294923 | AM11: =IF('ACS 12.1'!AH11<>0,($AK11*(1+Inputs!$M$137)),0) -> 0 | AN11: =IF('ACS 12.1'!AI11<>0,($AK11*(1+Inputs!$M$137)),0) -> 0 | AO11: =IF('ACS 12.1'!AJ11<>0,($AK11*(1+Inputs!$M$137)),0) -> 49.75294923 | AP11: =IF('ACS 12.1'!AK11<>0,($AK11*(1+Inputs!$M$137)),0) -> 49.75294923 | AQ11: =IF('ACS 12.1'!AL11<>0,($AK11*(1+Inputs!$M$137)),0) -> 49.75294923 | AR11: =AK11*(1+Inputs!$M$137) -> 49.75294923 | AS11: =IF('ACS 12.1'!AN11<>0,($AR11*(1+Inputs!$M$137)),0) -> 50.87633621 | AT11: =IF('ACS 12.1'!AO11<>0,($AR11*(1+Inputs!$M$137)),0) -> 0 | AU11: =IF('ACS 12.1'!AP11<>0,($AR11*(1+Inputs!$M$137)),0) -> 0 | AV11: =IF('ACS 12.1'!AQ11<>0,($AR11*(1+Inputs!$M$137)),0) -> 50.87633621 | AW11: =IF('ACS 12.1'!AR11<>0,($AR11*(1+Inputs!$M$137)),0) -> 50.87633621 | AX11: =IF('ACS 12.1'!AS11<>0,($AR11*(1+Inputs!$M$137)),0) -> 50.87633621 | AY11: =AR11*(1+Inputs!$M$137) -> 50.87633621 | AZ11: =IF('ACS 12.1'!AU11<>0,($AY11*(1+Inputs!$M$137)),0) -> 52.02508849 | BA11: =IF('ACS 12.1'!AV11<>0,($AY11*(1+Inputs!$M$137)),0) -> 0 | BB11: =IF('ACS 12.1'!AW11<>0,($AY11*(1+Inputs!$M$137)),0) -> 0 | BC11: =IF('ACS 12.1'!AX11<>0,($AY11*(1+Inputs!$M$137)),0) -> 52.02508849 | BD11: =IF('ACS 12.1'!AY11<>0,($AY11*(1+Inputs!$M$137)),0) -> 52.02508849 | BE11: =IF('ACS 12.1'!AZ11<>0,($AY11*(1+Inputs!$M$137)),0) -> 52.02508849 | BF11: =AY11*(1+Inputs!$M$137) -> 52.02508849 | BG11: =IF('ACS 12.1'!BB11<>0,($BF11*(1+Inputs!$M$137)),0) -> 53.1997788 | BH11: =IF('ACS 12.1'!BC11<>0,($BF11*(1+Inputs!$M$137)),0) -> 0 | BI11: =IF('ACS 12.1'!BD11<>0,($BF11*(1+Inputs!$M$137)),0) -> 0 | BJ11: =IF('ACS 12.1'!BE11<>0,($BF11*(1+Inputs!$M$137)),0) -> 53.1997788 | BK11: =IF('ACS 12.1'!BF11<>0,($BF11*(1+Inputs!$M$137)),0) -> 53.1997788 | BL11: =IF('ACS 12.1'!BG11<>0,($BF11*(1+Inputs!$M$137)),0) -> 53.1997788 | BM11: =BF11*(1+Inputs!$M$137) -> 53.1997788 | BN11: =IF('ACS 12.1'!BI11<>0,($BM11*(1+Inputs!$M$137)),0) -> 54.40099279 | BO11: =IF('ACS 12.1'!BJ11<>0,($BM11*(1+Inputs!$M$137)),0) -> 0 | BP11: =IF('ACS 12.1'!BK11<>0,($BM11*(1+Inputs!$M$137)),0) -> 0 | BQ11: =IF('ACS 12.1'!BL11<>0,($BM11*(1+Inputs!$M$137)),0) -> 54.40099279 | BR11: =IF('ACS 12.1'!BM11<>0,($BM11*(1+Inputs!$M$137)),0) -> 54.40099279 | BS11: =IF('ACS 12.1'!BN11<>0,($BM11*(1+Inputs!$M$137)),0) -> 54.40099279 | BT11: =BM11*(1+Inputs!$M$137) -> 54.40099279
B12: Meter Accuracy Test - single phase (AH) | C12: =IFERROR('2011-20 Revenue'!C12/'ACS 12.1'!C12,0) -> 0 | D12: =IFERROR('2011-20 Revenue'!D12/'ACS 12.1'!D12,0) -> 0 | E12: =IFERROR('2011-20 Revenue'!E12/'ACS 12.1'!E12,0) -> 0 | F12: =IFERROR('2011-20 Revenue'!F12/'ACS 12.1'!F12,0) -> 0 | G12: =IFERROR('2011-20 Revenue'!G12/'ACS 12.1'!G12,0) -> 0 | I12: =IFERROR('2011-20 Revenue'!I12/'ACS 12.1'!H12,0) -> 0 | J12: =IFERROR('2011-20 Revenue'!J12/'ACS 12.1'!I12,0) -> 2 | K12: =IFERROR('2011-20 Revenue'!K12/'ACS 12.1'!J12,0) -> 0 | L12: =IFERROR('2011-20 Revenue'!L12/'ACS 12.1'!K12,0) -> 0 | M12: =IFERROR('2011-20 Revenue'!M12/'ACS 12.1'!L12,0) -> 0 | N12: =IFERROR('2011-20 Revenue'!N12/'ACS 12.1'!M12,0) -> 0 | P12: =IFERROR('2011-20 Revenue'!P12/'ACS 12.1'!N12,0) -> 2 | Q12: =IFERROR('2011-20 Revenue'!Q12/'ACS 12.1'!O12,0) -> 0 | R12: =IFERROR('2011-20 Revenue'!R12/'ACS 12.1'!P12,0) -> 0 | S12: =IFERROR('2011-20 Revenue'!S12/'ACS 12.1'!Q12,0) -> 0 | T12: =IFERROR('2011-20 Revenue'!T12/'ACS 12.1'!R12,0) -> 0 | U12: =IFERROR('2011-20 Revenue'!U12/'ACS 12.1'!S12,0) -> 0 | W12: =IFERROR('2011-20 Revenue'!W12/'ACS 12.1'!T12,0) -> 0 | X12: =IFERROR('2011-20 Revenue'!X12/'ACS 12.1'!U12,0) -> 0 | Y12: =IFERROR('2011-20 Revenue'!Y12/'ACS 12.1'!V12,0) -> 0 | Z12: =IFERROR('2011-20 Revenue'!Z12/'ACS 12.1'!W12,0) -> 0 | AA12: =IFERROR('2011-20 Revenue'!AA12/'ACS 12.1'!X12,0) -> 0 | AB12: =IFERROR('2011-20 Revenue'!AB12/'ACS 12.1'!Y12,0) -> 0 | AD12: =IFERROR('2011-20 Revenue'!AD12/'ACS 12.1'!Z12,0) -> 0 | AE12: =X12*(1+Inputs!$L$137) -> 0 | AF12: =Y12*(1+Inputs!$L$137) -> 0 | AG12: =Z12*(1+Inputs!$L$137) -> 0 | AH12: =AA12*(1+Inputs!$L$137) -> 0 | AI12: =AB12*(1+Inputs!$L$137) -> 0 | AK12: =AD12*(1+Inputs!$L$137) -> 0 | AL12: =IF('ACS 12.1'!AG12<>0,($AK12*(1+Inputs!$M$137)),0) -> 0 | AM12: =IF('ACS 12.1'!AH12<>0,($AK12*(1+Inputs!$M$137)),0) -> 0 | AN12: =IF('ACS 12.1'!AI12<>0,($AK12*(1+Inputs!$M$137)),0) -> 0 | AO12: =IF('ACS 12.1'!AJ12<>0,($AK12*(1+Inputs!$M$137)),0) -> 0 | AP12: =IF('ACS 12.1'!AK12<>0,($AK12*(1+Inputs!$M$137)),0) -> 0 | AQ12: =IF('ACS 12.1'!AL12<>0,($AK12*(1+Inputs!$M$137)),0) -> 0 | AR12: =AK12*(1+Inputs!$M$137) -> 0 | AS12: =IF('ACS 12.1'!AN12<>0,($AR12*(1+Inputs!$M$137)),0) -> 0 | AT12: =IF('ACS 12.1'!AO12<>0,($AR12*(1+Inputs!$M$137)),0) -> 0 | AU12: =IF('ACS 12.1'!AP12<>0,($AR12*(1+Inputs!$M$137)),0) -> 0 | AV12: =IF('ACS 12.1'!AQ12<>0,($AR12*(1+Inputs!$M$137)),0) -> 0 | AW12: =IF('ACS 12.1'!AR12<>0,($AR12*(1+Inputs!$M$137)),0) -> 0 | AX12: =IF('ACS 12.1'!AS12<>0,($AR12*(1+Inputs!$M$137)),0) -> 0 | AY12: =AR12*(1+Inputs!$M$137) -> 0 | AZ12: =IF('ACS 12.1'!AU12<>0,($AY12*(1+Inputs!$M$137)),0) -> 0 | BA12: =IF('ACS 12.1'!AV12<>0,($AY12*(1+Inputs!$M$137)),0) -> 0 | BB12: =IF('ACS 12.1'!AW12<>0,($AY12*(1+Inputs!$M$137)),0) -> 0 | BC12: =IF('ACS 12.1'!AX12<>0,($AY12*(1+Inputs!$M$137)),0) -> 0 | BD12: =IF('ACS 12.1'!AY12<>0,($AY12*(1+Inputs!$M$137)),0) -> 0 | BE12: =IF('ACS 12.1'!AZ12<>0,($AY12*(1+Inputs!$M$137)),0) -> 0 | BF12: =AY12*(1+Inputs!$M$137) -> 0 | BG12: =IF('ACS 12.1'!BB12<>0,($BF12*(1+Inputs!$M$137)),0) -> 0 | BH12: =IF('ACS 12.1'!BC12<>0,($BF12*(1+Inputs!$M$137)),0) -> 0 | BI12: =IF('ACS 12.1'!BD12<>0,($BF12*(1+Inputs!$M$137)),0) -> 0 | BJ12: =IF('ACS 12.1'!BE12<>0,($BF12*(1+Inputs!$M$137)),0) -> 0 | BK12: =IF('ACS 12.1'!BF12<>0,($BF12*(1+Inputs!$M$137)),0) -> 0 | BL12: =IF('ACS 12.1'!BG12<>0,($BF12*(1+Inputs!$M$137)),0) -> 0 | BM12: =BF12*(1+Inputs!$M$137) -> 0 | BN12: =IF('ACS 12.1'!BI12<>0,($BM12*(1+Inputs!$M$137)),0) -> 0 | BO12: =IF('ACS 12.1'!BJ12<>0,($BM12*(1+Inputs!$M$137)),0) -> 0 | BP12: =IF('ACS 12.1'!BK12<>0,($BM12*(1+Inputs!$M$137)),0) -> 0 | BQ12: =IF('ACS 12.1'!BL12<>0,($BM12*(1+Inputs!$M$137)),0) -> 0 | BR12: =IF('ACS 12.1'!BM12<>0,($BM12*(1+Inputs!$M$137)),0) -> 0 | BS12: =IF('ACS 12.1'!BN12<>0,($BM12*(1+Inputs!$M$137)),0) -> 0 | BT12: =BM12*(1+Inputs!$M$137) -> 0
B13: Meter Accuracy Test - Single phase additional meter (BH) | C13: =IFERROR('2011-20 Revenue'!C13/'ACS 12.1'!C13,0) -> 9.579207921 | D13: =IFERROR('2011-20 Revenue'!D13/'ACS 12.1'!D13,0) -> 0 | E13: =IFERROR('2011-20 Revenue'!E13/'ACS 12.1'!E13,0) -> 0 | F13: =IFERROR('2011-20 Revenue'!F13/'ACS 12.1'!F13,0) -> 0 | G13: =IFERROR('2011-20 Revenue'!G13/'ACS 12.1'!G13,0) -> 0 | I13: =IFERROR('2011-20 Revenue'!I13/'ACS 12.1'!H13,0) -> 9.579207921 | J13: =IFERROR('2011-20 Revenue'!J13/'ACS 12.1'!I13,0) -> 1 | K13: =IFERROR('2011-20 Revenue'!K13/'ACS 12.1'!J13,0) -> 0 | L13: =IFERROR('2011-20 Revenue'!L13/'ACS 12.1'!K13,0) -> 0 | M13: =IFERROR('2011-20 Revenue'!M13/'ACS 12.1'!L13,0) -> 0 | N13: =IFERROR('2011-20 Revenue'!N13/'ACS 12.1'!M13,0) -> 0 | P13: =IFERROR('2011-20 Revenue'!P13/'ACS 12.1'!N13,0) -> 1 | Q13: =IFERROR('2011-20 Revenue'!Q13/'ACS 12.1'!O13,0) -> 6 | R13: =IFERROR('2011-20 Revenue'!R13/'ACS 12.1'!P13,0) -> 0 | S13: =IFERROR('2011-20 Revenue'!S13/'ACS 12.1'!Q13,0) -> 0 | T13: =IFERROR('2011-20 Revenue'!T13/'ACS 12.1'!R13,0) -> 0 | U13: =IFERROR('2011-20 Revenue'!U13/'ACS 12.1'!S13,0) -> 0 | W13: =IFERROR('2011-20 Revenue'!W13/'ACS 12.1'!T13,0) -> 6 | X13: =IFERROR('2011-20 Revenue'!X13/'ACS 12.1'!U13,0) -> 0 | Y13: =IFERROR('2011-20 Revenue'!Y13/'ACS 12.1'!V13,0) -> 0 | Z13: =IFERROR('2011-20 Revenue'!Z13/'ACS 12.1'!W13,0) -> 0 | AA13: =IFERROR('2011-20 Revenue'!AA13/'ACS 12.1'!X13,0) -> 0 | AB13: =IFERROR('2011-20 Revenue'!AB13/'ACS 12.1'!Y13,0) -> 0 | AD13: =IFERROR('2011-20 Revenue'!AD13/'ACS 12.1'!Z13,0) -> 0 | AE13: =X13*(1+Inputs!$L$137) -> 0 | AF13: =Y13*(1+Inputs!$L$137) -> 0 | AG13: =Z13*(1+Inputs!$L$137) -> 0 | AH13: =AA13*(1+Inputs!$L$137) -> 0 | AI13: =AB13*(1+Inputs!$L$137) -> 0 | AK13: =AD13*(1+Inputs!$L$137) -> 0 | AL13: =IF('ACS 12.1'!AG13<>0,($AK13*(1+Inputs!$M$137)),0) -> 0 | AM13: =IF('ACS 12.1'!AH13<>0,($AK13*(1+Inputs!$M$137)),0) -> 0 | AN13: =IF('ACS 12.1'!AI13<>0,($AK13*(1+Inputs!$M$137)),0) -> 0 | AO13: =IF('ACS 12.1'!AJ13<>0,($AK13*(1+Inputs!$M$137)),0) -> 0 | AP13: =IF('ACS 12.1'!AK13<>0,($AK13*(1+Inputs!$M$137)),0) -> 0 | AQ13: =IF('ACS 12.1'!AL13<>0,($AK13*(1+Inputs!$M$137)),0) -> 0 | AR13: =AK13*(1+Inputs!$M$137) -> 0 | AS13: =IF('ACS 12.1'!AN13<>0,($AR13*(1+Inputs!$M$137)),0) -> 0 | AT13: =IF('ACS 12.1'!AO13<>0,($AR13*(1+Inputs!$M$137)),0) -> 0 | AU13: =IF('ACS 12.1'!AP13<>0,($AR13*(1+Inputs!$M$137)),0) -> 0 | AV13: =IF('ACS 12.1'!AQ13<>0,($AR13*(1+Inputs!$M$137)),0) -> 0 | AW13: =IF('ACS 12.1'!AR13<>0,($AR13*(1+Inputs!$M$137)),0) -> 0 | AX13: =IF('ACS 12.1'!AS13<>0,($AR13*(1+Inputs!$M$137)),0) -> 0 | AY13: =AR13*(1+Inputs!$M$137) -> 0 | AZ13: =IF('ACS 12.1'!AU13<>0,($AY13*(1+Inputs!$M$137)),0) -> 0 | BA13: =IF('ACS 12.1'!AV13<>0,($AY13*(1+Inputs!$M$137)),0) -> 0 | BB13: =IF('ACS 12.1'!AW13<>0,($AY13*(1+Inputs!$M$137)),0) -> 0 | BC13: =IF('ACS 12.1'!AX13<>0,($AY13*(1+Inputs!$M$137)),0) -> 0 | BD13: =IF('ACS 12.1'!AY13<>0,($AY13*(1+Inputs!$M$137)),0) -> 0 | BE13: =IF('ACS 12.1'!AZ13<>0,($AY13*(1+Inputs!$M$137)),0) -> 0 | BF13: =AY13*(1+Inputs!$M$137) -> 0 | BG13: =IF('ACS 12.1'!BB13<>0,($BF13*(1+Inputs!$M$137)),0) -> 0 | BH13: =IF('ACS 12.1'!BC13<>0,($BF13*(1+Inputs!$M$137)),0) -> 0 | BI13: =IF('ACS 12.1'!BD13<>0,($BF13*(1+Inputs!$M$137)),0) -> 0 | BJ13: =IF('ACS 12.1'!BE13<>0,($BF13*(1+Inputs!$M$137)),0) -> 0 | BK13: =IF('ACS 12.1'!BF13<>0,($BF13*(1+Inputs!$M$137)),0) -> 0 | BL13: =IF('ACS 12.1'!BG13<>0,($BF13*(1+Inputs!$M$137)),0) -> 0 | BM13: =BF13*(1+Inputs!$M$137) -> 0 | BN13: =IF('ACS 12.1'!BI13<>0,($BM13*(1+Inputs!$M$137)),0) -> 0 | BO13: =IF('ACS 12.1'!BJ13<>0,($BM13*(1+Inputs!$M$137)),0) -> 0 | BP13: =IF('ACS 12.1'!BK13<>0,($BM13*(1+Inputs!$M$137)),0) -> 0 | BQ13: =IF('ACS 12.1'!BL13<>0,($BM13*(1+Inputs!$M$137)),0) -> 0 | BR13: =IF('ACS 12.1'!BM13<>0,($BM13*(1+Inputs!$M$137)),0) -> 0 | BS13: =IF('ACS 12.1'!BN13<>0,($BM13*(1+Inputs!$M$137)),0) -> 0 | BT13: =BM13*(1+Inputs!$M$137) -> 0
B14: Meter Accuracy Test - multi phase (BH) | C14: =IFERROR('2011-20 Revenue'!C14/'ACS 12.1'!C14,0) -> 72.62789295 | D14: =IFERROR('2011-20 Revenue'!D14/'ACS 12.1'!D14,0) -> 0 | E14: =IFERROR('2011-20 Revenue'!E14/'ACS 12.1'!E14,0) -> 0 | F14: =IFERROR('2011-20 Revenue'!F14/'ACS 12.1'!F14,0) -> 0 | G14: =IFERROR('2011-20 Revenue'!G14/'ACS 12.1'!G14,0) -> 0 | I14: =IFERROR('2011-20 Revenue'!I14/'ACS 12.1'!H14,0) -> 72.62789295 | J14: =IFERROR('2011-20 Revenue'!J14/'ACS 12.1'!I14,0) -> 68.21005403 | K14: =IFERROR('2011-20 Revenue'!K14/'ACS 12.1'!J14,0) -> 0 | L14: =IFERROR('2011-20 Revenue'!L14/'ACS 12.1'!K14,0) -> 0 | M14: =IFERROR('2011-20 Revenue'!M14/'ACS 12.1'!L14,0) -> 0 | N14: =IFERROR('2011-20 Revenue'!N14/'ACS 12.1'!M14,0) -> 0 | P14: =IFERROR('2011-20 Revenue'!P14/'ACS 12.1'!N14,0) -> 68.21005403 | Q14: =IFERROR('2011-20 Revenue'!Q14/'ACS 12.1'!O14,0) -> 45 | R14: =IFERROR('2011-20 Revenue'!R14/'ACS 12.1'!P14,0) -> 0 | S14: =IFERROR('2011-20 Revenue'!S14/'ACS 12.1'!Q14,0) -> 0 | T14: =IFERROR('2011-20 Revenue'!T14/'ACS 12.1'!R14,0) -> 0 | U14: =IFERROR('2011-20 Revenue'!U14/'ACS 12.1'!S14,0) -> 0 | W14: =IFERROR('2011-20 Revenue'!W14/'ACS 12.1'!T14,0) -> 45 | X14: =IFERROR('2011-20 Revenue'!X14/'ACS 12.1'!U14,0) -> 16.89500413 | Y14: =IFERROR('2011-20 Revenue'!Y14/'ACS 12.1'!V14,0) -> 0 | Z14: =IFERROR('2011-20 Revenue'!Z14/'ACS 12.1'!W14,0) -> 0 | AA14: =IFERROR('2011-20 Revenue'!AA14/'ACS 12.1'!X14,0) -> 0 | AB14: =IFERROR('2011-20 Revenue'!AB14/'ACS 12.1'!Y14,0) -> 0 | AD14: =IFERROR('2011-20 Revenue'!AD14/'ACS 12.1'!Z14,0) -> 16.89500413 | AE14: =X14*(1+Inputs!$L$137) -> 17.27648157 | AF14: =Y14*(1+Inputs!$L$137) -> 0 | AG14: =Z14*(1+Inputs!$L$137) -> 0 | AH14: =AA14*(1+Inputs!$L$137) -> 0 | AI14: =AB14*(1+Inputs!$L$137) -> 0 | AK14: =AD14*(1+Inputs!$L$137) -> 17.27648157 | AL14: =IF('ACS 12.1'!AG14<>0,($AK14*(1+Inputs!$M$137)),0) -> 17.6665725 | AM14: =IF('ACS 12.1'!AH14<>0,($AK14*(1+Inputs!$M$137)),0) -> 0 | AN14: =IF('ACS 12.1'!AI14<>0,($AK14*(1+Inputs!$M$137)),0) -> 0 | AO14: =IF('ACS 12.1'!AJ14<>0,($AK14*(1+Inputs!$M$137)),0) -> 17.6665725 | AP14: =IF('ACS 12.1'!AK14<>0,($AK14*(1+Inputs!$M$137)),0) -> 17.6665725 | AQ14: =IF('ACS 12.1'!AL14<>0,($AK14*(1+Inputs!$M$137)),0) -> 17.6665725 | AR14: =AK14*(1+Inputs!$M$137) -> 17.6665725 | AS14: =IF('ACS 12.1'!AN14<>0,($AR14*(1+Inputs!$M$137)),0) -> 18.06547142 | AT14: =IF('ACS 12.1'!AO14<>0,($AR14*(1+Inputs!$M$137)),0) -> 0 | AU14: =IF('ACS 12.1'!AP14<>0,($AR14*(1+Inputs!$M$137)),0) -> 0 | AV14: =IF('ACS 12.1'!AQ14<>0,($AR14*(1+Inputs!$M$137)),0) -> 18.06547142 | AW14: =IF('ACS 12.1'!AR14<>0,($AR14*(1+Inputs!$M$137)),0) -> 18.06547142 | AX14: =IF('ACS 12.1'!AS14<>0,($AR14*(1+Inputs!$M$137)),0) -> 18.06547142 | AY14: =AR14*(1+Inputs!$M$137) -> 18.06547142 | AZ14: =IF('ACS 12.1'!AU14<>0,($AY14*(1+Inputs!$M$137)),0) -> 18.47337719 | BA14: =IF('ACS 12.1'!AV14<>0,($AY14*(1+Inputs!$M$137)),0) -> 0 | BB14: =IF('ACS 12.1'!AW14<>0,($AY14*(1+Inputs!$M$137)),0) -> 0 | BC14: =IF('ACS 12.1'!AX14<>0,($AY14*(1+Inputs!$M$137)),0) -> 18.47337719 | BD14: =IF('ACS 12.1'!AY14<>0,($AY14*(1+Inputs!$M$137)),0) -> 18.47337719 | BE14: =IF('ACS 12.1'!AZ14<>0,($AY14*(1+Inputs!$M$137)),0) -> 18.47337719 | BF14: =AY14*(1+Inputs!$M$137) -> 18.47337719 | BG14: =IF('ACS 12.1'!BB14<>0,($BF14*(1+Inputs!$M$137)),0) -> 18.8904932 | BH14: =IF('ACS 12.1'!BC14<>0,($BF14*(1+Inputs!$M$137)),0) -> 0 | BI14: =IF('ACS 12.1'!BD14<>0,($BF14*(1+Inputs!$M$137)),0) -> 0 | BJ14: =IF('ACS 12.1'!BE14<>0,($BF14*(1+Inputs!$M$137)),0) -> 18.8904932 | BK14: =IF('ACS 12.1'!BF14<>0,($BF14*(1+Inputs!$M$137)),0) -> 18.8904932 | BL14: =IF('ACS 12.1'!BG14<>0,($BF14*(1+Inputs!$M$137)),0) -> 18.8904932 | BM14: =BF14*(1+Inputs!$M$137) -> 18.8904932 | BN14: =IF('ACS 12.1'!BI14<>0,($BM14*(1+Inputs!$M$137)),0) -> 19.31702739 | BO14: =IF('ACS 12.1'!BJ14<>0,($BM14*(1+Inputs!$M$137)),0) -> 0 | BP14: =IF('ACS 12.1'!BK14<>0,($BM14*(1+Inputs!$M$137)),0) -> 0 | BQ14: =IF('ACS 12.1'!BL14<>0,($BM14*(1+Inputs!$M$137)),0) -> 19.31702739 | BR14: =IF('ACS 12.1'!BM14<>0,($BM14*(1+Inputs!$M$137)),0) -> 19.31702739 | BS14: =IF('ACS 12.1'!BN14<>0,($BM14*(1+Inputs!$M$137)),0) -> 19.31702739 | BT14: =BM14*(1+Inputs!$M$137) -> 19.31702739
B15: Meter Accuracy Test - multi phase (AH) | C15: =IFERROR('2011-20 Revenue'!C15/'ACS 12.1'!C15,0) -> 0 | D15: =IFERROR('2011-20 Revenue'!D15/'ACS 12.1'!D15,0) -> 0 | E15: =IFERROR('2011-20 Revenue'!E15/'ACS 12.1'!E15,0) -> 0 | F15: =IFERROR('2011-20 Revenue'!F15/'ACS 12.1'!F15,0) -> 0 | G15: =IFERROR('2011-20 Revenue'!G15/'ACS 12.1'!G15,0) -> 0 | I15: =IFERROR('2011-20 Revenue'!I15/'ACS 12.1'!H15,0) -> 0 | J15: =IFERROR('2011-20 Revenue'!J15/'ACS 12.1'!I15,0) -> 1 | K15: =IFERROR('2011-20 Revenue'!K15/'ACS 12.1'!J15,0) -> 0 | L15: =IFERROR('2011-20 Revenue'!L15/'ACS 12.1'!K15,0) -> 0 | M15: =IFERROR('2011-20 Revenue'!M15/'ACS 12.1'!L15,0) -> 0 | N15: =IFERROR('2011-20 Revenue'!N15/'ACS 12.1'!M15,0) -> 0 | P15: =IFERROR('2011-20 Revenue'!P15/'ACS 12.1'!N15,0) -> 1 | Q15: =IFERROR('2011-20 Revenue'!Q15/'ACS 12.1'!O15,0) -> 0 | R15: =IFERROR('2011-20 Revenue'!R15/'ACS 12.1'!P15,0) -> 0 | S15: =IFERROR('2011-20 Revenue'!S15/'ACS 12.1'!Q15,0) -> 0 | T15: =IFERROR('2011-20 Revenue'!T15/'ACS 12.1'!R15,0) -> 0 | U15: =IFERROR('2011-20 Revenue'!U15/'ACS 12.1'!S15,0) -> 0 | W15: =IFERROR('2011-20 Revenue'!W15/'ACS 12.1'!T15,0) -> 0 | X15: =IFERROR('2011-20 Revenue'!X15/'ACS 12.1'!U15,0) -> 0 | Y15: =IFERROR('2011-20 Revenue'!Y15/'ACS 12.1'!V15,0) -> 0 | Z15: =IFERROR('2011-20 Revenue'!Z15/'ACS 12.1'!W15,0) -> 0 | AA15: =IFERROR('2011-20 Revenue'!AA15/'ACS 12.1'!X15,0) -> 0 | AB15: =IFERROR('2011-20 Revenue'!AB15/'ACS 12.1'!Y15,0) -> 0 | AD15: =IFERROR('2011-20 Revenue'!AD15/'ACS 12.1'!Z15,0) -> 0 | AE15: =X15*(1+Inputs!$L$137) -> 0 | AF15: =Y15*(1+Inputs!$L$137) -> 0 | AG15: =Z15*(1+Inputs!$L$137) -> 0 | AH15: =AA15*(1+Inputs!$L$137) -> 0 | AI15: =AB15*(1+Inputs!$L$137) -> 0 | AK15: =AD15*(1+Inputs!$L$137) -> 0 | AL15: =IF('ACS 12.1'!AG15<>0,($AK15*(1+Inputs!$M$137)),0) -> 0 | AM15: =IF('ACS 12.1'!AH15<>0,($AK15*(1+Inputs!$M$137)),0) -> 0 | AN15: =IF('ACS 12.1'!AI15<>0,($AK15*(1+Inputs!$M$137)),0) -> 0 | AO15: =IF('ACS 12.1'!AJ15<>0,($AK15*(1+Inputs!$M$137)),0) -> 0 | AP15: =IF('ACS 12.1'!AK15<>0,($AK15*(1+Inputs!$M$137)),0) -> 0 | AQ15: =IF('ACS 12.1'!AL15<>0,($AK15*(1+Inputs!$M$137)),0) -> 0 | AR15: =AK15*(1+Inputs!$M$137) -> 0 | AS15: =IF('ACS 12.1'!AN15<>0,($AR15*(1+Inputs!$M$137)),0) -> 0 | AT15: =IF('ACS 12.1'!AO15<>0,($AR15*(1+Inputs!$M$137)),0) -> 0 | AU15: =IF('ACS 12.1'!AP15<>0,($AR15*(1+Inputs!$M$137)),0) -> 0 | AV15: =IF('ACS 12.1'!AQ15<>0,($AR15*(1+Inputs!$M$137)),0) -> 0 | AW15: =IF('ACS 12.1'!AR15<>0,($AR15*(1+Inputs!$M$137)),0) -> 0 | AX15: =IF('ACS 12.1'!AS15<>0,($AR15*(1+Inputs!$M$137)),0) -> 0 | AY15: =AR15*(1+Inputs!$M$137) -> 0 | AZ15: =IF('ACS 12.1'!AU15<>0,($AY15*(1+Inputs!$M$137)),0) -> 0 | BA15: =IF('ACS 12.1'!AV15<>0,($AY15*(1+Inputs!$M$137)),0) -> 0 | BB15: =IF('ACS 12.1'!AW15<>0,($AY15*(1+Inputs!$M$137)),0) -> 0 | BC15: =IF('ACS 12.1'!AX15<>0,($AY15*(1+Inputs!$M$137)),0) -> 0 | BD15: =IF('ACS 12.1'!AY15<>0,($AY15*(1+Inputs!$M$137)),0) -> 0 | BE15: =IF('ACS 12.1'!AZ15<>0,($AY15*(1+Inputs!$M$137)),0) -> 0 | BF15: =AY15*(1+Inputs!$M$137) -> 0 | BG15: =IF('ACS 12.1'!BB15<>0,($BF15*(1+Inputs!$M$137)),0) -> 0 | BH15: =IF('ACS 12.1'!BC15<>0,($BF15*(1+Inputs!$M$137)),0) -> 0 | BI15: =IF('ACS 12.1'!BD15<>0,($BF15*(1+Inputs!$M$137)),0) -> 0 | BJ15: =IF('ACS 12.1'!BE15<>0,($BF15*(1+Inputs!$M$137)),0) -> 0 | BK15: =IF('ACS 12.1'!BF15<>0,($BF15*(1+Inputs!$M$137)),0) -> 0 | BL15: =IF('ACS 12.1'!BG15<>0,($BF15*(1+Inputs!$M$137)),0) -> 0 | BM15: =BF15*(1+Inputs!$M$137) -> 0 | BN15: =IF('ACS 12.1'!BI15<>0,($BM15*(1+Inputs!$M$137)),0) -> 0 | BO15: =IF('ACS 12.1'!BJ15<>0,($BM15*(1+Inputs!$M$137)),0) -> 0 | BP15: =IF('ACS 12.1'!BK15<>0,($BM15*(1+Inputs!$M$137)),0) -> 0 | BQ15: =IF('ACS 12.1'!BL15<>0,($BM15*(1+Inputs!$M$137)),0) -> 0 | BR15: =IF('ACS 12.1'!BM15<>0,($BM15*(1+Inputs!$M$137)),0) -> 0 | BS15: =IF('ACS 12.1'!BN15<>0,($BM15*(1+Inputs!$M$137)),0) -> 0 | BT15: =BM15*(1+Inputs!$M$137) -> 0
